Workbook

Sheet Cover
B3: Copyright © 2019, CRC for Water Sensitive Cities
B4: 2019.3
B5: Developer: David Pannell, University of Western Australia
B7: Integrate Research Project 2, "Comprehensive economic evaluation framework"
B8: Project leader: Sayed Iftekhar, University of Western Australia
B9: The INFFEWS BCA Tool
B10: The INFFEWS BCA Tool is designed to assist users to conduct a high-quality Benefit: Cost Analysis (BCA) of projects related to water and green infrastructure in urban areas.
B13: It provides a systematic and user-friendly approach to project evaluation. Users work through the spreadsheet step by step. The information builds in a logical sequence, with later questions depending on answers to earlier ones.
B15: ="Email any feedback, comments or suggestions, quoting version " & B4 & ", to:" -> Email any feedback, comments or suggestions, quoting version 2019.3, to:
B16: inffews@crcwsc.com.au
B17: Use the INFFEWS BCA Tool spreadsheet in conjunction with …
B18: "INFFEWS BCA Tool: User Guide". Provides detailed step-by-step instructions and advice for completing a BCA in this spreadsheet tool.
B19: "INFFEWS BCA Tool: Guidelines". Explains key concepts behind BCA, and pitfalls to avoid when doing a BCA.
B20: "INFFEWS Benefit: Cost Analysis and Strategic Decision Making". Provides guidance on BCA basics; strategic issues related to BCAs; whether to conduct a BCA; and use of economic information, including BCAs, in strategic decision making.
B21: "INFFEWS Rough BCA Tool". Guidelines and a spreadsheet template for a “Rough” BCA, useful as a first step towards a full BCA, and a test of whether a BCA is feasible.
B22: Available at watersensitivecities.org.au
B23: Acknowledgements
B24: Thanks to members of the project team at the University of Western Australia: Sayed Iftekhar (project leader), James Fogarty, Maksym Polyakov, Asha Gunawardena
B26: We wish to acknowledge the significant support and valued assistance gained from industry partners in developing this customised and well aligned BCA tool, in particular the members of the IRP2 Project Steering Committee:
B28: Grace Tjandraatmadja, Melbourne Water
B29: Nigel Tapper, Monash University
B30: Sadeq Zaman, Inner West Council
B31: Nick Morgan, Brisbane City Council
B32: Greg Finlayson, GHD
B33: Karen Campisano, Water Services Association of Australia (WSAA)
B34: Ursula Kretzer, WA Department of Water and Environmental Regulation (DWER)
B35: Fiona Chandler, Alluvium
B36: Joanne Woodbridge and Naomi Rakela, Eastern Metropolitan Regional Council (EMRC)
B37: Mellissa Bradley, Water Sensitive SA
B38: Kym Whiteoak, RMCG
B39: Ben Fallowfield, Northern Beaches Council
B41: We wish to also acknowledge the assistance from other people who were consulted on the development of this BCA tool providing valuable advice:
B43: Anna Roberts and Geoff Park, Natural Decisions (co-developers of INFFER)
B44: Jim Binney, Alluvium
B46: CRC for Water Sensitive Cities acknowledges the Australian Government for funding obtained through the CRC program and all partners and members of the CRCWSC.
B47: Disclaimer
B48: The CRC for Water Sensitive Cities has endeavoured to ensure that all information in this publication is correct. It makes no warranty with regard to the accuracy of the information provided and will not be liable if the information is inaccurate, incomplete or out of date nor be liable for any direct or indirect damages arising from its use. The contents of this publication should not be used as a substitute for seeking independent professional advice.
B49: Copyright
B50: This work is copyright. Apart from any use permitted under the Copyright Act 1968, no part of it may be reproduced by any process without written permission from the publisher. Requests and inquiries concerning reproduction rights should be directed to the publisher.
B51: Upgrading to a later version
B52: To efficiently transfer data from this spreadsheet to a later version of the spreadsheet, click on the "Unhide upgrade sheet" button below and follow instructions.

Sheet 1. General
D1: Overall | F1: Project organisation
D2: NPV | E2: ='8. Report'!$B$15 -> 7988793.231 | F2: NPV | G2: ='8. Report'!$B$22 -> -4843141.93
D3: BCR | E3: ='8. Report'!$B$16 -> 1.897545094 | F3: BCR | G3: ='8. Report'!$B$23 -> 0.4123401113
A5: 1. | B5: Project basics
A7: 1.1 | B7: Name of project
B8: Princes Park Stormwater Harvesting
A10: 1.2 | B10: Project summary (up to 150 words on location, scale, activities)
B11: The worked example is a benefit-cost analysis of a proposed stormwater harvesting scheme in the City of Melbourne municipality in Victoria, Australia. Princes Park is a major metropolitan parkland in the inner north area of Melbourne. It includes various types of sports grounds and passive recreational spaces, and is home to many mature trees of historical significance. The park is heavily used by both the local community, and it attracts users from a much wider area given its prominence for sports events and recreation.
A13: 1.3 | B13: Names of people responsible for completing this BCA
B14: Celeste Morgan, E2Designlab
A16: 1.4 | B16: Date when this BCA was last updated
B17: 2019-05-04
A19: 1.5 | B19: Goal or target for the project (25-50 words)
B20: Provide a holistic BCA to support a decision on whether to proceed to detailed design
B22: Works and actions needed to achieve the goal
B24: These questions relate specifically to on-ground works or actions, not to planning, public education, monitoring, investigations, payments to landholders, etc. that may deliver outcomes indirectly. Such indirect actions will be captured in Questions 1.11 to 1.14. In most cases, the responses to this question will be physical works or on-ground actions, but for some projects it may be changes in behaviour that don’t involve physical works.
A26: 1.6 | B26: Works and on-ground actions that must be implemented by this project
B27: Pumped offtake from Mooney Ponds Creek to a large underground storage which is connected to an existing irrigaiton system.
A29: 1.7 | B29: Works and on-ground actions that must be implemented by private citizens or businesses
B30: None
A32: 1.8 | B32: Works and on-ground actions that must be implemented by other organisations
B33: None
A35: 1.9 | B35: Briefly outline the causal links between the above works/actions and outcomes (relating to the goal) for the project. Outline the available evidence for believing that these works will work.
B36: Modelling has been completed which shows good reiliability of supply, even during periods of drought.
B38: Project activities
A40: 1.10 | B40: Investigations (data collection, research, analysis) that will be done in the project
B41: None
A43: 1.11 | B43: Management arrangements for the project
B44: Council-led
A46: 1.12 | B46: Delivery mechanisms used in this project to encourage private citizens or businesses to undertake the works and on-ground actions
B47: Council-led
A49: 1.13 | B49: Delivery mechanisms used in this project to encourage other organisations to undertake all required measures
B50: Council-led
B52: With-project and without-project scenarios
B54: This is one of the most important parts of the BCA. It is an essential pre-cursor to estimating the benefits of the project.
A56: 1.14 | B56: Describe the “with project” scenario
B57: In broad terms, how will the outcomes evolve over time in the presence of the project? What difference will the project make, relative to the without-project scenario? Where and when will the benefits be generated? The difference to outcomes to be identified here is the difference resulting from all of the on-ground works and actions that will be conducted by the project (as indicated in 1.6) plus all the works and actions that the project will cause to be undertaken by private citizens or businesses (1.7) and other organisations (1.8).
B58: The stormwater supply will replace 77% of the potable water supply for irrigation during 'normal' times, therefore providing potable water savings and removing pollution from waterways and Port Phillip Bay. During drought periods, if water restrictions are in place, the project will offer additional benefits by supporting the health of the park and maintaining a good level of service to the community.
A60: 1.15 | B60: Describe the “without project” scenario
B61: In broad terms, how will the outcomes evolve over time in the absence of the project? This should reflect that, even without the project, things may change. They may worsen or they may improve, but we need to anticipate what they would do without the project, so that we can use this as the baseline for assessing the benefits of the project. The description should help the reader understand how the outcomes that are relevant to this project (benefits and costs) would unfold if the project is not implemented.
B62: Without the project, the park will continue to receive potable water supply from the Melbourne system, which is under increasing pressure from climate change and population growth. In the event of a major drought, the potable water supply may be restricted, resulting in a dry park unsuitable for recreation, cooling and amenity purposes and widespread death of trees (as was evidenced in the Millenium Drought).
B64: Names of stakeholder groups (who will gain benefits or bear costs)
A66: 1.16 | B66: Provide names for the project organisation and up to seven other stakeholder groups.
B67: City of Melbourne
B68: Local community and park users
B69: Broader Melbourne community
B70: Melbourne Water
B76: Source of video help
B78: Using the drop-down menu, indicate whether to access help videos from YouTube or from this computer.
A79: 1.20 | B79: YouTube
B80: Note: YouTube is the default. If you cannot access YouTube (e.g. your employer has a restrictive firewall, or you will be working without internet access), you can download the help videos onto your computer. The files occupy over 600MB, so they are not provided as the default option. Only change this setting to Computer if you have downloaded the help video files into a folder on your computer, and completed 1.22 below.
B82: What is the URL for help videos?
A83: 1.21 | B83: http://dpannell.science.uwa.edu.au/inffews/
B85: If videos are stored on this computer, what is path for their folder? [include final "\" (Windows) or "/" (Mac)]
A86: 1.22 | B86: C:\
B87: =IF(_122or="","",IF(OR(last_char="/",last_char="\"),"","Error: Last character of path must be \ (Windows) or / (Mac).")) -> 
B88: To get the help file path, go to the folder that contains the help files, and then:
B89: Windows - in Windows Explorer hold down the Shift key, then right-click on a file. In the menu that appears, click "Copy as path".
B90: Mac - right-click on a file or folder in the Finder, and then hold down the option key and choose “Copy [filename] as Pathname”.
B91: When you paste the path into the above cell (1.22), delete the file name itself and any surrounding quote marks, keeping only the path, including the final "\" (Windows) or "/" (Mac).

Sheet 2. Time
F1: Overall | H1: Project organisation
F2: NPV | G2: ='8. Report'!$B$15 -> 7988793.231 | H2: NPV | I2: ='8. Report'!$B$22 -> -4843141.93
F3: BCR | G3: ='8. Report'!$B$16 -> 1.897545094 | H3: BCR | I3: ='8. Report'!$B$23 -> 0.4123401113
A5: 2. | B5: Time-related parameters
A7: 2.1 | B7: Start year for the analysis (year zero in the BCA)
B8: 2020
A10: 2.2 | B10: Start year for the project
B11: 2020
A13: 2.3 | B13: Length of the analysis (years) (not counting year zero)
B14: 50 | C14: Maximum 50
A16: 2.4 | B16: Discount rate (%)
B17: Low (sensitivity analysis) | C17: Default | D17: High (sensitivity analsysis)
B18: 0.03 | C18: 0.05 | D18: 0.07

Sheet Benefits
E1: Overall | G1: Project organisation
E2: NPV | F2: ='8. Report'!$B$15 -> 7988793.231 | G2: NPV | H2: ='8. Report'!$B$22 -> -4843141.93
E3: BCR | F3: ='8. Report'!$B$16 -> 1.897545094 | G3: BCR | H3: ='8. Report'!$B$23 -> 0.4123401113
B5: Use this sheet to review the range of benefit types relevant to water-sensitive cities, and to generate a new benefit in one of the tables on the 3. Benefits parameters sheet, ready for numbers to be entered. Some projects generate multiple types of benefits. For example, a project that reduces extreme heat may reduce mortality, reduce recurring heating costs, and increase work productivity. For these cases, identify the individual benefit types and enter information about each of them individually. They will be aggregated in the BCA. To include an additional benefit type in the BCA, (a) select a benefit category for that benefit type from the drop-down menu to the right of the main table, (b) click on the "Add benefit" button to generate a row in the relevant benefit category table (on the next sheet) and (c) enter the required numbers in that row. | F5: You can use this checklist to capture adverse impacts of a project, as well as beneficial impacts. If the project would have an adverse impact on any of the outcomes in this checklist, select the benefit category for that outcome in column F, click on the "Add benefit" button, and enter a negative value in the benefit category table (in parts 3.1 to 3.8).
B7: Checklist of benefits relevant to water-sensitive cities
B9: Benefit | C9: Broad benefit group | D9: Relevant INFFEWS benefit categories | E9: Relevant values included in Value Tool | F9: Select INFFEWS benefit category to add the benefit to | H9: Add benefit to the BCA
A10: 1 | B10: Reduced water consumption | C10: Market | D10: 1, 2, 4, 8 | E10: Nil | F10: 2 Benefit per user-specified unit
A11: 2 | B11: Reduced or delayed investment in infrastructure (e.g. water-treatment plant) | C11: Cost savings | D11: 5 | E11: 4 | F11: 5 Delay or reduction in cost
A12: 3 | B12: Reduced recurring costs (e.g. energy for cooling) | C12: Cost savings | D12: 1, 2, 4, 8 | E12: 41 | F12: 4 Benefit per year in aggregate
A13: 4 | B13: Improved management of waste-water | C13: Market or cost savings | D13: 2, 4, 5, 8 | E13: 21 | F13: 4 Benefit per year in aggregate
A14: 5 | B14: Increased business profits (e.g. from sewer mining) | C14: Market | D14: 2, 4, 5, 8 | E14: Nil | F14: 4 Benefit per year in aggregate
A15: 6 | B15: Increased work productivity (e.g. from less extreme heat) | C15: Market | D15: 1, 3, 4, 8 | E15: Nil | F15: 1 Benefit per person
A16: 7 | B16: Increased tourism | C16: Market and non-market | D16: 1, 4, 8 | E16: 8 | F16: 1 Benefit per person
A17: 8 | B17: Improved aesthetics | C17: Non-market | D17: 1, 2, 4, 8 | E17: 48 | F17: 2 Benefit per user-specified unit
A18: 9 | B18: Improved opportunities for recreation | C18: Market and non-market | D18: 1, 2, 4, 8 | E18: 294 | F18: 1 Benefit per person
A19: 10 | B19: Reduced crime, increased community cohesion | C19: Market and non-market | D19: 1, 2, 4, 8 | E19: 6 | F19: 4 Benefit per year in aggregate
A20: 11 | B20: Reduced mortality (e.g. from reduced extreme heat) | C20: Non-market and market (health system costs) | D20: 1, 7, 8 | E20: 2 | F20: 7 Reduced consequence of a risky event
A21: 12 | B21: Reduced morbidity, improved health (e.g. from reduced extreme heat) | C21: Non-market and market (health system costs) | D21: 1, 8 | E21: 6 | F21: 1 Benefit per person
A22: 13 | B22: Reduced greenhouse gas emissions, increased CO2 sequestration | C22: Market and non-market | D22: 2, 3, 8 | E22: 12 | F22: 3 Benefit per unit of abatement
A23: 14 | B23: Groundwater recharge (e.g. for potable extraction or wetland enhancement) | C23: Market and non-market | D23: 1, 2, 4, 6, 8 | E23: 6 | F23: 2 Benefit per user-specified unit
A24: 15 | B24: Ecological improvement, biodiversity | C24: Non-market | D24: 1, 2, 3, 4, 6, 8 | E24: 149 | F24: 1 Benefit per person
A25: 16 | B25: Improved air quality | C25: Market and non-market | D25: 1, 2, 3, 4, 8 | E25: 1 | F25: 3 Benefit per unit of abatement
A26: 17 | B26: Enhancing water quality in a water body | C26: Market and non-market | D26: 2, 3, 4, 6, 8 | E26: 44 | F26: 6 Improved environ. or community asset
A27: 18 | B27: Reduced flood risk | C27: Risk reduction | D27: 7, 8 | E27: 7 | F27: 7 Reduced consequence of a risky event
A28: 19 | B28: Reduced risk of poor water quality due to fire | C28: Risk reduction | D28: 7, 8 | E28: Nil | F28: 7 Reduced consequence of a risky event
A29: 20 | B29: Improved security of water supply | C29: Non-market | D29: 1, 2, 4, 8 | E29: 100 | F29: 1 Benefit per person

Sheet 3. Benefit parameters
G1: Overall | I1: Project organisation
G2: NPV | H2: ='8. Report'!$B$15 -> 7988793.231 | I2: NPV | J2: ='8. Report'!$B$22 -> -4843141.93
G3: BCR | H3: ='8. Report'!$B$16 -> 1.897545094 | I3: BCR | J3: ='8. Report'!$B$23 -> 0.4123401113
B5: Use the Benefits sheet to review the range of benefit types relevant to water-sensitive cities, and to generate a new benefit in one of the tables below, ready for the numbers to be entered. If necessary, edit the label in the first column so that it is clear what the benefit is. Alternatively you can go directly to the relevant Category table below, and enter a new row of benefit information yourself, including a suitable label for the benefit. If the project would have an adverse impact on a benefit type, capture this in the relevant table below. For example, in 3.1 enter a label in column B such as "Adverse effect on amenity" and enter a negative annual benefit per person.
A7: 4. | B7: Benefit parameters
A9: 3.1 | B9: Category 1. Benefit per person (on average) for a population
B10: Benefit (enter label) | C10: Monetary? (drop-down menu) | D10: Unit | E10: Benefit per person per year ($/person/year)* | F10: Affected population (people)** | J10: Start year | K10: End year | L10: Growth rate of benefits | N10: ="Proportion captured by "&'1. General'!$B$67 -> Proportion captured by City of Melbourne | O10: ="Proportion captured by "&'1. General'!$B$68 -> Proportion captured by Local community and park users | P10: ="Proportion captured by "&'1. General'!$B$69 -> Proportion captured by Broader Melbourne community | Q10: ="Proportion captured by "&'1. General'!$B$70 -> Proportion captured by Melbourne Water | R10: ="Proportion captured by "&'1. General'!$B$71 -> Proportion captured by | S10: ="Proportion captured by "&'1. General'!$B$72 -> Proportion captured by | T10: ="Proportion captured by "&'1. General'!$B$73 -> Proportion captured by | U10: ="Proportion captured by "&'1. General'!$B$74 -> Proportion captured by | W10: Non-monetary benefits (description - up to 25 words)
C11: Monetary | D11: People | N11: 1
C12: Monetary | D12: People | N12: 1
C13: Monetary | D13: People | N13: =1-SUM(O13:U13) -> 1
C14: Monetary | D14: People | N14: 1
C15: Monetary | D15: People | N15: 1
C16: Monetary | D16: People | N16: 1
C17: Monetary | D17: People | N17: 1
C18: Monetary | D18: People | N18: 1
C19: Monetary | D19: People | N19: 1
C20: Monetary | D20: People | N20: 1
E21: *Based on difference with versus without | H21: **May vary with versus without
A22: 3.2 | B22: Category 2. Benefit per user-specified unit
B23: =$B$10 -> Benefit (enter label) | C23: Monetary? (drop-down menu) | D23: Unit | E23: Benefit per unit per year ($/unit/year)* | F23: Number of units** | J23: Start year | K23: End year | L23: Growth rate | N23: ="Proportion captured by "&'1. General'!$B$67 -> Proportion captured by City of Melbourne | O23: ="Proportion captured by "&'1. General'!$B$68 -> Proportion captured by Local community and park users | P23: ="Proportion captured by "&'1. General'!$B$69 -> Proportion captured by Broader Melbourne community | Q23: ="Proportion captured by "&'1. General'!$B$70 -> Proportion captured by Melbourne Water | R23: ="Proportion captured by "&'1. General'!$B$71 -> Proportion captured by | S23: ="Proportion captured by "&'1. General'!$B$72 -> Proportion captured by | T23: ="Proportion captured by "&'1. General'!$B$73 -> Proportion captured by | U23: ="Proportion captured by "&'1. General'!$B$74 -> Proportion captured by | W23: Non-monetary benefits (description - up to 25 words)
B24: Pollution abatement | C24: Monetary | D24: kg/TN | E24: 7236 | F24: 200 | G24: Capitalised | J24: 2020 | K24: 2020 | P24: 1
B25: Potable savings - pre-drought | C25: Monetary | D25: ML | E25: 2796.3 | F25: =0.77*73 -> 56.21 | J25: 2021 | K25: 2031 | N25: 1
B26: Potable savings - post-drought | C26: Monetary | D26: ML | E26: 2796.3 | F26: 56 | J26: 2039 | K26: 2070 | N26: 1
B27: Avoided tree replacement | C27: Monetary | D27: tree | E27: 900 | F27: 44 | J27: 2032 | K27: 2038 | N27: 1
B28: Avoided water trucking | C28: Monetary | D28: ML | E28: =24.54*1000 -> 24540 | F28: =12420/1000 -> 12.42 | J28: 2032 | K28: 2038 | N28: 1
B29: Avoided loss of mature tree benefits | C29: Monetary | D29: tree | E29: 26000 | F29: 44 | J29: 2032 | K29: 2038 | N29: 0 | O29: 1
B30: Avoided safety checks | C30: Monetary | D30: visit | E30: 100 | F30: 13 | J30: 2032 | K30: 2038 | N30: 1
B31: Recreation and amenity | C31: Monetary | D31: household | E31: 56.6 | F31: 24473 | J31: 2032 | K31: 2038 | N31: 0 | O31: 1
B32: Temperature reduction on hot day | C32: Monetary | D32: household | E32: 47.16 | F32: 24473 | J32: 2032 | K32: 2038 | N32: 0 | O32: 1
C33: Select
E34: *Based on difference with versus without | H34: **May vary with versus without
A35: 3.3 | B35: Category 3. Benefit per unit of abatement
B36: =$B$10 -> Benefit (enter label) | C36: Monetary? (drop-down menu) | D36: Unit | E36: Benefit per unit of abatement per year ($/unit/year) | F36: Number of units* | J36: Start year | K36: End year | L36: Growth rate | N36: ="Proportion captured by "&'1. General'!$B$67 -> Proportion captured by City of Melbourne | O36: ="Proportion captured by "&'1. General'!$B$68 -> Proportion captured by Local community and park users | P36: ="Proportion captured by "&'1. General'!$B$69 -> Proportion captured by Broader Melbourne community | Q36: ="Proportion captured by "&'1. General'!$B$70 -> Proportion captured by Melbourne Water | R36: ="Proportion captured by "&'1. General'!$B$71 -> Proportion captured by | S36: ="Proportion captured by "&'1. General'!$B$72 -> Proportion captured by | T36: ="Proportion captured by "&'1. General'!$B$73 -> Proportion captured by | U36: ="Proportion captured by "&'1. General'!$B$74 -> Proportion captured by | W36: Non-monetary benefits (description - up to 25 words)
C37: Monetary | N37: =1-SUM(O37:U37) -> 1
C38: Monetary | N38: =1-SUM(O38:U38) -> 1
C39: Monetary | N39: 1
C40: Monetary | N40: 1
C41: Monetary | N41: 1
C42: Monetary | N42: 1
C43: Monetary | N43: 1
C44: Monetary | N44: 1
C45: Monetary | N45: 1
C46: Monetary | N46: 1
E47: *Based on difference with versus without
A48: 3.4 | B48: Category 4. Benefit per year in aggregate
B49: =$B$10 -> Benefit (enter label) | C49: Monetary? (drop-down menu) | D49: Unit | E49: Benefit per year ($/year)* | J49: Start year | K49: End year | L49: Growth rate | N49: ="Proportion captured by "&'1. General'!$B$67 -> Proportion captured by City of Melbourne | O49: ="Proportion captured by "&'1. General'!$B$68 -> Proportion captured by Local community and park users | P49: ="Proportion captured by "&'1. General'!$B$69 -> Proportion captured by Broader Melbourne community | Q49: ="Proportion captured by "&'1. General'!$B$70 -> Proportion captured by Melbourne Water | R49: ="Proportion captured by "&'1. General'!$B$71 -> Proportion captured by | S49: ="Proportion captured by "&'1. General'!$B$72 -> Proportion captured by | T49: ="Proportion captured by "&'1. General'!$B$73 -> Proportion captured by | U49: ="Proportion captured by "&'1. General'!$B$74 -> Proportion captured by | W49: Non-monetary benefits (description - up to 25 words)
C50: Monetary | D50: Year | F50: 1 | N50: =1-SUM(O50:U50) -> 1
C51: Monetary | D51: Year | F51: 1 | N51: =1-SUM(O51:U51) -> 1
C52: Monetary | D52: Year | F52: 1 | N52: 1
C53: Monetary | D53: Year | F53: 1 | N53: 1
C54: Monetary | D54: Year | F54: 1 | N54: 1
C55: Monetary | D55: Year | F55: 1 | N55: 1
C56: Monetary | D56: Year | F56: 1 | N56: 1
C57: Monetary | D57: Year | F57: 1 | N57: 1
C58: Monetary | D58: Year | F58: 1 | N58: 1
C59: Monetary | D59: Year | F59: 1 | N59: 1
E60: *Based on difference with versus without
A61: 3.5 | B61: Category 5. Delay or reduction in cost
B62: =$B$10 -> Benefit (enter label) | C62: Monetary? (drop-down menu) | E62: Future investment if no project ($) | F62: Future investment with project ($) | G62: Annual maintenance cost (prior to investment) ($) | H62: Annual maintenance cost (after investment) if no project ($) | I62: Annual maintenance cost (after investment) with project ($) | J62: Year of investment if no project | K62: Year of investment with project | L62: Life of investment (years) | N62: ="Proportion captured by "&'1. General'!$B$67 -> Proportion captured by City of Melbourne | O62: ="Proportion captured by "&'1. General'!$B$68 -> Proportion captured by Local community and park users | P62: ="Proportion captured by "&'1. General'!$B$69 -> Proportion captured by Broader Melbourne community | Q62: ="Proportion captured by "&'1. General'!$B$70 -> Proportion captured by Melbourne Water | R62: ="Proportion captured by "&'1. General'!$B$71 -> Proportion captured by | S62: ="Proportion captured by "&'1. General'!$B$72 -> Proportion captured by | T62: ="Proportion captured by "&'1. General'!$B$73 -> Proportion captured by | U62: ="Proportion captured by "&'1. General'!$B$74 -> Proportion captured by | W62: Non-monetary benefits (description - up to 25 words)
C63: Monetary | N63: =1-SUM(O63:U63) -> 1
C64: Monetary | N64: =1-SUM(O64:U64) -> 1
C65: Monetary | N65: 1
C66: Monetary | N66: 1
C67: Monetary | N67: 1
C68: Monetary | N68: 1
C69: Monetary | N69: 1
C70: Monetary | N70: 1
C71: Monetary | N71: 1
C72: Monetary | N72: 1
A74: 3.6 | B74: Category 6. Improve an environmental or community asset
B75: =$B$10 -> Benefit (enter label) | C75: Monetary? (drop-down menu) | E75: Total asset value in good condition ($) | F75: Improvement in asset value (proportion)* | G75: Year by which majority of benefits delivered | N75: ="Proportion captured by "&'1. General'!$B$67 -> Proportion captured by City of Melbourne | O75: ="Proportion captured by "&'1. General'!$B$68 -> Proportion captured by Local community and park users | P75: ="Proportion captured by "&'1. General'!$B$69 -> Proportion captured by Broader Melbourne community | Q75: ="Proportion captured by "&'1. General'!$B$70 -> Proportion captured by Melbourne Water | R75: ="Proportion captured by "&'1. General'!$B$71 -> Proportion captured by | S75: ="Proportion captured by "&'1. General'!$B$72 -> Proportion captured by | T75: ="Proportion captured by "&'1. General'!$B$73 -> Proportion captured by | U75: ="Proportion captured by "&'1. General'!$B$74 -> Proportion captured by | W75: Non-monetary benefits (description - up to 25 words)
C76: Monetary | N76: =1-SUM(O76:U76) -> 1
C77: Monetary | N77: =1-SUM(O77:U77) -> 1
C78: Monetary | N78: 1
C79: Monetary | N79: 1
C80: Monetary | N80: 1
C81: Monetary | N81: 1
C82: Monetary | N82: 1
C83: Monetary | N83: 1
C84: Monetary | N84: 1
C85: Monetary | N85: 1
E86: *Based on difference with versus without
A87: 3.7 | B87: Category 7. Reduced consequence of a risky event
B88: =$B$10 -> Benefit (enter label) | C88: Monetary? (drop-down menu) | D88: Cost of adverse outcome if risky event occurs if no project ($) | E88: Cost of adverse outcome if risky event occurs with project ($) | F88: Annual probability of risky event if no project | G88: Annual probability of risky event with project | H88: Multiplier for probability of risky event during residual period (1 = no change) | I88: Duration of residual effect (years) | J88: Start year | K88: End year | L88: Growth rate | N88: ="Proportion captured by "&'1. General'!$B$67 -> Proportion captured by City of Melbourne | O88: ="Proportion captured by "&'1. General'!$B$68 -> Proportion captured by Local community and park users | P88: ="Proportion captured by "&'1. General'!$B$69 -> Proportion captured by Broader Melbourne community | Q88: ="Proportion captured by "&'1. General'!$B$70 -> Proportion captured by Melbourne Water | R88: ="Proportion captured by "&'1. General'!$B$71 -> Proportion captured by | S88: ="Proportion captured by "&'1. General'!$B$72 -> Proportion captured by | T88: ="Proportion captured by "&'1. General'!$B$73 -> Proportion captured by | U88: ="Proportion captured by "&'1. General'!$B$74 -> Proportion captured by | W88: Non-monetary benefits (description - up to 25 words)
C89: Monetary | N89: =1-SUM(O89:U89) -> 1
C90: Monetary | N90: =1-SUM(O90:U90) -> 1
C91: Monetary | N91: 1
C92: Monetary | N92: 1
C93: Monetary | N93: 1
C94: Monetary | N94: 1
C95: Monetary | N95: 1
C96: Monetary | N96: 1
C97: Monetary | N97: 1
C98: Monetary | N98: 1
B100: Category 8. Custom benefits
B102: Go to the Custom benefits sheet to specify monetary (or monetary-equivalent) benefits on a year-by-year basis

Sheet 3.8 Custom benefits
G1: Overall | I1: Project organisation
G2: NPV | H2: ='8. Report'!$B$15 -> 7988793.231 | I2: NPV | J2: ='8. Report'!$B$22 -> -4843141.93
G3: BCR | H3: ='8. Report'!$B$16 -> 1.897545094 | I3: BCR | J3: ='8. Report'!$B$23 -> 0.4123401113
B5: This sheet is for Benefit Category 8 (benefits specified year-by-year). For Benefit Categories 1 to 7, go to the 3. Benefit parameters sheet. If the project would have an adverse impact on a benefit type, capture this in the table below. For example, enter a label in column B such as "Adverse effect on amenity" and enter negative benefits in that row.
A7: 3.8 | B7: Category 8. Custom benefits
C8: Enter benefit in $ for each year*
B9: ='3. Benefit parameters'!B10 -> Benefit (enter label) | C9: ='2. Time'!$B$8 -> 2020 | D9: =C9+1 -> 2021 | E9: =D9+1 -> 2022 | F9: 2023 | G9: 2024 | H9: 2025 | I9: 2026 | J9: 2027 | K9: 2028 | L9: 2029 | M9: 2030 | N9: 2031 | O9: 2032 | P9: 2033 | Q9: 2034 | R9: 2035 | S9: 2036 | T9: 2037 | U9: 2038 | V9: 2039 | W9: 2040 | X9: 2041 | Y9: 2042 | Z9: 2043 | AA9: 2044 | AB9: 2045 | AC9: 2046 | AD9: 2047 | AE9: 2048 | AF9: 2049 | AG9: 2050 | AH9: 2051 | AI9: 2052 | AJ9: 2053 | AK9: 2054 | AL9: 2055 | AM9: 2056 | AN9: 2057 | AO9: 2058 | AP9: 2059 | AQ9: 2060 | AR9: 2061 | AS9: 2062 | AT9: 2063 | AU9: 2064 | AV9: 2065 | AW9: 2066 | AX9: 2067 | AY9: 2068 | AZ9: 2069 | BA9: 2070
C10: 0 | D10: 0 | E10: 0 | F10: 0 | G10: 0 | H10: 0 | I10: 0 | J10: 0 | K10: 0 | L10: 0 | M10: 0 | N10: 0 | O10: 0 | P10: 0 | Q10: 0 | R10: 0 | S10: 0 | T10: 0 | U10: 0 | V10: 0 | W10: 0 | X10: 0 | Y10: 0 | Z10: 0 | AA10: 0 | AB10: 0 | AC10: 0 | AD10: 0 | AE10: 0 | AF10: 0 | AG10: 0 | AH10: 0 | AI10: 0 | AJ10: 0 | AK10: 0 | AL10: 0 | AM10: 0 | AN10: 0 | AO10: 0 | AP10: 0 | AQ10: 0 | AR10: 0 | AS10: 0 | AT10: 0 | AU10: 0 | AV10: 0 | AW10: 0 | AX10: 0 | AY10: 0 | AZ10: 0 | BA10: 0
C11: 0 | D11: 0 | E11: 0 | F11: 0 | G11: 0 | H11: 0 | I11: 0 | J11: 0 | K11: 0 | L11: 0 | M11: 0 | N11: 0 | O11: 0 | P11: 0 | Q11: 0 | R11: 0 | S11: 0 | T11: 0 | U11: 0 | V11: 0 | W11: 0 | X11: 0 | Y11: 0 | Z11: 0 | AA11: 0 | AB11: 0 | AC11: 0 | AD11: 0 | AE11: 0 | AF11: 0 | AG11: 0 | AH11: 0 | AI11: 0 | AJ11: 0 | AK11: 0 | AL11: 0 | AM11: 0 | AN11: 0 | AO11: 0 | AP11: 0 | AQ11: 0 | AR11: 0 | AS11: 0 | AT11: 0 | AU11: 0 | AV11: 0 | AW11: 0 | AX11: 0 | AY11: 0 | AZ11: 0 | BA11: 0
C12: 0 | D12: 0 | E12: 0 | F12: 0 | G12: 0 | H12: 0 | I12: 0 | J12: 0 | K12: 0 | L12: 0 | M12: 0 | N12: 0 | O12: 0 | P12: 0 | Q12: 0 | R12: 0 | S12: 0 | T12: 0 | U12: 0 | V12: 0 | W12: 0 | X12: 0 | Y12: 0 | Z12: 0 | AA12: 0 | AB12: 0 | AC12: 0 | AD12: 0 | AE12: 0 | AF12: 0 | AG12: 0 | AH12: 0 | AI12: 0 | AJ12: 0 | AK12: 0 | AL12: 0 | AM12: 0 | AN12: 0 | AO12: 0 | AP12: 0 | AQ12: 0 | AR12: 0 | AS12: 0 | AT12: 0 | AU12: 0 | AV12: 0 | AW12: 0 | AX12: 0 | AY12: 0 | AZ12: 0 | BA12: 0
C13: 0 | D13: 0 | E13: 0 | F13: 0 | G13: 0 | H13: 0 | I13: 0 | J13: 0 | K13: 0 | L13: 0 | M13: 0 | N13: 0 | O13: 0 | P13: 0 | Q13: 0 | R13: 0 | S13: 0 | T13: 0 | U13: 0 | V13: 0 | W13: 0 | X13: 0 | Y13: 0 | Z13: 0 | AA13: 0 | AB13: 0 | AC13: 0 | AD13: 0 | AE13: 0 | AF13: 0 | AG13: 0 | AH13: 0 | AI13: 0 | AJ13: 0 | AK13: 0 | AL13: 0 | AM13: 0 | AN13: 0 | AO13: 0 | AP13: 0 | AQ13: 0 | AR13: 0 | AS13: 0 | AT13: 0 | AU13: 0 | AV13: 0 | AW13: 0 | AX13: 0 | AY13: 0 | AZ13: 0 | BA13: 0
C14: 0 | D14: 0 | E14: 0 | F14: 0 | G14: 0 | H14: 0 | I14: 0 | J14: 0 | K14: 0 | L14: 0 | M14: 0 | N14: 0 | O14: 0 | P14: 0 | Q14: 0 | R14: 0 | S14: 0 | T14: 0 | U14: 0 | V14: 0 | W14: 0 | X14: 0 | Y14: 0 | Z14: 0 | AA14: 0 | AB14: 0 | AC14: 0 | AD14: 0 | AE14: 0 | AF14: 0 | AG14: 0 | AH14: 0 | AI14: 0 | AJ14: 0 | AK14: 0 | AL14: 0 | AM14: 0 | AN14: 0 | AO14: 0 | AP14: 0 | AQ14: 0 | AR14: 0 | AS14: 0 | AT14: 0 | AU14: 0 | AV14: 0 | AW14: 0 | AX14: 0 | AY14: 0 | AZ14: 0 | BA14: 0
C15: 0 | D15: 0 | E15: 0 | F15: 0 | G15: 0 | H15: 0 | I15: 0 | J15: 0 | K15: 0 | L15: 0 | M15: 0 | N15: 0 | O15: 0 | P15: 0 | Q15: 0 | R15: 0 | S15: 0 | T15: 0 | U15: 0 | V15: 0 | W15: 0 | X15: 0 | Y15: 0 | Z15: 0 | AA15: 0 | AB15: 0 | AC15: 0 | AD15: 0 | AE15: 0 | AF15: 0 | AG15: 0 | AH15: 0 | AI15: 0 | AJ15: 0 | AK15: 0 | AL15: 0 | AM15: 0 | AN15: 0 | AO15: 0 | AP15: 0 | AQ15: 0 | AR15: 0 | AS15: 0 | AT15: 0 | AU15: 0 | AV15: 0 | AW15: 0 | AX15: 0 | AY15: 0 | AZ15: 0 | BA15: 0
C16: 0 | D16: 0 | E16: 0 | F16: 0 | G16: 0 | H16: 0 | I16: 0 | J16: 0 | K16: 0 | L16: 0 | M16: 0 | N16: 0 | O16: 0 | P16: 0 | Q16: 0 | R16: 0 | S16: 0 | T16: 0 | U16: 0 | V16: 0 | W16: 0 | X16: 0 | Y16: 0 | Z16: 0 | AA16: 0 | AB16: 0 | AC16: 0 | AD16: 0 | AE16: 0 | AF16: 0 | AG16: 0 | AH16: 0 | AI16: 0 | AJ16: 0 | AK16: 0 | AL16: 0 | AM16: 0 | AN16: 0 | AO16: 0 | AP16: 0 | AQ16: 0 | AR16: 0 | AS16: 0 | AT16: 0 | AU16: 0 | AV16: 0 | AW16: 0 | AX16: 0 | AY16: 0 | AZ16: 0 | BA16: 0
C17: 0 | D17: 0 | E17: 0 | F17: 0 | G17: 0 | H17: 0 | I17: 0 | J17: 0 | K17: 0 | L17: 0 | M17: 0 | N17: 0 | O17: 0 | P17: 0 | Q17: 0 | R17: 0 | S17: 0 | T17: 0 | U17: 0 | V17: 0 | W17: 0 | X17: 0 | Y17: 0 | Z17: 0 | AA17: 0 | AB17: 0 | AC17: 0 | AD17: 0 | AE17: 0 | AF17: 0 | AG17: 0 | AH17: 0 | AI17: 0 | AJ17: 0 | AK17: 0 | AL17: 0 | AM17: 0 | AN17: 0 | AO17: 0 | AP17: 0 | AQ17: 0 | AR17: 0 | AS17: 0 | AT17: 0 | AU17: 0 | AV17: 0 | AW17: 0 | AX17: 0 | AY17: 0 | AZ17: 0 | BA17: 0
C18: 0 | D18: 0 | E18: 0 | F18: 0 | G18: 0 | H18: 0 | I18: 0 | J18: 0 | K18: 0 | L18: 0 | M18: 0 | N18: 0 | O18: 0 | P18: 0 | Q18: 0 | R18: 0 | S18: 0 | T18: 0 | U18: 0 | V18: 0 | W18: 0 | X18: 0 | Y18: 0 | Z18: 0 | AA18: 0 | AB18: 0 | AC18: 0 | AD18: 0 | AE18: 0 | AF18: 0 | AG18: 0 | AH18: 0 | AI18: 0 | AJ18: 0 | AK18: 0 | AL18: 0 | AM18: 0 | AN18: 0 | AO18: 0 | AP18: 0 | AQ18: 0 | AR18: 0 | AS18: 0 | AT18: 0 | AU18: 0 | AV18: 0 | AW18: 0 | AX18: 0 | AY18: 0 | AZ18: 0 | BA18: 0
C19: 0 | D19: 0 | E19: 0 | F19: 0 | G19: 0 | H19: 0 | I19: 0 | J19: 0 | K19: 0 | L19: 0 | M19: 0 | N19: 0 | O19: 0 | P19: 0 | Q19: 0 | R19: 0 | S19: 0 | T19: 0 | U19: 0 | V19: 0 | W19: 0 | X19: 0 | Y19: 0 | Z19: 0 | AA19: 0 | AB19: 0 | AC19: 0 | AD19: 0 | AE19: 0 | AF19: 0 | AG19: 0 | AH19: 0 | AI19: 0 | AJ19: 0 | AK19: 0 | AL19: 0 | AM19: 0 | AN19: 0 | AO19: 0 | AP19: 0 | AQ19: 0 | AR19: 0 | AS19: 0 | AT19: 0 | AU19: 0 | AV19: 0 | AW19: 0 | AX19: 0 | AY19: 0 | AZ19: 0 | BA19: 0
C20: *All values in this table (from the start year on) should be estimated based on the difference in outcomes with versus without the project or policy
B22: Benefit | C22: ="Proportion captured by "&'1. General'!$B$67 -> Proportion captured by City of Melbourne | D22: ="Proportion captured by "&'1. General'!$B$68 -> Proportion captured by Local community and park users | E22: ="Proportion captured by "&'1. General'!$B$69 -> Proportion captured by Broader Melbourne community | F22: ="Proportion captured by "&'1. General'!$B$70 -> Proportion captured by Melbourne Water | G22: ="Proportion captured by "&'1. General'!$B$71 -> Proportion captured by | H22: ="Proportion captured by "&'1. General'!$B$72 -> Proportion captured by | I22: ="Proportion captured by "&'1. General'!$B$73 -> Proportion captured by | J22: ="Proportion captured by "&'1. General'!$B$74 -> Proportion captured by
B23: =IF(B10="","",B10) ->  | C23: =1-SUM(D23:J23) -> 1
B24: =IF(B11="","",B11) ->  | C24: =1-SUM(D24:J24) -> 1
C25: 1
C26: 1
C27: 1
C28: 1
C29: 1
C30: 1
C31: 1
C32: 1

Sheet 4. Adoption
D1: Overall | F1: Project organisation
D2: NPV | E2: ='8. Report'!$B$15 -> 7988793.231 | F2: NPV | G2: ='8. Report'!$B$22 -> -4843141.93
D3: BCR | E3: ='8. Report'!$B$16 -> 1.897545094 | F3: BCR | G3: ='8. Report'!$B$23 -> 0.4123401113
B5: If any works or actions are required of private citizens or businesses, they should have been specified in 1.7. If no such works or actions are required, select "6. Not applicable" in the first drop-down menu below, and go to the 5. Costs sheet. This section is about the extent to which those works or actions (the ones specified in 1.7) will be adopted and implemented by the relevant private citizens or businesses. The greater the level of adoption, the greater will be the benefits generated by the project.
A7: 4.1 | B7: Attractiveness of the works and actions to private citizens and businesses
B8: Consider the works and actions that have been specified for private citizens and businesses in 1.7. In the absence of this project, how attractive is full adoption of these works to the relevant private citizens or businesses?
B9: Options:
B10: Highly attractive. Even without this project, the works/actions would probably be adopted at the required scale within a decade.
B11: Slightly attractive. Without this project, the works/actions would probably be adopted to some extent, but at less than the required scale, and reaching peak adoption would take more than a decade.
B12: Neutral. There is currently little or no adoption of the works/actions, and it is unlikely that they would proceed to higher levels of adoption without a policy intervention based on payments or regulation. However, it is expected that small-modest, temporary payments or light regulation would be sufficient to prompt long-term adoption by some people.
B13: Slightly negative. The works/actions would not be adopted without moderate ongoing payments or regulation.
B14: Highly negative. The works/actions would not be adopted without large ongoing payments or strongly-enforced regulation.
B15: Not applicable. No private adoption of works or actions is needed.
B16: Drop-down menu
B17: Select attractiveness of works/actions
A19: 4.2 | B19: The adoption circumstances
B20: How favourable are the circumstances of this project for adoption of the desired works/actions by the relevant private citizens or businesses?
B21: Options:
B22: Very favourable adoption circumstances. For example, small target audience for adoption, with excellent links to the organisation running the project.
B23: Less favourable adoption circumstances. For example, a larger and more diverse target audience for adoption, with varying strengths of linkage to the organisation running the project.
B24: Drop-down menu
B25: Select the adoption circumstances
B27: Predicted adoption level (A) based on responses to 4.1 and 4.2
B28: =VLOOKUP('Menu selections'!B99,Lookups!A14:D20,MIN('Menu selections'!B102+1,4)) -> 0
B29: A is defined as the proportion of adoption achieved by the project, relative to the level needed to fully deliver the specific targets of the project (as specified in 1.5).
A31: 4.3 | B31: Custom value for adoption (A)
B32: You can over-ride the default prediction of A if you have grounds for believing that the standard value is inappropriate for this project. Enter the adoption proportion here. (If zero is entered here, the default value from the grey box above will be used.)
B33: 1

Sheet 5. Costs
G1: Overall | I1: Project organisation
G2: NPV | H2: ='8. Report'!$B$15 -> 7988793.231 | I2: NPV | J2: ='8. Report'!$B$22 -> -4843141.93
G3: BCR | H3: ='8. Report'!$B$16 -> 1.897545094 | I3: BCR | J3: ='8. Report'!$B$23 -> 0.4123401113
B5: There are three approaches for entering costs: stylised (below), detailed (below) and time series (on the 5.6 Custom costs sheet). You can use the same approach (stylised, detailed, time series) for all costs, or you can use different approaches for different costs. Each cost should be entered in only one of these three ways, to avoid double counting of costs.
A8: 5.1 | B8: Stylised pattern of costs
B9: Stylised pattern of costs over time, broken into an establishment phase and a maintenance phase.
B10: This is a simplified approach, but one that can still be realistic for most projects.
C12: Capital costs, operations, maintenance, monitoring, evaluation, administration, etc. ($/year) | D12: Start year | E12: End year | F12: Compliance costs to private citizens and businesses ($/year)
B13: Phase 1 (project establishment and implementation) | C13: 7000000 | D13: 2020 | E13: 2020 | F13: 0
B14: Phase 2 (project operation and maintenance) | C14: 68000 | D14: 2021 | E14: 2070 | F14: 0
B17: Proportion funded from taxes | C17: 1 | D17: (for Excess Burden calculations)
B18: (excluding compliance costs)
C19: ='1. General'!$B$67 -> City of Melbourne | D19: ='1. General'!$B$68 -> Local community and park users | E19: ='1. General'!$B$69 -> Broader Melbourne community | F19: ='1. General'!$B$70 -> Melbourne Water | G19: ='1. General'!$B$71 -> 0 | H19: ='1. General'!$B$72 -> 0 | I19: ='1. General'!$B$73 -> 0 | J19: ='1. General'!$B$74 -> 0
B20: Proportion of costs (other than compliance) attributed to stakeholders* | C20: =1-SUM(D20:J20) -> 1
B21: Proportion of compliance costs attributed to stakeholders | C21: 0 | K21: =IF(SUM(C21:J21)=0,"",SUM(C21:J21)) -> 
B22: *This is the proportion of aggregate costs that are met out of the stakeholder’s own budget
B23: (i.e. not covered by external funding and not borne by other organisations, private citizens or businesses).
B24: These proportions are assumed constant across all cost types.
B26: Detailed costing template
B27: Enter each cost item in the appropriate table below. If a cost item has different costs at different times, enter them as separate cost items.
A29: 5.2 | B29: Capital costs, including planning, design and construction of capital works
B30: Cost item (replace label) | C30: Annual cost ($/year) | D30: Contingency (proportion) | E30: Annual cost including contingency ($/year) | F30: Start year | G30: End year | H30: Proportion funded from taxes (for MEB calculations) | J30: ="Proportion attributed to "&'1. General'!$B$67 -> Proportion attributed to City of Melbourne | K30: ="Proportion attributed to "&'1. General'!$B$68 -> Proportion attributed to Local community and park users | L30: ="Proportion attributed to "&'1. General'!$B$69 -> Proportion attributed to Broader Melbourne community | M30: ="Proportion attributed to "&'1. General'!$B$70 -> Proportion attributed to Melbourne Water | N30: ="Proportion attributed to "&'1. General'!$B$71 -> Proportion attributed to | O30: ="Proportion attributed to "&'1. General'!$B$72 -> Proportion attributed to | P30: ="Proportion attributed to "&'1. General'!$B$73 -> Proportion attributed to | Q30: ="Proportion attributed to "&'1. General'!$B$74 -> Proportion attributed to
E31: =C31*(1+D31) -> 0 | J31: =1-SUM(K31:Q31) -> 1
E32: 0 | J32: =1-SUM(K32:Q32) -> 1
E33: 0 | J33: 1
E34: 0 | J34: 1
E35: 0 | J35: 1
E36: 0 | J36: 1
E37: 0 | J37: 1
E38: 0 | J38: 1
E39: 0 | J39: 1
E40: 0 | J40: 1
B41: *This is the proportion of aggregate costs that are met out of the stakeholder’s own budget (i.e. not covered by external funding and not borne by other organisations, private citizens or businesses).
A43: 5.3 | B43: Operating costs, including travel, meetings, payments to private citizens or businesses, legal costs, operations and maintenance
B44: =$B$30 -> Cost item (replace label) | E44: Annual cost ($/year) | F44: Start year | G44: End year | H44: Proportion funded from taxes (for MEB calculations) | J44: ="Proportion attributed to "&'1. General'!$B$67 -> Proportion attributed to City of Melbourne | K44: ="Proportion attributed to "&'1. General'!$B$68 -> Proportion attributed to Local community and park users | L44: ="Proportion attributed to "&'1. General'!$B$69 -> Proportion attributed to Broader Melbourne community | M44: ="Proportion attributed to "&'1. General'!$B$70 -> Proportion attributed to Melbourne Water | N44: ="Proportion attributed to "&'1. General'!$B$71 -> Proportion attributed to | O44: ="Proportion attributed to "&'1. General'!$B$72 -> Proportion attributed to | P44: ="Proportion attributed to "&'1. General'!$B$73 -> Proportion attributed to | Q44: ="Proportion attributed to "&'1. General'!$B$74 -> Proportion attributed to
J45: =1-SUM(K45:Q45) -> 1
J46: =1-SUM(K46:Q46) -> 1
J47: 1
J48: 1
J49: 1
J50: 1
J51: 1
J52: 1
J53: 1
J54: 1
B55: *This is the proportion of aggregate costs that are met out of the stakeholder’s own budget (i.e. not covered by external funding and not borne by other organisations, private citizens or businesses).
A57: 5.4 | B57: Salary and in-kind costs, including project management, coordination, project officers/field officers, administration, investigation, research, technical support, monitoring, evaluation
B58: =$B$30 -> Cost item (replace label) | E58: Annual cost ($/year) | F58: Start year | G58: End year | H58: Proportion funded from taxes (for MEB calculations) | J58: ="Proportion attributed to "&'1. General'!$B$67 -> Proportion attributed to City of Melbourne | K58: ="Proportion attributed to "&'1. General'!$B$68 -> Proportion attributed to Local community and park users | L58: ="Proportion attributed to "&'1. General'!$B$69 -> Proportion attributed to Broader Melbourne community | M58: ="Proportion attributed to "&'1. General'!$B$70 -> Proportion attributed to Melbourne Water | N58: ="Proportion attributed to "&'1. General'!$B$71 -> Proportion attributed to | O58: ="Proportion attributed to "&'1. General'!$B$72 -> Proportion attributed to | P58: ="Proportion attributed to "&'1. General'!$B$73 -> Proportion attributed to | Q58: ="Proportion attributed to "&'1. General'!$B$74 -> Proportion attributed to
J59: =1-SUM(K59:Q59) -> 1
J60: =1-SUM(K60:Q60) -> 1
J61: 1
J62: 1
J63: 1
J64: 1
J65: 1
J66: 1
J67: 1
J68: 1
B69: *This is the proportion of aggregate costs that are met out of the stakeholder’s own budget (i.e. not covered by external funding and not borne by other organisations, private citizens or businesses).
A71: 5.5 | B71: Compliance costs, which consist of costs to private citizens and businesses that are not borne voluntarily. It implies that the works and actions are required by some law or regulation.
B72: If private costs are borne voluntarily, they should not be included as compliance costs unless the benefits to those private citizens and businesses are included in the benefits section.
B73: =$B$30 -> Cost item (replace label) | E73: Annual cost ($/year) | F73: Start year | G73: End year | J73: ="Proportion attributed to "&'1. General'!$B$67 -> Proportion attributed to City of Melbourne | K73: ="Proportion attributed to "&'1. General'!$B$68 -> Proportion attributed to Local community and park users | L73: ="Proportion attributed to "&'1. General'!$B$69 -> Proportion attributed to Broader Melbourne community | M73: ="Proportion attributed to "&'1. General'!$B$70 -> Proportion attributed to Melbourne Water | N73: ="Proportion attributed to "&'1. General'!$B$71 -> Proportion attributed to | O73: ="Proportion attributed to "&'1. General'!$B$72 -> Proportion attributed to | P73: ="Proportion attributed to "&'1. General'!$B$73 -> Proportion attributed to | Q73: ="Proportion attributed to "&'1. General'!$B$74 -> Proportion attributed to | R73: Total
J74: 0 | R74: =SUM(J74:Q74) -> 0
J75: 0 | R75: =SUM(J75:Q75) -> 0
J76: 0 | R76: 0
J77: 0 | R77: 0
J78: 0 | R78: 0
J79: 0 | R79: 0
J80: 0 | R80: 0
J81: 0 | R81: 0
J82: 0 | R82: 0
J83: 0 | R83: 0

Sheet 5.6 Custom costs
G1: Overall | I1: Project organisation
G2: NPV | H2: ='8. Report'!$B$15 -> 7988793.231 | I2: NPV | J2: ='8. Report'!$B$22 -> -4843141.93
G3: BCR | H3: ='8. Report'!$B$16 -> 1.897545094 | I3: BCR | J3: ='8. Report'!$B$23 -> 0.4123401113
B5: In this system, you provide the aggregate cost for each year, and the proportions of those costs that are attributable to the project organisation and other stakeholders. Also provide the total compliance costs for each year. You are not required to provide a detailed budget here, just the aggregate cost for each year. However, you will need to prepare a budget to come up with the year-by-year costs. Apart from the compliance costs, the activities that you need to cost out are those outlined in the Template in 1.4(a), 1.5, 1.6 and 1.7.
A8: 5.6 | B8: Custom costs
B9: Enter costs in $ million for each year.
C10: ='2. Time'!$B$8 -> 2020 | D10: =C10+1 -> 2021 | E10: =D10+1 -> 2022 | F10: 2023 | G10: 2024 | H10: 2025 | I10: 2026 | J10: 2027 | K10: 2028 | L10: 2029 | M10: 2030 | N10: 2031 | O10: 2032 | P10: 2033 | Q10: 2034 | R10: 2035 | S10: 2036 | T10: 2037 | U10: 2038 | V10: 2039 | W10: 2040 | X10: 2041 | Y10: 2042 | Z10: 2043 | AA10: 2044 | AB10: 2045 | AC10: 2046 | AD10: 2047 | AE10: 2048 | AF10: 2049 | AG10: 2050 | AH10: 2051 | AI10: 2052 | AJ10: 2053 | AK10: 2054 | AL10: 2055 | AM10: 2056 | AN10: 2057 | AO10: 2058 | AP10: 2059 | AQ10: 2060 | AR10: 2061 | AS10: 2062 | AT10: 2063 | AU10: 2064 | AV10: 2065 | AW10: 2066 | AX10: 2067 | AY10: 2068 | AZ10: 2069 | BA10: 2070
B11: Cost (Capital expenses, operations, maintenance, monitoring, evaluation, administration, etc.) | C11: 0 | D11: 0 | E11: 0 | F11: 0 | G11: 0 | H11: 0 | I11: 0 | J11: 0 | K11: 0 | L11: 0 | M11: 0 | N11: 0 | O11: 0 | P11: 0 | Q11: 0 | R11: 0 | S11: 0 | T11: 0 | U11: 0 | V11: 0 | W11: 0 | X11: 0 | Y11: 0 | Z11: 0 | AA11: 0 | AB11: 0 | AC11: 0 | AD11: 0 | AE11: 0 | AF11: 0 | AG11: 0 | AH11: 0 | AI11: 0 | AJ11: 0 | AK11: 0 | AL11: 0 | AM11: 0 | AN11: 0 | AO11: 0 | AP11: 0 | AQ11: 0 | AR11: 0 | AS11: 0 | AT11: 0 | AU11: 0 | AV11: 0 | AW11: 0 | AX11: 0 | AY11: 0 | AZ11: 0 | BA11: 0
B12: Compliance costs to private citizens and businesses | C12: 0 | D12: 0 | E12: 0 | F12: 0 | G12: 0 | H12: 0 | I12: 0 | J12: 0 | K12: 0 | L12: 0 | M12: 0 | N12: 0 | O12: 0 | P12: 0 | Q12: 0 | R12: 0 | S12: 0 | T12: 0 | U12: 0 | V12: 0 | W12: 0 | X12: 0 | Y12: 0 | Z12: 0 | AA12: 0 | AB12: 0 | AC12: 0 | AD12: 0 | AE12: 0 | AF12: 0 | AG12: 0 | AH12: 0 | AI12: 0 | AJ12: 0 | AK12: 0 | AL12: 0 | AM12: 0 | AN12: 0 | AO12: 0 | AP12: 0 | AQ12: 0 | AR12: 0 | AS12: 0 | AT12: 0 | AU12: 0 | AV12: 0 | AW12: 0 | AX12: 0 | AY12: 0 | AZ12: 0 | BA12: 0
B14: Proportion funded from taxes (for MEB calculations) | C14: 1
C16: ='1. General'!$B$67 -> City of Melbourne | D16: ='1. General'!$B$68 -> Local community and park users | E16: ='1. General'!$B$69 -> Broader Melbourne community | F16: ='1. General'!$B$70 -> Melbourne Water | G16: ='1. General'!$B$71 -> 0 | H16: ='1. General'!$B$72 -> 0 | I16: ='1. General'!$B$73 -> 0 | J16: ='1. General'!$B$74 -> 0
B17: Proportion of costs (other than compliance) attributed to stakeholders* | C17: =1-SUM(D17:J17) -> 1 | K17: (assumed constant across all years)
B18: Proportion of compliance costs attributed to stakeholders | C18: 0 | K18: (assumed constant across all years)
B19: *This is the proportion of aggregate costs that are met out of the stakeholder’s own budget (i.e. not covered by external funding and not borne by other organisations, private citizens or businesses).
A25: 5.7 | B25: Marginal excess burden
B27: Marginal excess burden (deadweight loss) of taxation (%) | C27: 0.08

Sheet 6. Project risk
F1: Overall | H1: Project organisation
F2: NPV | G2: ='8. Report'!$B$15 -> 7988793.231 | H2: NPV | I2: ='8. Report'!$B$22 -> -4843141.93
F3: BCR | G3: ='8. Report'!$B$16 -> 1.897545094 | H3: BCR | I3: ='8. Report'!$B$23 -> 0.4123401113
B5: There are various risk factors that could mean that the project fails to achieve its goals: • Technical risks • Non-cooperation by other organisations whose support & cooperation you would need. • Social, administrative or political constraints. • Non-provision of essential maintenance funding. • Poor project management or poor project implementation.
A7: 6.1 | B7: One risk or separate risks?
B9: Drop-down menu
B10: One risk for whole project
A12: 6.2 | B12: One risk for whole project
B13: In the drop-down menu below, indicate the overall probability that the project will substantially fail to deliver its intended benefits? (Referred to below as R for risk)
B14: Options:
B15: 0-5% Very low risk of long-term project failure
B16: 6-25%
B17: 26-50%
B18: 51-75%
B19: 76-100% Very high risk of long-term project failure
B21: Drop-down menu | C21: Level of risk (R) based on drop-down menu response | D21: Custom value for project risk (R) — Over-rides menu
B22: 0-5% Very low risk of long-term project failure | C22: =VLOOKUP('Menu selections'!B108,Lookups!$A$26:$B$31,2) -> 0.03 | D22: 1
D23: If 1 is entered, the white on grey menu value will be used.
A25: 6.3 | B25: Separate risks for each benefit category (1 to 8)
C26: Drop-down menu | D26: Level of risk (R) based on drop-down menu response | F26: Custom value for project risk (R) — Over-rides menu
B27: ='8. Report'!A27 -> Ben 1, per person | C27: 0-5% Very low risk of long-term project failure | D27: =VLOOKUP('Menu selections'!B110,Lookups!$A$26:$B$31,2) -> 0.03 | F27: 1
B28: ='8. Report'!A28 -> Ben 2, user specified | C28: 0-5% Very low risk of long-term project failure | D28: =VLOOKUP('Menu selections'!B111,Lookups!$A$26:$B$31,2) -> 0.03 | F28: 1
B29: ='8. Report'!A29 -> Ben 3, abatement | C29: 0-5% Very low risk of long-term project failure | D29: =VLOOKUP('Menu selections'!B112,Lookups!$A$26:$B$31,2) -> 0.03 | F29: 1
B30: ='8. Report'!A30 -> Ben 4, annual aggregate | C30: 0-5% Very low risk of long-term project failure | D30: =VLOOKUP('Menu selections'!B113,Lookups!$A$26:$B$31,2) -> 0.03 | F30: 1
B31: ='8. Report'!A31 -> Ben 5, delay cost | C31: 0-5% Very low risk of long-term project failure | D31: =VLOOKUP('Menu selections'!B114,Lookups!$A$26:$B$31,2) -> 0.03 | F31: 1
B32: ='8. Report'!A32 -> Ben 6, protect asset | C32: 0-5% Very low risk of long-term project failure | D32: =VLOOKUP('Menu selections'!B115,Lookups!$A$26:$B$31,2) -> 0.03 | F32: 1
B33: ='8. Report'!A33 -> Ben 7, reduce risk | C33: 0-5% Very low risk of long-term project failure | D33: =VLOOKUP('Menu selections'!B116,Lookups!$A$26:$B$31,2) -> 0.03 | F33: 1
B34: ='8. Report'!A34 -> Ben 8, custom benefits | C34: 0-5% Very low risk of long-term project failure | D34: =VLOOKUP('Menu selections'!B117,Lookups!$A$26:$B$31,2) -> 0.03 | F34: 1
F35: If 1 is entered, the white on grey menu value will be used.
B37: Scratchpad for calculating overall risks
B39: Here you can explore the overall risk probability based on the probabilities of the individual risk factors. This can guide you as to what probabilities you should enter in the above tables. The calculations in this table (below) are not connected to the BCA calculations. They are just provided to help you decide what to enter in the above tables, which are connected to the BCA calculations.
B41: Risk factor | C41: Probability
B42: Technical | C42: 0
B43: Non-cooperation | C43: 0
B44: Socio-political | C44: 0
B45: Financial (maintenance funding) | C45: 0.1
B46: Managerial | C46: 0.05
B47: Overall (combined) risk | C47: =1-(1-C42)*(1-C43)*(1-C44)*(1-C45)*(1-C46) -> 0.145 | D47: (assuming the risk factors are independent)
A49: 6.4 | B49: Negative or positive spinoffs from the project
B51: Note in words any negative or positive spin-offs that are not captured elsewhere in the analysis (e.g. on the Benefit parameters sheet). The idea is that if they have not been quantified, they can at least be described. These spinoff are effects that the project has for other public assets or for people other than those implementing the works and actions. Indicate the nature, severity, location and timing of the impacts.
B53: Description of negative or positive spinoffs.

Sheet 7. Information
A5: 7.1 | B5: Information sources and peer review
B6: Use this table to record sources of information or evidence for each component (if relevant).
B7: Variable | C7: Information source | E7: Peer-review comments | F7: Replies
A8: 1.1 | B8: ='1. General'!B7 -> Name of project
A9: 1.2 | B9: =LEFT('1. General'!B10,15) -> Project summary
A10: 1.3 | B10: =LEFT('1. General'!B13,32) & "this BCA" -> Names of people responsible for this BCA
A11: 1.4 | B11: ='1. General'!B16 -> Date when this BCA was last updated
A12: 1.5 | B12: ='1. General'!B19 -> Goal or target for the project (25-50 words)
A13: 1.6 | B13: ='1. General'!B26 -> Works and on-ground actions that must be implemented by this project
A14: 1.7 | B14: ='1. General'!B29 -> Works and on-ground actions that must be implemented by private citizens or businesses
A15: 1.8 | B15: ='1. General'!B32 -> Works and on-ground actions that must be implemented by other organisations
A16: 1.9 | B16: =LEFT('1. General'!B35,77) -> Briefly outline the causal links between the above works/actions and outcomes
A17: 1.10 | B17: ='1. General'!B40 -> Investigations (data collection, research, analysis) that will be done in the project
A18: 1.11 | B18: ='1. General'!B43 -> Management arrangements for the project
A19: 1.12 | B19: =LEFT('1. General'!B46,84) -> Delivery mechanisms used in this project to encourage private citizens or businesses
A20: 1.13 | B20: =LEFT('1. General'!B49,74) -> Delivery mechanisms used in this project to encourage other organisations
A21: 1.14 | B21: ='1. General'!B56 -> Describe the “with project” scenario
A22: 1.15 | B22: ='1. General'!B60 -> Describe the “without project” scenario
A23: 1.16 | B23: ='1. General'!B66 -> Provide names for the project organisation and up to seven other stakeholder groups.
A24: 1.20 | B24: Source for video help
A25: 1.21 | B25: URL for video help
A26: 1.22 | B26: Path for video help
A27: 2.1 | B27: =LEFT('2. Time'!B7,28) -> Start year for the analysis
A28: 2.2 | B28: ='2. Time'!B10 -> Start year for the project
A29: 2.3 | B29: =LEFT('2. Time'!B13,30) -> Length of the analysis (years)
A30: 2.4 | B30: ='2. Time'!B16 -> Discount rate (%)
A31: 3.1 | B31: =LEFT('3. Benefit parameters'!B9,44) -> Category 1. Benefit per person (on average)
A32: 3.2 | B32: ='3. Benefit parameters'!B22 -> Category 2. Benefit per user-specified unit
A33: 3.3 | B33: ='3. Benefit parameters'!B35 -> Category 3. Benefit per unit of abatement
A34: 3.4 | B34: ='3. Benefit parameters'!B48 -> Category 4. Benefit per year in aggregate
A35: 3.5 | B35: ='3. Benefit parameters'!B61 -> Category 5. Delay or reduction in cost
A36: 3.6 | B36: ='3. Benefit parameters'!B74 -> Category 6. Improve an environmental or community asset
A37: 3.7 | B37: ='3. Benefit parameters'!B87 -> Category 7. Reduced consequence of a risky event
A38: 3.8 | B38: ='3.8 Custom benefits'!B7 -> Category 8. Custom benefits
A39: 4.1 | B39: ='4. Adoption'!B7 -> Attractiveness of the works and actions to private citizens and businesses
A40: 4.2 | B40: ='4. Adoption'!B19 -> The adoption circumstances
A41: 4.3 | B41: ='4. Adoption'!B31 -> Custom value for adoption (A)
A42: 5.1 | B42: ='5. Costs'!B8 -> Stylised pattern of costs
A43: 5.2 | B43: ='5. Costs'!B29 -> Capital costs, including planning, design and construction of capital works
A44: 5.3 | B44: =LEFT('5. Costs'!B43,87) -> Operating costs, including travel, meetings, payments to private citizens or businesses
A45: 5.4 | B45: =LEFT('5. Costs'!B57,70) & "etc." -> Salary and in-kind costs, including project management, coordination, etc.
A46: 5.5 | B46: =LEFT('5. Costs'!B71,73) -> Compliance costs, which consist of costs to private citizens and business
A47: 5.6 | B47: ='5.6 Custom costs'!B8 -> Custom costs
A48: 5.7 | B48: ='5.6 Custom costs'!B25 -> Marginal excess burden
A49: 6.1 | B49: ='6. Project risk'!B7 -> One risk or separate risks?
A50: 6.2 | B50: ='6. Project risk'!B12 -> One risk for whole project
A51: 6.3 | B51: =LEFT('6. Project risk'!B25,40) -> Separate risks for each benefit category
A52: 6.4 | B52: ='6. Project risk'!B49 -> Negative or positive spinoffs from the project
A55: 7.2 | B55: Information quality
B57: Use these drop-down menus to record subjective assessments of the overall quality of information used in each section of the BCA.
B59: Project design, works, activities, scenarios | C59: 3 = medium information. e.g. Judgement of local expert based on limited evidence
B60: Benefits | C60: 3 = medium information. e.g. Judgement of local expert based on limited evidence
B61: Adoption | C61: 3 = medium information. e.g. Judgement of local expert based on limited evidence
B62: Costs | C62: 3 = medium information. e.g. Judgement of local expert based on limited evidence
B63: Project risk | C63: 3 = medium information. e.g. Judgement of local expert based on limited evidence

Sheet 8. Report
D1: Overall | F1: Project organisation
D2: NPV | E2: ='8. Report'!$B$15 -> 7988793.231 | F2: NPV | G2: ='8. Report'!$B$22 -> -4843141.93
D3: BCR | E3: ='8. Report'!$B$16 -> 1.897545094 | F3: BCR | G3: ='8. Report'!$B$23 -> 0.4123401113
A5: Project title | B5: ='1. General'!B8 -> Princes Park Stormwater Harvesting
A7: Project summary | B7: ='1. General'!B11 -> The worked example is a benefit-cost analysis of a proposed stormwater harvesting scheme in the City of Melbourne municipality in Victoria, Australia. Princes Park is a major metropolitan parkland in the inner north area of Melbourne. It includes various types of sports grounds and passive recreational spaces, and is home to many mature trees of historical significance. The park is heavily used by both the local community, and it attracts users from a much wider area given its prominence for sports events and recreation.
A9: Project analysts | B9: ='1. General'!B14 -> Celeste Morgan, E2Designlab
A10: Date | B10: ='1. General'!B17 -> 2019-05-04
A12: Overall BCA results
A13: Benefits (present value) | B13: ='50-year calcs'!G443 -> 16889508.4
A14: Costs (present value) | B14: ='50-year calcs'!G445 -> 8900715.166
A15: Net Present Value (NPV) | B15: ='50-year calcs'!$G$450 -> 7988793.231
A16: Benefit: Cost Ratio (BCR) | B16: ='50-year calcs'!$G$449 -> 1.897545094
A18: Results attributable to project organisation
B19: ='1. General'!B67 -> City of Melbourne
A20: Benefits (present value) | B20: ='50-year calcs'!K443 -> 3398261.002
A21: Costs (present value) | B21: ='50-year calcs'!K445 -> 8241402.931
A22: Net Present Value (NPV) | B22: ='50-year calcs'!K450 -> -4843141.93
A23: Benefit: Cost Ratio (BCR) | B23: ='50-year calcs'!K449 -> 0.4123401113
A25: Break-down of benefits into categories
B26: Overall | C26: Project organisation
A27: Ben 1, per person | B27: ='50-year calcs'!C420 -> 0 | C27: ='50-year calcs'!K420 -> 0
A28: Ben 2, user specified | B28: ='50-year calcs'!C421 -> 17411864.33 | C28: ='50-year calcs'!K421 -> 3503361.858
A29: Ben 3, abatement | B29: ='50-year calcs'!C422 -> 0 | C29: ='50-year calcs'!K422 -> 0
A30: Ben 4, annual aggregate | B30: ='50-year calcs'!C423 -> 0 | C30: ='50-year calcs'!K423 -> 0
A31: Ben 5, delay cost | B31: ='50-year calcs'!C424 -> 0 | C31: ='50-year calcs'!K424 -> 0
A32: Ben 6, protect asset | B32: ='50-year calcs'!C425 -> 0 | C32: ='50-year calcs'!K425 -> 0
A33: Ben 7, reduce risk | B33: ='50-year calcs'!C426 -> 0 | C33: ='50-year calcs'!K426 -> 0
A34: Ben 8, custom benefits | B34: ='50-year calcs'!C427 -> 0 | C34: ='50-year calcs'!K427 -> 0
A35: Compliance costs | B35: ='50-year calcs'!C439 -> 0 | C35: ='50-year calcs'!K439 -> 0
A37: Settings
A38: Start date of analysis (year zero) | B38: ='2. Time'!B8 -> 2020
A39: Start date of project | B39: ='2. Time'!B11 -> 2020
A40: Duration of analysis (ignoring year zero) | B40: ='2. Time'!B14 -> 50
A41: Discount rate | B41: =Lookups!B9 -> 0.05
A42: Predicted adoption level | B42: =IF('4. Adoption'!B33=0,'4. Adoption'!B28,'4. Adoption'!B33) -> 1
A43: Project risks for each benefit category
A44: =A27 -> Ben 1, per person | B44: =IF('Menu selections'!$B$107=1,IF('6. Project risk'!$D$22=1,'6. Project risk'!$C$22,'6. Project risk'!$D$22),IF('6. Project risk'!F27=1,'6. Project risk'!D27,'6. Project risk'!F27)) -> 0.03
A45: =A28 -> Ben 2, user specified | B45: =IF('Menu selections'!$B$107=1,IF('6. Project risk'!$D$22=1,'6. Project risk'!$C$22,'6. Project risk'!$D$22),IF('6. Project risk'!F28=1,'6. Project risk'!D28,'6. Project risk'!F28)) -> 0.03
A46: Ben 3, abatement | B46: =IF('Menu selections'!$B$107=1,IF('6. Project risk'!$D$22=1,'6. Project risk'!$C$22,'6. Project risk'!$D$22),IF('6. Project risk'!F29=1,'6. Project risk'!D29,'6. Project risk'!F29)) -> 0.03
A47: Ben 4, annual aggregate | B47: =IF('Menu selections'!$B$107=1,IF('6. Project risk'!$D$22=1,'6. Project risk'!$C$22,'6. Project risk'!$D$22),IF('6. Project risk'!F30=1,'6. Project risk'!D30,'6. Project risk'!F30)) -> 0.03
A48: Ben 5, delay cost | B48: =IF('Menu selections'!$B$107=1,IF('6. Project risk'!$D$22=1,'6. Project risk'!$C$22,'6. Project risk'!$D$22),IF('6. Project risk'!F31=1,'6. Project risk'!D31,'6. Project risk'!F31)) -> 0.03
A49: Ben 6, protect asset | B49: =IF('Menu selections'!$B$107=1,IF('6. Project risk'!$D$22=1,'6. Project risk'!$C$22,'6. Project risk'!$D$22),IF('6. Project risk'!F32=1,'6. Project risk'!D32,'6. Project risk'!F32)) -> 0.03
A50: Ben 7, reduce risk | B50: =IF('Menu selections'!$B$107=1,IF('6. Project risk'!$D$22=1,'6. Project risk'!$C$22,'6. Project risk'!$D$22),IF('6. Project risk'!F33=1,'6. Project risk'!D33,'6. Project risk'!F33)) -> 0.03
A51: Ben 8, custom benefits | B51: =IF('Menu selections'!$B$107=1,IF('6. Project risk'!$D$22=1,'6. Project risk'!$C$22,'6. Project risk'!$D$22),IF('6. Project risk'!F34=1,'6. Project risk'!D34,'6. Project risk'!F34)) -> 0.03
A53: Negative or positive spinoffs from the project
A55: ='6. Project risk'!B53 -> Description of negative or positive spinoffs.
A57: Information quality
A58: ='7. Information'!B59 -> Project design, works, activities, scenarios | B58: =IF(LEFT('7. Information'!C59,5)="Click","No assessment of information quality provided (Information sheet)",'7. Information'!C59) -> 3 = medium information. e.g. Judgement of local expert based on limited evidence
A59: ='7. Information'!B60 -> Benefits | B59: =IF(LEFT('7. Information'!C60,5)="Click","No assessment of information quality provided (Information sheet)",'7. Information'!C60) -> 3 = medium information. e.g. Judgement of local expert based on limited evidence
A60: ='7. Information'!B61 -> Adoption | B60: =IF(LEFT('7. Information'!C61,5)="Click","No assessment of information quality provided (Information sheet)",'7. Information'!C61) -> 3 = medium information. e.g. Judgement of local expert based on limited evidence
A61: ='7. Information'!B62 -> Costs | B61: =IF(LEFT('7. Information'!C62,5)="Click","No assessment of information quality provided (Information sheet)",'7. Information'!C62) -> 3 = medium information. e.g. Judgement of local expert based on limited evidence
A62: ='7. Information'!B63 -> Project risk | B62: =IF(LEFT('7. Information'!C63,5)="Click","No assessment of information quality provided (Information sheet)",'7. Information'!C63) -> 3 = medium information. e.g. Judgement of local expert based on limited evidence
A65: Benefits expressed in non-monetary terms
A67: Benefit label | B67: Description of the benefit
A68: =IF(ISNA(Lookups!F35)," ",Lookups!F35) ->  | B68: =IF(ISNA(Lookups!G35)," ",Lookups!G35) -> 
A69: =IF(ISNA(Lookups!F36)," ",Lookups!F36) ->  | B69: =IF(ISNA(Lookups!G36)," ",Lookups!G36) -> 
A70: =IF(ISNA(Lookups!F37)," ",Lookups!F37) ->  | B70: =IF(ISNA(Lookups!G37)," ",Lookups!G37) -> 
A71: =IF(ISNA(Lookups!F38)," ",Lookups!F38) ->  | B71: =IF(ISNA(Lookups!G38)," ",Lookups!G38) -> 
A72: =IF(ISNA(Lookups!F39)," ",Lookups!F39) ->  | B72: =IF(ISNA(Lookups!G39)," ",Lookups!G39) -> 
A73: =IF(ISNA(Lookups!F40)," ",Lookups!F40) ->  | B73: =IF(ISNA(Lookups!G40)," ",Lookups!G40) -> 
A74: =IF(ISNA(Lookups!F41)," ",Lookups!F41) ->  | B74: =IF(ISNA(Lookups!G41)," ",Lookups!G41) -> 
A75: =IF(ISNA(Lookups!F42)," ",Lookups!F42) ->  | B75: =IF(ISNA(Lookups!G42)," ",Lookups!G42) -> 
A76: =IF(ISNA(Lookups!F43)," ",Lookups!F43) ->  | B76: =IF(ISNA(Lookups!G43)," ",Lookups!G43) -> 
A77: =IF(ISNA(Lookups!F44)," ",Lookups!F44) ->  | B77: =IF(ISNA(Lookups!G44)," ",Lookups!G44) -> 
A78: =IF(ISNA(Lookups!F45)," ",Lookups!F45) ->  | B78: =IF(ISNA(Lookups!G45)," ",Lookups!G45) -> 
A79: =IF(ISNA(Lookups!F46)," ",Lookups!F46) ->  | B79: =IF(ISNA(Lookups!G46)," ",Lookups!G46) -> 
A80: =IF(ISNA(Lookups!F47)," ",Lookups!F47) ->  | B80: =IF(ISNA(Lookups!G47)," ",Lookups!G47) -> 
A81: =IF(ISNA(Lookups!F48)," ",Lookups!F48) ->  | B81: =IF(ISNA(Lookups!G48)," ",Lookups!G48) -> 
A82: =IF(ISNA(Lookups!F49)," ",Lookups!F49) ->  | B82: =IF(ISNA(Lookups!G49)," ",Lookups!G49) -> 
A83: =IF(ISNA(Lookups!F50)," ",Lookups!F50) ->  | B83: =IF(ISNA(Lookups!G50)," ",Lookups!G50) -> 
A84: =IF(ISNA(Lookups!F51)," ",Lookups!F51) ->  | B84: =IF(ISNA(Lookups!G51)," ",Lookups!G51) -> 
A85: =IF(ISNA(Lookups!F52)," ",Lookups!F52) ->  | B85: =IF(ISNA(Lookups!G52)," ",Lookups!G52) -> 
A86: =IF(ISNA(Lookups!F53)," ",Lookups!F53) ->  | B86: =IF(ISNA(Lookups!G53)," ",Lookups!G53) -> 
A87: =IF(ISNA(Lookups!F54)," ",Lookups!F54) ->  | B87: =IF(ISNA(Lookups!G54)," ",Lookups!G54) -> 
A88: =IF(ISNA(Lookups!F55)," ",Lookups!F55) ->  | B88: =IF(ISNA(Lookups!G55)," ",Lookups!G55) -> 
A89: =IF(ISNA(Lookups!F56)," ",Lookups!F56) ->  | B89: =IF(ISNA(Lookups!G56)," ",Lookups!G56) -> 
A90: =IF(ISNA(Lookups!F57)," ",Lookups!F57) ->  | B90: =IF(ISNA(Lookups!G57)," ",Lookups!G57) -> 
A91: =IF(ISNA(Lookups!F58)," ",Lookups!F58) ->  | B91: =IF(ISNA(Lookups!G58)," ",Lookups!G58) -> 
A92: =IF(ISNA(Lookups!F59)," ",Lookups!F59) ->  | B92: =IF(ISNA(Lookups!G59)," ",Lookups!G59) -> 
A93: =IF(ISNA(Lookups!F60)," ",Lookups!F60) ->  | B93: =IF(ISNA(Lookups!G60)," ",Lookups!G60) -> 
A94: =IF(ISNA(Lookups!F61)," ",Lookups!F61) ->  | B94: =IF(ISNA(Lookups!G61)," ",Lookups!G61) -> 
A95: =IF(ISNA(Lookups!F62)," ",Lookups!F62) ->  | B95: =IF(ISNA(Lookups!G62)," ",Lookups!G62) -> 
A96: =IF(ISNA(Lookups!F63)," ",Lookups!F63) ->  | B96: =IF(ISNA(Lookups!G63)," ",Lookups!G63) -> 
A97: =IF(ISNA(Lookups!F64)," ",Lookups!F64) ->  | B97: =IF(ISNA(Lookups!G64)," ",Lookups!G64) -> 
A98: =IF(ISNA(Lookups!F65)," ",Lookups!F65) ->  | B98: =IF(ISNA(Lookups!G65)," ",Lookups!G65) -> 
A99: =IF(ISNA(Lookups!F66)," ",Lookups!F66) ->  | B99: =IF(ISNA(Lookups!G66)," ",Lookups!G66) -> 
A100: =IF(ISNA(Lookups!F67)," ",Lookups!F67) ->  | B100: =IF(ISNA(Lookups!G67)," ",Lookups!G67) -> 
A101: =IF(ISNA(Lookups!F68)," ",Lookups!F68) ->  | B101: =IF(ISNA(Lookups!G68)," ",Lookups!G68) -> 
A102: =IF(ISNA(Lookups!F69)," ",Lookups!F69) ->  | B102: =IF(ISNA(Lookups!G69)," ",Lookups!G69) -> 
A103: =IF(ISNA(Lookups!F70)," ",Lookups!F70) ->  | B103: =IF(ISNA(Lookups!G70)," ",Lookups!G70) -> 
A104: =IF(ISNA(Lookups!F71)," ",Lookups!F71) ->  | B104: =IF(ISNA(Lookups!G71)," ",Lookups!G71) -> 
A105: =IF(ISNA(Lookups!F72)," ",Lookups!F72) ->  | B105: =IF(ISNA(Lookups!G72)," ",Lookups!G72) -> 
A106: =IF(ISNA(Lookups!F73)," ",Lookups!F73) ->  | B106: =IF(ISNA(Lookups!G73)," ",Lookups!G73) -> 
A107: =IF(ISNA(Lookups!F74)," ",Lookups!F74) ->  | B107: =IF(ISNA(Lookups!G74)," ",Lookups!G74) -> 
A108: =IF(ISNA(Lookups!F75)," ",Lookups!F75) ->  | B108: =IF(ISNA(Lookups!G75)," ",Lookups!G75) -> 
A109: =IF(ISNA(Lookups!F76)," ",Lookups!F76) ->  | B109: =IF(ISNA(Lookups!G76)," ",Lookups!G76) -> 
A110: =IF(ISNA(Lookups!F77)," ",Lookups!F77) ->  | B110: =IF(ISNA(Lookups!G77)," ",Lookups!G77) -> 
A111: =IF(ISNA(Lookups!F78)," ",Lookups!F78) ->  | B111: =IF(ISNA(Lookups!G78)," ",Lookups!G78) -> 
A112: =IF(ISNA(Lookups!F79)," ",Lookups!F79) ->  | B112: =IF(ISNA(Lookups!G79)," ",Lookups!G79) -> 
A113: =IF(ISNA(Lookups!F80)," ",Lookups!F80) ->  | B113: =IF(ISNA(Lookups!G80)," ",Lookups!G80) -> 
A114: =IF(ISNA(Lookups!F81)," ",Lookups!F81) ->  | B114: =IF(ISNA(Lookups!G81)," ",Lookups!G81) -> 
A115: =IF(ISNA(Lookups!F82)," ",Lookups!F82) ->  | B115: =IF(ISNA(Lookups!G82)," ",Lookups!G82) -> 
A116: =IF(ISNA(Lookups!F83)," ",Lookups!F83) ->  | B116: =IF(ISNA(Lookups!G83)," ",Lookups!G83) -> 
A117: =IF(ISNA(Lookups!F84)," ",Lookups!F84) ->  | B117: =IF(ISNA(Lookups!G84)," ",Lookups!G84) -> 
A118: =IF(ISNA(Lookups!F85)," ",Lookups!F85) ->  | B118: =IF(ISNA(Lookups!G85)," ",Lookups!G85) -> 
A119: =IF(ISNA(Lookups!F86)," ",Lookups!F86) ->  | B119: =IF(ISNA(Lookups!G86)," ",Lookups!G86) -> 
A120: =IF(ISNA(Lookups!F87)," ",Lookups!F87) ->  | B120: =IF(ISNA(Lookups!G87)," ",Lookups!G87) -> 
A121: =IF(ISNA(Lookups!F88)," ",Lookups!F88) ->  | B121: =IF(ISNA(Lookups!G88)," ",Lookups!G88) -> 
A122: =IF(ISNA(Lookups!F89)," ",Lookups!F89) ->  | B122: =IF(ISNA(Lookups!G89)," ",Lookups!G89) -> 
A123: =IF(ISNA(Lookups!F90)," ",Lookups!F90) ->  | B123: =IF(ISNA(Lookups!G90)," ",Lookups!G90) -> 
A124: =IF(ISNA(Lookups!F91)," ",Lookups!F91) ->  | B124: =IF(ISNA(Lookups!G91)," ",Lookups!G91) -> 
A125: =IF(ISNA(Lookups!F92)," ",Lookups!F92) ->  | B125: =IF(ISNA(Lookups!G92)," ",Lookups!G92) -> 
A126: =IF(ISNA(Lookups!F93)," ",Lookups!F93) ->  | B126: =IF(ISNA(Lookups!G93)," ",Lookups!G93) -> 
A127: =IF(ISNA(Lookups!F94)," ",Lookups!F94) ->  | B127: =IF(ISNA(Lookups!G94)," ",Lookups!G94) -> 
A128: =IF(ISNA(Lookups!F95)," ",Lookups!F95) ->  | B128: =IF(ISNA(Lookups!G95)," ",Lookups!G95) -> 
A129: =IF(ISNA(Lookups!F96)," ",Lookups!F96) ->  | B129: =IF(ISNA(Lookups!G96)," ",Lookups!G96) -> 
A130: =IF(ISNA(Lookups!F97)," ",Lookups!F97) ->  | B130: =IF(ISNA(Lookups!G97)," ",Lookups!G97) -> 
A131: =IF(ISNA(Lookups!F98)," ",Lookups!F98) ->  | B131: =IF(ISNA(Lookups!G98)," ",Lookups!G98) -> 
A132: =IF(ISNA(Lookups!F99)," ",Lookups!F99) ->  | B132: =IF(ISNA(Lookups!G99)," ",Lookups!G99) -> 
A133: =IF(ISNA(Lookups!F100)," ",Lookups!F100) ->  | B133: =IF(ISNA(Lookups!G100)," ",Lookups!G100) -> 
A134: =IF(ISNA(Lookups!F101)," ",Lookups!F101) ->  | B134: =IF(ISNA(Lookups!G101)," ",Lookups!G101) -> 
A135: =IF(ISNA(Lookups!F102)," ",Lookups!F102) ->  | B135: =IF(ISNA(Lookups!G102)," ",Lookups!G102) -> 
A136: =IF(ISNA(Lookups!F103)," ",Lookups!F103) ->  | B136: =IF(ISNA(Lookups!G103)," ",Lookups!G103) -> 
A137: =IF(ISNA(Lookups!F104)," ",Lookups!F104) ->  | B137: =IF(ISNA(Lookups!G104)," ",Lookups!G104) -> 

Sheet 9. Sensitivity
E1: Overall | G1: Project organisation
E2: NPV | F2: ='8. Report'!$B$15 -> 7988793.231 | G2: NPV | H2: ='8. Report'!$B$22 -> -4843141.93
E3: BCR | F3: ='8. Report'!$B$16 -> 1.897545094 | G3: BCR | H3: ='8. Report'!$B$23 -> 0.4123401113
A5: Project title | B5: ='1. General'!B8 -> Princes Park Stormwater Harvesting
A7: The probability distributions used for these sensitivity analyses are shown in tables at the bottom of this sheet. One table defines the ranges (high and low values) for sensitivity analysis, and the other defines the probabilities for the high, default and low values.
A9: BCA robustness (based on 1000 simulations)
B11: Overall | D11: Project organisation
A13: Net Present Value (NPV) | C13: Net Present Value (NPV)
A14: Minimum | B14: =MIN('Sensitivity calcs'!$AW$5:$AW$1004) -> -3371856.923 | C14: Minimum | D14: =MIN('Sensitivity calcs'!$BI$5:$BI$1004) -> -9064125.746
A15: Maximum | B15: =MAX('Sensitivity calcs'!$AW$5:$AW$1004) -> 15929579.11 | C15: Maximum | D15: =MAX('Sensitivity calcs'!$BI$5:$BI$1004) -> -1310253.416
A16: Default case | B16: ='8. Report'!B15 -> 7988793.231 | C16: Default case | D16: ='8. Report'!B22 -> -4843141.93
A17: Mean | B17: =AVERAGE('Sensitivity calcs'!$AW$5:$AW$1004) -> 6560991.466 | C17: Mean | D17: =AVERAGE('Sensitivity calcs'!$BI$5:$BI$1004) -> -5091720.231
A18: Median | B18: =MEDIAN('Sensitivity calcs'!$AW$5:$AW$1004) -> 6468737.476 | C18: Median | D18: =MEDIAN('Sensitivity calcs'!$BI$5:$BI$1004) -> -4874672.186
A19: Probability that NPV > 0 | B19: =COUNTIF('Sensitivity calcs'!$AW$5:$AW$1004,">0")/1000 -> 0.951 | C19: Probability that NPV > 0 | D19: =COUNTIF('Sensitivity calcs'!$BI$5:$BI$1004,">0")/1000 -> 0
A21: Distribution. Up to … | B21: Probability | C21: Distribution. Up to … | D21: Probability
A22: =B14 -> -3371856.923 | B22: =COUNTIF('Sensitivity calcs'!$AW$5:$AW$1004,"<"&A22)/1000 -> 0 | C22: =D14 -> -9064125.746 | D22: =COUNTIF('Sensitivity calcs'!$BI$5:$BI$1004,"<"&C22)/1000 -> 0
A23: =A22+($B$15-$B$14)/5 -> 488430.2844 | B23: =COUNTIFS('Sensitivity calcs'!$AW$5:$AW$1004,">="&A22,'Sensitivity calcs'!$AW$5:$AW$1004,"<"&A23)/1000 -> 0.128 | C23: =C22+($D$15-$D$14)/5 -> -7513351.28 | D23: =COUNTIFS('Sensitivity calcs'!$BI$5:$BI$1004,">="&C22,'Sensitivity calcs'!$BI$5:$BI$1004,"<"&C23)/1000 -> 0.117
A24: =A23+($B$15-$B$14)/5 -> 4348717.492 | B24: =COUNTIFS('Sensitivity calcs'!$AW$5:$AW$1004,">="&A23,'Sensitivity calcs'!$AW$5:$AW$1004,"<"&A24)/1000 -> 0.207 | C24: =C23+($D$15-$D$14)/5 -> -5962576.814 | D24: =COUNTIFS('Sensitivity calcs'!$BI$5:$BI$1004,">="&C23,'Sensitivity calcs'!$BI$5:$BI$1004,"<"&C24)/1000 -> 0.143
A25: =A24+($B$15-$B$14)/5 -> 8209004.699 | B25: =COUNTIFS('Sensitivity calcs'!$AW$5:$AW$1004,">="&A24,'Sensitivity calcs'!$AW$5:$AW$1004,"<"&A25)/1000 -> 0.373 | C25: =C24+($D$15-$D$14)/5 -> -4411802.348 | D25: =COUNTIFS('Sensitivity calcs'!$BI$5:$BI$1004,">="&C24,'Sensitivity calcs'!$BI$5:$BI$1004,"<"&C25)/1000 -> 0.398
A26: 12069291.91 | B26: =COUNTIFS('Sensitivity calcs'!$AW$5:$AW$1004,">="&A25,'Sensitivity calcs'!$AW$5:$AW$1004,"<"&A26)/1000 -> 0.161 | C26: =C25+($D$15-$D$14)/5 -> -2861027.882 | D26: =COUNTIFS('Sensitivity calcs'!$BI$5:$BI$1004,">="&C25,'Sensitivity calcs'!$BI$5:$BI$1004,"<"&C26)/1000 -> 0.183
A27: 15929579.11 | B27: =COUNTIF('Sensitivity calcs'!$AW$5:$AW$1004,">="&A26)/1004 -> 0.1304780876 | C27: =C26+($D$15-$D$14)/5 -> -1310253.416 | D27: =COUNTIF('Sensitivity calcs'!$BI$5:$BI$1004,">="&C26)/1000 -> 0.159
A28: Total | B28: =SUM(B23:B27) -> 0.9994780876 | C28: Total | D28: =SUM(D23:D27) -> 1
B31: Overall | D31: Project organisation
A33: Benefit: Cost Ratio (BCR) | C33: Benefit: Cost Ratio (BCR)
A34: Minimum | B34: =MIN('Sensitivity calcs'!$AV$5:$AV$1004) -> 0.7085923944 | C34: Minimum | D34: =MIN('Sensitivity calcs'!$BH$5:$BH$1004) -> 0.1539784576
A35: Maximum | B35: =MAX('Sensitivity calcs'!$AV$5:$AV$1004) -> 3.556709339 | C35: Maximum | D35: =MAX('Sensitivity calcs'!$BH$5:$BH$1004) -> 0.7728796165
A36: Default case | B36: ='8. Report'!B16 -> 1.897545094 | C36: Default case | D36: ='8. Report'!B23 -> 0.4123401113
A37: Mean | B37: =AVERAGE('Sensitivity calcs'!$AV$5:$AV$1004) -> 1.82819878 | C37: Mean | D37: =AVERAGE('Sensitivity calcs'!$BH$5:$BH$1004) -> 0.3972710271
A38: Median | B38: =MEDIAN('Sensitivity calcs'!$AV$5:$AV$1004) -> 1.879939006 | C38: Median | D38: =MEDIAN('Sensitivity calcs'!$BH$5:$BH$1004) -> 0.4085142752
A39: Probability that BCR > 1 | B39: =COUNTIF('Sensitivity calcs'!$AV$5:$AV$1004,">1")/'Sensitivity calcs'!$H$1004 -> 0.951 | C39: Probability that BCR > 1 | D39: =COUNTIF('Sensitivity calcs'!$BH$5:$BH$1004,">1")/'Sensitivity calcs'!$H$1004 -> 0
A40: Target BCR | B40: 1 | C40: Target BCR | D40: 1
A41: Probability BCR > Target | B41: =COUNTIF('Sensitivity calcs'!$AV$5:$AV$1004,">"&B40)/'Sensitivity calcs'!$H$1004 -> 0.951 | C41: Probability BCR > Target | D41: =COUNTIF('Sensitivity calcs'!$BH$5:$BH$1004,">"&D40)/'Sensitivity calcs'!$H$1004 -> 0
A43: Distribution. Up to … | B43: Probability | C43: Distribution. Up to … | D43: Probability
A44: =B34 -> 0.7085923944 | B44: =COUNTIF('Sensitivity calcs'!$AV$5:$AV$1004,"<"&A44)/1000 -> 0 | C44: =D34 -> 0.1539784576 | D44: =COUNTIF('Sensitivity calcs'!$BH$5:$BH$1004,"<"&C44)/1000 -> 0
A45: =A44+($B$35-$B$34)/5 -> 1.278215783 | B45: =COUNTIFS('Sensitivity calcs'!$AV$5:$AV$1004,">="&A44,'Sensitivity calcs'!$AV$5:$AV$1004,"<"&A45)/1000 -> 0.128 | C45: =C44+($D$35-$D$34)/5 -> 0.2777586894 | D45: =COUNTIFS('Sensitivity calcs'!$BH$5:$BH$1004,">="&C44,'Sensitivity calcs'!$BH$5:$BH$1004,"<"&C45)/1000 -> 0.128
A46: =A45+($B$35-$B$34)/5 -> 1.847839172 | B46: =COUNTIFS('Sensitivity calcs'!$AV$5:$AV$1004,">="&A45,'Sensitivity calcs'!$AV$5:$AV$1004,"<"&A46)/1000 -> 0.323 | C46: =C45+($D$35-$D$34)/5 -> 0.4015389212 | D46: =COUNTIFS('Sensitivity calcs'!$BH$5:$BH$1004,">="&C45,'Sensitivity calcs'!$BH$5:$BH$1004,"<"&C46)/1000 -> 0.323
A47: =A46+($B$35-$B$34)/5 -> 2.417462561 | B47: =COUNTIFS('Sensitivity calcs'!$AV$5:$AV$1004,">="&A46,'Sensitivity calcs'!$AV$5:$AV$1004,"<"&A47)/1000 -> 0.301 | C47: =C46+($D$35-$D$34)/5 -> 0.5253191529 | D47: =COUNTIFS('Sensitivity calcs'!$BH$5:$BH$1004,">="&C46,'Sensitivity calcs'!$BH$5:$BH$1004,"<"&C47)/1000 -> 0.301
A48: =A47+($B$35-$B$34)/5 -> 2.98708595 | B48: =COUNTIFS('Sensitivity calcs'!$AV$5:$AV$1004,">="&A47,'Sensitivity calcs'!$AV$5:$AV$1004,"<"&A48)/1000 -> 0.206 | C48: =C47+($D$35-$D$34)/5 -> 0.6490993847 | D48: =COUNTIFS('Sensitivity calcs'!$BH$5:$BH$1004,">="&C47,'Sensitivity calcs'!$BH$5:$BH$1004,"<"&C48)/1000 -> 0.206
A49: =A48+($B$35-$B$34)/5 -> 3.556709339 | B49: =COUNTIF('Sensitivity calcs'!$AV$5:$AV$1004,">="&A48)/1000 -> 0.042 | C49: =C48+($D$35-$D$34)/5 -> 0.7728796165 | D49: =COUNTIF('Sensitivity calcs'!$BH$5:$BH$1004,">="&C48)/1000 -> 0.042
A50: Total | B50: =SUM(B45:B49) -> 1 | C50: Total | D50: =SUM(D45:D49) -> 1
A54: Sensitivity index for individual factors = (BCRhi − BCRlo)/BCRdefault ´ 100
A55: This index that shows the sensitivity of the BCR to each of the main variables, when the variables are varied over the ranges specified (see below). This indicates whether uncertainty about a variable is important in the sense that it has a big effect on the results. It is similar to a coefficient of variation in statistics, as it expresses the range of results relative to the mean. Focus on identifying variables with the larges sensitivity indexes. Some variables with low sensitivity may have the opposite sign to expectations. This is because of randomness in the 1000 simulations.
B57: Overall | D57: Project organisation
A58: ='8. Report'!A27 -> Ben 1, per person | B58: =IF($B$36<>0,('Sensitivity calcs'!BP$2-'Sensitivity calcs'!BO$2)/$B$36*100,0) -> 0 | D58: =IF($D$36<>0,('Sensitivity calcs'!DE$2-'Sensitivity calcs'!DD$2)/$D$36*100,0) -> 0
A59: ='8. Report'!A28 -> Ben 2, user specified | B59: =IF($B$36<>0,('Sensitivity calcs'!BR$2-'Sensitivity calcs'!BQ$2)/$B$36*100,0) -> 55.46018109 | D59: =IF($D$36<>0,('Sensitivity calcs'!DG$2-'Sensitivity calcs'!DF$2)/$D$36*100,0) -> 255.2218222
A60: ='8. Report'!A29 -> Ben 3, abatement | B60: =IF($B$36<>0,('Sensitivity calcs'!BT$2-'Sensitivity calcs'!BS$2)/$B$36*100,0) -> 0 | D60: =IF($D$36<>0,('Sensitivity calcs'!DI$2-'Sensitivity calcs'!DH$2)/$D$36*100,0) -> 0
A61: ='8. Report'!A30 -> Ben 4, annual aggregate | B61: =IF($B$36<>0,('Sensitivity calcs'!BV$2-'Sensitivity calcs'!BU$2)/$B$36*100,0) -> 0 | D61: =IF($D$36<>0,('Sensitivity calcs'!DK$2-'Sensitivity calcs'!DJ$2)/$D$36*100,0) -> 0
A62: ='8. Report'!A31 -> Ben 5, delay cost | B62: =IF($B$36<>0,('Sensitivity calcs'!BX$2-'Sensitivity calcs'!BW$2)/$B$36*100,0) -> 0 | D62: =IF($D$36<>0,('Sensitivity calcs'!DM$2-'Sensitivity calcs'!DL$2)/$D$36*100,0) -> 0
A63: ='8. Report'!A32 -> Ben 6, protect asset | B63: =IF($B$36<>0,('Sensitivity calcs'!BZ$2-'Sensitivity calcs'!BY$2)/$B$36*100,0) -> 0 | D63: =IF($D$36<>0,('Sensitivity calcs'!DO$2-'Sensitivity calcs'!DN$2)/$D$36*100,0) -> 0
A64: ='8. Report'!A33 -> Ben 7, reduce risk | B64: =IF($B$36<>0,('Sensitivity calcs'!CB$2-'Sensitivity calcs'!CA$2)/$B$36*100,0) -> 0 | D64: =IF($D$36<>0,('Sensitivity calcs'!DQ$2-'Sensitivity calcs'!DP$2)/$D$36*100,0) -> 0
A65: ='8. Report'!A34 -> Ben 8, custom benefits | B65: =IF($B$36<>0,('Sensitivity calcs'!CD$2-'Sensitivity calcs'!CC$2)/$B$36*100,0) -> 0 | D65: =IF($D$36<>0,('Sensitivity calcs'!DS$2-'Sensitivity calcs'!DR$2)/$D$36*100,0) -> 0
A66: Adoption | B66: =IF($B$36<>0,('Sensitivity calcs'!CF$2-'Sensitivity calcs'!CE$2)/$B$36*100,0) -> 30.3464032 | D66: =IF($D$36<>0,('Sensitivity calcs'!DU$2-'Sensitivity calcs'!DT$2)/$D$36*100,0) -> 139.6509021
A67: Project risk 1 | B67: =IF($B$36<>0,('Sensitivity calcs'!CH$2-'Sensitivity calcs'!CG$2)/$B$36*100,0) -> -1.138501717 | D67: =IF($D$36<>0,('Sensitivity calcs'!DW$2-'Sensitivity calcs'!DV$2)/$D$36*100,0) -> -5.239263143
A68: Project risk 2 | B68: =IF($B$36<>0,('Sensitivity calcs'!CJ$2-'Sensitivity calcs'!CI$2)/$B$36*100,0) -> -1.753866411 | D68: =IF($D$36<>0,('Sensitivity calcs'!DY$2-'Sensitivity calcs'!DX$2)/$D$36*100,0) -> -8.071105655
A69: Project risk 3 | B69: =IF($B$36<>0,('Sensitivity calcs'!CL$2-'Sensitivity calcs'!CK$2)/$B$36*100,0) -> 3.565446222 | D69: =IF($D$36<>0,('Sensitivity calcs'!EA$2-'Sensitivity calcs'!DZ$2)/$D$36*100,0) -> 16.40780221
A70: Project risk 4 | B70: =IF($B$36<>0,('Sensitivity calcs'!CN$2-'Sensitivity calcs'!CM$2)/$B$36*100,0) -> -1.878268123 | D70: =IF($D$36<>0,('Sensitivity calcs'!EC$2-'Sensitivity calcs'!EB$2)/$D$36*100,0) -> -8.64358903
A71: Project risk 5 | B71: =IF($B$36<>0,('Sensitivity calcs'!CP$2-'Sensitivity calcs'!CO$2)/$B$36*100,0) -> -0.4743772496 | D71: =IF($D$36<>0,('Sensitivity calcs'!EE$2-'Sensitivity calcs'!ED$2)/$D$36*100,0) -> -2.18303337
A72: Project risk 6 | B72: =IF($B$36<>0,('Sensitivity calcs'!CR$2-'Sensitivity calcs'!CQ$2)/$B$36*100,0) -> -1.885028006 | D72: =IF($D$36<>0,('Sensitivity calcs'!EG$2-'Sensitivity calcs'!EF$2)/$D$36*100,0) -> -8.674697287
A73: Project risk 7 | B73: =IF($B$36<>0,('Sensitivity calcs'!CT$2-'Sensitivity calcs'!CS$2)/$B$36*100,0) -> -1.511827826 | D73: =IF($D$36<>0,('Sensitivity calcs'!EI$2-'Sensitivity calcs'!EH$2)/$D$36*100,0) -> -6.957269973
A74: Project risk 8 | B74: =IF($B$36<>0,('Sensitivity calcs'!CV$2-'Sensitivity calcs'!CU$2)/$B$36*100,0) -> 1.088653495 | D74: =IF($D$36<>0,('Sensitivity calcs'!EK$2-'Sensitivity calcs'!EJ$2)/$D$36*100,0) -> 5.009866957
A75: Project cost | B75: =IF($B$36<>0,('Sensitivity calcs'!CX$2-'Sensitivity calcs'!CW$2)/$B$36*100,0) -> -61.92105322 | D75: =IF($D$36<>0,('Sensitivity calcs'!EM$2-'Sensitivity calcs'!EL$2)/$D$36*100,0) -> -284.9540647
A78: Break-even analysis for individual factors (% change to break even)
A79: For each main variable, the break-even analysis indicates how much the variable would need to change in order to change the BCA result. Changing the BCA result means switching from BCR >1 to BCR < 1 or vice versa. If the break-even percentage change is within the range of values specified for sensitivity analysis (see below), it is highlighted with a pink background. If the break-even percentage change is greater than 100% or less than −100% (i.e., changes in the variable are very unlikely to change the BCA result), this is indicated in text, rather than numbers. This is done because the extreme results can be highly sensitive to the results of the 1000 simulations.
B81: Overall | D81: Project organisation
A82: ='8. Report'!A27 -> Ben 1, per person | B82: =IF('Sensitivity calcs'!BN7,"Value is zero",IF('Sensitivity calcs'!BM7,"Sensitivity is zero",IF($B$36>1,IF(AND('Sensitivity calcs'!BL7<0,'Sensitivity calcs'!BL7>-1),'Sensitivity calcs'!BL7,"Less than −100%"),IF($B$36<1,IF(AND('Sensitivity calcs'!BL7>0,'Sensitivity calcs'!BL7<1),'Sensitivity calcs'!BL7,"More than +100%"))))) -> Value is zero | D82: =IF('Sensitivity calcs'!DC7,"Value is zero",IF('Sensitivity calcs'!DB7,"Sensitivity is zero",IF($B$36>1,IF(AND('Sensitivity calcs'!DA7<0,'Sensitivity calcs'!DA7>-1),'Sensitivity calcs'!DA7,"Less than −100%"),IF($B$36<1,IF(AND('Sensitivity calcs'!DA7>0,'Sensitivity calcs'!DA7<1),'Sensitivity calcs'!DA7,"More than +100%"))))) -> Value is zero
A83: ='8. Report'!A28 -> Ben 2, user specified | B83: =IF('Sensitivity calcs'!BN8,"Value is zero",IF('Sensitivity calcs'!BM8,"Sensitivity is zero",IF($B$36>1,IF(AND('Sensitivity calcs'!BL8<0,'Sensitivity calcs'!BL8>-1),'Sensitivity calcs'!BL8,"Less than −100%"),IF($B$36<1,IF(AND('Sensitivity calcs'!BL8>0,'Sensitivity calcs'!BL8<1),'Sensitivity calcs'!BL8,"More than +100%"))))) -> -0.5117220594 | D83: =IF('Sensitivity calcs'!DC8,"Value is zero",IF('Sensitivity calcs'!DB8,"Sensitivity is zero",IF($B$36>1,IF(AND('Sensitivity calcs'!DA8<0,'Sensitivity calcs'!DA8>-1),'Sensitivity calcs'!DA8,"Less than −100%"),IF($B$36<1,IF(AND('Sensitivity calcs'!DA8>0,'Sensitivity calcs'!DA8<1),'Sensitivity calcs'!DA8,"More than +100%"))))) -> Less than −100%
A84: ='8. Report'!A29 -> Ben 3, abatement | B84: =IF('Sensitivity calcs'!BN9,"Value is zero",IF('Sensitivity calcs'!BM9,"Sensitivity is zero",IF($B$36>1,IF(AND('Sensitivity calcs'!BL9<0,'Sensitivity calcs'!BL9>-1),'Sensitivity calcs'!BL9,"Less than −100%"),IF($B$36<1,IF(AND('Sensitivity calcs'!BL9>0,'Sensitivity calcs'!BL9<1),'Sensitivity calcs'!BL9,"More than +100%"))))) -> Value is zero | D84: =IF('Sensitivity calcs'!DC9,"Value is zero",IF('Sensitivity calcs'!DB9,"Sensitivity is zero",IF($B$36>1,IF(AND('Sensitivity calcs'!DA9<0,'Sensitivity calcs'!DA9>-1),'Sensitivity calcs'!DA9,"Less than −100%"),IF($B$36<1,IF(AND('Sensitivity calcs'!DA9>0,'Sensitivity calcs'!DA9<1),'Sensitivity calcs'!DA9,"More than +100%"))))) -> Value is zero
A85: ='8. Report'!A30 -> Ben 4, annual aggregate | B85: =IF('Sensitivity calcs'!BN10,"Value is zero",IF('Sensitivity calcs'!BM10,"Sensitivity is zero",IF($B$36>1,IF(AND('Sensitivity calcs'!BL10<0,'Sensitivity calcs'!BL10>-1),'Sensitivity calcs'!BL10,"Less than −100%"),IF($B$36<1,IF(AND('Sensitivity calcs'!BL10>0,'Sensitivity calcs'!BL10<1),'Sensitivity calcs'!BL10,"More than +100%"))))) -> Value is zero | D85: =IF('Sensitivity calcs'!DC10,"Value is zero",IF('Sensitivity calcs'!DB10,"Sensitivity is zero",IF($B$36>1,IF(AND('Sensitivity calcs'!DA10<0,'Sensitivity calcs'!DA10>-1),'Sensitivity calcs'!DA10,"Less than −100%"),IF($B$36<1,IF(AND('Sensitivity calcs'!DA10>0,'Sensitivity calcs'!DA10<1),'Sensitivity calcs'!DA10,"More than +100%"))))) -> Value is zero
A86: ='8. Report'!A31 -> Ben 5, delay cost | B86: =IF('Sensitivity calcs'!BN11,"Value is zero",IF('Sensitivity calcs'!BM11,"Sensitivity is zero",IF($B$36>1,IF(AND('Sensitivity calcs'!BL11<0,'Sensitivity calcs'!BL11>-1),'Sensitivity calcs'!BL11,"Less than −100%"),IF($B$36<1,IF(AND('Sensitivity calcs'!BL11>0,'Sensitivity calcs'!BL11<1),'Sensitivity calcs'!BL11,"More than +100%"))))) -> Value is zero | D86: =IF('Sensitivity calcs'!DC11,"Value is zero",IF('Sensitivity calcs'!DB11,"Sensitivity is zero",IF($B$36>1,IF(AND('Sensitivity calcs'!DA11<0,'Sensitivity calcs'!DA11>-1),'Sensitivity calcs'!DA11,"Less than −100%"),IF($B$36<1,IF(AND('Sensitivity calcs'!DA11>0,'Sensitivity calcs'!DA11<1),'Sensitivity calcs'!DA11,"More than +100%"))))) -> Value is zero
A87: ='8. Report'!A32 -> Ben 6, protect asset | B87: =IF('Sensitivity calcs'!BN12,"Value is zero",IF('Sensitivity calcs'!BM12,"Sensitivity is zero",IF($B$36>1,IF(AND('Sensitivity calcs'!BL12<0,'Sensitivity calcs'!BL12>-1),'Sensitivity calcs'!BL12,"Less than −100%"),IF($B$36<1,IF(AND('Sensitivity calcs'!BL12>0,'Sensitivity calcs'!BL12<1),'Sensitivity calcs'!BL12,"More than +100%"))))) -> Value is zero | D87: =IF('Sensitivity calcs'!DC12,"Value is zero",IF('Sensitivity calcs'!DB12,"Sensitivity is zero",IF($B$36>1,IF(AND('Sensitivity calcs'!DA12<0,'Sensitivity calcs'!DA12>-1),'Sensitivity calcs'!DA12,"Less than −100%"),IF($B$36<1,IF(AND('Sensitivity calcs'!DA12>0,'Sensitivity calcs'!DA12<1),'Sensitivity calcs'!DA12,"More than +100%"))))) -> Value is zero
A88: ='8. Report'!A33 -> Ben 7, reduce risk | B88: =IF('Sensitivity calcs'!BN13,"Value is zero",IF('Sensitivity calcs'!BM13,"Sensitivity is zero",IF($B$36>1,IF(AND('Sensitivity calcs'!BL13<0,'Sensitivity calcs'!BL13>-1),'Sensitivity calcs'!BL13,"Less than −100%"),IF($B$36<1,IF(AND('Sensitivity calcs'!BL13>0,'Sensitivity calcs'!BL13<1),'Sensitivity calcs'!BL13,"More than +100%"))))) -> Value is zero | D88: =IF('Sensitivity calcs'!DC13,"Value is zero",IF('Sensitivity calcs'!DB13,"Sensitivity is zero",IF($B$36>1,IF(AND('Sensitivity calcs'!DA13<0,'Sensitivity calcs'!DA13>-1),'Sensitivity calcs'!DA13,"Less than −100%"),IF($B$36<1,IF(AND('Sensitivity calcs'!DA13>0,'Sensitivity calcs'!DA13<1),'Sensitivity calcs'!DA13,"More than +100%"))))) -> Value is zero
A89: ='8. Report'!A34 -> Ben 8, custom benefits | B89: =IF('Sensitivity calcs'!BN14,"Value is zero",IF('Sensitivity calcs'!BM14,"Sensitivity is zero",IF($B$36>1,IF(AND('Sensitivity calcs'!BL14<0,'Sensitivity calcs'!BL14>-1),'Sensitivity calcs'!BL14,"Less than −100%"),IF($B$36<1,IF(AND('Sensitivity calcs'!BL14>0,'Sensitivity calcs'!BL14<1),'Sensitivity calcs'!BL14,"More than +100%"))))) -> Value is zero | D89: =IF('Sensitivity calcs'!DC14,"Value is zero",IF('Sensitivity calcs'!DB14,"Sensitivity is zero",IF($B$36>1,IF(AND('Sensitivity calcs'!DA14<0,'Sensitivity calcs'!DA14>-1),'Sensitivity calcs'!DA14,"Less than −100%"),IF($B$36<1,IF(AND('Sensitivity calcs'!DA14>0,'Sensitivity calcs'!DA14<1),'Sensitivity calcs'!DA14,"More than +100%"))))) -> Value is zero
A90: Adoption | B90: =IF('Sensitivity calcs'!BN15,"Value is zero",IF('Sensitivity calcs'!BM15,"Sensitivity is zero",IF($B$36>1,IF(AND('Sensitivity calcs'!BL15<0,'Sensitivity calcs'!BL15>-1),'Sensitivity calcs'!BL15,"Less than −100%"),IF($B$36<1,IF(AND('Sensitivity calcs'!BL15>0,'Sensitivity calcs'!BL15<1),'Sensitivity calcs'!BL15,"More than +100%"))))) -> -0.9352079683 | D90: =IF('Sensitivity calcs'!DC15,"Value is zero",IF('Sensitivity calcs'!DB15,"Sensitivity is zero",IF($B$36>1,IF(AND('Sensitivity calcs'!DA15<0,'Sensitivity calcs'!DA15>-1),'Sensitivity calcs'!DA15,"Less than −100%"),IF($B$36<1,IF(AND('Sensitivity calcs'!DA15>0,'Sensitivity calcs'!DA15<1),'Sensitivity calcs'!DA15,"More than +100%"))))) -> Less than −100%
A91: Project risk 1 | B91: =IF('Sensitivity calcs'!BN16,"Value is zero",IF('Sensitivity calcs'!BM16,"Sensitivity is zero",IF($B$36>1,IF(AND('Sensitivity calcs'!BL16>0,'Sensitivity calcs'!BL16<1),'Sensitivity calcs'!BL16,"Greater than +100%"),IF($B$36<1,IF(AND('Sensitivity calcs'!BL16<0,'Sensitivity calcs'!BL16>-1),'Sensitivity calcs'!BL16,"Less than -100%"))))) -> Greater than +100% | D91: =IF('Sensitivity calcs'!DC16,"Value is zero",IF('Sensitivity calcs'!DB16,"Sensitivity is zero",IF($B$36>1,IF(AND('Sensitivity calcs'!DA16>0,'Sensitivity calcs'!DA16<1),'Sensitivity calcs'!DA16,"Greater than +100%"),IF($B$36<1,IF(AND('Sensitivity calcs'!DA16<0,'Sensitivity calcs'!DA16>-1),'Sensitivity calcs'!DA16,"Less than -100%"))))) -> Greater than +100%
A92: Project risk 2 | B92: =IF('Sensitivity calcs'!BN17,"Value is zero",IF('Sensitivity calcs'!BM17,"Sensitivity is zero",IF($B$36>1,IF(AND('Sensitivity calcs'!BL17>0,'Sensitivity calcs'!BL17<1),'Sensitivity calcs'!BL17,"Greater than +100%"),IF($B$36<1,IF(AND('Sensitivity calcs'!BL17<0,'Sensitivity calcs'!BL17>-1),'Sensitivity calcs'!BL17,"Less than -100%"))))) -> Greater than +100% | D92: =IF('Sensitivity calcs'!DC17,"Value is zero",IF('Sensitivity calcs'!DB17,"Sensitivity is zero",IF($B$36>1,IF(AND('Sensitivity calcs'!DA17>0,'Sensitivity calcs'!DA17<1),'Sensitivity calcs'!DA17,"Greater than +100%"),IF($B$36<1,IF(AND('Sensitivity calcs'!DA17<0,'Sensitivity calcs'!DA17>-1),'Sensitivity calcs'!DA17,"Less than -100%"))))) -> Greater than +100%
A93: Project risk 3 | B93: =IF('Sensitivity calcs'!BN18,"Value is zero",IF('Sensitivity calcs'!BM18,"Sensitivity is zero",IF($B$36>1,IF(AND('Sensitivity calcs'!BL18>0,'Sensitivity calcs'!BL18<1),'Sensitivity calcs'!BL18,"Greater than +100%"),IF($B$36<1,IF(AND('Sensitivity calcs'!BL18<0,'Sensitivity calcs'!BL18>-1),'Sensitivity calcs'!BL18,"Less than -100%"))))) -> Greater than +100% | D93: =IF('Sensitivity calcs'!DC18,"Value is zero",IF('Sensitivity calcs'!DB18,"Sensitivity is zero",IF($B$36>1,IF(AND('Sensitivity calcs'!DA18>0,'Sensitivity calcs'!DA18<1),'Sensitivity calcs'!DA18,"Greater than +100%"),IF($B$36<1,IF(AND('Sensitivity calcs'!DA18<0,'Sensitivity calcs'!DA18>-1),'Sensitivity calcs'!DA18,"Less than -100%"))))) -> Greater than +100%
A94: Project risk 4 | B94: =IF('Sensitivity calcs'!BN19,"Value is zero",IF('Sensitivity calcs'!BM19,"Sensitivity is zero",IF($B$36>1,IF(AND('Sensitivity calcs'!BL19>0,'Sensitivity calcs'!BL19<1),'Sensitivity calcs'!BL19,"Greater than +100%"),IF($B$36<1,IF(AND('Sensitivity calcs'!BL19<0,'Sensitivity calcs'!BL19>-1),'Sensitivity calcs'!BL19,"Less than -100%"))))) -> Greater than +100% | D94: =IF('Sensitivity calcs'!DC19,"Value is zero",IF('Sensitivity calcs'!DB19,"Sensitivity is zero",IF($B$36>1,IF(AND('Sensitivity calcs'!DA19>0,'Sensitivity calcs'!DA19<1),'Sensitivity calcs'!DA19,"Greater than +100%"),IF($B$36<1,IF(AND('Sensitivity calcs'!DA19<0,'Sensitivity calcs'!DA19>-1),'Sensitivity calcs'!DA19,"Less than -100%"))))) -> Greater than +100%
A95: Project risk 5 | B95: =IF('Sensitivity calcs'!BN20,"Value is zero",IF('Sensitivity calcs'!BM20,"Sensitivity is zero",IF($B$36>1,IF(AND('Sensitivity calcs'!BL20>0,'Sensitivity calcs'!BL20<1),'Sensitivity calcs'!BL20,"Greater than +100%"),IF($B$36<1,IF(AND('Sensitivity calcs'!BL20<0,'Sensitivity calcs'!BL20>-1),'Sensitivity calcs'!BL20,"Less than -100%"))))) -> Greater than +100% | D95: =IF('Sensitivity calcs'!DC20,"Value is zero",IF('Sensitivity calcs'!DB20,"Sensitivity is zero",IF($B$36>1,IF(AND('Sensitivity calcs'!DA20>0,'Sensitivity calcs'!DA20<1),'Sensitivity calcs'!DA20,"Greater than +100%"),IF($B$36<1,IF(AND('Sensitivity calcs'!DA20<0,'Sensitivity calcs'!DA20>-1),'Sensitivity calcs'!DA20,"Less than -100%"))))) -> Greater than +100%
A96: Project risk 6 | B96: =IF('Sensitivity calcs'!BN21,"Value is zero",IF('Sensitivity calcs'!BM21,"Sensitivity is zero",IF($B$36>1,IF(AND('Sensitivity calcs'!BL21>0,'Sensitivity calcs'!BL21<1),'Sensitivity calcs'!BL21,"Greater than +100%"),IF($B$36<1,IF(AND('Sensitivity calcs'!BL21<0,'Sensitivity calcs'!BL21>-1),'Sensitivity calcs'!BL21,"Less than -100%"))))) -> Greater than +100% | D96: =IF('Sensitivity calcs'!DC21,"Value is zero",IF('Sensitivity calcs'!DB21,"Sensitivity is zero",IF($B$36>1,IF(AND('Sensitivity calcs'!DA21>0,'Sensitivity calcs'!DA21<1),'Sensitivity calcs'!DA21,"Greater than +100%"),IF($B$36<1,IF(AND('Sensitivity calcs'!DA21<0,'Sensitivity calcs'!DA21>-1),'Sensitivity calcs'!DA21,"Less than -100%"))))) -> Greater than +100%
A97: Project risk 7 | B97: =IF('Sensitivity calcs'!BN22,"Value is zero",IF('Sensitivity calcs'!BM22,"Sensitivity is zero",IF($B$36>1,IF(AND('Sensitivity calcs'!BL22>0,'Sensitivity calcs'!BL22<1),'Sensitivity calcs'!BL22,"Greater than +100%"),IF($B$36<1,IF(AND('Sensitivity calcs'!BL22<0,'Sensitivity calcs'!BL22>-1),'Sensitivity calcs'!BL22,"Less than -100%"))))) -> Greater than +100% | D97: =IF('Sensitivity calcs'!DC22,"Value is zero",IF('Sensitivity calcs'!DB22,"Sensitivity is zero",IF($B$36>1,IF(AND('Sensitivity calcs'!DA22>0,'Sensitivity calcs'!DA22<1),'Sensitivity calcs'!DA22,"Greater than +100%"),IF($B$36<1,IF(AND('Sensitivity calcs'!DA22<0,'Sensitivity calcs'!DA22>-1),'Sensitivity calcs'!DA22,"Less than -100%"))))) -> Greater than +100%
A98: Project risk 8 | B98: =IF('Sensitivity calcs'!BN23,"Value is zero",IF('Sensitivity calcs'!BM23,"Sensitivity is zero",IF($B$36>1,IF(AND('Sensitivity calcs'!BL23>0,'Sensitivity calcs'!BL23<1),'Sensitivity calcs'!BL23,"Greater than +100%"),IF($B$36<1,IF(AND('Sensitivity calcs'!BL23<0,'Sensitivity calcs'!BL23>-1),'Sensitivity calcs'!BL23,"Less than -100%"))))) -> Greater than +100% | D98: =IF('Sensitivity calcs'!DC23,"Value is zero",IF('Sensitivity calcs'!DB23,"Sensitivity is zero",IF($B$36>1,IF(AND('Sensitivity calcs'!DA23>0,'Sensitivity calcs'!DA23<1),'Sensitivity calcs'!DA23,"Greater than +100%"),IF($B$36<1,IF(AND('Sensitivity calcs'!DA23<0,'Sensitivity calcs'!DA23>-1),'Sensitivity calcs'!DA23,"Less than -100%"))))) -> Greater than +100%
A99: Project cost | B99: =IF('Sensitivity calcs'!BN24,"Value is zero",IF('Sensitivity calcs'!BM24,"Sensitivity is zero",IF($B$36>1,IF(AND('Sensitivity calcs'!BL24>0,'Sensitivity calcs'!BL24<1),'Sensitivity calcs'!BL24,"Greater than +100%"),IF($B$36<1,IF(AND('Sensitivity calcs'!BL24<0,'Sensitivity calcs'!BL24>-1),'Sensitivity calcs'!BL24,"Less than -100%"))))) -> 0.4583287365 | D99: =IF('Sensitivity calcs'!DC24,"Value is zero",IF('Sensitivity calcs'!DB24,"Sensitivity is zero",IF($B$36>1,IF(AND('Sensitivity calcs'!DA24>0,'Sensitivity calcs'!DA24<1),'Sensitivity calcs'!DA24,"Greater than +100%"),IF($B$36<1,IF(AND('Sensitivity calcs'!DA24<0,'Sensitivity calcs'!DA24>-1),'Sensitivity calcs'!DA24,"Less than -100%"))))) -> Greater than +100%
A102: Sensitivity to discount rate
B104: Low discount rate | C104: Default discount rate | D104: High discount rate
A105: Overall | B105: ='2. Time'!B$18 -> 0.03 | C105: ='2. Time'!C$18 -> 0.05 | D105: ='2. Time'!D$18 -> 0.07
A106: Benefits (present value) | B106: ='50-year calcs'!F443 -> 22223696.91 | C106: ='50-year calcs'!G443 -> 16889508.4 | D106: ='50-year calcs'!H443 -> 13121844.26
A107: Costs (present value) | B107: ='50-year calcs'!F445 -> 9449593.869 | C107: ='50-year calcs'!G445 -> 8900715.166 | D107: ='50-year calcs'!H445 -> 8573526.808
A108: Net Present Value (NPV) | B108: ='50-year calcs'!F450 -> 12774103.05 | C108: ='50-year calcs'!$G$450 -> 7988793.231 | D108: ='50-year calcs'!H450 -> 4548317.455
A109: Benefit: Cost Ratio (BCR) | B109: ='50-year calcs'!F449 -> 2.351815033 | C109: ='50-year calcs'!$G$449 -> 1.897545094 | D109: ='50-year calcs'!H449 -> 1.530507171
B111: Low discount rate | C111: Default discount rate | D111: High discount rate
A112: Project organisation | B112: ='2. Time'!B$18 -> 0.03 | C112: ='2. Time'!C$18 -> 0.05 | D112: ='2. Time'!D$18 -> 0.07
A113: Benefits (present value) | B113: ='50-year calcs'!J443 -> 4739051.634 | C113: ='50-year calcs'!K443 -> 3398261.002 | D113: ='50-year calcs'!L443 -> 2570169.767
A114: Costs (present value) | B114: ='50-year calcs'!J445 -> 8749623.952 | C114: ='50-year calcs'!K445 -> 8241402.931 | D114: ='50-year calcs'!L445 -> 7938450.748
A115: Net Present Value (NPV) | B115: ='50-year calcs'!J450 -> -4010572.319 | C115: ='50-year calcs'!K450 -> -4843141.93 | D115: ='50-year calcs'!L450 -> -5368280.981
A116: Benefit: Cost Ratio (BCR) | B116: ='50-year calcs'!J449 -> 0.5416291785 | C116: ='50-year calcs'!K449 -> 0.4123401113 | D116: ='50-year calcs'!L449 -> 0.3237621355
A119: Sensitivity to excluding the excess burden of taxation
A121: Overall BCA results | B121: Cost includes tax excess burden | C121: Cost excludes tax excess burden
A122: Benefits (present value) | B122: ='50-year calcs'!G443 -> 16889508.4 | C122: ='50-year calcs'!C443 -> 16889508.4
A123: Costs (present value) | B123: ='50-year calcs'!G445 -> 8900715.166 | C123: ='50-year calcs'!C445 -> 8241402.931
A124: Net Present Value (NPV) | B124: ='50-year calcs'!G450 -> 7988793.231 | C124: ='50-year calcs'!C450 -> 8648105.466
A125: Benefit: Cost Ratio (BCR) | B125: ='50-year calcs'!G449 -> 1.897545094 | C125: ='50-year calcs'!C449 -> 2.049348702
A128: Ranges for sensitivity analysis (percentage changes)
A130: For each of the main variables, indicate the percentage changes to be used for the sensitivity analyses: a low level (a negative percentage change) and a high level (a positive percentage change). When specifying these ranges, try to reflect realistically wide ranges for each variable. A common error is to use the same narrow range (e.g. +/− 20%) for each variable. Preferably, provide ranges that reflect the 75% confidence interval for each variable and consider how the ranges are likely to vary for different variables. Where uncertainty about a variable is higher, the range should be wider.
A132: 9.1 | B132: Low level (negative & change) | C132: High level (positive % change)
A133: ='8. Report'!A27 -> Ben 1, per person | B133: -0.3 | C133: 0.3
A134: ='8. Report'!A28 -> Ben 2, user specified | B134: -0.3 | C134: 0.3
A135: ='8. Report'!A29 -> Ben 3, abatement | B135: -0.3 | C135: 0.3
A136: ='8. Report'!A30 -> Ben 4, annual aggregate | B136: -0.3 | C136: 0.3
A137: ='8. Report'!A31 -> Ben 5, delay cost | B137: -0.3 | C137: 0.3
A138: ='8. Report'!A32 -> Ben 6, protect asset | B138: -0.3 | C138: 0.3
A139: ='8. Report'!A33 -> Ben 7, reduce risk | B139: -0.3 | C139: 0.3
A140: ='8. Report'!A34 -> Ben 8, custom benefits | B140: -0.3 | C140: 0.3
A141: Adoption | B141: -0.3 | C141: 0.3
A142: Project risks | B142: -0.3 | C142: 0.3
A143: Costs | B143: -0.3 | C143: 0.3
A146: Probabilities used for robustness calculations
A148: For each of the main variables, indicate the probability distribution for the low, default and high values. If the ranges provided in the previous table reflect 75% confidence intervals, then reasonable probabilities to include here are 0.25, 0.5 and 0.25, respectively.
A150: 9.2 | B150: Low level | C150: Default level | D150: High level
A151: ='8. Report'!A27 -> Ben 1, per person | B151: 0.25 | C151: 0.5 | D151: 0.25 | E151: =IF(SUM(B151:D151)<>1,"Error. Probabilities must sum to 1."," ") -> 
A152: ='8. Report'!A28 -> Ben 2, user specified | B152: 0.25 | C152: 0.5 | D152: 0.25 | E152: =IF(SUM(B152:D152)<>1,"Error. Probabilities must sum to 1."," ") -> 
A153: ='8. Report'!A29 -> Ben 3, abatement | B153: 0.25 | C153: 0.5 | D153: 0.25
A154: ='8. Report'!A30 -> Ben 4, annual aggregate | B154: 0.25 | C154: 0.5 | D154: 0.25
A155: ='8. Report'!A31 -> Ben 5, delay cost | B155: 0.25 | C155: 0.5 | D155: 0.25
A156: ='8. Report'!A32 -> Ben 6, protect asset | B156: 0.25 | C156: 0.5 | D156: 0.25
A157: ='8. Report'!A33 -> Ben 7, reduce risk | B157: 0.25 | C157: 0.5 | D157: 0.25
A158: ='8. Report'!A34 -> Ben 8, custom benefits | B158: 0.25 | C158: 0.5 | D158: 0.25
A159: Adoption | B159: 0.25 | C159: 0.5 | D159: 0.25
A160: Project risks | B160: 0.25 | C160: 0.5 | D160: 0.25
A161: Costs | B161: 0.25 | C161: 0.5 | D161: 0.25

Sheet 10. Stakeholders
F1: Overall | H1: Project organisation
F2: NPV | G2: ='8. Report'!$B$15 -> 7988793.231 | H2: NPV | I2: ='8. Report'!$B$22 -> -4843141.93
F3: BCR | G3: ='8. Report'!$B$16 -> 1.897545094 | H3: BCR | I3: ='8. Report'!$B$23 -> 0.4123401113
A5: Project title | B5: ='1. General'!B8 -> Princes Park Stormwater Harvesting
A7: Break-down of benefits categories across stakeholders
A8: Note: the benefits are adjusted for adoption and project risk.
B9: ='1. General'!$B67 -> City of Melbourne | C9: ='1. General'!$B68 -> Local community and park users | D9: ='1. General'!$B69 -> Broader Melbourne community | E9: ='1. General'!$B70 -> Melbourne Water | F9: ='1. General'!$B71 -> 0 | G9: ='1. General'!$B72 -> 0 | H9: ='1. General'!$B73 -> 0 | I9: ='1. General'!$B74 -> 0
A10: ='8. Report'!A27 -> Ben 1, per person | B10: ='50-year calcs'!K430 -> 0 | C10: ='50-year calcs'!M430 -> 0 | D10: ='50-year calcs'!N430 -> 0 | E10: ='50-year calcs'!O430 -> 0 | F10: ='50-year calcs'!P430 -> 0 | G10: ='50-year calcs'!Q430 -> 0 | H10: ='50-year calcs'!R430 -> 0 | I10: ='50-year calcs'!S430 -> 0
A11: ='8. Report'!A28 -> Ben 2, user specified | B11: ='50-year calcs'!K431 -> 3398261.002 | C11: ='50-year calcs'!M431 -> 12087463.4 | D11: ='50-year calcs'!N431 -> 1403784 | E11: ='50-year calcs'!O431 -> 0 | F11: ='50-year calcs'!P431 -> 0 | G11: ='50-year calcs'!Q431 -> 0 | H11: ='50-year calcs'!R431 -> 0 | I11: ='50-year calcs'!S431 -> 0
A12: ='8. Report'!A29 -> Ben 3, abatement | B12: ='50-year calcs'!K432 -> 0 | C12: ='50-year calcs'!M432 -> 0 | D12: ='50-year calcs'!N432 -> 0 | E12: ='50-year calcs'!O432 -> 0 | F12: ='50-year calcs'!P432 -> 0 | G12: ='50-year calcs'!Q432 -> 0 | H12: ='50-year calcs'!R432 -> 0 | I12: ='50-year calcs'!S432 -> 0
A13: ='8. Report'!A30 -> Ben 4, annual aggregate | B13: ='50-year calcs'!K433 -> 0 | C13: ='50-year calcs'!M433 -> 0 | D13: ='50-year calcs'!N433 -> 0 | E13: ='50-year calcs'!O433 -> 0 | F13: ='50-year calcs'!P433 -> 0 | G13: ='50-year calcs'!Q433 -> 0 | H13: ='50-year calcs'!R433 -> 0 | I13: ='50-year calcs'!S433 -> 0
A14: ='8. Report'!A31 -> Ben 5, delay cost | B14: ='50-year calcs'!K434 -> 0 | C14: ='50-year calcs'!M434 -> 0 | D14: ='50-year calcs'!N434 -> 0 | E14: ='50-year calcs'!O434 -> 0 | F14: ='50-year calcs'!P434 -> 0 | G14: ='50-year calcs'!Q434 -> 0 | H14: ='50-year calcs'!R434 -> 0 | I14: ='50-year calcs'!S434 -> 0
A15: ='8. Report'!A32 -> Ben 6, protect asset | B15: ='50-year calcs'!K435 -> 0 | C15: ='50-year calcs'!M435 -> 0 | D15: ='50-year calcs'!N435 -> 0 | E15: ='50-year calcs'!O435 -> 0 | F15: ='50-year calcs'!P435 -> 0 | G15: ='50-year calcs'!Q435 -> 0 | H15: ='50-year calcs'!R435 -> 0 | I15: ='50-year calcs'!S435 -> 0
A16: ='8. Report'!A33 -> Ben 7, reduce risk | B16: ='50-year calcs'!K436 -> 0 | C16: ='50-year calcs'!M436 -> 0 | D16: ='50-year calcs'!N436 -> 0 | E16: ='50-year calcs'!O436 -> 0 | F16: ='50-year calcs'!P436 -> 0 | G16: ='50-year calcs'!Q436 -> 0 | H16: ='50-year calcs'!R436 -> 0 | I16: ='50-year calcs'!S436 -> 0
A17: ='8. Report'!A34 -> Ben 8, custom benefits | B17: ='50-year calcs'!K437 -> 0 | C17: ='50-year calcs'!M437 -> 0 | D17: ='50-year calcs'!N437 -> 0 | E17: ='50-year calcs'!O437 -> 0 | F17: ='50-year calcs'!P437 -> 0 | G17: ='50-year calcs'!Q437 -> 0 | H17: ='50-year calcs'!R437 -> 0 | I17: ='50-year calcs'!S437 -> 0
A19: Total benefits (PV) | B19: =SUM(B10:B17) -> 3398261.002 | C19: =SUM(C10:C17) -> 12087463.4 | D19: 1403784 | E19: 0 | F19: =SUM(F10:F17) -> 0 | G19: 0 | H19: 0 | I19: 0
A20: Costs (PV) | B20: ='50-year calcs'!K445+'50-year calcs'!K439+'50-year calcs'!K440 -> 8241402.931 | C20: ='50-year calcs'!M445+'50-year calcs'!M439+'50-year calcs'!M440 -> 0 | D20: ='50-year calcs'!N445+'50-year calcs'!N439+'50-year calcs'!N440 -> 0 | E20: ='50-year calcs'!O445+'50-year calcs'!O439+'50-year calcs'!O440 -> 0 | F20: ='50-year calcs'!P445+'50-year calcs'!P439+'50-year calcs'!P440 -> 0 | G20: ='50-year calcs'!Q445+'50-year calcs'!Q439+'50-year calcs'!Q440 -> 0 | H20: ='50-year calcs'!R445+'50-year calcs'!R439+'50-year calcs'!R440 -> 0 | I20: ='50-year calcs'!S445+'50-year calcs'!S439+'50-year calcs'!S440 -> 0
A21: Net Present Value | B21: ='50-year calcs'!K450 -> -4843141.93 | C21: ='50-year calcs'!M450 -> 12087463.4 | D21: ='50-year calcs'!N450 -> 1403784 | E21: ='50-year calcs'!O450 -> 0 | F21: ='50-year calcs'!P450 -> 0 | G21: ='50-year calcs'!Q450 -> 0 | H21: ='50-year calcs'!R450 -> 0 | I21: ='50-year calcs'!S450 -> 0

Sheet 11. Detailed results
G1: Overall | I1: Project organisation
G2: NPV | H2: ='8. Report'!$B$15 -> 7988793.231 | I2: NPV | J2: ='8. Report'!$B$22 -> -4843141.93
G3: BCR | H3: ='8. Report'!$B$16 -> 1.897545094 | I3: BCR | J3: ='8. Report'!$B$23 -> 0.4123401113
B5: This sheet shows the year-by-year benefits and costs for each individual category of benefit and cost. It is to help analysts get inside the black box. The benefits shown here have been adjusted down for less-than-full adoption, and for project risks. The numbers have not been discounted (i.e., they are future values, not present values), apart from those in the "Present value" column. They are aggregate values, across all stakeholders.
B7: Benefits
A9: 3.1 | B9: Category 1. Benefit per person (on average) for a population
B10: Benefit | C10: Present value | D10: ='50-year calcs'!U1 -> 2020 | E10: ='50-year calcs'!V1 -> 2021 | F10: ='50-year calcs'!W1 -> 2022 | G10: ='50-year calcs'!X1 -> 2023 | H10: ='50-year calcs'!Y1 -> 2024 | I10: ='50-year calcs'!Z1 -> 2025 | J10: ='50-year calcs'!AA1 -> 2026 | K10: ='50-year calcs'!AB1 -> 2027 | L10: ='50-year calcs'!AC1 -> 2028 | M10: ='50-year calcs'!AD1 -> 2029 | N10: ='50-year calcs'!AE1 -> 2030 | O10: ='50-year calcs'!AF1 -> 2031 | P10: ='50-year calcs'!AG1 -> 2032 | Q10: ='50-year calcs'!AH1 -> 2033 | R10: ='50-year calcs'!AI1 -> 2034 | S10: ='50-year calcs'!AJ1 -> 2035 | T10: ='50-year calcs'!AK1 -> 2036 | U10: ='50-year calcs'!AL1 -> 2037 | V10: ='50-year calcs'!AM1 -> 2038 | W10: ='50-year calcs'!AN1 -> 2039 | X10: ='50-year calcs'!AO1 -> 2040 | Y10: ='50-year calcs'!AP1 -> 2041 | Z10: ='50-year calcs'!AQ1 -> 2042 | AA10: ='50-year calcs'!AR1 -> 2043 | AB10: ='50-year calcs'!AS1 -> 2044 | AC10: ='50-year calcs'!AT1 -> 2045 | AD10: ='50-year calcs'!AU1 -> 2046 | AE10: ='50-year calcs'!AV1 -> 2047 | AF10: ='50-year calcs'!AW1 -> 2048 | AG10: ='50-year calcs'!AX1 -> 2049 | AH10: ='50-year calcs'!AY1 -> 2050 | AI10: ='50-year calcs'!AZ1 -> 2051 | AJ10: ='50-year calcs'!BA1 -> 2052 | AK10: ='50-year calcs'!BB1 -> 2053 | AL10: ='50-year calcs'!BC1 -> 2054 | AM10: ='50-year calcs'!BD1 -> 2055 | AN10: ='50-year calcs'!BE1 -> 2056 | AO10: ='50-year calcs'!BF1 -> 2057 | AP10: ='50-year calcs'!BG1 -> 2058 | AQ10: ='50-year calcs'!BH1 -> 2059 | AR10: ='50-year calcs'!BI1 -> 2060 | AS10: ='50-year calcs'!BJ1 -> 2061 | AT10: ='50-year calcs'!BK1 -> 2062 | AU10: ='50-year calcs'!BL1 -> 2063 | AV10: ='50-year calcs'!BM1 -> 2064 | AW10: ='50-year calcs'!BN1 -> 2065 | AX10: ='50-year calcs'!BO1 -> 2066 | AY10: ='50-year calcs'!BP1 -> 2067 | AZ10: ='50-year calcs'!BQ1 -> 2068 | BA10: ='50-year calcs'!BR1 -> 2069 | BB10: ='50-year calcs'!BS1 -> 2070
B11: =IF('3. Benefit parameters'!B11="","",'3. Benefit parameters'!B11) ->  | C11: ='50-year calcs'!C184 -> 0 | D11: ='50-year calcs'!U184 -> 0 | E11: ='50-year calcs'!V184 -> 0 | F11: ='50-year calcs'!W184 -> 0 | G11: ='50-year calcs'!X184 -> 0 | H11: ='50-year calcs'!Y184 -> 0 | I11: ='50-year calcs'!Z184 -> 0 | J11: ='50-year calcs'!AA184 -> 0 | K11: ='50-year calcs'!AB184 -> 0 | L11: ='50-year calcs'!AC184 -> 0 | M11: ='50-year calcs'!AD184 -> 0 | N11: ='50-year calcs'!AE184 -> 0 | O11: ='50-year calcs'!AF184 -> 0 | P11: ='50-year calcs'!AG184 -> 0 | Q11: ='50-year calcs'!AH184 -> 0 | R11: ='50-year calcs'!AI184 -> 0 | S11: ='50-year calcs'!AJ184 -> 0 | T11: ='50-year calcs'!AK184 -> 0 | U11: ='50-year calcs'!AL184 -> 0 | V11: ='50-year calcs'!AM184 -> 0 | W11: ='50-year calcs'!AN184 -> 0 | X11: ='50-year calcs'!AO184 -> 0 | Y11: ='50-year calcs'!AP184 -> 0 | Z11: ='50-year calcs'!AQ184 -> 0 | AA11: ='50-year calcs'!AR184 -> 0 | AB11: ='50-year calcs'!AS184 -> 0 | AC11: ='50-year calcs'!AT184 -> 0 | AD11: ='50-year calcs'!AU184 -> 0 | AE11: ='50-year calcs'!AV184 -> 0 | AF11: ='50-year calcs'!AW184 -> 0 | AG11: ='50-year calcs'!AX184 -> 0 | AH11: ='50-year calcs'!AY184 -> 0 | AI11: ='50-year calcs'!AZ184 -> 0 | AJ11: ='50-year calcs'!BA184 -> 0 | AK11: ='50-year calcs'!BB184 -> 0 | AL11: ='50-year calcs'!BC184 -> 0 | AM11: ='50-year calcs'!BD184 -> 0 | AN11: ='50-year calcs'!BE184 -> 0 | AO11: ='50-year calcs'!BF184 -> 0 | AP11: ='50-year calcs'!BG184 -> 0 | AQ11: ='50-year calcs'!BH184 -> 0 | AR11: ='50-year calcs'!BI184 -> 0 | AS11: ='50-year calcs'!BJ184 -> 0 | AT11: ='50-year calcs'!BK184 -> 0 | AU11: ='50-year calcs'!BL184 -> 0 | AV11: ='50-year calcs'!BM184 -> 0 | AW11: ='50-year calcs'!BN184 -> 0 | AX11: ='50-year calcs'!BO184 -> 0 | AY11: ='50-year calcs'!BP184 -> 0 | AZ11: ='50-year calcs'!BQ184 -> 0 | BA11: ='50-year calcs'!BR184 -> 0 | BB11: ='50-year calcs'!BS184 -> 0
B12: =IF('3. Benefit parameters'!B12="","",'3. Benefit parameters'!B12) ->  | C12: ='50-year calcs'!C185 -> 0 | D12: ='50-year calcs'!U185 -> 0 | E12: ='50-year calcs'!V185 -> 0 | F12: ='50-year calcs'!W185 -> 0 | G12: ='50-year calcs'!X185 -> 0 | H12: ='50-year calcs'!Y185 -> 0 | I12: ='50-year calcs'!Z185 -> 0 | J12: ='50-year calcs'!AA185 -> 0 | K12: ='50-year calcs'!AB185 -> 0 | L12: ='50-year calcs'!AC185 -> 0 | M12: ='50-year calcs'!AD185 -> 0 | N12: ='50-year calcs'!AE185 -> 0 | O12: ='50-year calcs'!AF185 -> 0 | P12: ='50-year calcs'!AG185 -> 0 | Q12: ='50-year calcs'!AH185 -> 0 | R12: ='50-year calcs'!AI185 -> 0 | S12: ='50-year calcs'!AJ185 -> 0 | T12: ='50-year calcs'!AK185 -> 0 | U12: ='50-year calcs'!AL185 -> 0 | V12: ='50-year calcs'!AM185 -> 0 | W12: ='50-year calcs'!AN185 -> 0 | X12: ='50-year calcs'!AO185 -> 0 | Y12: ='50-year calcs'!AP185 -> 0 | Z12: ='50-year calcs'!AQ185 -> 0 | AA12: ='50-year calcs'!AR185 -> 0 | AB12: ='50-year calcs'!AS185 -> 0 | AC12: ='50-year calcs'!AT185 -> 0 | AD12: ='50-year calcs'!AU185 -> 0 | AE12: ='50-year calcs'!AV185 -> 0 | AF12: ='50-year calcs'!AW185 -> 0 | AG12: ='50-year calcs'!AX185 -> 0 | AH12: ='50-year calcs'!AY185 -> 0 | AI12: ='50-year calcs'!AZ185 -> 0 | AJ12: ='50-year calcs'!BA185 -> 0 | AK12: ='50-year calcs'!BB185 -> 0 | AL12: ='50-year calcs'!BC185 -> 0 | AM12: ='50-year calcs'!BD185 -> 0 | AN12: ='50-year calcs'!BE185 -> 0 | AO12: ='50-year calcs'!BF185 -> 0 | AP12: ='50-year calcs'!BG185 -> 0 | AQ12: ='50-year calcs'!BH185 -> 0 | AR12: ='50-year calcs'!BI185 -> 0 | AS12: ='50-year calcs'!BJ185 -> 0 | AT12: ='50-year calcs'!BK185 -> 0 | AU12: ='50-year calcs'!BL185 -> 0 | AV12: ='50-year calcs'!BM185 -> 0 | AW12: ='50-year calcs'!BN185 -> 0 | AX12: ='50-year calcs'!BO185 -> 0 | AY12: ='50-year calcs'!BP185 -> 0 | AZ12: ='50-year calcs'!BQ185 -> 0 | BA12: ='50-year calcs'!BR185 -> 0 | BB12: ='50-year calcs'!BS185 -> 0
B13: =IF('3. Benefit parameters'!B13="","",'3. Benefit parameters'!B13) ->  | C13: ='50-year calcs'!C186 -> 0 | D13: ='50-year calcs'!U186 -> 0 | E13: ='50-year calcs'!V186 -> 0 | F13: ='50-year calcs'!W186 -> 0 | G13: ='50-year calcs'!X186 -> 0 | H13: ='50-year calcs'!Y186 -> 0 | I13: ='50-year calcs'!Z186 -> 0 | J13: ='50-year calcs'!AA186 -> 0 | K13: ='50-year calcs'!AB186 -> 0 | L13: ='50-year calcs'!AC186 -> 0 | M13: ='50-year calcs'!AD186 -> 0 | N13: ='50-year calcs'!AE186 -> 0 | O13: ='50-year calcs'!AF186 -> 0 | P13: ='50-year calcs'!AG186 -> 0 | Q13: ='50-year calcs'!AH186 -> 0 | R13: ='50-year calcs'!AI186 -> 0 | S13: ='50-year calcs'!AJ186 -> 0 | T13: ='50-year calcs'!AK186 -> 0 | U13: ='50-year calcs'!AL186 -> 0 | V13: ='50-year calcs'!AM186 -> 0 | W13: ='50-year calcs'!AN186 -> 0 | X13: ='50-year calcs'!AO186 -> 0 | Y13: ='50-year calcs'!AP186 -> 0 | Z13: ='50-year calcs'!AQ186 -> 0 | AA13: ='50-year calcs'!AR186 -> 0 | AB13: ='50-year calcs'!AS186 -> 0 | AC13: ='50-year calcs'!AT186 -> 0 | AD13: ='50-year calcs'!AU186 -> 0 | AE13: ='50-year calcs'!AV186 -> 0 | AF13: ='50-year calcs'!AW186 -> 0 | AG13: ='50-year calcs'!AX186 -> 0 | AH13: ='50-year calcs'!AY186 -> 0 | AI13: ='50-year calcs'!AZ186 -> 0 | AJ13: ='50-year calcs'!BA186 -> 0 | AK13: ='50-year calcs'!BB186 -> 0 | AL13: ='50-year calcs'!BC186 -> 0 | AM13: ='50-year calcs'!BD186 -> 0 | AN13: ='50-year calcs'!BE186 -> 0 | AO13: ='50-year calcs'!BF186 -> 0 | AP13: ='50-year calcs'!BG186 -> 0 | AQ13: ='50-year calcs'!BH186 -> 0 | AR13: ='50-year calcs'!BI186 -> 0 | AS13: ='50-year calcs'!BJ186 -> 0 | AT13: ='50-year calcs'!BK186 -> 0 | AU13: ='50-year calcs'!BL186 -> 0 | AV13: ='50-year calcs'!BM186 -> 0 | AW13: ='50-year calcs'!BN186 -> 0 | AX13: ='50-year calcs'!BO186 -> 0 | AY13: ='50-year calcs'!BP186 -> 0 | AZ13: ='50-year calcs'!BQ186 -> 0 | BA13: ='50-year calcs'!BR186 -> 0 | BB13: ='50-year calcs'!BS186 -> 0
B14: =IF('3. Benefit parameters'!B14="","",'3. Benefit parameters'!B14) ->  | C14: ='50-year calcs'!C187 -> 0 | D14: ='50-year calcs'!U187 -> 0 | E14: ='50-year calcs'!V187 -> 0 | F14: ='50-year calcs'!W187 -> 0 | G14: ='50-year calcs'!X187 -> 0 | H14: ='50-year calcs'!Y187 -> 0 | I14: ='50-year calcs'!Z187 -> 0 | J14: ='50-year calcs'!AA187 -> 0 | K14: ='50-year calcs'!AB187 -> 0 | L14: ='50-year calcs'!AC187 -> 0 | M14: ='50-year calcs'!AD187 -> 0 | N14: ='50-year calcs'!AE187 -> 0 | O14: ='50-year calcs'!AF187 -> 0 | P14: ='50-year calcs'!AG187 -> 0 | Q14: ='50-year calcs'!AH187 -> 0 | R14: ='50-year calcs'!AI187 -> 0 | S14: ='50-year calcs'!AJ187 -> 0 | T14: ='50-year calcs'!AK187 -> 0 | U14: ='50-year calcs'!AL187 -> 0 | V14: ='50-year calcs'!AM187 -> 0 | W14: ='50-year calcs'!AN187 -> 0 | X14: ='50-year calcs'!AO187 -> 0 | Y14: ='50-year calcs'!AP187 -> 0 | Z14: ='50-year calcs'!AQ187 -> 0 | AA14: ='50-year calcs'!AR187 -> 0 | AB14: ='50-year calcs'!AS187 -> 0 | AC14: ='50-year calcs'!AT187 -> 0 | AD14: ='50-year calcs'!AU187 -> 0 | AE14: ='50-year calcs'!AV187 -> 0 | AF14: ='50-year calcs'!AW187 -> 0 | AG14: ='50-year calcs'!AX187 -> 0 | AH14: ='50-year calcs'!AY187 -> 0 | AI14: ='50-year calcs'!AZ187 -> 0 | AJ14: ='50-year calcs'!BA187 -> 0 | AK14: ='50-year calcs'!BB187 -> 0 | AL14: ='50-year calcs'!BC187 -> 0 | AM14: ='50-year calcs'!BD187 -> 0 | AN14: ='50-year calcs'!BE187 -> 0 | AO14: ='50-year calcs'!BF187 -> 0 | AP14: ='50-year calcs'!BG187 -> 0 | AQ14: ='50-year calcs'!BH187 -> 0 | AR14: ='50-year calcs'!BI187 -> 0 | AS14: ='50-year calcs'!BJ187 -> 0 | AT14: ='50-year calcs'!BK187 -> 0 | AU14: ='50-year calcs'!BL187 -> 0 | AV14: ='50-year calcs'!BM187 -> 0 | AW14: ='50-year calcs'!BN187 -> 0 | AX14: ='50-year calcs'!BO187 -> 0 | AY14: ='50-year calcs'!BP187 -> 0 | AZ14: ='50-year calcs'!BQ187 -> 0 | BA14: ='50-year calcs'!BR187 -> 0 | BB14: ='50-year calcs'!BS187 -> 0
B15: =IF('3. Benefit parameters'!B15="","",'3. Benefit parameters'!B15) ->  | C15: ='50-year calcs'!C188 -> 0 | D15: ='50-year calcs'!U188 -> 0 | E15: ='50-year calcs'!V188 -> 0 | F15: ='50-year calcs'!W188 -> 0 | G15: ='50-year calcs'!X188 -> 0 | H15: ='50-year calcs'!Y188 -> 0 | I15: ='50-year calcs'!Z188 -> 0 | J15: ='50-year calcs'!AA188 -> 0 | K15: ='50-year calcs'!AB188 -> 0 | L15: ='50-year calcs'!AC188 -> 0 | M15: ='50-year calcs'!AD188 -> 0 | N15: ='50-year calcs'!AE188 -> 0 | O15: ='50-year calcs'!AF188 -> 0 | P15: ='50-year calcs'!AG188 -> 0 | Q15: ='50-year calcs'!AH188 -> 0 | R15: ='50-year calcs'!AI188 -> 0 | S15: ='50-year calcs'!AJ188 -> 0 | T15: ='50-year calcs'!AK188 -> 0 | U15: ='50-year calcs'!AL188 -> 0 | V15: ='50-year calcs'!AM188 -> 0 | W15: ='50-year calcs'!AN188 -> 0 | X15: ='50-year calcs'!AO188 -> 0 | Y15: ='50-year calcs'!AP188 -> 0 | Z15: ='50-year calcs'!AQ188 -> 0 | AA15: ='50-year calcs'!AR188 -> 0 | AB15: ='50-year calcs'!AS188 -> 0 | AC15: ='50-year calcs'!AT188 -> 0 | AD15: ='50-year calcs'!AU188 -> 0 | AE15: ='50-year calcs'!AV188 -> 0 | AF15: ='50-year calcs'!AW188 -> 0 | AG15: ='50-year calcs'!AX188 -> 0 | AH15: ='50-year calcs'!AY188 -> 0 | AI15: ='50-year calcs'!AZ188 -> 0 | AJ15: ='50-year calcs'!BA188 -> 0 | AK15: ='50-year calcs'!BB188 -> 0 | AL15: ='50-year calcs'!BC188 -> 0 | AM15: ='50-year calcs'!BD188 -> 0 | AN15: ='50-year calcs'!BE188 -> 0 | AO15: ='50-year calcs'!BF188 -> 0 | AP15: ='50-year calcs'!BG188 -> 0 | AQ15: ='50-year calcs'!BH188 -> 0 | AR15: ='50-year calcs'!BI188 -> 0 | AS15: ='50-year calcs'!BJ188 -> 0 | AT15: ='50-year calcs'!BK188 -> 0 | AU15: ='50-year calcs'!BL188 -> 0 | AV15: ='50-year calcs'!BM188 -> 0 | AW15: ='50-year calcs'!BN188 -> 0 | AX15: ='50-year calcs'!BO188 -> 0 | AY15: ='50-year calcs'!BP188 -> 0 | AZ15: ='50-year calcs'!BQ188 -> 0 | BA15: ='50-year calcs'!BR188 -> 0 | BB15: ='50-year calcs'!BS188 -> 0
B16: =IF('3. Benefit parameters'!B16="","",'3. Benefit parameters'!B16) ->  | C16: ='50-year calcs'!C189 -> 0 | D16: ='50-year calcs'!U189 -> 0 | E16: ='50-year calcs'!V189 -> 0 | F16: ='50-year calcs'!W189 -> 0 | G16: ='50-year calcs'!X189 -> 0 | H16: ='50-year calcs'!Y189 -> 0 | I16: ='50-year calcs'!Z189 -> 0 | J16: ='50-year calcs'!AA189 -> 0 | K16: ='50-year calcs'!AB189 -> 0 | L16: ='50-year calcs'!AC189 -> 0 | M16: ='50-year calcs'!AD189 -> 0 | N16: ='50-year calcs'!AE189 -> 0 | O16: ='50-year calcs'!AF189 -> 0 | P16: ='50-year calcs'!AG189 -> 0 | Q16: ='50-year calcs'!AH189 -> 0 | R16: ='50-year calcs'!AI189 -> 0 | S16: ='50-year calcs'!AJ189 -> 0 | T16: ='50-year calcs'!AK189 -> 0 | U16: ='50-year calcs'!AL189 -> 0 | V16: ='50-year calcs'!AM189 -> 0 | W16: ='50-year calcs'!AN189 -> 0 | X16: ='50-year calcs'!AO189 -> 0 | Y16: ='50-year calcs'!AP189 -> 0 | Z16: ='50-year calcs'!AQ189 -> 0 | AA16: ='50-year calcs'!AR189 -> 0 | AB16: ='50-year calcs'!AS189 -> 0 | AC16: ='50-year calcs'!AT189 -> 0 | AD16: ='50-year calcs'!AU189 -> 0 | AE16: ='50-year calcs'!AV189 -> 0 | AF16: ='50-year calcs'!AW189 -> 0 | AG16: ='50-year calcs'!AX189 -> 0 | AH16: ='50-year calcs'!AY189 -> 0 | AI16: ='50-year calcs'!AZ189 -> 0 | AJ16: ='50-year calcs'!BA189 -> 0 | AK16: ='50-year calcs'!BB189 -> 0 | AL16: ='50-year calcs'!BC189 -> 0 | AM16: ='50-year calcs'!BD189 -> 0 | AN16: ='50-year calcs'!BE189 -> 0 | AO16: ='50-year calcs'!BF189 -> 0 | AP16: ='50-year calcs'!BG189 -> 0 | AQ16: ='50-year calcs'!BH189 -> 0 | AR16: ='50-year calcs'!BI189 -> 0 | AS16: ='50-year calcs'!BJ189 -> 0 | AT16: ='50-year calcs'!BK189 -> 0 | AU16: ='50-year calcs'!BL189 -> 0 | AV16: ='50-year calcs'!BM189 -> 0 | AW16: ='50-year calcs'!BN189 -> 0 | AX16: ='50-year calcs'!BO189 -> 0 | AY16: ='50-year calcs'!BP189 -> 0 | AZ16: ='50-year calcs'!BQ189 -> 0 | BA16: ='50-year calcs'!BR189 -> 0 | BB16: ='50-year calcs'!BS189 -> 0
B17: =IF('3. Benefit parameters'!B17="","",'3. Benefit parameters'!B17) ->  | C17: ='50-year calcs'!C190 -> 0 | D17: ='50-year calcs'!U190 -> 0 | E17: ='50-year calcs'!V190 -> 0 | F17: ='50-year calcs'!W190 -> 0 | G17: ='50-year calcs'!X190 -> 0 | H17: ='50-year calcs'!Y190 -> 0 | I17: ='50-year calcs'!Z190 -> 0 | J17: ='50-year calcs'!AA190 -> 0 | K17: ='50-year calcs'!AB190 -> 0 | L17: ='50-year calcs'!AC190 -> 0 | M17: ='50-year calcs'!AD190 -> 0 | N17: ='50-year calcs'!AE190 -> 0 | O17: ='50-year calcs'!AF190 -> 0 | P17: ='50-year calcs'!AG190 -> 0 | Q17: ='50-year calcs'!AH190 -> 0 | R17: ='50-year calcs'!AI190 -> 0 | S17: ='50-year calcs'!AJ190 -> 0 | T17: ='50-year calcs'!AK190 -> 0 | U17: ='50-year calcs'!AL190 -> 0 | V17: ='50-year calcs'!AM190 -> 0 | W17: ='50-year calcs'!AN190 -> 0 | X17: ='50-year calcs'!AO190 -> 0 | Y17: ='50-year calcs'!AP190 -> 0 | Z17: ='50-year calcs'!AQ190 -> 0 | AA17: ='50-year calcs'!AR190 -> 0 | AB17: ='50-year calcs'!AS190 -> 0 | AC17: ='50-year calcs'!AT190 -> 0 | AD17: ='50-year calcs'!AU190 -> 0 | AE17: ='50-year calcs'!AV190 -> 0 | AF17: ='50-year calcs'!AW190 -> 0 | AG17: ='50-year calcs'!AX190 -> 0 | AH17: ='50-year calcs'!AY190 -> 0 | AI17: ='50-year calcs'!AZ190 -> 0 | AJ17: ='50-year calcs'!BA190 -> 0 | AK17: ='50-year calcs'!BB190 -> 0 | AL17: ='50-year calcs'!BC190 -> 0 | AM17: ='50-year calcs'!BD190 -> 0 | AN17: ='50-year calcs'!BE190 -> 0 | AO17: ='50-year calcs'!BF190 -> 0 | AP17: ='50-year calcs'!BG190 -> 0 | AQ17: ='50-year calcs'!BH190 -> 0 | AR17: ='50-year calcs'!BI190 -> 0 | AS17: ='50-year calcs'!BJ190 -> 0 | AT17: ='50-year calcs'!BK190 -> 0 | AU17: ='50-year calcs'!BL190 -> 0 | AV17: ='50-year calcs'!BM190 -> 0 | AW17: ='50-year calcs'!BN190 -> 0 | AX17: ='50-year calcs'!BO190 -> 0 | AY17: ='50-year calcs'!BP190 -> 0 | AZ17: ='50-year calcs'!BQ190 -> 0 | BA17: ='50-year calcs'!BR190 -> 0 | BB17: ='50-year calcs'!BS190 -> 0
B18: =IF('3. Benefit parameters'!B18="","",'3. Benefit parameters'!B18) ->  | C18: ='50-year calcs'!C191 -> 0 | D18: ='50-year calcs'!U191 -> 0 | E18: ='50-year calcs'!V191 -> 0 | F18: ='50-year calcs'!W191 -> 0 | G18: ='50-year calcs'!X191 -> 0 | H18: ='50-year calcs'!Y191 -> 0 | I18: ='50-year calcs'!Z191 -> 0 | J18: ='50-year calcs'!AA191 -> 0 | K18: ='50-year calcs'!AB191 -> 0 | L18: ='50-year calcs'!AC191 -> 0 | M18: ='50-year calcs'!AD191 -> 0 | N18: ='50-year calcs'!AE191 -> 0 | O18: ='50-year calcs'!AF191 -> 0 | P18: ='50-year calcs'!AG191 -> 0 | Q18: ='50-year calcs'!AH191 -> 0 | R18: ='50-year calcs'!AI191 -> 0 | S18: ='50-year calcs'!AJ191 -> 0 | T18: ='50-year calcs'!AK191 -> 0 | U18: ='50-year calcs'!AL191 -> 0 | V18: ='50-year calcs'!AM191 -> 0 | W18: ='50-year calcs'!AN191 -> 0 | X18: ='50-year calcs'!AO191 -> 0 | Y18: ='50-year calcs'!AP191 -> 0 | Z18: ='50-year calcs'!AQ191 -> 0 | AA18: ='50-year calcs'!AR191 -> 0 | AB18: ='50-year calcs'!AS191 -> 0 | AC18: ='50-year calcs'!AT191 -> 0 | AD18: ='50-year calcs'!AU191 -> 0 | AE18: ='50-year calcs'!AV191 -> 0 | AF18: ='50-year calcs'!AW191 -> 0 | AG18: ='50-year calcs'!AX191 -> 0 | AH18: ='50-year calcs'!AY191 -> 0 | AI18: ='50-year calcs'!AZ191 -> 0 | AJ18: ='50-year calcs'!BA191 -> 0 | AK18: ='50-year calcs'!BB191 -> 0 | AL18: ='50-year calcs'!BC191 -> 0 | AM18: ='50-year calcs'!BD191 -> 0 | AN18: ='50-year calcs'!BE191 -> 0 | AO18: ='50-year calcs'!BF191 -> 0 | AP18: ='50-year calcs'!BG191 -> 0 | AQ18: ='50-year calcs'!BH191 -> 0 | AR18: ='50-year calcs'!BI191 -> 0 | AS18: ='50-year calcs'!BJ191 -> 0 | AT18: ='50-year calcs'!BK191 -> 0 | AU18: ='50-year calcs'!BL191 -> 0 | AV18: ='50-year calcs'!BM191 -> 0 | AW18: ='50-year calcs'!BN191 -> 0 | AX18: ='50-year calcs'!BO191 -> 0 | AY18: ='50-year calcs'!BP191 -> 0 | AZ18: ='50-year calcs'!BQ191 -> 0 | BA18: ='50-year calcs'!BR191 -> 0 | BB18: ='50-year calcs'!BS191 -> 0
B19: =IF('3. Benefit parameters'!B19="","",'3. Benefit parameters'!B19) ->  | C19: ='50-year calcs'!C192 -> 0 | D19: ='50-year calcs'!U192 -> 0 | E19: ='50-year calcs'!V192 -> 0 | F19: ='50-year calcs'!W192 -> 0 | G19: ='50-year calcs'!X192 -> 0 | H19: ='50-year calcs'!Y192 -> 0 | I19: ='50-year calcs'!Z192 -> 0 | J19: ='50-year calcs'!AA192 -> 0 | K19: ='50-year calcs'!AB192 -> 0 | L19: ='50-year calcs'!AC192 -> 0 | M19: ='50-year calcs'!AD192 -> 0 | N19: ='50-year calcs'!AE192 -> 0 | O19: ='50-year calcs'!AF192 -> 0 | P19: ='50-year calcs'!AG192 -> 0 | Q19: ='50-year calcs'!AH192 -> 0 | R19: ='50-year calcs'!AI192 -> 0 | S19: ='50-year calcs'!AJ192 -> 0 | T19: ='50-year calcs'!AK192 -> 0 | U19: ='50-year calcs'!AL192 -> 0 | V19: ='50-year calcs'!AM192 -> 0 | W19: ='50-year calcs'!AN192 -> 0 | X19: ='50-year calcs'!AO192 -> 0 | Y19: ='50-year calcs'!AP192 -> 0 | Z19: ='50-year calcs'!AQ192 -> 0 | AA19: ='50-year calcs'!AR192 -> 0 | AB19: ='50-year calcs'!AS192 -> 0 | AC19: ='50-year calcs'!AT192 -> 0 | AD19: ='50-year calcs'!AU192 -> 0 | AE19: ='50-year calcs'!AV192 -> 0 | AF19: ='50-year calcs'!AW192 -> 0 | AG19: ='50-year calcs'!AX192 -> 0 | AH19: ='50-year calcs'!AY192 -> 0 | AI19: ='50-year calcs'!AZ192 -> 0 | AJ19: ='50-year calcs'!BA192 -> 0 | AK19: ='50-year calcs'!BB192 -> 0 | AL19: ='50-year calcs'!BC192 -> 0 | AM19: ='50-year calcs'!BD192 -> 0 | AN19: ='50-year calcs'!BE192 -> 0 | AO19: ='50-year calcs'!BF192 -> 0 | AP19: ='50-year calcs'!BG192 -> 0 | AQ19: ='50-year calcs'!BH192 -> 0 | AR19: ='50-year calcs'!BI192 -> 0 | AS19: ='50-year calcs'!BJ192 -> 0 | AT19: ='50-year calcs'!BK192 -> 0 | AU19: ='50-year calcs'!BL192 -> 0 | AV19: ='50-year calcs'!BM192 -> 0 | AW19: ='50-year calcs'!BN192 -> 0 | AX19: ='50-year calcs'!BO192 -> 0 | AY19: ='50-year calcs'!BP192 -> 0 | AZ19: ='50-year calcs'!BQ192 -> 0 | BA19: ='50-year calcs'!BR192 -> 0 | BB19: ='50-year calcs'!BS192 -> 0
B20: =IF('3. Benefit parameters'!B20="","",'3. Benefit parameters'!B20) ->  | C20: ='50-year calcs'!C193 -> 0 | D20: ='50-year calcs'!U193 -> 0 | E20: ='50-year calcs'!V193 -> 0 | F20: ='50-year calcs'!W193 -> 0 | G20: ='50-year calcs'!X193 -> 0 | H20: ='50-year calcs'!Y193 -> 0 | I20: ='50-year calcs'!Z193 -> 0 | J20: ='50-year calcs'!AA193 -> 0 | K20: ='50-year calcs'!AB193 -> 0 | L20: ='50-year calcs'!AC193 -> 0 | M20: ='50-year calcs'!AD193 -> 0 | N20: ='50-year calcs'!AE193 -> 0 | O20: ='50-year calcs'!AF193 -> 0 | P20: ='50-year calcs'!AG193 -> 0 | Q20: ='50-year calcs'!AH193 -> 0 | R20: ='50-year calcs'!AI193 -> 0 | S20: ='50-year calcs'!AJ193 -> 0 | T20: ='50-year calcs'!AK193 -> 0 | U20: ='50-year calcs'!AL193 -> 0 | V20: ='50-year calcs'!AM193 -> 0 | W20: ='50-year calcs'!AN193 -> 0 | X20: ='50-year calcs'!AO193 -> 0 | Y20: ='50-year calcs'!AP193 -> 0 | Z20: ='50-year calcs'!AQ193 -> 0 | AA20: ='50-year calcs'!AR193 -> 0 | AB20: ='50-year calcs'!AS193 -> 0 | AC20: ='50-year calcs'!AT193 -> 0 | AD20: ='50-year calcs'!AU193 -> 0 | AE20: ='50-year calcs'!AV193 -> 0 | AF20: ='50-year calcs'!AW193 -> 0 | AG20: ='50-year calcs'!AX193 -> 0 | AH20: ='50-year calcs'!AY193 -> 0 | AI20: ='50-year calcs'!AZ193 -> 0 | AJ20: ='50-year calcs'!BA193 -> 0 | AK20: ='50-year calcs'!BB193 -> 0 | AL20: ='50-year calcs'!BC193 -> 0 | AM20: ='50-year calcs'!BD193 -> 0 | AN20: ='50-year calcs'!BE193 -> 0 | AO20: ='50-year calcs'!BF193 -> 0 | AP20: ='50-year calcs'!BG193 -> 0 | AQ20: ='50-year calcs'!BH193 -> 0 | AR20: ='50-year calcs'!BI193 -> 0 | AS20: ='50-year calcs'!BJ193 -> 0 | AT20: ='50-year calcs'!BK193 -> 0 | AU20: ='50-year calcs'!BL193 -> 0 | AV20: ='50-year calcs'!BM193 -> 0 | AW20: ='50-year calcs'!BN193 -> 0 | AX20: ='50-year calcs'!BO193 -> 0 | AY20: ='50-year calcs'!BP193 -> 0 | AZ20: ='50-year calcs'!BQ193 -> 0 | BA20: ='50-year calcs'!BR193 -> 0 | BB20: ='50-year calcs'!BS193 -> 0
A22: 3.2 | B22: Category 2. Benefit per user-specified unit
B23: Benefit | C23: Present value | D23: =D$10 -> 2020 | E23: =E$10 -> 2021 | F23: 2022 | G23: 2023 | H23: 2024 | I23: 2025 | J23: 2026 | K23: 2027 | L23: 2028 | M23: 2029 | N23: 2030 | O23: 2031 | P23: 2032 | Q23: 2033 | R23: 2034 | S23: 2035 | T23: 2036 | U23: 2037 | V23: 2038 | W23: 2039 | X23: 2040 | Y23: 2041 | Z23: 2042 | AA23: 2043 | AB23: 2044 | AC23: 2045 | AD23: 2046 | AE23: 2047 | AF23: 2048 | AG23: 2049 | AH23: 2050 | AI23: 2051 | AJ23: 2052 | AK23: 2053 | AL23: 2054 | AM23: 2055 | AN23: 2056 | AO23: 2057 | AP23: 2058 | AQ23: 2059 | AR23: 2060 | AS23: 2061 | AT23: 2062 | AU23: 2063 | AV23: 2064 | AW23: 2065 | AX23: 2066 | AY23: 2067 | AZ23: 2068 | BA23: 2069 | BB23: 2070
B24: =IF('3. Benefit parameters'!B24="","",'3. Benefit parameters'!B24) -> Pollution abatement | C24: ='50-year calcs'!C197 -> 1403784 | D24: ='50-year calcs'!U197 -> 1403784 | E24: ='50-year calcs'!V197 -> 0 | F24: ='50-year calcs'!W197 -> 0 | G24: ='50-year calcs'!X197 -> 0 | H24: ='50-year calcs'!Y197 -> 0 | I24: ='50-year calcs'!Z197 -> 0 | J24: ='50-year calcs'!AA197 -> 0 | K24: ='50-year calcs'!AB197 -> 0 | L24: ='50-year calcs'!AC197 -> 0 | M24: ='50-year calcs'!AD197 -> 0 | N24: ='50-year calcs'!AE197 -> 0 | O24: ='50-year calcs'!AF197 -> 0 | P24: ='50-year calcs'!AG197 -> 0 | Q24: ='50-year calcs'!AH197 -> 0 | R24: ='50-year calcs'!AI197 -> 0 | S24: ='50-year calcs'!AJ197 -> 0 | T24: ='50-year calcs'!AK197 -> 0 | U24: ='50-year calcs'!AL197 -> 0 | V24: ='50-year calcs'!AM197 -> 0 | W24: ='50-year calcs'!AN197 -> 0 | X24: ='50-year calcs'!AO197 -> 0 | Y24: ='50-year calcs'!AP197 -> 0 | Z24: ='50-year calcs'!AQ197 -> 0 | AA24: ='50-year calcs'!AR197 -> 0 | AB24: ='50-year calcs'!AS197 -> 0 | AC24: ='50-year calcs'!AT197 -> 0 | AD24: ='50-year calcs'!AU197 -> 0 | AE24: ='50-year calcs'!AV197 -> 0 | AF24: ='50-year calcs'!AW197 -> 0 | AG24: ='50-year calcs'!AX197 -> 0 | AH24: ='50-year calcs'!AY197 -> 0 | AI24: ='50-year calcs'!AZ197 -> 0 | AJ24: ='50-year calcs'!BA197 -> 0 | AK24: ='50-year calcs'!BB197 -> 0 | AL24: ='50-year calcs'!BC197 -> 0 | AM24: ='50-year calcs'!BD197 -> 0 | AN24: ='50-year calcs'!BE197 -> 0 | AO24: ='50-year calcs'!BF197 -> 0 | AP24: ='50-year calcs'!BG197 -> 0 | AQ24: ='50-year calcs'!BH197 -> 0 | AR24: ='50-year calcs'!BI197 -> 0 | AS24: ='50-year calcs'!BJ197 -> 0 | AT24: ='50-year calcs'!BK197 -> 0 | AU24: ='50-year calcs'!BL197 -> 0 | AV24: ='50-year calcs'!BM197 -> 0 | AW24: ='50-year calcs'!BN197 -> 0 | AX24: ='50-year calcs'!BO197 -> 0 | AY24: ='50-year calcs'!BP197 -> 0 | AZ24: ='50-year calcs'!BQ197 -> 0 | BA24: ='50-year calcs'!BR197 -> 0 | BB24: ='50-year calcs'!BS197 -> 0
B25: =IF('3. Benefit parameters'!B25="","",'3. Benefit parameters'!B25) -> Potable savings - pre-drought | C25: ='50-year calcs'!C198 -> 1266434.307 | D25: ='50-year calcs'!U198 -> 0 | E25: ='50-year calcs'!V198 -> 152464.6223 | F25: ='50-year calcs'!W198 -> 152464.6223 | G25: ='50-year calcs'!X198 -> 152464.6223 | H25: ='50-year calcs'!Y198 -> 152464.6223 | I25: ='50-year calcs'!Z198 -> 152464.6223 | J25: ='50-year calcs'!AA198 -> 152464.6223 | K25: ='50-year calcs'!AB198 -> 152464.6223 | L25: ='50-year calcs'!AC198 -> 152464.6223 | M25: ='50-year calcs'!AD198 -> 152464.6223 | N25: ='50-year calcs'!AE198 -> 152464.6223 | O25: ='50-year calcs'!AF198 -> 152464.6223 | P25: ='50-year calcs'!AG198 -> 0 | Q25: ='50-year calcs'!AH198 -> 0 | R25: ='50-year calcs'!AI198 -> 0 | S25: ='50-year calcs'!AJ198 -> 0 | T25: ='50-year calcs'!AK198 -> 0 | U25: ='50-year calcs'!AL198 -> 0 | V25: ='50-year calcs'!AM198 -> 0 | W25: ='50-year calcs'!AN198 -> 0 | X25: ='50-year calcs'!AO198 -> 0 | Y25: ='50-year calcs'!AP198 -> 0 | Z25: ='50-year calcs'!AQ198 -> 0 | AA25: ='50-year calcs'!AR198 -> 0 | AB25: ='50-year calcs'!AS198 -> 0 | AC25: ='50-year calcs'!AT198 -> 0 | AD25: ='50-year calcs'!AU198 -> 0 | AE25: ='50-year calcs'!AV198 -> 0 | AF25: ='50-year calcs'!AW198 -> 0 | AG25: ='50-year calcs'!AX198 -> 0 | AH25: ='50-year calcs'!AY198 -> 0 | AI25: ='50-year calcs'!AZ198 -> 0 | AJ25: ='50-year calcs'!BA198 -> 0 | AK25: ='50-year calcs'!BB198 -> 0 | AL25: ='50-year calcs'!BC198 -> 0 | AM25: ='50-year calcs'!BD198 -> 0 | AN25: ='50-year calcs'!BE198 -> 0 | AO25: ='50-year calcs'!BF198 -> 0 | AP25: ='50-year calcs'!BG198 -> 0 | AQ25: ='50-year calcs'!BH198 -> 0 | AR25: ='50-year calcs'!BI198 -> 0 | AS25: ='50-year calcs'!BJ198 -> 0 | AT25: ='50-year calcs'!BK198 -> 0 | AU25: ='50-year calcs'!BL198 -> 0 | AV25: ='50-year calcs'!BM198 -> 0 | AW25: ='50-year calcs'!BN198 -> 0 | AX25: ='50-year calcs'!BO198 -> 0 | AY25: ='50-year calcs'!BP198 -> 0 | AZ25: ='50-year calcs'!BQ198 -> 0 | BA25: ='50-year calcs'!BR198 -> 0 | BB25: ='50-year calcs'!BS198 -> 0
B26: =IF('3. Benefit parameters'!B26="","",'3. Benefit parameters'!B26) -> Potable savings - post-drought | C26: ='50-year calcs'!C199 -> 997394.1003 | D26: ='50-year calcs'!U199 -> 0 | E26: ='50-year calcs'!V199 -> 0 | F26: ='50-year calcs'!W199 -> 0 | G26: ='50-year calcs'!X199 -> 0 | H26: ='50-year calcs'!Y199 -> 0 | I26: ='50-year calcs'!Z199 -> 0 | J26: ='50-year calcs'!AA199 -> 0 | K26: ='50-year calcs'!AB199 -> 0 | L26: ='50-year calcs'!AC199 -> 0 | M26: ='50-year calcs'!AD199 -> 0 | N26: ='50-year calcs'!AE199 -> 0 | O26: ='50-year calcs'!AF199 -> 0 | P26: ='50-year calcs'!AG199 -> 0 | Q26: ='50-year calcs'!AH199 -> 0 | R26: ='50-year calcs'!AI199 -> 0 | S26: ='50-year calcs'!AJ199 -> 0 | T26: ='50-year calcs'!AK199 -> 0 | U26: ='50-year calcs'!AL199 -> 0 | V26: ='50-year calcs'!AM199 -> 0 | W26: ='50-year calcs'!AN199 -> 151895.016 | X26: ='50-year calcs'!AO199 -> 151895.016 | Y26: ='50-year calcs'!AP199 -> 151895.016 | Z26: ='50-year calcs'!AQ199 -> 151895.016 | AA26: ='50-year calcs'!AR199 -> 151895.016 | AB26: ='50-year calcs'!AS199 -> 151895.016 | AC26: ='50-year calcs'!AT199 -> 151895.016 | AD26: ='50-year calcs'!AU199 -> 151895.016 | AE26: ='50-year calcs'!AV199 -> 151895.016 | AF26: ='50-year calcs'!AW199 -> 151895.016 | AG26: ='50-year calcs'!AX199 -> 151895.016 | AH26: ='50-year calcs'!AY199 -> 151895.016 | AI26: ='50-year calcs'!AZ199 -> 151895.016 | AJ26: ='50-year calcs'!BA199 -> 151895.016 | AK26: ='50-year calcs'!BB199 -> 151895.016 | AL26: ='50-year calcs'!BC199 -> 151895.016 | AM26: ='50-year calcs'!BD199 -> 151895.016 | AN26: ='50-year calcs'!BE199 -> 151895.016 | AO26: ='50-year calcs'!BF199 -> 151895.016 | AP26: ='50-year calcs'!BG199 -> 151895.016 | AQ26: ='50-year calcs'!BH199 -> 151895.016 | AR26: ='50-year calcs'!BI199 -> 151895.016 | AS26: ='50-year calcs'!BJ199 -> 151895.016 | AT26: ='50-year calcs'!BK199 -> 151895.016 | AU26: ='50-year calcs'!BL199 -> 151895.016 | AV26: ='50-year calcs'!BM199 -> 151895.016 | AW26: ='50-year calcs'!BN199 -> 151895.016 | AX26: ='50-year calcs'!BO199 -> 151895.016 | AY26: ='50-year calcs'!BP199 -> 151895.016 | AZ26: ='50-year calcs'!BQ199 -> 151895.016 | BA26: ='50-year calcs'!BR199 -> 151895.016 | BB26: ='50-year calcs'!BS199 -> 151895.016
B27: =IF('3. Benefit parameters'!B27="","",'3. Benefit parameters'!B27) -> Avoided tree replacement | C27: ='50-year calcs'!C200 -> 129954.4292 | D27: ='50-year calcs'!U200 -> 0 | E27: ='50-year calcs'!V200 -> 0 | F27: ='50-year calcs'!W200 -> 0 | G27: ='50-year calcs'!X200 -> 0 | H27: ='50-year calcs'!Y200 -> 0 | I27: ='50-year calcs'!Z200 -> 0 | J27: ='50-year calcs'!AA200 -> 0 | K27: ='50-year calcs'!AB200 -> 0 | L27: ='50-year calcs'!AC200 -> 0 | M27: ='50-year calcs'!AD200 -> 0 | N27: ='50-year calcs'!AE200 -> 0 | O27: ='50-year calcs'!AF200 -> 0 | P27: ='50-year calcs'!AG200 -> 38412 | Q27: ='50-year calcs'!AH200 -> 38412 | R27: ='50-year calcs'!AI200 -> 38412 | S27: ='50-year calcs'!AJ200 -> 38412 | T27: ='50-year calcs'!AK200 -> 38412 | U27: ='50-year calcs'!AL200 -> 38412 | V27: ='50-year calcs'!AM200 -> 38412 | W27: ='50-year calcs'!AN200 -> 0 | X27: ='50-year calcs'!AO200 -> 0 | Y27: ='50-year calcs'!AP200 -> 0 | Z27: ='50-year calcs'!AQ200 -> 0 | AA27: ='50-year calcs'!AR200 -> 0 | AB27: ='50-year calcs'!AS200 -> 0 | AC27: ='50-year calcs'!AT200 -> 0 | AD27: ='50-year calcs'!AU200 -> 0 | AE27: ='50-year calcs'!AV200 -> 0 | AF27: ='50-year calcs'!AW200 -> 0 | AG27: ='50-year calcs'!AX200 -> 0 | AH27: ='50-year calcs'!AY200 -> 0 | AI27: ='50-year calcs'!AZ200 -> 0 | AJ27: ='50-year calcs'!BA200 -> 0 | AK27: ='50-year calcs'!BB200 -> 0 | AL27: ='50-year calcs'!BC200 -> 0 | AM27: ='50-year calcs'!BD200 -> 0 | AN27: ='50-year calcs'!BE200 -> 0 | AO27: ='50-year calcs'!BF200 -> 0 | AP27: ='50-year calcs'!BG200 -> 0 | AQ27: ='50-year calcs'!BH200 -> 0 | AR27: ='50-year calcs'!BI200 -> 0 | AS27: ='50-year calcs'!BJ200 -> 0 | AT27: ='50-year calcs'!BK200 -> 0 | AU27: ='50-year calcs'!BL200 -> 0 | AV27: ='50-year calcs'!BM200 -> 0 | AW27: ='50-year calcs'!BN200 -> 0 | AX27: ='50-year calcs'!BO200 -> 0 | AY27: ='50-year calcs'!BP200 -> 0 | AZ27: ='50-year calcs'!BQ200 -> 0 | BA27: ='50-year calcs'!BR200 -> 0 | BB27: ='50-year calcs'!BS200 -> 0
B28: =IF('3. Benefit parameters'!B28="","",'3. Benefit parameters'!B28) -> Avoided water trucking | C28: ='50-year calcs'!C201 -> 1000211.985 | D28: ='50-year calcs'!U201 -> 0 | E28: ='50-year calcs'!V201 -> 0 | F28: ='50-year calcs'!W201 -> 0 | G28: ='50-year calcs'!X201 -> 0 | H28: ='50-year calcs'!Y201 -> 0 | I28: ='50-year calcs'!Z201 -> 0 | J28: ='50-year calcs'!AA201 -> 0 | K28: ='50-year calcs'!AB201 -> 0 | L28: ='50-year calcs'!AC201 -> 0 | M28: ='50-year calcs'!AD201 -> 0 | N28: ='50-year calcs'!AE201 -> 0 | O28: ='50-year calcs'!AF201 -> 0 | P28: ='50-year calcs'!AG201 -> 295643.196 | Q28: ='50-year calcs'!AH201 -> 295643.196 | R28: ='50-year calcs'!AI201 -> 295643.196 | S28: ='50-year calcs'!AJ201 -> 295643.196 | T28: ='50-year calcs'!AK201 -> 295643.196 | U28: ='50-year calcs'!AL201 -> 295643.196 | V28: ='50-year calcs'!AM201 -> 295643.196 | W28: ='50-year calcs'!AN201 -> 0 | X28: ='50-year calcs'!AO201 -> 0 | Y28: ='50-year calcs'!AP201 -> 0 | Z28: ='50-year calcs'!AQ201 -> 0 | AA28: ='50-year calcs'!AR201 -> 0 | AB28: ='50-year calcs'!AS201 -> 0 | AC28: ='50-year calcs'!AT201 -> 0 | AD28: ='50-year calcs'!AU201 -> 0 | AE28: ='50-year calcs'!AV201 -> 0 | AF28: ='50-year calcs'!AW201 -> 0 | AG28: ='50-year calcs'!AX201 -> 0 | AH28: ='50-year calcs'!AY201 -> 0 | AI28: ='50-year calcs'!AZ201 -> 0 | AJ28: ='50-year calcs'!BA201 -> 0 | AK28: ='50-year calcs'!BB201 -> 0 | AL28: ='50-year calcs'!BC201 -> 0 | AM28: ='50-year calcs'!BD201 -> 0 | AN28: ='50-year calcs'!BE201 -> 0 | AO28: ='50-year calcs'!BF201 -> 0 | AP28: ='50-year calcs'!BG201 -> 0 | AQ28: ='50-year calcs'!BH201 -> 0 | AR28: ='50-year calcs'!BI201 -> 0 | AS28: ='50-year calcs'!BJ201 -> 0 | AT28: ='50-year calcs'!BK201 -> 0 | AU28: ='50-year calcs'!BL201 -> 0 | AV28: ='50-year calcs'!BM201 -> 0 | AW28: ='50-year calcs'!BN201 -> 0 | AX28: ='50-year calcs'!BO201 -> 0 | AY28: ='50-year calcs'!BP201 -> 0 | AZ28: ='50-year calcs'!BQ201 -> 0 | BA28: ='50-year calcs'!BR201 -> 0 | BB28: ='50-year calcs'!BS201 -> 0
B29: =IF('3. Benefit parameters'!B29="","",'3. Benefit parameters'!B29) -> Avoided loss of mature tree benefits | C29: ='50-year calcs'!C202 -> 3754239.064 | D29: ='50-year calcs'!U202 -> 0 | E29: ='50-year calcs'!V202 -> 0 | F29: ='50-year calcs'!W202 -> 0 | G29: ='50-year calcs'!X202 -> 0 | H29: ='50-year calcs'!Y202 -> 0 | I29: ='50-year calcs'!Z202 -> 0 | J29: ='50-year calcs'!AA202 -> 0 | K29: ='50-year calcs'!AB202 -> 0 | L29: ='50-year calcs'!AC202 -> 0 | M29: ='50-year calcs'!AD202 -> 0 | N29: ='50-year calcs'!AE202 -> 0 | O29: ='50-year calcs'!AF202 -> 0 | P29: ='50-year calcs'!AG202 -> 1109680 | Q29: ='50-year calcs'!AH202 -> 1109680 | R29: ='50-year calcs'!AI202 -> 1109680 | S29: ='50-year calcs'!AJ202 -> 1109680 | T29: ='50-year calcs'!AK202 -> 1109680 | U29: ='50-year calcs'!AL202 -> 1109680 | V29: ='50-year calcs'!AM202 -> 1109680 | W29: ='50-year calcs'!AN202 -> 0 | X29: ='50-year calcs'!AO202 -> 0 | Y29: ='50-year calcs'!AP202 -> 0 | Z29: ='50-year calcs'!AQ202 -> 0 | AA29: ='50-year calcs'!AR202 -> 0 | AB29: ='50-year calcs'!AS202 -> 0 | AC29: ='50-year calcs'!AT202 -> 0 | AD29: ='50-year calcs'!AU202 -> 0 | AE29: ='50-year calcs'!AV202 -> 0 | AF29: ='50-year calcs'!AW202 -> 0 | AG29: ='50-year calcs'!AX202 -> 0 | AH29: ='50-year calcs'!AY202 -> 0 | AI29: ='50-year calcs'!AZ202 -> 0 | AJ29: ='50-year calcs'!BA202 -> 0 | AK29: ='50-year calcs'!BB202 -> 0 | AL29: ='50-year calcs'!BC202 -> 0 | AM29: ='50-year calcs'!BD202 -> 0 | AN29: ='50-year calcs'!BE202 -> 0 | AO29: ='50-year calcs'!BF202 -> 0 | AP29: ='50-year calcs'!BG202 -> 0 | AQ29: ='50-year calcs'!BH202 -> 0 | AR29: ='50-year calcs'!BI202 -> 0 | AS29: ='50-year calcs'!BJ202 -> 0 | AT29: ='50-year calcs'!BK202 -> 0 | AU29: ='50-year calcs'!BL202 -> 0 | AV29: ='50-year calcs'!BM202 -> 0 | AW29: ='50-year calcs'!BN202 -> 0 | AX29: ='50-year calcs'!BO202 -> 0 | AY29: ='50-year calcs'!BP202 -> 0 | AZ29: ='50-year calcs'!BQ202 -> 0 | BA29: ='50-year calcs'!BR202 -> 0 | BB29: ='50-year calcs'!BS202 -> 0
B30: =IF('3. Benefit parameters'!B30="","",'3. Benefit parameters'!B30) -> Avoided safety checks | C30: ='50-year calcs'!C203 -> 4266.180755 | D30: ='50-year calcs'!U203 -> 0 | E30: ='50-year calcs'!V203 -> 0 | F30: ='50-year calcs'!W203 -> 0 | G30: ='50-year calcs'!X203 -> 0 | H30: ='50-year calcs'!Y203 -> 0 | I30: ='50-year calcs'!Z203 -> 0 | J30: ='50-year calcs'!AA203 -> 0 | K30: ='50-year calcs'!AB203 -> 0 | L30: ='50-year calcs'!AC203 -> 0 | M30: ='50-year calcs'!AD203 -> 0 | N30: ='50-year calcs'!AE203 -> 0 | O30: ='50-year calcs'!AF203 -> 0 | P30: ='50-year calcs'!AG203 -> 1261 | Q30: ='50-year calcs'!AH203 -> 1261 | R30: ='50-year calcs'!AI203 -> 1261 | S30: ='50-year calcs'!AJ203 -> 1261 | T30: ='50-year calcs'!AK203 -> 1261 | U30: ='50-year calcs'!AL203 -> 1261 | V30: ='50-year calcs'!AM203 -> 1261 | W30: ='50-year calcs'!AN203 -> 0 | X30: ='50-year calcs'!AO203 -> 0 | Y30: ='50-year calcs'!AP203 -> 0 | Z30: ='50-year calcs'!AQ203 -> 0 | AA30: ='50-year calcs'!AR203 -> 0 | AB30: ='50-year calcs'!AS203 -> 0 | AC30: ='50-year calcs'!AT203 -> 0 | AD30: ='50-year calcs'!AU203 -> 0 | AE30: ='50-year calcs'!AV203 -> 0 | AF30: ='50-year calcs'!AW203 -> 0 | AG30: ='50-year calcs'!AX203 -> 0 | AH30: ='50-year calcs'!AY203 -> 0 | AI30: ='50-year calcs'!AZ203 -> 0 | AJ30: ='50-year calcs'!BA203 -> 0 | AK30: ='50-year calcs'!BB203 -> 0 | AL30: ='50-year calcs'!BC203 -> 0 | AM30: ='50-year calcs'!BD203 -> 0 | AN30: ='50-year calcs'!BE203 -> 0 | AO30: ='50-year calcs'!BF203 -> 0 | AP30: ='50-year calcs'!BG203 -> 0 | AQ30: ='50-year calcs'!BH203 -> 0 | AR30: ='50-year calcs'!BI203 -> 0 | AS30: ='50-year calcs'!BJ203 -> 0 | AT30: ='50-year calcs'!BK203 -> 0 | AU30: ='50-year calcs'!BL203 -> 0 | AV30: ='50-year calcs'!BM203 -> 0 | AW30: ='50-year calcs'!BN203 -> 0 | AX30: ='50-year calcs'!BO203 -> 0 | AY30: ='50-year calcs'!BP203 -> 0 | AZ30: ='50-year calcs'!BQ203 -> 0 | BA30: ='50-year calcs'!BR203 -> 0 | BB30: ='50-year calcs'!BS203 -> 0
B31: =IF('3. Benefit parameters'!B31="","",'3. Benefit parameters'!B31) -> Recreation and amenity | C31: ='50-year calcs'!C204 -> 4545687.135 | D31: ='50-year calcs'!U204 -> 0 | E31: ='50-year calcs'!V204 -> 0 | F31: ='50-year calcs'!W204 -> 0 | G31: ='50-year calcs'!X204 -> 0 | H31: ='50-year calcs'!Y204 -> 0 | I31: ='50-year calcs'!Z204 -> 0 | J31: ='50-year calcs'!AA204 -> 0 | K31: ='50-year calcs'!AB204 -> 0 | L31: ='50-year calcs'!AC204 -> 0 | M31: ='50-year calcs'!AD204 -> 0 | N31: ='50-year calcs'!AE204 -> 0 | O31: ='50-year calcs'!AF204 -> 0 | P31: ='50-year calcs'!AG204 -> 1343616.646 | Q31: ='50-year calcs'!AH204 -> 1343616.646 | R31: ='50-year calcs'!AI204 -> 1343616.646 | S31: ='50-year calcs'!AJ204 -> 1343616.646 | T31: ='50-year calcs'!AK204 -> 1343616.646 | U31: ='50-year calcs'!AL204 -> 1343616.646 | V31: ='50-year calcs'!AM204 -> 1343616.646 | W31: ='50-year calcs'!AN204 -> 0 | X31: ='50-year calcs'!AO204 -> 0 | Y31: ='50-year calcs'!AP204 -> 0 | Z31: ='50-year calcs'!AQ204 -> 0 | AA31: ='50-year calcs'!AR204 -> 0 | AB31: ='50-year calcs'!AS204 -> 0 | AC31: ='50-year calcs'!AT204 -> 0 | AD31: ='50-year calcs'!AU204 -> 0 | AE31: ='50-year calcs'!AV204 -> 0 | AF31: ='50-year calcs'!AW204 -> 0 | AG31: ='50-year calcs'!AX204 -> 0 | AH31: ='50-year calcs'!AY204 -> 0 | AI31: ='50-year calcs'!AZ204 -> 0 | AJ31: ='50-year calcs'!BA204 -> 0 | AK31: ='50-year calcs'!BB204 -> 0 | AL31: ='50-year calcs'!BC204 -> 0 | AM31: ='50-year calcs'!BD204 -> 0 | AN31: ='50-year calcs'!BE204 -> 0 | AO31: ='50-year calcs'!BF204 -> 0 | AP31: ='50-year calcs'!BG204 -> 0 | AQ31: ='50-year calcs'!BH204 -> 0 | AR31: ='50-year calcs'!BI204 -> 0 | AS31: ='50-year calcs'!BJ204 -> 0 | AT31: ='50-year calcs'!BK204 -> 0 | AU31: ='50-year calcs'!BL204 -> 0 | AV31: ='50-year calcs'!BM204 -> 0 | AW31: ='50-year calcs'!BN204 -> 0 | AX31: ='50-year calcs'!BO204 -> 0 | AY31: ='50-year calcs'!BP204 -> 0 | AZ31: ='50-year calcs'!BQ204 -> 0 | BA31: ='50-year calcs'!BR204 -> 0 | BB31: ='50-year calcs'!BS204 -> 0
B32: =IF('3. Benefit parameters'!B32="","",'3. Benefit parameters'!B32) -> Temperature reduction on hot day | C32: ='50-year calcs'!C205 -> 3787537.196 | D32: ='50-year calcs'!U205 -> 0 | E32: ='50-year calcs'!V205 -> 0 | F32: ='50-year calcs'!W205 -> 0 | G32: ='50-year calcs'!X205 -> 0 | H32: ='50-year calcs'!Y205 -> 0 | I32: ='50-year calcs'!Z205 -> 0 | J32: ='50-year calcs'!AA205 -> 0 | K32: ='50-year calcs'!AB205 -> 0 | L32: ='50-year calcs'!AC205 -> 0 | M32: ='50-year calcs'!AD205 -> 0 | N32: ='50-year calcs'!AE205 -> 0 | O32: ='50-year calcs'!AF205 -> 0 | P32: ='50-year calcs'!AG205 -> 1119522.28 | Q32: ='50-year calcs'!AH205 -> 1119522.28 | R32: ='50-year calcs'!AI205 -> 1119522.28 | S32: ='50-year calcs'!AJ205 -> 1119522.28 | T32: ='50-year calcs'!AK205 -> 1119522.28 | U32: ='50-year calcs'!AL205 -> 1119522.28 | V32: ='50-year calcs'!AM205 -> 1119522.28 | W32: ='50-year calcs'!AN205 -> 0 | X32: ='50-year calcs'!AO205 -> 0 | Y32: ='50-year calcs'!AP205 -> 0 | Z32: ='50-year calcs'!AQ205 -> 0 | AA32: ='50-year calcs'!AR205 -> 0 | AB32: ='50-year calcs'!AS205 -> 0 | AC32: ='50-year calcs'!AT205 -> 0 | AD32: ='50-year calcs'!AU205 -> 0 | AE32: ='50-year calcs'!AV205 -> 0 | AF32: ='50-year calcs'!AW205 -> 0 | AG32: ='50-year calcs'!AX205 -> 0 | AH32: ='50-year calcs'!AY205 -> 0 | AI32: ='50-year calcs'!AZ205 -> 0 | AJ32: ='50-year calcs'!BA205 -> 0 | AK32: ='50-year calcs'!BB205 -> 0 | AL32: ='50-year calcs'!BC205 -> 0 | AM32: ='50-year calcs'!BD205 -> 0 | AN32: ='50-year calcs'!BE205 -> 0 | AO32: ='50-year calcs'!BF205 -> 0 | AP32: ='50-year calcs'!BG205 -> 0 | AQ32: ='50-year calcs'!BH205 -> 0 | AR32: ='50-year calcs'!BI205 -> 0 | AS32: ='50-year calcs'!BJ205 -> 0 | AT32: ='50-year calcs'!BK205 -> 0 | AU32: ='50-year calcs'!BL205 -> 0 | AV32: ='50-year calcs'!BM205 -> 0 | AW32: ='50-year calcs'!BN205 -> 0 | AX32: ='50-year calcs'!BO205 -> 0 | AY32: ='50-year calcs'!BP205 -> 0 | AZ32: ='50-year calcs'!BQ205 -> 0 | BA32: ='50-year calcs'!BR205 -> 0 | BB32: ='50-year calcs'!BS205 -> 0
B33: =IF('3. Benefit parameters'!B33="","",'3. Benefit parameters'!B33) ->  | C33: ='50-year calcs'!C206 -> 0 | D33: ='50-year calcs'!U206 -> 0 | E33: ='50-year calcs'!V206 -> 0 | F33: ='50-year calcs'!W206 -> 0 | G33: ='50-year calcs'!X206 -> 0 | H33: ='50-year calcs'!Y206 -> 0 | I33: ='50-year calcs'!Z206 -> 0 | J33: ='50-year calcs'!AA206 -> 0 | K33: ='50-year calcs'!AB206 -> 0 | L33: ='50-year calcs'!AC206 -> 0 | M33: ='50-year calcs'!AD206 -> 0 | N33: ='50-year calcs'!AE206 -> 0 | O33: ='50-year calcs'!AF206 -> 0 | P33: ='50-year calcs'!AG206 -> 0 | Q33: ='50-year calcs'!AH206 -> 0 | R33: ='50-year calcs'!AI206 -> 0 | S33: ='50-year calcs'!AJ206 -> 0 | T33: ='50-year calcs'!AK206 -> 0 | U33: ='50-year calcs'!AL206 -> 0 | V33: ='50-year calcs'!AM206 -> 0 | W33: ='50-year calcs'!AN206 -> 0 | X33: ='50-year calcs'!AO206 -> 0 | Y33: ='50-year calcs'!AP206 -> 0 | Z33: ='50-year calcs'!AQ206 -> 0 | AA33: ='50-year calcs'!AR206 -> 0 | AB33: ='50-year calcs'!AS206 -> 0 | AC33: ='50-year calcs'!AT206 -> 0 | AD33: ='50-year calcs'!AU206 -> 0 | AE33: ='50-year calcs'!AV206 -> 0 | AF33: ='50-year calcs'!AW206 -> 0 | AG33: ='50-year calcs'!AX206 -> 0 | AH33: ='50-year calcs'!AY206 -> 0 | AI33: ='50-year calcs'!AZ206 -> 0 | AJ33: ='50-year calcs'!BA206 -> 0 | AK33: ='50-year calcs'!BB206 -> 0 | AL33: ='50-year calcs'!BC206 -> 0 | AM33: ='50-year calcs'!BD206 -> 0 | AN33: ='50-year calcs'!BE206 -> 0 | AO33: ='50-year calcs'!BF206 -> 0 | AP33: ='50-year calcs'!BG206 -> 0 | AQ33: ='50-year calcs'!BH206 -> 0 | AR33: ='50-year calcs'!BI206 -> 0 | AS33: ='50-year calcs'!BJ206 -> 0 | AT33: ='50-year calcs'!BK206 -> 0 | AU33: ='50-year calcs'!BL206 -> 0 | AV33: ='50-year calcs'!BM206 -> 0 | AW33: ='50-year calcs'!BN206 -> 0 | AX33: ='50-year calcs'!BO206 -> 0 | AY33: ='50-year calcs'!BP206 -> 0 | AZ33: ='50-year calcs'!BQ206 -> 0 | BA33: ='50-year calcs'!BR206 -> 0 | BB33: ='50-year calcs'!BS206 -> 0
A35: 3.3 | B35: Category 3. Benefit per unit of abatement
B36: Benefit | C36: Present value | D36: =D$10 -> 2020 | E36: =E$10 -> 2021 | F36: 2022 | G36: 2023 | H36: 2024 | I36: 2025 | J36: 2026 | K36: 2027 | L36: 2028 | M36: 2029 | N36: 2030 | O36: 2031 | P36: 2032 | Q36: 2033 | R36: 2034 | S36: 2035 | T36: 2036 | U36: 2037 | V36: 2038 | W36: 2039 | X36: 2040 | Y36: 2041 | Z36: 2042 | AA36: 2043 | AB36: 2044 | AC36: 2045 | AD36: 2046 | AE36: 2047 | AF36: 2048 | AG36: 2049 | AH36: 2050 | AI36: 2051 | AJ36: 2052 | AK36: 2053 | AL36: 2054 | AM36: 2055 | AN36: 2056 | AO36: 2057 | AP36: 2058 | AQ36: 2059 | AR36: 2060 | AS36: 2061 | AT36: 2062 | AU36: 2063 | AV36: 2064 | AW36: 2065 | AX36: 2066 | AY36: 2067 | AZ36: 2068 | BA36: 2069 | BB36: 2070
B37: =IF('3. Benefit parameters'!B37="","",'3. Benefit parameters'!B37) ->  | C37: ='50-year calcs'!C210 -> 0 | D37: ='50-year calcs'!U210 -> 0 | E37: ='50-year calcs'!V210 -> 0 | F37: ='50-year calcs'!W210 -> 0 | G37: ='50-year calcs'!X210 -> 0 | H37: ='50-year calcs'!Y210 -> 0 | I37: ='50-year calcs'!Z210 -> 0 | J37: ='50-year calcs'!AA210 -> 0 | K37: ='50-year calcs'!AB210 -> 0 | L37: ='50-year calcs'!AC210 -> 0 | M37: ='50-year calcs'!AD210 -> 0 | N37: ='50-year calcs'!AE210 -> 0 | O37: ='50-year calcs'!AF210 -> 0 | P37: ='50-year calcs'!AG210 -> 0 | Q37: ='50-year calcs'!AH210 -> 0 | R37: ='50-year calcs'!AI210 -> 0 | S37: ='50-year calcs'!AJ210 -> 0 | T37: ='50-year calcs'!AK210 -> 0 | U37: ='50-year calcs'!AL210 -> 0 | V37: ='50-year calcs'!AM210 -> 0 | W37: ='50-year calcs'!AN210 -> 0 | X37: ='50-year calcs'!AO210 -> 0 | Y37: ='50-year calcs'!AP210 -> 0 | Z37: ='50-year calcs'!AQ210 -> 0 | AA37: ='50-year calcs'!AR210 -> 0 | AB37: ='50-year calcs'!AS210 -> 0 | AC37: ='50-year calcs'!AT210 -> 0 | AD37: ='50-year calcs'!AU210 -> 0 | AE37: ='50-year calcs'!AV210 -> 0 | AF37: ='50-year calcs'!AW210 -> 0 | AG37: ='50-year calcs'!AX210 -> 0 | AH37: ='50-year calcs'!AY210 -> 0 | AI37: ='50-year calcs'!AZ210 -> 0 | AJ37: ='50-year calcs'!BA210 -> 0 | AK37: ='50-year calcs'!BB210 -> 0 | AL37: ='50-year calcs'!BC210 -> 0 | AM37: ='50-year calcs'!BD210 -> 0 | AN37: ='50-year calcs'!BE210 -> 0 | AO37: ='50-year calcs'!BF210 -> 0 | AP37: ='50-year calcs'!BG210 -> 0 | AQ37: ='50-year calcs'!BH210 -> 0 | AR37: ='50-year calcs'!BI210 -> 0 | AS37: ='50-year calcs'!BJ210 -> 0 | AT37: ='50-year calcs'!BK210 -> 0 | AU37: ='50-year calcs'!BL210 -> 0 | AV37: ='50-year calcs'!BM210 -> 0 | AW37: ='50-year calcs'!BN210 -> 0 | AX37: ='50-year calcs'!BO210 -> 0 | AY37: ='50-year calcs'!BP210 -> 0 | AZ37: ='50-year calcs'!BQ210 -> 0 | BA37: ='50-year calcs'!BR210 -> 0 | BB37: ='50-year calcs'!BS210 -> 0
B38: =IF('3. Benefit parameters'!B38="","",'3. Benefit parameters'!B38) ->  | C38: ='50-year calcs'!C211 -> 0 | D38: ='50-year calcs'!U211 -> 0 | E38: ='50-year calcs'!V211 -> 0 | F38: ='50-year calcs'!W211 -> 0 | G38: ='50-year calcs'!X211 -> 0 | H38: ='50-year calcs'!Y211 -> 0 | I38: ='50-year calcs'!Z211 -> 0 | J38: ='50-year calcs'!AA211 -> 0 | K38: ='50-year calcs'!AB211 -> 0 | L38: ='50-year calcs'!AC211 -> 0 | M38: ='50-year calcs'!AD211 -> 0 | N38: ='50-year calcs'!AE211 -> 0 | O38: ='50-year calcs'!AF211 -> 0 | P38: ='50-year calcs'!AG211 -> 0 | Q38: ='50-year calcs'!AH211 -> 0 | R38: ='50-year calcs'!AI211 -> 0 | S38: ='50-year calcs'!AJ211 -> 0 | T38: ='50-year calcs'!AK211 -> 0 | U38: ='50-year calcs'!AL211 -> 0 | V38: ='50-year calcs'!AM211 -> 0 | W38: ='50-year calcs'!AN211 -> 0 | X38: ='50-year calcs'!AO211 -> 0 | Y38: ='50-year calcs'!AP211 -> 0 | Z38: ='50-year calcs'!AQ211 -> 0 | AA38: ='50-year calcs'!AR211 -> 0 | AB38: ='50-year calcs'!AS211 -> 0 | AC38: ='50-year calcs'!AT211 -> 0 | AD38: ='50-year calcs'!AU211 -> 0 | AE38: ='50-year calcs'!AV211 -> 0 | AF38: ='50-year calcs'!AW211 -> 0 | AG38: ='50-year calcs'!AX211 -> 0 | AH38: ='50-year calcs'!AY211 -> 0 | AI38: ='50-year calcs'!AZ211 -> 0 | AJ38: ='50-year calcs'!BA211 -> 0 | AK38: ='50-year calcs'!BB211 -> 0 | AL38: ='50-year calcs'!BC211 -> 0 | AM38: ='50-year calcs'!BD211 -> 0 | AN38: ='50-year calcs'!BE211 -> 0 | AO38: ='50-year calcs'!BF211 -> 0 | AP38: ='50-year calcs'!BG211 -> 0 | AQ38: ='50-year calcs'!BH211 -> 0 | AR38: ='50-year calcs'!BI211 -> 0 | AS38: ='50-year calcs'!BJ211 -> 0 | AT38: ='50-year calcs'!BK211 -> 0 | AU38: ='50-year calcs'!BL211 -> 0 | AV38: ='50-year calcs'!BM211 -> 0 | AW38: ='50-year calcs'!BN211 -> 0 | AX38: ='50-year calcs'!BO211 -> 0 | AY38: ='50-year calcs'!BP211 -> 0 | AZ38: ='50-year calcs'!BQ211 -> 0 | BA38: ='50-year calcs'!BR211 -> 0 | BB38: ='50-year calcs'!BS211 -> 0
B39: =IF('3. Benefit parameters'!B39="","",'3. Benefit parameters'!B39) ->  | C39: ='50-year calcs'!C212 -> 0 | D39: ='50-year calcs'!U212 -> 0 | E39: ='50-year calcs'!V212 -> 0 | F39: ='50-year calcs'!W212 -> 0 | G39: ='50-year calcs'!X212 -> 0 | H39: ='50-year calcs'!Y212 -> 0 | I39: ='50-year calcs'!Z212 -> 0 | J39: ='50-year calcs'!AA212 -> 0 | K39: ='50-year calcs'!AB212 -> 0 | L39: ='50-year calcs'!AC212 -> 0 | M39: ='50-year calcs'!AD212 -> 0 | N39: ='50-year calcs'!AE212 -> 0 | O39: ='50-year calcs'!AF212 -> 0 | P39: ='50-year calcs'!AG212 -> 0 | Q39: ='50-year calcs'!AH212 -> 0 | R39: ='50-year calcs'!AI212 -> 0 | S39: ='50-year calcs'!AJ212 -> 0 | T39: ='50-year calcs'!AK212 -> 0 | U39: ='50-year calcs'!AL212 -> 0 | V39: ='50-year calcs'!AM212 -> 0 | W39: ='50-year calcs'!AN212 -> 0 | X39: ='50-year calcs'!AO212 -> 0 | Y39: ='50-year calcs'!AP212 -> 0 | Z39: ='50-year calcs'!AQ212 -> 0 | AA39: ='50-year calcs'!AR212 -> 0 | AB39: ='50-year calcs'!AS212 -> 0 | AC39: ='50-year calcs'!AT212 -> 0 | AD39: ='50-year calcs'!AU212 -> 0 | AE39: ='50-year calcs'!AV212 -> 0 | AF39: ='50-year calcs'!AW212 -> 0 | AG39: ='50-year calcs'!AX212 -> 0 | AH39: ='50-year calcs'!AY212 -> 0 | AI39: ='50-year calcs'!AZ212 -> 0 | AJ39: ='50-year calcs'!BA212 -> 0 | AK39: ='50-year calcs'!BB212 -> 0 | AL39: ='50-year calcs'!BC212 -> 0 | AM39: ='50-year calcs'!BD212 -> 0 | AN39: ='50-year calcs'!BE212 -> 0 | AO39: ='50-year calcs'!BF212 -> 0 | AP39: ='50-year calcs'!BG212 -> 0 | AQ39: ='50-year calcs'!BH212 -> 0 | AR39: ='50-year calcs'!BI212 -> 0 | AS39: ='50-year calcs'!BJ212 -> 0 | AT39: ='50-year calcs'!BK212 -> 0 | AU39: ='50-year calcs'!BL212 -> 0 | AV39: ='50-year calcs'!BM212 -> 0 | AW39: ='50-year calcs'!BN212 -> 0 | AX39: ='50-year calcs'!BO212 -> 0 | AY39: ='50-year calcs'!BP212 -> 0 | AZ39: ='50-year calcs'!BQ212 -> 0 | BA39: ='50-year calcs'!BR212 -> 0 | BB39: ='50-year calcs'!BS212 -> 0
B40: =IF('3. Benefit parameters'!B40="","",'3. Benefit parameters'!B40) ->  | C40: ='50-year calcs'!C213 -> 0 | D40: ='50-year calcs'!U213 -> 0 | E40: ='50-year calcs'!V213 -> 0 | F40: ='50-year calcs'!W213 -> 0 | G40: ='50-year calcs'!X213 -> 0 | H40: ='50-year calcs'!Y213 -> 0 | I40: ='50-year calcs'!Z213 -> 0 | J40: ='50-year calcs'!AA213 -> 0 | K40: ='50-year calcs'!AB213 -> 0 | L40: ='50-year calcs'!AC213 -> 0 | M40: ='50-year calcs'!AD213 -> 0 | N40: ='50-year calcs'!AE213 -> 0 | O40: ='50-year calcs'!AF213 -> 0 | P40: ='50-year calcs'!AG213 -> 0 | Q40: ='50-year calcs'!AH213 -> 0 | R40: ='50-year calcs'!AI213 -> 0 | S40: ='50-year calcs'!AJ213 -> 0 | T40: ='50-year calcs'!AK213 -> 0 | U40: ='50-year calcs'!AL213 -> 0 | V40: ='50-year calcs'!AM213 -> 0 | W40: ='50-year calcs'!AN213 -> 0 | X40: ='50-year calcs'!AO213 -> 0 | Y40: ='50-year calcs'!AP213 -> 0 | Z40: ='50-year calcs'!AQ213 -> 0 | AA40: ='50-year calcs'!AR213 -> 0 | AB40: ='50-year calcs'!AS213 -> 0 | AC40: ='50-year calcs'!AT213 -> 0 | AD40: ='50-year calcs'!AU213 -> 0 | AE40: ='50-year calcs'!AV213 -> 0 | AF40: ='50-year calcs'!AW213 -> 0 | AG40: ='50-year calcs'!AX213 -> 0 | AH40: ='50-year calcs'!AY213 -> 0 | AI40: ='50-year calcs'!AZ213 -> 0 | AJ40: ='50-year calcs'!BA213 -> 0 | AK40: ='50-year calcs'!BB213 -> 0 | AL40: ='50-year calcs'!BC213 -> 0 | AM40: ='50-year calcs'!BD213 -> 0 | AN40: ='50-year calcs'!BE213 -> 0 | AO40: ='50-year calcs'!BF213 -> 0 | AP40: ='50-year calcs'!BG213 -> 0 | AQ40: ='50-year calcs'!BH213 -> 0 | AR40: ='50-year calcs'!BI213 -> 0 | AS40: ='50-year calcs'!BJ213 -> 0 | AT40: ='50-year calcs'!BK213 -> 0 | AU40: ='50-year calcs'!BL213 -> 0 | AV40: ='50-year calcs'!BM213 -> 0 | AW40: ='50-year calcs'!BN213 -> 0 | AX40: ='50-year calcs'!BO213 -> 0 | AY40: ='50-year calcs'!BP213 -> 0 | AZ40: ='50-year calcs'!BQ213 -> 0 | BA40: ='50-year calcs'!BR213 -> 0 | BB40: ='50-year calcs'!BS213 -> 0
B41: =IF('3. Benefit parameters'!B41="","",'3. Benefit parameters'!B41) ->  | C41: ='50-year calcs'!C214 -> 0 | D41: ='50-year calcs'!U214 -> 0 | E41: ='50-year calcs'!V214 -> 0 | F41: ='50-year calcs'!W214 -> 0 | G41: ='50-year calcs'!X214 -> 0 | H41: ='50-year calcs'!Y214 -> 0 | I41: ='50-year calcs'!Z214 -> 0 | J41: ='50-year calcs'!AA214 -> 0 | K41: ='50-year calcs'!AB214 -> 0 | L41: ='50-year calcs'!AC214 -> 0 | M41: ='50-year calcs'!AD214 -> 0 | N41: ='50-year calcs'!AE214 -> 0 | O41: ='50-year calcs'!AF214 -> 0 | P41: ='50-year calcs'!AG214 -> 0 | Q41: ='50-year calcs'!AH214 -> 0 | R41: ='50-year calcs'!AI214 -> 0 | S41: ='50-year calcs'!AJ214 -> 0 | T41: ='50-year calcs'!AK214 -> 0 | U41: ='50-year calcs'!AL214 -> 0 | V41: ='50-year calcs'!AM214 -> 0 | W41: ='50-year calcs'!AN214 -> 0 | X41: ='50-year calcs'!AO214 -> 0 | Y41: ='50-year calcs'!AP214 -> 0 | Z41: ='50-year calcs'!AQ214 -> 0 | AA41: ='50-year calcs'!AR214 -> 0 | AB41: ='50-year calcs'!AS214 -> 0 | AC41: ='50-year calcs'!AT214 -> 0 | AD41: ='50-year calcs'!AU214 -> 0 | AE41: ='50-year calcs'!AV214 -> 0 | AF41: ='50-year calcs'!AW214 -> 0 | AG41: ='50-year calcs'!AX214 -> 0 | AH41: ='50-year calcs'!AY214 -> 0 | AI41: ='50-year calcs'!AZ214 -> 0 | AJ41: ='50-year calcs'!BA214 -> 0 | AK41: ='50-year calcs'!BB214 -> 0 | AL41: ='50-year calcs'!BC214 -> 0 | AM41: ='50-year calcs'!BD214 -> 0 | AN41: ='50-year calcs'!BE214 -> 0 | AO41: ='50-year calcs'!BF214 -> 0 | AP41: ='50-year calcs'!BG214 -> 0 | AQ41: ='50-year calcs'!BH214 -> 0 | AR41: ='50-year calcs'!BI214 -> 0 | AS41: ='50-year calcs'!BJ214 -> 0 | AT41: ='50-year calcs'!BK214 -> 0 | AU41: ='50-year calcs'!BL214 -> 0 | AV41: ='50-year calcs'!BM214 -> 0 | AW41: ='50-year calcs'!BN214 -> 0 | AX41: ='50-year calcs'!BO214 -> 0 | AY41: ='50-year calcs'!BP214 -> 0 | AZ41: ='50-year calcs'!BQ214 -> 0 | BA41: ='50-year calcs'!BR214 -> 0 | BB41: ='50-year calcs'!BS214 -> 0
B42: =IF('3. Benefit parameters'!B42="","",'3. Benefit parameters'!B42) ->  | C42: ='50-year calcs'!C215 -> 0 | D42: ='50-year calcs'!U215 -> 0 | E42: ='50-year calcs'!V215 -> 0 | F42: ='50-year calcs'!W215 -> 0 | G42: ='50-year calcs'!X215 -> 0 | H42: ='50-year calcs'!Y215 -> 0 | I42: ='50-year calcs'!Z215 -> 0 | J42: ='50-year calcs'!AA215 -> 0 | K42: ='50-year calcs'!AB215 -> 0 | L42: ='50-year calcs'!AC215 -> 0 | M42: ='50-year calcs'!AD215 -> 0 | N42: ='50-year calcs'!AE215 -> 0 | O42: ='50-year calcs'!AF215 -> 0 | P42: ='50-year calcs'!AG215 -> 0 | Q42: ='50-year calcs'!AH215 -> 0 | R42: ='50-year calcs'!AI215 -> 0 | S42: ='50-year calcs'!AJ215 -> 0 | T42: ='50-year calcs'!AK215 -> 0 | U42: ='50-year calcs'!AL215 -> 0 | V42: ='50-year calcs'!AM215 -> 0 | W42: ='50-year calcs'!AN215 -> 0 | X42: ='50-year calcs'!AO215 -> 0 | Y42: ='50-year calcs'!AP215 -> 0 | Z42: ='50-year calcs'!AQ215 -> 0 | AA42: ='50-year calcs'!AR215 -> 0 | AB42: ='50-year calcs'!AS215 -> 0 | AC42: ='50-year calcs'!AT215 -> 0 | AD42: ='50-year calcs'!AU215 -> 0 | AE42: ='50-year calcs'!AV215 -> 0 | AF42: ='50-year calcs'!AW215 -> 0 | AG42: ='50-year calcs'!AX215 -> 0 | AH42: ='50-year calcs'!AY215 -> 0 | AI42: ='50-year calcs'!AZ215 -> 0 | AJ42: ='50-year calcs'!BA215 -> 0 | AK42: ='50-year calcs'!BB215 -> 0 | AL42: ='50-year calcs'!BC215 -> 0 | AM42: ='50-year calcs'!BD215 -> 0 | AN42: ='50-year calcs'!BE215 -> 0 | AO42: ='50-year calcs'!BF215 -> 0 | AP42: ='50-year calcs'!BG215 -> 0 | AQ42: ='50-year calcs'!BH215 -> 0 | AR42: ='50-year calcs'!BI215 -> 0 | AS42: ='50-year calcs'!BJ215 -> 0 | AT42: ='50-year calcs'!BK215 -> 0 | AU42: ='50-year calcs'!BL215 -> 0 | AV42: ='50-year calcs'!BM215 -> 0 | AW42: ='50-year calcs'!BN215 -> 0 | AX42: ='50-year calcs'!BO215 -> 0 | AY42: ='50-year calcs'!BP215 -> 0 | AZ42: ='50-year calcs'!BQ215 -> 0 | BA42: ='50-year calcs'!BR215 -> 0 | BB42: ='50-year calcs'!BS215 -> 0
B43: =IF('3. Benefit parameters'!B43="","",'3. Benefit parameters'!B43) ->  | C43: ='50-year calcs'!C216 -> 0 | D43: ='50-year calcs'!U216 -> 0 | E43: ='50-year calcs'!V216 -> 0 | F43: ='50-year calcs'!W216 -> 0 | G43: ='50-year calcs'!X216 -> 0 | H43: ='50-year calcs'!Y216 -> 0 | I43: ='50-year calcs'!Z216 -> 0 | J43: ='50-year calcs'!AA216 -> 0 | K43: ='50-year calcs'!AB216 -> 0 | L43: ='50-year calcs'!AC216 -> 0 | M43: ='50-year calcs'!AD216 -> 0 | N43: ='50-year calcs'!AE216 -> 0 | O43: ='50-year calcs'!AF216 -> 0 | P43: ='50-year calcs'!AG216 -> 0 | Q43: ='50-year calcs'!AH216 -> 0 | R43: ='50-year calcs'!AI216 -> 0 | S43: ='50-year calcs'!AJ216 -> 0 | T43: ='50-year calcs'!AK216 -> 0 | U43: ='50-year calcs'!AL216 -> 0 | V43: ='50-year calcs'!AM216 -> 0 | W43: ='50-year calcs'!AN216 -> 0 | X43: ='50-year calcs'!AO216 -> 0 | Y43: ='50-year calcs'!AP216 -> 0 | Z43: ='50-year calcs'!AQ216 -> 0 | AA43: ='50-year calcs'!AR216 -> 0 | AB43: ='50-year calcs'!AS216 -> 0 | AC43: ='50-year calcs'!AT216 -> 0 | AD43: ='50-year calcs'!AU216 -> 0 | AE43: ='50-year calcs'!AV216 -> 0 | AF43: ='50-year calcs'!AW216 -> 0 | AG43: ='50-year calcs'!AX216 -> 0 | AH43: ='50-year calcs'!AY216 -> 0 | AI43: ='50-year calcs'!AZ216 -> 0 | AJ43: ='50-year calcs'!BA216 -> 0 | AK43: ='50-year calcs'!BB216 -> 0 | AL43: ='50-year calcs'!BC216 -> 0 | AM43: ='50-year calcs'!BD216 -> 0 | AN43: ='50-year calcs'!BE216 -> 0 | AO43: ='50-year calcs'!BF216 -> 0 | AP43: ='50-year calcs'!BG216 -> 0 | AQ43: ='50-year calcs'!BH216 -> 0 | AR43: ='50-year calcs'!BI216 -> 0 | AS43: ='50-year calcs'!BJ216 -> 0 | AT43: ='50-year calcs'!BK216 -> 0 | AU43: ='50-year calcs'!BL216 -> 0 | AV43: ='50-year calcs'!BM216 -> 0 | AW43: ='50-year calcs'!BN216 -> 0 | AX43: ='50-year calcs'!BO216 -> 0 | AY43: ='50-year calcs'!BP216 -> 0 | AZ43: ='50-year calcs'!BQ216 -> 0 | BA43: ='50-year calcs'!BR216 -> 0 | BB43: ='50-year calcs'!BS216 -> 0
B44: =IF('3. Benefit parameters'!B44="","",'3. Benefit parameters'!B44) ->  | C44: ='50-year calcs'!C217 -> 0 | D44: ='50-year calcs'!U217 -> 0 | E44: ='50-year calcs'!V217 -> 0 | F44: ='50-year calcs'!W217 -> 0 | G44: ='50-year calcs'!X217 -> 0 | H44: ='50-year calcs'!Y217 -> 0 | I44: ='50-year calcs'!Z217 -> 0 | J44: ='50-year calcs'!AA217 -> 0 | K44: ='50-year calcs'!AB217 -> 0 | L44: ='50-year calcs'!AC217 -> 0 | M44: ='50-year calcs'!AD217 -> 0 | N44: ='50-year calcs'!AE217 -> 0 | O44: ='50-year calcs'!AF217 -> 0 | P44: ='50-year calcs'!AG217 -> 0 | Q44: ='50-year calcs'!AH217 -> 0 | R44: ='50-year calcs'!AI217 -> 0 | S44: ='50-year calcs'!AJ217 -> 0 | T44: ='50-year calcs'!AK217 -> 0 | U44: ='50-year calcs'!AL217 -> 0 | V44: ='50-year calcs'!AM217 -> 0 | W44: ='50-year calcs'!AN217 -> 0 | X44: ='50-year calcs'!AO217 -> 0 | Y44: ='50-year calcs'!AP217 -> 0 | Z44: ='50-year calcs'!AQ217 -> 0 | AA44: ='50-year calcs'!AR217 -> 0 | AB44: ='50-year calcs'!AS217 -> 0 | AC44: ='50-year calcs'!AT217 -> 0 | AD44: ='50-year calcs'!AU217 -> 0 | AE44: ='50-year calcs'!AV217 -> 0 | AF44: ='50-year calcs'!AW217 -> 0 | AG44: ='50-year calcs'!AX217 -> 0 | AH44: ='50-year calcs'!AY217 -> 0 | AI44: ='50-year calcs'!AZ217 -> 0 | AJ44: ='50-year calcs'!BA217 -> 0 | AK44: ='50-year calcs'!BB217 -> 0 | AL44: ='50-year calcs'!BC217 -> 0 | AM44: ='50-year calcs'!BD217 -> 0 | AN44: ='50-year calcs'!BE217 -> 0 | AO44: ='50-year calcs'!BF217 -> 0 | AP44: ='50-year calcs'!BG217 -> 0 | AQ44: ='50-year calcs'!BH217 -> 0 | AR44: ='50-year calcs'!BI217 -> 0 | AS44: ='50-year calcs'!BJ217 -> 0 | AT44: ='50-year calcs'!BK217 -> 0 | AU44: ='50-year calcs'!BL217 -> 0 | AV44: ='50-year calcs'!BM217 -> 0 | AW44: ='50-year calcs'!BN217 -> 0 | AX44: ='50-year calcs'!BO217 -> 0 | AY44: ='50-year calcs'!BP217 -> 0 | AZ44: ='50-year calcs'!BQ217 -> 0 | BA44: ='50-year calcs'!BR217 -> 0 | BB44: ='50-year calcs'!BS217 -> 0
B45: =IF('3. Benefit parameters'!B45="","",'3. Benefit parameters'!B45) ->  | C45: ='50-year calcs'!C218 -> 0 | D45: ='50-year calcs'!U218 -> 0 | E45: ='50-year calcs'!V218 -> 0 | F45: ='50-year calcs'!W218 -> 0 | G45: ='50-year calcs'!X218 -> 0 | H45: ='50-year calcs'!Y218 -> 0 | I45: ='50-year calcs'!Z218 -> 0 | J45: ='50-year calcs'!AA218 -> 0 | K45: ='50-year calcs'!AB218 -> 0 | L45: ='50-year calcs'!AC218 -> 0 | M45: ='50-year calcs'!AD218 -> 0 | N45: ='50-year calcs'!AE218 -> 0 | O45: ='50-year calcs'!AF218 -> 0 | P45: ='50-year calcs'!AG218 -> 0 | Q45: ='50-year calcs'!AH218 -> 0 | R45: ='50-year calcs'!AI218 -> 0 | S45: ='50-year calcs'!AJ218 -> 0 | T45: ='50-year calcs'!AK218 -> 0 | U45: ='50-year calcs'!AL218 -> 0 | V45: ='50-year calcs'!AM218 -> 0 | W45: ='50-year calcs'!AN218 -> 0 | X45: ='50-year calcs'!AO218 -> 0 | Y45: ='50-year calcs'!AP218 -> 0 | Z45: ='50-year calcs'!AQ218 -> 0 | AA45: ='50-year calcs'!AR218 -> 0 | AB45: ='50-year calcs'!AS218 -> 0 | AC45: ='50-year calcs'!AT218 -> 0 | AD45: ='50-year calcs'!AU218 -> 0 | AE45: ='50-year calcs'!AV218 -> 0 | AF45: ='50-year calcs'!AW218 -> 0 | AG45: ='50-year calcs'!AX218 -> 0 | AH45: ='50-year calcs'!AY218 -> 0 | AI45: ='50-year calcs'!AZ218 -> 0 | AJ45: ='50-year calcs'!BA218 -> 0 | AK45: ='50-year calcs'!BB218 -> 0 | AL45: ='50-year calcs'!BC218 -> 0 | AM45: ='50-year calcs'!BD218 -> 0 | AN45: ='50-year calcs'!BE218 -> 0 | AO45: ='50-year calcs'!BF218 -> 0 | AP45: ='50-year calcs'!BG218 -> 0 | AQ45: ='50-year calcs'!BH218 -> 0 | AR45: ='50-year calcs'!BI218 -> 0 | AS45: ='50-year calcs'!BJ218 -> 0 | AT45: ='50-year calcs'!BK218 -> 0 | AU45: ='50-year calcs'!BL218 -> 0 | AV45: ='50-year calcs'!BM218 -> 0 | AW45: ='50-year calcs'!BN218 -> 0 | AX45: ='50-year calcs'!BO218 -> 0 | AY45: ='50-year calcs'!BP218 -> 0 | AZ45: ='50-year calcs'!BQ218 -> 0 | BA45: ='50-year calcs'!BR218 -> 0 | BB45: ='50-year calcs'!BS218 -> 0
B46: =IF('3. Benefit parameters'!B46="","",'3. Benefit parameters'!B46) ->  | C46: ='50-year calcs'!C219 -> 0 | D46: ='50-year calcs'!U219 -> 0 | E46: ='50-year calcs'!V219 -> 0 | F46: ='50-year calcs'!W219 -> 0 | G46: ='50-year calcs'!X219 -> 0 | H46: ='50-year calcs'!Y219 -> 0 | I46: ='50-year calcs'!Z219 -> 0 | J46: ='50-year calcs'!AA219 -> 0 | K46: ='50-year calcs'!AB219 -> 0 | L46: ='50-year calcs'!AC219 -> 0 | M46: ='50-year calcs'!AD219 -> 0 | N46: ='50-year calcs'!AE219 -> 0 | O46: ='50-year calcs'!AF219 -> 0 | P46: ='50-year calcs'!AG219 -> 0 | Q46: ='50-year calcs'!AH219 -> 0 | R46: ='50-year calcs'!AI219 -> 0 | S46: ='50-year calcs'!AJ219 -> 0 | T46: ='50-year calcs'!AK219 -> 0 | U46: ='50-year calcs'!AL219 -> 0 | V46: ='50-year calcs'!AM219 -> 0 | W46: ='50-year calcs'!AN219 -> 0 | X46: ='50-year calcs'!AO219 -> 0 | Y46: ='50-year calcs'!AP219 -> 0 | Z46: ='50-year calcs'!AQ219 -> 0 | AA46: ='50-year calcs'!AR219 -> 0 | AB46: ='50-year calcs'!AS219 -> 0 | AC46: ='50-year calcs'!AT219 -> 0 | AD46: ='50-year calcs'!AU219 -> 0 | AE46: ='50-year calcs'!AV219 -> 0 | AF46: ='50-year calcs'!AW219 -> 0 | AG46: ='50-year calcs'!AX219 -> 0 | AH46: ='50-year calcs'!AY219 -> 0 | AI46: ='50-year calcs'!AZ219 -> 0 | AJ46: ='50-year calcs'!BA219 -> 0 | AK46: ='50-year calcs'!BB219 -> 0 | AL46: ='50-year calcs'!BC219 -> 0 | AM46: ='50-year calcs'!BD219 -> 0 | AN46: ='50-year calcs'!BE219 -> 0 | AO46: ='50-year calcs'!BF219 -> 0 | AP46: ='50-year calcs'!BG219 -> 0 | AQ46: ='50-year calcs'!BH219 -> 0 | AR46: ='50-year calcs'!BI219 -> 0 | AS46: ='50-year calcs'!BJ219 -> 0 | AT46: ='50-year calcs'!BK219 -> 0 | AU46: ='50-year calcs'!BL219 -> 0 | AV46: ='50-year calcs'!BM219 -> 0 | AW46: ='50-year calcs'!BN219 -> 0 | AX46: ='50-year calcs'!BO219 -> 0 | AY46: ='50-year calcs'!BP219 -> 0 | AZ46: ='50-year calcs'!BQ219 -> 0 | BA46: ='50-year calcs'!BR219 -> 0 | BB46: ='50-year calcs'!BS219 -> 0
A48: 3.4 | B48: Category 4. Benefit per year in aggregate
B49: Benefit | C49: Present value | D49: =D$10 -> 2020 | E49: =E$10 -> 2021 | F49: 2022 | G49: 2023 | H49: 2024 | I49: 2025 | J49: 2026 | K49: 2027 | L49: 2028 | M49: 2029 | N49: 2030 | O49: 2031 | P49: 2032 | Q49: 2033 | R49: 2034 | S49: 2035 | T49: 2036 | U49: 2037 | V49: 2038 | W49: 2039 | X49: 2040 | Y49: 2041 | Z49: 2042 | AA49: 2043 | AB49: 2044 | AC49: 2045 | AD49: 2046 | AE49: 2047 | AF49: 2048 | AG49: 2049 | AH49: 2050 | AI49: 2051 | AJ49: 2052 | AK49: 2053 | AL49: 2054 | AM49: 2055 | AN49: 2056 | AO49: 2057 | AP49: 2058 | AQ49: 2059 | AR49: 2060 | AS49: 2061 | AT49: 2062 | AU49: 2063 | AV49: 2064 | AW49: 2065 | AX49: 2066 | AY49: 2067 | AZ49: 2068 | BA49: 2069 | BB49: 2070
B50: =IF('3. Benefit parameters'!B50="","",'3. Benefit parameters'!B50) ->  | C50: ='50-year calcs'!C223 -> 0 | D50: ='50-year calcs'!U223 -> 0 | E50: ='50-year calcs'!V223 -> 0 | F50: ='50-year calcs'!W223 -> 0 | G50: ='50-year calcs'!X223 -> 0 | H50: ='50-year calcs'!Y223 -> 0 | I50: ='50-year calcs'!Z223 -> 0 | J50: ='50-year calcs'!AA223 -> 0 | K50: ='50-year calcs'!AB223 -> 0 | L50: ='50-year calcs'!AC223 -> 0 | M50: ='50-year calcs'!AD223 -> 0 | N50: ='50-year calcs'!AE223 -> 0 | O50: ='50-year calcs'!AF223 -> 0 | P50: ='50-year calcs'!AG223 -> 0 | Q50: ='50-year calcs'!AH223 -> 0 | R50: ='50-year calcs'!AI223 -> 0 | S50: ='50-year calcs'!AJ223 -> 0 | T50: ='50-year calcs'!AK223 -> 0 | U50: ='50-year calcs'!AL223 -> 0 | V50: ='50-year calcs'!AM223 -> 0 | W50: ='50-year calcs'!AN223 -> 0 | X50: ='50-year calcs'!AO223 -> 0 | Y50: ='50-year calcs'!AP223 -> 0 | Z50: ='50-year calcs'!AQ223 -> 0 | AA50: ='50-year calcs'!AR223 -> 0 | AB50: ='50-year calcs'!AS223 -> 0 | AC50: ='50-year calcs'!AT223 -> 0 | AD50: ='50-year calcs'!AU223 -> 0 | AE50: ='50-year calcs'!AV223 -> 0 | AF50: ='50-year calcs'!AW223 -> 0 | AG50: ='50-year calcs'!AX223 -> 0 | AH50: ='50-year calcs'!AY223 -> 0 | AI50: ='50-year calcs'!AZ223 -> 0 | AJ50: ='50-year calcs'!BA223 -> 0 | AK50: ='50-year calcs'!BB223 -> 0 | AL50: ='50-year calcs'!BC223 -> 0 | AM50: ='50-year calcs'!BD223 -> 0 | AN50: ='50-year calcs'!BE223 -> 0 | AO50: ='50-year calcs'!BF223 -> 0 | AP50: ='50-year calcs'!BG223 -> 0 | AQ50: ='50-year calcs'!BH223 -> 0 | AR50: ='50-year calcs'!BI223 -> 0 | AS50: ='50-year calcs'!BJ223 -> 0 | AT50: ='50-year calcs'!BK223 -> 0 | AU50: ='50-year calcs'!BL223 -> 0 | AV50: ='50-year calcs'!BM223 -> 0 | AW50: ='50-year calcs'!BN223 -> 0 | AX50: ='50-year calcs'!BO223 -> 0 | AY50: ='50-year calcs'!BP223 -> 0 | AZ50: ='50-year calcs'!BQ223 -> 0 | BA50: ='50-year calcs'!BR223 -> 0 | BB50: ='50-year calcs'!BS223 -> 0
B51: =IF('3. Benefit parameters'!B51="","",'3. Benefit parameters'!B51) ->  | C51: ='50-year calcs'!C224 -> 0 | D51: ='50-year calcs'!U224 -> 0 | E51: ='50-year calcs'!V224 -> 0 | F51: ='50-year calcs'!W224 -> 0 | G51: ='50-year calcs'!X224 -> 0 | H51: ='50-year calcs'!Y224 -> 0 | I51: ='50-year calcs'!Z224 -> 0 | J51: ='50-year calcs'!AA224 -> 0 | K51: ='50-year calcs'!AB224 -> 0 | L51: ='50-year calcs'!AC224 -> 0 | M51: ='50-year calcs'!AD224 -> 0 | N51: ='50-year calcs'!AE224 -> 0 | O51: ='50-year calcs'!AF224 -> 0 | P51: ='50-year calcs'!AG224 -> 0 | Q51: ='50-year calcs'!AH224 -> 0 | R51: ='50-year calcs'!AI224 -> 0 | S51: ='50-year calcs'!AJ224 -> 0 | T51: ='50-year calcs'!AK224 -> 0 | U51: ='50-year calcs'!AL224 -> 0 | V51: ='50-year calcs'!AM224 -> 0 | W51: ='50-year calcs'!AN224 -> 0 | X51: ='50-year calcs'!AO224 -> 0 | Y51: ='50-year calcs'!AP224 -> 0 | Z51: ='50-year calcs'!AQ224 -> 0 | AA51: ='50-year calcs'!AR224 -> 0 | AB51: ='50-year calcs'!AS224 -> 0 | AC51: ='50-year calcs'!AT224 -> 0 | AD51: ='50-year calcs'!AU224 -> 0 | AE51: ='50-year calcs'!AV224 -> 0 | AF51: ='50-year calcs'!AW224 -> 0 | AG51: ='50-year calcs'!AX224 -> 0 | AH51: ='50-year calcs'!AY224 -> 0 | AI51: ='50-year calcs'!AZ224 -> 0 | AJ51: ='50-year calcs'!BA224 -> 0 | AK51: ='50-year calcs'!BB224 -> 0 | AL51: ='50-year calcs'!BC224 -> 0 | AM51: ='50-year calcs'!BD224 -> 0 | AN51: ='50-year calcs'!BE224 -> 0 | AO51: ='50-year calcs'!BF224 -> 0 | AP51: ='50-year calcs'!BG224 -> 0 | AQ51: ='50-year calcs'!BH224 -> 0 | AR51: ='50-year calcs'!BI224 -> 0 | AS51: ='50-year calcs'!BJ224 -> 0 | AT51: ='50-year calcs'!BK224 -> 0 | AU51: ='50-year calcs'!BL224 -> 0 | AV51: ='50-year calcs'!BM224 -> 0 | AW51: ='50-year calcs'!BN224 -> 0 | AX51: ='50-year calcs'!BO224 -> 0 | AY51: ='50-year calcs'!BP224 -> 0 | AZ51: ='50-year calcs'!BQ224 -> 0 | BA51: ='50-year calcs'!BR224 -> 0 | BB51: ='50-year calcs'!BS224 -> 0
B52: =IF('3. Benefit parameters'!B52="","",'3. Benefit parameters'!B52) ->  | C52: ='50-year calcs'!C225 -> 0 | D52: ='50-year calcs'!U225 -> 0 | E52: ='50-year calcs'!V225 -> 0 | F52: ='50-year calcs'!W225 -> 0 | G52: ='50-year calcs'!X225 -> 0 | H52: ='50-year calcs'!Y225 -> 0 | I52: ='50-year calcs'!Z225 -> 0 | J52: ='50-year calcs'!AA225 -> 0 | K52: ='50-year calcs'!AB225 -> 0 | L52: ='50-year calcs'!AC225 -> 0 | M52: ='50-year calcs'!AD225 -> 0 | N52: ='50-year calcs'!AE225 -> 0 | O52: ='50-year calcs'!AF225 -> 0 | P52: ='50-year calcs'!AG225 -> 0 | Q52: ='50-year calcs'!AH225 -> 0 | R52: ='50-year calcs'!AI225 -> 0 | S52: ='50-year calcs'!AJ225 -> 0 | T52: ='50-year calcs'!AK225 -> 0 | U52: ='50-year calcs'!AL225 -> 0 | V52: ='50-year calcs'!AM225 -> 0 | W52: ='50-year calcs'!AN225 -> 0 | X52: ='50-year calcs'!AO225 -> 0 | Y52: ='50-year calcs'!AP225 -> 0 | Z52: ='50-year calcs'!AQ225 -> 0 | AA52: ='50-year calcs'!AR225 -> 0 | AB52: ='50-year calcs'!AS225 -> 0 | AC52: ='50-year calcs'!AT225 -> 0 | AD52: ='50-year calcs'!AU225 -> 0 | AE52: ='50-year calcs'!AV225 -> 0 | AF52: ='50-year calcs'!AW225 -> 0 | AG52: ='50-year calcs'!AX225 -> 0 | AH52: ='50-year calcs'!AY225 -> 0 | AI52: ='50-year calcs'!AZ225 -> 0 | AJ52: ='50-year calcs'!BA225 -> 0 | AK52: ='50-year calcs'!BB225 -> 0 | AL52: ='50-year calcs'!BC225 -> 0 | AM52: ='50-year calcs'!BD225 -> 0 | AN52: ='50-year calcs'!BE225 -> 0 | AO52: ='50-year calcs'!BF225 -> 0 | AP52: ='50-year calcs'!BG225 -> 0 | AQ52: ='50-year calcs'!BH225 -> 0 | AR52: ='50-year calcs'!BI225 -> 0 | AS52: ='50-year calcs'!BJ225 -> 0 | AT52: ='50-year calcs'!BK225 -> 0 | AU52: ='50-year calcs'!BL225 -> 0 | AV52: ='50-year calcs'!BM225 -> 0 | AW52: ='50-year calcs'!BN225 -> 0 | AX52: ='50-year calcs'!BO225 -> 0 | AY52: ='50-year calcs'!BP225 -> 0 | AZ52: ='50-year calcs'!BQ225 -> 0 | BA52: ='50-year calcs'!BR225 -> 0 | BB52: ='50-year calcs'!BS225 -> 0
B53: =IF('3. Benefit parameters'!B53="","",'3. Benefit parameters'!B53) ->  | C53: ='50-year calcs'!C226 -> 0 | D53: ='50-year calcs'!U226 -> 0 | E53: ='50-year calcs'!V226 -> 0 | F53: ='50-year calcs'!W226 -> 0 | G53: ='50-year calcs'!X226 -> 0 | H53: ='50-year calcs'!Y226 -> 0 | I53: ='50-year calcs'!Z226 -> 0 | J53: ='50-year calcs'!AA226 -> 0 | K53: ='50-year calcs'!AB226 -> 0 | L53: ='50-year calcs'!AC226 -> 0 | M53: ='50-year calcs'!AD226 -> 0 | N53: ='50-year calcs'!AE226 -> 0 | O53: ='50-year calcs'!AF226 -> 0 | P53: ='50-year calcs'!AG226 -> 0 | Q53: ='50-year calcs'!AH226 -> 0 | R53: ='50-year calcs'!AI226 -> 0 | S53: ='50-year calcs'!AJ226 -> 0 | T53: ='50-year calcs'!AK226 -> 0 | U53: ='50-year calcs'!AL226 -> 0 | V53: ='50-year calcs'!AM226 -> 0 | W53: ='50-year calcs'!AN226 -> 0 | X53: ='50-year calcs'!AO226 -> 0 | Y53: ='50-year calcs'!AP226 -> 0 | Z53: ='50-year calcs'!AQ226 -> 0 | AA53: ='50-year calcs'!AR226 -> 0 | AB53: ='50-year calcs'!AS226 -> 0 | AC53: ='50-year calcs'!AT226 -> 0 | AD53: ='50-year calcs'!AU226 -> 0 | AE53: ='50-year calcs'!AV226 -> 0 | AF53: ='50-year calcs'!AW226 -> 0 | AG53: ='50-year calcs'!AX226 -> 0 | AH53: ='50-year calcs'!AY226 -> 0 | AI53: ='50-year calcs'!AZ226 -> 0 | AJ53: ='50-year calcs'!BA226 -> 0 | AK53: ='50-year calcs'!BB226 -> 0 | AL53: ='50-year calcs'!BC226 -> 0 | AM53: ='50-year calcs'!BD226 -> 0 | AN53: ='50-year calcs'!BE226 -> 0 | AO53: ='50-year calcs'!BF226 -> 0 | AP53: ='50-year calcs'!BG226 -> 0 | AQ53: ='50-year calcs'!BH226 -> 0 | AR53: ='50-year calcs'!BI226 -> 0 | AS53: ='50-year calcs'!BJ226 -> 0 | AT53: ='50-year calcs'!BK226 -> 0 | AU53: ='50-year calcs'!BL226 -> 0 | AV53: ='50-year calcs'!BM226 -> 0 | AW53: ='50-year calcs'!BN226 -> 0 | AX53: ='50-year calcs'!BO226 -> 0 | AY53: ='50-year calcs'!BP226 -> 0 | AZ53: ='50-year calcs'!BQ226 -> 0 | BA53: ='50-year calcs'!BR226 -> 0 | BB53: ='50-year calcs'!BS226 -> 0
B54: =IF('3. Benefit parameters'!B54="","",'3. Benefit parameters'!B54) ->  | C54: ='50-year calcs'!C227 -> 0 | D54: ='50-year calcs'!U227 -> 0 | E54: ='50-year calcs'!V227 -> 0 | F54: ='50-year calcs'!W227 -> 0 | G54: ='50-year calcs'!X227 -> 0 | H54: ='50-year calcs'!Y227 -> 0 | I54: ='50-year calcs'!Z227 -> 0 | J54: ='50-year calcs'!AA227 -> 0 | K54: ='50-year calcs'!AB227 -> 0 | L54: ='50-year calcs'!AC227 -> 0 | M54: ='50-year calcs'!AD227 -> 0 | N54: ='50-year calcs'!AE227 -> 0 | O54: ='50-year calcs'!AF227 -> 0 | P54: ='50-year calcs'!AG227 -> 0 | Q54: ='50-year calcs'!AH227 -> 0 | R54: ='50-year calcs'!AI227 -> 0 | S54: ='50-year calcs'!AJ227 -> 0 | T54: ='50-year calcs'!AK227 -> 0 | U54: ='50-year calcs'!AL227 -> 0 | V54: ='50-year calcs'!AM227 -> 0 | W54: ='50-year calcs'!AN227 -> 0 | X54: ='50-year calcs'!AO227 -> 0 | Y54: ='50-year calcs'!AP227 -> 0 | Z54: ='50-year calcs'!AQ227 -> 0 | AA54: ='50-year calcs'!AR227 -> 0 | AB54: ='50-year calcs'!AS227 -> 0 | AC54: ='50-year calcs'!AT227 -> 0 | AD54: ='50-year calcs'!AU227 -> 0 | AE54: ='50-year calcs'!AV227 -> 0 | AF54: ='50-year calcs'!AW227 -> 0 | AG54: ='50-year calcs'!AX227 -> 0 | AH54: ='50-year calcs'!AY227 -> 0 | AI54: ='50-year calcs'!AZ227 -> 0 | AJ54: ='50-year calcs'!BA227 -> 0 | AK54: ='50-year calcs'!BB227 -> 0 | AL54: ='50-year calcs'!BC227 -> 0 | AM54: ='50-year calcs'!BD227 -> 0 | AN54: ='50-year calcs'!BE227 -> 0 | AO54: ='50-year calcs'!BF227 -> 0 | AP54: ='50-year calcs'!BG227 -> 0 | AQ54: ='50-year calcs'!BH227 -> 0 | AR54: ='50-year calcs'!BI227 -> 0 | AS54: ='50-year calcs'!BJ227 -> 0 | AT54: ='50-year calcs'!BK227 -> 0 | AU54: ='50-year calcs'!BL227 -> 0 | AV54: ='50-year calcs'!BM227 -> 0 | AW54: ='50-year calcs'!BN227 -> 0 | AX54: ='50-year calcs'!BO227 -> 0 | AY54: ='50-year calcs'!BP227 -> 0 | AZ54: ='50-year calcs'!BQ227 -> 0 | BA54: ='50-year calcs'!BR227 -> 0 | BB54: ='50-year calcs'!BS227 -> 0
B55: =IF('3. Benefit parameters'!B55="","",'3. Benefit parameters'!B55) ->  | C55: ='50-year calcs'!C228 -> 0 | D55: ='50-year calcs'!U228 -> 0 | E55: ='50-year calcs'!V228 -> 0 | F55: ='50-year calcs'!W228 -> 0 | G55: ='50-year calcs'!X228 -> 0 | H55: ='50-year calcs'!Y228 -> 0 | I55: ='50-year calcs'!Z228 -> 0 | J55: ='50-year calcs'!AA228 -> 0 | K55: ='50-year calcs'!AB228 -> 0 | L55: ='50-year calcs'!AC228 -> 0 | M55: ='50-year calcs'!AD228 -> 0 | N55: ='50-year calcs'!AE228 -> 0 | O55: ='50-year calcs'!AF228 -> 0 | P55: ='50-year calcs'!AG228 -> 0 | Q55: ='50-year calcs'!AH228 -> 0 | R55: ='50-year calcs'!AI228 -> 0 | S55: ='50-year calcs'!AJ228 -> 0 | T55: ='50-year calcs'!AK228 -> 0 | U55: ='50-year calcs'!AL228 -> 0 | V55: ='50-year calcs'!AM228 -> 0 | W55: ='50-year calcs'!AN228 -> 0 | X55: ='50-year calcs'!AO228 -> 0 | Y55: ='50-year calcs'!AP228 -> 0 | Z55: ='50-year calcs'!AQ228 -> 0 | AA55: ='50-year calcs'!AR228 -> 0 | AB55: ='50-year calcs'!AS228 -> 0 | AC55: ='50-year calcs'!AT228 -> 0 | AD55: ='50-year calcs'!AU228 -> 0 | AE55: ='50-year calcs'!AV228 -> 0 | AF55: ='50-year calcs'!AW228 -> 0 | AG55: ='50-year calcs'!AX228 -> 0 | AH55: ='50-year calcs'!AY228 -> 0 | AI55: ='50-year calcs'!AZ228 -> 0 | AJ55: ='50-year calcs'!BA228 -> 0 | AK55: ='50-year calcs'!BB228 -> 0 | AL55: ='50-year calcs'!BC228 -> 0 | AM55: ='50-year calcs'!BD228 -> 0 | AN55: ='50-year calcs'!BE228 -> 0 | AO55: ='50-year calcs'!BF228 -> 0 | AP55: ='50-year calcs'!BG228 -> 0 | AQ55: ='50-year calcs'!BH228 -> 0 | AR55: ='50-year calcs'!BI228 -> 0 | AS55: ='50-year calcs'!BJ228 -> 0 | AT55: ='50-year calcs'!BK228 -> 0 | AU55: ='50-year calcs'!BL228 -> 0 | AV55: ='50-year calcs'!BM228 -> 0 | AW55: ='50-year calcs'!BN228 -> 0 | AX55: ='50-year calcs'!BO228 -> 0 | AY55: ='50-year calcs'!BP228 -> 0 | AZ55: ='50-year calcs'!BQ228 -> 0 | BA55: ='50-year calcs'!BR228 -> 0 | BB55: ='50-year calcs'!BS228 -> 0
B56: =IF('3. Benefit parameters'!B56="","",'3. Benefit parameters'!B56) ->  | C56: ='50-year calcs'!C229 -> 0 | D56: ='50-year calcs'!U229 -> 0 | E56: ='50-year calcs'!V229 -> 0 | F56: ='50-year calcs'!W229 -> 0 | G56: ='50-year calcs'!X229 -> 0 | H56: ='50-year calcs'!Y229 -> 0 | I56: ='50-year calcs'!Z229 -> 0 | J56: ='50-year calcs'!AA229 -> 0 | K56: ='50-year calcs'!AB229 -> 0 | L56: ='50-year calcs'!AC229 -> 0 | M56: ='50-year calcs'!AD229 -> 0 | N56: ='50-year calcs'!AE229 -> 0 | O56: ='50-year calcs'!AF229 -> 0 | P56: ='50-year calcs'!AG229 -> 0 | Q56: ='50-year calcs'!AH229 -> 0 | R56: ='50-year calcs'!AI229 -> 0 | S56: ='50-year calcs'!AJ229 -> 0 | T56: ='50-year calcs'!AK229 -> 0 | U56: ='50-year calcs'!AL229 -> 0 | V56: ='50-year calcs'!AM229 -> 0 | W56: ='50-year calcs'!AN229 -> 0 | X56: ='50-year calcs'!AO229 -> 0 | Y56: ='50-year calcs'!AP229 -> 0 | Z56: ='50-year calcs'!AQ229 -> 0 | AA56: ='50-year calcs'!AR229 -> 0 | AB56: ='50-year calcs'!AS229 -> 0 | AC56: ='50-year calcs'!AT229 -> 0 | AD56: ='50-year calcs'!AU229 -> 0 | AE56: ='50-year calcs'!AV229 -> 0 | AF56: ='50-year calcs'!AW229 -> 0 | AG56: ='50-year calcs'!AX229 -> 0 | AH56: ='50-year calcs'!AY229 -> 0 | AI56: ='50-year calcs'!AZ229 -> 0 | AJ56: ='50-year calcs'!BA229 -> 0 | AK56: ='50-year calcs'!BB229 -> 0 | AL56: ='50-year calcs'!BC229 -> 0 | AM56: ='50-year calcs'!BD229 -> 0 | AN56: ='50-year calcs'!BE229 -> 0 | AO56: ='50-year calcs'!BF229 -> 0 | AP56: ='50-year calcs'!BG229 -> 0 | AQ56: ='50-year calcs'!BH229 -> 0 | AR56: ='50-year calcs'!BI229 -> 0 | AS56: ='50-year calcs'!BJ229 -> 0 | AT56: ='50-year calcs'!BK229 -> 0 | AU56: ='50-year calcs'!BL229 -> 0 | AV56: ='50-year calcs'!BM229 -> 0 | AW56: ='50-year calcs'!BN229 -> 0 | AX56: ='50-year calcs'!BO229 -> 0 | AY56: ='50-year calcs'!BP229 -> 0 | AZ56: ='50-year calcs'!BQ229 -> 0 | BA56: ='50-year calcs'!BR229 -> 0 | BB56: ='50-year calcs'!BS229 -> 0
B57: =IF('3. Benefit parameters'!B57="","",'3. Benefit parameters'!B57) ->  | C57: ='50-year calcs'!C230 -> 0 | D57: ='50-year calcs'!U230 -> 0 | E57: ='50-year calcs'!V230 -> 0 | F57: ='50-year calcs'!W230 -> 0 | G57: ='50-year calcs'!X230 -> 0 | H57: ='50-year calcs'!Y230 -> 0 | I57: ='50-year calcs'!Z230 -> 0 | J57: ='50-year calcs'!AA230 -> 0 | K57: ='50-year calcs'!AB230 -> 0 | L57: ='50-year calcs'!AC230 -> 0 | M57: ='50-year calcs'!AD230 -> 0 | N57: ='50-year calcs'!AE230 -> 0 | O57: ='50-year calcs'!AF230 -> 0 | P57: ='50-year calcs'!AG230 -> 0 | Q57: ='50-year calcs'!AH230 -> 0 | R57: ='50-year calcs'!AI230 -> 0 | S57: ='50-year calcs'!AJ230 -> 0 | T57: ='50-year calcs'!AK230 -> 0 | U57: ='50-year calcs'!AL230 -> 0 | V57: ='50-year calcs'!AM230 -> 0 | W57: ='50-year calcs'!AN230 -> 0 | X57: ='50-year calcs'!AO230 -> 0 | Y57: ='50-year calcs'!AP230 -> 0 | Z57: ='50-year calcs'!AQ230 -> 0 | AA57: ='50-year calcs'!AR230 -> 0 | AB57: ='50-year calcs'!AS230 -> 0 | AC57: ='50-year calcs'!AT230 -> 0 | AD57: ='50-year calcs'!AU230 -> 0 | AE57: ='50-year calcs'!AV230 -> 0 | AF57: ='50-year calcs'!AW230 -> 0 | AG57: ='50-year calcs'!AX230 -> 0 | AH57: ='50-year calcs'!AY230 -> 0 | AI57: ='50-year calcs'!AZ230 -> 0 | AJ57: ='50-year calcs'!BA230 -> 0 | AK57: ='50-year calcs'!BB230 -> 0 | AL57: ='50-year calcs'!BC230 -> 0 | AM57: ='50-year calcs'!BD230 -> 0 | AN57: ='50-year calcs'!BE230 -> 0 | AO57: ='50-year calcs'!BF230 -> 0 | AP57: ='50-year calcs'!BG230 -> 0 | AQ57: ='50-year calcs'!BH230 -> 0 | AR57: ='50-year calcs'!BI230 -> 0 | AS57: ='50-year calcs'!BJ230 -> 0 | AT57: ='50-year calcs'!BK230 -> 0 | AU57: ='50-year calcs'!BL230 -> 0 | AV57: ='50-year calcs'!BM230 -> 0 | AW57: ='50-year calcs'!BN230 -> 0 | AX57: ='50-year calcs'!BO230 -> 0 | AY57: ='50-year calcs'!BP230 -> 0 | AZ57: ='50-year calcs'!BQ230 -> 0 | BA57: ='50-year calcs'!BR230 -> 0 | BB57: ='50-year calcs'!BS230 -> 0
B58: =IF('3. Benefit parameters'!B58="","",'3. Benefit parameters'!B58) ->  | C58: ='50-year calcs'!C231 -> 0 | D58: ='50-year calcs'!U231 -> 0 | E58: ='50-year calcs'!V231 -> 0 | F58: ='50-year calcs'!W231 -> 0 | G58: ='50-year calcs'!X231 -> 0 | H58: ='50-year calcs'!Y231 -> 0 | I58: ='50-year calcs'!Z231 -> 0 | J58: ='50-year calcs'!AA231 -> 0 | K58: ='50-year calcs'!AB231 -> 0 | L58: ='50-year calcs'!AC231 -> 0 | M58: ='50-year calcs'!AD231 -> 0 | N58: ='50-year calcs'!AE231 -> 0 | O58: ='50-year calcs'!AF231 -> 0 | P58: ='50-year calcs'!AG231 -> 0 | Q58: ='50-year calcs'!AH231 -> 0 | R58: ='50-year calcs'!AI231 -> 0 | S58: ='50-year calcs'!AJ231 -> 0 | T58: ='50-year calcs'!AK231 -> 0 | U58: ='50-year calcs'!AL231 -> 0 | V58: ='50-year calcs'!AM231 -> 0 | W58: ='50-year calcs'!AN231 -> 0 | X58: ='50-year calcs'!AO231 -> 0 | Y58: ='50-year calcs'!AP231 -> 0 | Z58: ='50-year calcs'!AQ231 -> 0 | AA58: ='50-year calcs'!AR231 -> 0 | AB58: ='50-year calcs'!AS231 -> 0 | AC58: ='50-year calcs'!AT231 -> 0 | AD58: ='50-year calcs'!AU231 -> 0 | AE58: ='50-year calcs'!AV231 -> 0 | AF58: ='50-year calcs'!AW231 -> 0 | AG58: ='50-year calcs'!AX231 -> 0 | AH58: ='50-year calcs'!AY231 -> 0 | AI58: ='50-year calcs'!AZ231 -> 0 | AJ58: ='50-year calcs'!BA231 -> 0 | AK58: ='50-year calcs'!BB231 -> 0 | AL58: ='50-year calcs'!BC231 -> 0 | AM58: ='50-year calcs'!BD231 -> 0 | AN58: ='50-year calcs'!BE231 -> 0 | AO58: ='50-year calcs'!BF231 -> 0 | AP58: ='50-year calcs'!BG231 -> 0 | AQ58: ='50-year calcs'!BH231 -> 0 | AR58: ='50-year calcs'!BI231 -> 0 | AS58: ='50-year calcs'!BJ231 -> 0 | AT58: ='50-year calcs'!BK231 -> 0 | AU58: ='50-year calcs'!BL231 -> 0 | AV58: ='50-year calcs'!BM231 -> 0 | AW58: ='50-year calcs'!BN231 -> 0 | AX58: ='50-year calcs'!BO231 -> 0 | AY58: ='50-year calcs'!BP231 -> 0 | AZ58: ='50-year calcs'!BQ231 -> 0 | BA58: ='50-year calcs'!BR231 -> 0 | BB58: ='50-year calcs'!BS231 -> 0
B59: =IF('3. Benefit parameters'!B59="","",'3. Benefit parameters'!B59) ->  | C59: ='50-year calcs'!C232 -> 0 | D59: ='50-year calcs'!U232 -> 0 | E59: ='50-year calcs'!V232 -> 0 | F59: ='50-year calcs'!W232 -> 0 | G59: ='50-year calcs'!X232 -> 0 | H59: ='50-year calcs'!Y232 -> 0 | I59: ='50-year calcs'!Z232 -> 0 | J59: ='50-year calcs'!AA232 -> 0 | K59: ='50-year calcs'!AB232 -> 0 | L59: ='50-year calcs'!AC232 -> 0 | M59: ='50-year calcs'!AD232 -> 0 | N59: ='50-year calcs'!AE232 -> 0 | O59: ='50-year calcs'!AF232 -> 0 | P59: ='50-year calcs'!AG232 -> 0 | Q59: ='50-year calcs'!AH232 -> 0 | R59: ='50-year calcs'!AI232 -> 0 | S59: ='50-year calcs'!AJ232 -> 0 | T59: ='50-year calcs'!AK232 -> 0 | U59: ='50-year calcs'!AL232 -> 0 | V59: ='50-year calcs'!AM232 -> 0 | W59: ='50-year calcs'!AN232 -> 0 | X59: ='50-year calcs'!AO232 -> 0 | Y59: ='50-year calcs'!AP232 -> 0 | Z59: ='50-year calcs'!AQ232 -> 0 | AA59: ='50-year calcs'!AR232 -> 0 | AB59: ='50-year calcs'!AS232 -> 0 | AC59: ='50-year calcs'!AT232 -> 0 | AD59: ='50-year calcs'!AU232 -> 0 | AE59: ='50-year calcs'!AV232 -> 0 | AF59: ='50-year calcs'!AW232 -> 0 | AG59: ='50-year calcs'!AX232 -> 0 | AH59: ='50-year calcs'!AY232 -> 0 | AI59: ='50-year calcs'!AZ232 -> 0 | AJ59: ='50-year calcs'!BA232 -> 0 | AK59: ='50-year calcs'!BB232 -> 0 | AL59: ='50-year calcs'!BC232 -> 0 | AM59: ='50-year calcs'!BD232 -> 0 | AN59: ='50-year calcs'!BE232 -> 0 | AO59: ='50-year calcs'!BF232 -> 0 | AP59: ='50-year calcs'!BG232 -> 0 | AQ59: ='50-year calcs'!BH232 -> 0 | AR59: ='50-year calcs'!BI232 -> 0 | AS59: ='50-year calcs'!BJ232 -> 0 | AT59: ='50-year calcs'!BK232 -> 0 | AU59: ='50-year calcs'!BL232 -> 0 | AV59: ='50-year calcs'!BM232 -> 0 | AW59: ='50-year calcs'!BN232 -> 0 | AX59: ='50-year calcs'!BO232 -> 0 | AY59: ='50-year calcs'!BP232 -> 0 | AZ59: ='50-year calcs'!BQ232 -> 0 | BA59: ='50-year calcs'!BR232 -> 0 | BB59: ='50-year calcs'!BS232 -> 0
A61: 3.5 | B61: Category 5. Delay or reduction in cost
B62: Benefit | C62: Present value | D62: =D$10 -> 2020 | E62: =E$10 -> 2021 | F62: 2022 | G62: 2023 | H62: 2024 | I62: 2025 | J62: 2026 | K62: 2027 | L62: 2028 | M62: 2029 | N62: 2030 | O62: 2031 | P62: 2032 | Q62: 2033 | R62: 2034 | S62: 2035 | T62: 2036 | U62: 2037 | V62: 2038 | W62: 2039 | X62: 2040 | Y62: 2041 | Z62: 2042 | AA62: 2043 | AB62: 2044 | AC62: 2045 | AD62: 2046 | AE62: 2047 | AF62: 2048 | AG62: 2049 | AH62: 2050 | AI62: 2051 | AJ62: 2052 | AK62: 2053 | AL62: 2054 | AM62: 2055 | AN62: 2056 | AO62: 2057 | AP62: 2058 | AQ62: 2059 | AR62: 2060 | AS62: 2061 | AT62: 2062 | AU62: 2063 | AV62: 2064 | AW62: 2065 | AX62: 2066 | AY62: 2067 | AZ62: 2068 | BA62: 2069 | BB62: 2070
B63: =IF('3. Benefit parameters'!B63="","",'3. Benefit parameters'!B63) ->  | C63: ='50-year calcs'!C236 -> 0 | D63: ='50-year calcs'!U236 -> 0 | E63: ='50-year calcs'!V236 -> 0 | F63: ='50-year calcs'!W236 -> 0 | G63: ='50-year calcs'!X236 -> 0 | H63: ='50-year calcs'!Y236 -> 0 | I63: ='50-year calcs'!Z236 -> 0 | J63: ='50-year calcs'!AA236 -> 0 | K63: ='50-year calcs'!AB236 -> 0 | L63: ='50-year calcs'!AC236 -> 0 | M63: ='50-year calcs'!AD236 -> 0 | N63: ='50-year calcs'!AE236 -> 0 | O63: ='50-year calcs'!AF236 -> 0 | P63: ='50-year calcs'!AG236 -> 0 | Q63: ='50-year calcs'!AH236 -> 0 | R63: ='50-year calcs'!AI236 -> 0 | S63: ='50-year calcs'!AJ236 -> 0 | T63: ='50-year calcs'!AK236 -> 0 | U63: ='50-year calcs'!AL236 -> 0 | V63: ='50-year calcs'!AM236 -> 0 | W63: ='50-year calcs'!AN236 -> 0 | X63: ='50-year calcs'!AO236 -> 0 | Y63: ='50-year calcs'!AP236 -> 0 | Z63: ='50-year calcs'!AQ236 -> 0 | AA63: ='50-year calcs'!AR236 -> 0 | AB63: ='50-year calcs'!AS236 -> 0 | AC63: ='50-year calcs'!AT236 -> 0 | AD63: ='50-year calcs'!AU236 -> 0 | AE63: ='50-year calcs'!AV236 -> 0 | AF63: ='50-year calcs'!AW236 -> 0 | AG63: ='50-year calcs'!AX236 -> 0 | AH63: ='50-year calcs'!AY236 -> 0 | AI63: ='50-year calcs'!AZ236 -> 0 | AJ63: ='50-year calcs'!BA236 -> 0 | AK63: ='50-year calcs'!BB236 -> 0 | AL63: ='50-year calcs'!BC236 -> 0 | AM63: ='50-year calcs'!BD236 -> 0 | AN63: ='50-year calcs'!BE236 -> 0 | AO63: ='50-year calcs'!BF236 -> 0 | AP63: ='50-year calcs'!BG236 -> 0 | AQ63: ='50-year calcs'!BH236 -> 0 | AR63: ='50-year calcs'!BI236 -> 0 | AS63: ='50-year calcs'!BJ236 -> 0 | AT63: ='50-year calcs'!BK236 -> 0 | AU63: ='50-year calcs'!BL236 -> 0 | AV63: ='50-year calcs'!BM236 -> 0 | AW63: ='50-year calcs'!BN236 -> 0 | AX63: ='50-year calcs'!BO236 -> 0 | AY63: ='50-year calcs'!BP236 -> 0 | AZ63: ='50-year calcs'!BQ236 -> 0 | BA63: ='50-year calcs'!BR236 -> 0 | BB63: ='50-year calcs'!BS236 -> 0
B64: =IF('3. Benefit parameters'!B64="","",'3. Benefit parameters'!B64) ->  | C64: ='50-year calcs'!C237 -> 0 | D64: ='50-year calcs'!U237 -> 0 | E64: ='50-year calcs'!V237 -> 0 | F64: ='50-year calcs'!W237 -> 0 | G64: ='50-year calcs'!X237 -> 0 | H64: ='50-year calcs'!Y237 -> 0 | I64: ='50-year calcs'!Z237 -> 0 | J64: ='50-year calcs'!AA237 -> 0 | K64: ='50-year calcs'!AB237 -> 0 | L64: ='50-year calcs'!AC237 -> 0 | M64: ='50-year calcs'!AD237 -> 0 | N64: ='50-year calcs'!AE237 -> 0 | O64: ='50-year calcs'!AF237 -> 0 | P64: ='50-year calcs'!AG237 -> 0 | Q64: ='50-year calcs'!AH237 -> 0 | R64: ='50-year calcs'!AI237 -> 0 | S64: ='50-year calcs'!AJ237 -> 0 | T64: ='50-year calcs'!AK237 -> 0 | U64: ='50-year calcs'!AL237 -> 0 | V64: ='50-year calcs'!AM237 -> 0 | W64: ='50-year calcs'!AN237 -> 0 | X64: ='50-year calcs'!AO237 -> 0 | Y64: ='50-year calcs'!AP237 -> 0 | Z64: ='50-year calcs'!AQ237 -> 0 | AA64: ='50-year calcs'!AR237 -> 0 | AB64: ='50-year calcs'!AS237 -> 0 | AC64: ='50-year calcs'!AT237 -> 0 | AD64: ='50-year calcs'!AU237 -> 0 | AE64: ='50-year calcs'!AV237 -> 0 | AF64: ='50-year calcs'!AW237 -> 0 | AG64: ='50-year calcs'!AX237 -> 0 | AH64: ='50-year calcs'!AY237 -> 0 | AI64: ='50-year calcs'!AZ237 -> 0 | AJ64: ='50-year calcs'!BA237 -> 0 | AK64: ='50-year calcs'!BB237 -> 0 | AL64: ='50-year calcs'!BC237 -> 0 | AM64: ='50-year calcs'!BD237 -> 0 | AN64: ='50-year calcs'!BE237 -> 0 | AO64: ='50-year calcs'!BF237 -> 0 | AP64: ='50-year calcs'!BG237 -> 0 | AQ64: ='50-year calcs'!BH237 -> 0 | AR64: ='50-year calcs'!BI237 -> 0 | AS64: ='50-year calcs'!BJ237 -> 0 | AT64: ='50-year calcs'!BK237 -> 0 | AU64: ='50-year calcs'!BL237 -> 0 | AV64: ='50-year calcs'!BM237 -> 0 | AW64: ='50-year calcs'!BN237 -> 0 | AX64: ='50-year calcs'!BO237 -> 0 | AY64: ='50-year calcs'!BP237 -> 0 | AZ64: ='50-year calcs'!BQ237 -> 0 | BA64: ='50-year calcs'!BR237 -> 0 | BB64: ='50-year calcs'!BS237 -> 0
B65: =IF('3. Benefit parameters'!B65="","",'3. Benefit parameters'!B65) ->  | C65: ='50-year calcs'!C238 -> 0 | D65: ='50-year calcs'!U238 -> 0 | E65: ='50-year calcs'!V238 -> 0 | F65: ='50-year calcs'!W238 -> 0 | G65: ='50-year calcs'!X238 -> 0 | H65: ='50-year calcs'!Y238 -> 0 | I65: ='50-year calcs'!Z238 -> 0 | J65: ='50-year calcs'!AA238 -> 0 | K65: ='50-year calcs'!AB238 -> 0 | L65: ='50-year calcs'!AC238 -> 0 | M65: ='50-year calcs'!AD238 -> 0 | N65: ='50-year calcs'!AE238 -> 0 | O65: ='50-year calcs'!AF238 -> 0 | P65: ='50-year calcs'!AG238 -> 0 | Q65: ='50-year calcs'!AH238 -> 0 | R65: ='50-year calcs'!AI238 -> 0 | S65: ='50-year calcs'!AJ238 -> 0 | T65: ='50-year calcs'!AK238 -> 0 | U65: ='50-year calcs'!AL238 -> 0 | V65: ='50-year calcs'!AM238 -> 0 | W65: ='50-year calcs'!AN238 -> 0 | X65: ='50-year calcs'!AO238 -> 0 | Y65: ='50-year calcs'!AP238 -> 0 | Z65: ='50-year calcs'!AQ238 -> 0 | AA65: ='50-year calcs'!AR238 -> 0 | AB65: ='50-year calcs'!AS238 -> 0 | AC65: ='50-year calcs'!AT238 -> 0 | AD65: ='50-year calcs'!AU238 -> 0 | AE65: ='50-year calcs'!AV238 -> 0 | AF65: ='50-year calcs'!AW238 -> 0 | AG65: ='50-year calcs'!AX238 -> 0 | AH65: ='50-year calcs'!AY238 -> 0 | AI65: ='50-year calcs'!AZ238 -> 0 | AJ65: ='50-year calcs'!BA238 -> 0 | AK65: ='50-year calcs'!BB238 -> 0 | AL65: ='50-year calcs'!BC238 -> 0 | AM65: ='50-year calcs'!BD238 -> 0 | AN65: ='50-year calcs'!BE238 -> 0 | AO65: ='50-year calcs'!BF238 -> 0 | AP65: ='50-year calcs'!BG238 -> 0 | AQ65: ='50-year calcs'!BH238 -> 0 | AR65: ='50-year calcs'!BI238 -> 0 | AS65: ='50-year calcs'!BJ238 -> 0 | AT65: ='50-year calcs'!BK238 -> 0 | AU65: ='50-year calcs'!BL238 -> 0 | AV65: ='50-year calcs'!BM238 -> 0 | AW65: ='50-year calcs'!BN238 -> 0 | AX65: ='50-year calcs'!BO238 -> 0 | AY65: ='50-year calcs'!BP238 -> 0 | AZ65: ='50-year calcs'!BQ238 -> 0 | BA65: ='50-year calcs'!BR238 -> 0 | BB65: ='50-year calcs'!BS238 -> 0
B66: =IF('3. Benefit parameters'!B66="","",'3. Benefit parameters'!B66) ->  | C66: ='50-year calcs'!C239 -> 0 | D66: ='50-year calcs'!U239 -> 0 | E66: ='50-year calcs'!V239 -> 0 | F66: ='50-year calcs'!W239 -> 0 | G66: ='50-year calcs'!X239 -> 0 | H66: ='50-year calcs'!Y239 -> 0 | I66: ='50-year calcs'!Z239 -> 0 | J66: ='50-year calcs'!AA239 -> 0 | K66: ='50-year calcs'!AB239 -> 0 | L66: ='50-year calcs'!AC239 -> 0 | M66: ='50-year calcs'!AD239 -> 0 | N66: ='50-year calcs'!AE239 -> 0 | O66: ='50-year calcs'!AF239 -> 0 | P66: ='50-year calcs'!AG239 -> 0 | Q66: ='50-year calcs'!AH239 -> 0 | R66: ='50-year calcs'!AI239 -> 0 | S66: ='50-year calcs'!AJ239 -> 0 | T66: ='50-year calcs'!AK239 -> 0 | U66: ='50-year calcs'!AL239 -> 0 | V66: ='50-year calcs'!AM239 -> 0 | W66: ='50-year calcs'!AN239 -> 0 | X66: ='50-year calcs'!AO239 -> 0 | Y66: ='50-year calcs'!AP239 -> 0 | Z66: ='50-year calcs'!AQ239 -> 0 | AA66: ='50-year calcs'!AR239 -> 0 | AB66: ='50-year calcs'!AS239 -> 0 | AC66: ='50-year calcs'!AT239 -> 0 | AD66: ='50-year calcs'!AU239 -> 0 | AE66: ='50-year calcs'!AV239 -> 0 | AF66: ='50-year calcs'!AW239 -> 0 | AG66: ='50-year calcs'!AX239 -> 0 | AH66: ='50-year calcs'!AY239 -> 0 | AI66: ='50-year calcs'!AZ239 -> 0 | AJ66: ='50-year calcs'!BA239 -> 0 | AK66: ='50-year calcs'!BB239 -> 0 | AL66: ='50-year calcs'!BC239 -> 0 | AM66: ='50-year calcs'!BD239 -> 0 | AN66: ='50-year calcs'!BE239 -> 0 | AO66: ='50-year calcs'!BF239 -> 0 | AP66: ='50-year calcs'!BG239 -> 0 | AQ66: ='50-year calcs'!BH239 -> 0 | AR66: ='50-year calcs'!BI239 -> 0 | AS66: ='50-year calcs'!BJ239 -> 0 | AT66: ='50-year calcs'!BK239 -> 0 | AU66: ='50-year calcs'!BL239 -> 0 | AV66: ='50-year calcs'!BM239 -> 0 | AW66: ='50-year calcs'!BN239 -> 0 | AX66: ='50-year calcs'!BO239 -> 0 | AY66: ='50-year calcs'!BP239 -> 0 | AZ66: ='50-year calcs'!BQ239 -> 0 | BA66: ='50-year calcs'!BR239 -> 0 | BB66: ='50-year calcs'!BS239 -> 0
B67: =IF('3. Benefit parameters'!B67="","",'3. Benefit parameters'!B67) ->  | C67: ='50-year calcs'!C240 -> 0 | D67: ='50-year calcs'!U240 -> 0 | E67: ='50-year calcs'!V240 -> 0 | F67: ='50-year calcs'!W240 -> 0 | G67: ='50-year calcs'!X240 -> 0 | H67: ='50-year calcs'!Y240 -> 0 | I67: ='50-year calcs'!Z240 -> 0 | J67: ='50-year calcs'!AA240 -> 0 | K67: ='50-year calcs'!AB240 -> 0 | L67: ='50-year calcs'!AC240 -> 0 | M67: ='50-year calcs'!AD240 -> 0 | N67: ='50-year calcs'!AE240 -> 0 | O67: ='50-year calcs'!AF240 -> 0 | P67: ='50-year calcs'!AG240 -> 0 | Q67: ='50-year calcs'!AH240 -> 0 | R67: ='50-year calcs'!AI240 -> 0 | S67: ='50-year calcs'!AJ240 -> 0 | T67: ='50-year calcs'!AK240 -> 0 | U67: ='50-year calcs'!AL240 -> 0 | V67: ='50-year calcs'!AM240 -> 0 | W67: ='50-year calcs'!AN240 -> 0 | X67: ='50-year calcs'!AO240 -> 0 | Y67: ='50-year calcs'!AP240 -> 0 | Z67: ='50-year calcs'!AQ240 -> 0 | AA67: ='50-year calcs'!AR240 -> 0 | AB67: ='50-year calcs'!AS240 -> 0 | AC67: ='50-year calcs'!AT240 -> 0 | AD67: ='50-year calcs'!AU240 -> 0 | AE67: ='50-year calcs'!AV240 -> 0 | AF67: ='50-year calcs'!AW240 -> 0 | AG67: ='50-year calcs'!AX240 -> 0 | AH67: ='50-year calcs'!AY240 -> 0 | AI67: ='50-year calcs'!AZ240 -> 0 | AJ67: ='50-year calcs'!BA240 -> 0 | AK67: ='50-year calcs'!BB240 -> 0 | AL67: ='50-year calcs'!BC240 -> 0 | AM67: ='50-year calcs'!BD240 -> 0 | AN67: ='50-year calcs'!BE240 -> 0 | AO67: ='50-year calcs'!BF240 -> 0 | AP67: ='50-year calcs'!BG240 -> 0 | AQ67: ='50-year calcs'!BH240 -> 0 | AR67: ='50-year calcs'!BI240 -> 0 | AS67: ='50-year calcs'!BJ240 -> 0 | AT67: ='50-year calcs'!BK240 -> 0 | AU67: ='50-year calcs'!BL240 -> 0 | AV67: ='50-year calcs'!BM240 -> 0 | AW67: ='50-year calcs'!BN240 -> 0 | AX67: ='50-year calcs'!BO240 -> 0 | AY67: ='50-year calcs'!BP240 -> 0 | AZ67: ='50-year calcs'!BQ240 -> 0 | BA67: ='50-year calcs'!BR240 -> 0 | BB67: ='50-year calcs'!BS240 -> 0
B68: =IF('3. Benefit parameters'!B68="","",'3. Benefit parameters'!B68) ->  | C68: ='50-year calcs'!C241 -> 0 | D68: ='50-year calcs'!U241 -> 0 | E68: ='50-year calcs'!V241 -> 0 | F68: ='50-year calcs'!W241 -> 0 | G68: ='50-year calcs'!X241 -> 0 | H68: ='50-year calcs'!Y241 -> 0 | I68: ='50-year calcs'!Z241 -> 0 | J68: ='50-year calcs'!AA241 -> 0 | K68: ='50-year calcs'!AB241 -> 0 | L68: ='50-year calcs'!AC241 -> 0 | M68: ='50-year calcs'!AD241 -> 0 | N68: ='50-year calcs'!AE241 -> 0 | O68: ='50-year calcs'!AF241 -> 0 | P68: ='50-year calcs'!AG241 -> 0 | Q68: ='50-year calcs'!AH241 -> 0 | R68: ='50-year calcs'!AI241 -> 0 | S68: ='50-year calcs'!AJ241 -> 0 | T68: ='50-year calcs'!AK241 -> 0 | U68: ='50-year calcs'!AL241 -> 0 | V68: ='50-year calcs'!AM241 -> 0 | W68: ='50-year calcs'!AN241 -> 0 | X68: ='50-year calcs'!AO241 -> 0 | Y68: ='50-year calcs'!AP241 -> 0 | Z68: ='50-year calcs'!AQ241 -> 0 | AA68: ='50-year calcs'!AR241 -> 0 | AB68: ='50-year calcs'!AS241 -> 0 | AC68: ='50-year calcs'!AT241 -> 0 | AD68: ='50-year calcs'!AU241 -> 0 | AE68: ='50-year calcs'!AV241 -> 0 | AF68: ='50-year calcs'!AW241 -> 0 | AG68: ='50-year calcs'!AX241 -> 0 | AH68: ='50-year calcs'!AY241 -> 0 | AI68: ='50-year calcs'!AZ241 -> 0 | AJ68: ='50-year calcs'!BA241 -> 0 | AK68: ='50-year calcs'!BB241 -> 0 | AL68: ='50-year calcs'!BC241 -> 0 | AM68: ='50-year calcs'!BD241 -> 0 | AN68: ='50-year calcs'!BE241 -> 0 | AO68: ='50-year calcs'!BF241 -> 0 | AP68: ='50-year calcs'!BG241 -> 0 | AQ68: ='50-year calcs'!BH241 -> 0 | AR68: ='50-year calcs'!BI241 -> 0 | AS68: ='50-year calcs'!BJ241 -> 0 | AT68: ='50-year calcs'!BK241 -> 0 | AU68: ='50-year calcs'!BL241 -> 0 | AV68: ='50-year calcs'!BM241 -> 0 | AW68: ='50-year calcs'!BN241 -> 0 | AX68: ='50-year calcs'!BO241 -> 0 | AY68: ='50-year calcs'!BP241 -> 0 | AZ68: ='50-year calcs'!BQ241 -> 0 | BA68: ='50-year calcs'!BR241 -> 0 | BB68: ='50-year calcs'!BS241 -> 0
B69: =IF('3. Benefit parameters'!B69="","",'3. Benefit parameters'!B69) ->  | C69: ='50-year calcs'!C242 -> 0 | D69: ='50-year calcs'!U242 -> 0 | E69: ='50-year calcs'!V242 -> 0 | F69: ='50-year calcs'!W242 -> 0 | G69: ='50-year calcs'!X242 -> 0 | H69: ='50-year calcs'!Y242 -> 0 | I69: ='50-year calcs'!Z242 -> 0 | J69: ='50-year calcs'!AA242 -> 0 | K69: ='50-year calcs'!AB242 -> 0 | L69: ='50-year calcs'!AC242 -> 0 | M69: ='50-year calcs'!AD242 -> 0 | N69: ='50-year calcs'!AE242 -> 0 | O69: ='50-year calcs'!AF242 -> 0 | P69: ='50-year calcs'!AG242 -> 0 | Q69: ='50-year calcs'!AH242 -> 0 | R69: ='50-year calcs'!AI242 -> 0 | S69: ='50-year calcs'!AJ242 -> 0 | T69: ='50-year calcs'!AK242 -> 0 | U69: ='50-year calcs'!AL242 -> 0 | V69: ='50-year calcs'!AM242 -> 0 | W69: ='50-year calcs'!AN242 -> 0 | X69: ='50-year calcs'!AO242 -> 0 | Y69: ='50-year calcs'!AP242 -> 0 | Z69: ='50-year calcs'!AQ242 -> 0 | AA69: ='50-year calcs'!AR242 -> 0 | AB69: ='50-year calcs'!AS242 -> 0 | AC69: ='50-year calcs'!AT242 -> 0 | AD69: ='50-year calcs'!AU242 -> 0 | AE69: ='50-year calcs'!AV242 -> 0 | AF69: ='50-year calcs'!AW242 -> 0 | AG69: ='50-year calcs'!AX242 -> 0 | AH69: ='50-year calcs'!AY242 -> 0 | AI69: ='50-year calcs'!AZ242 -> 0 | AJ69: ='50-year calcs'!BA242 -> 0 | AK69: ='50-year calcs'!BB242 -> 0 | AL69: ='50-year calcs'!BC242 -> 0 | AM69: ='50-year calcs'!BD242 -> 0 | AN69: ='50-year calcs'!BE242 -> 0 | AO69: ='50-year calcs'!BF242 -> 0 | AP69: ='50-year calcs'!BG242 -> 0 | AQ69: ='50-year calcs'!BH242 -> 0 | AR69: ='50-year calcs'!BI242 -> 0 | AS69: ='50-year calcs'!BJ242 -> 0 | AT69: ='50-year calcs'!BK242 -> 0 | AU69: ='50-year calcs'!BL242 -> 0 | AV69: ='50-year calcs'!BM242 -> 0 | AW69: ='50-year calcs'!BN242 -> 0 | AX69: ='50-year calcs'!BO242 -> 0 | AY69: ='50-year calcs'!BP242 -> 0 | AZ69: ='50-year calcs'!BQ242 -> 0 | BA69: ='50-year calcs'!BR242 -> 0 | BB69: ='50-year calcs'!BS242 -> 0
B70: =IF('3. Benefit parameters'!B70="","",'3. Benefit parameters'!B70) ->  | C70: ='50-year calcs'!C243 -> 0 | D70: ='50-year calcs'!U243 -> 0 | E70: ='50-year calcs'!V243 -> 0 | F70: ='50-year calcs'!W243 -> 0 | G70: ='50-year calcs'!X243 -> 0 | H70: ='50-year calcs'!Y243 -> 0 | I70: ='50-year calcs'!Z243 -> 0 | J70: ='50-year calcs'!AA243 -> 0 | K70: ='50-year calcs'!AB243 -> 0 | L70: ='50-year calcs'!AC243 -> 0 | M70: ='50-year calcs'!AD243 -> 0 | N70: ='50-year calcs'!AE243 -> 0 | O70: ='50-year calcs'!AF243 -> 0 | P70: ='50-year calcs'!AG243 -> 0 | Q70: ='50-year calcs'!AH243 -> 0 | R70: ='50-year calcs'!AI243 -> 0 | S70: ='50-year calcs'!AJ243 -> 0 | T70: ='50-year calcs'!AK243 -> 0 | U70: ='50-year calcs'!AL243 -> 0 | V70: ='50-year calcs'!AM243 -> 0 | W70: ='50-year calcs'!AN243 -> 0 | X70: ='50-year calcs'!AO243 -> 0 | Y70: ='50-year calcs'!AP243 -> 0 | Z70: ='50-year calcs'!AQ243 -> 0 | AA70: ='50-year calcs'!AR243 -> 0 | AB70: ='50-year calcs'!AS243 -> 0 | AC70: ='50-year calcs'!AT243 -> 0 | AD70: ='50-year calcs'!AU243 -> 0 | AE70: ='50-year calcs'!AV243 -> 0 | AF70: ='50-year calcs'!AW243 -> 0 | AG70: ='50-year calcs'!AX243 -> 0 | AH70: ='50-year calcs'!AY243 -> 0 | AI70: ='50-year calcs'!AZ243 -> 0 | AJ70: ='50-year calcs'!BA243 -> 0 | AK70: ='50-year calcs'!BB243 -> 0 | AL70: ='50-year calcs'!BC243 -> 0 | AM70: ='50-year calcs'!BD243 -> 0 | AN70: ='50-year calcs'!BE243 -> 0 | AO70: ='50-year calcs'!BF243 -> 0 | AP70: ='50-year calcs'!BG243 -> 0 | AQ70: ='50-year calcs'!BH243 -> 0 | AR70: ='50-year calcs'!BI243 -> 0 | AS70: ='50-year calcs'!BJ243 -> 0 | AT70: ='50-year calcs'!BK243 -> 0 | AU70: ='50-year calcs'!BL243 -> 0 | AV70: ='50-year calcs'!BM243 -> 0 | AW70: ='50-year calcs'!BN243 -> 0 | AX70: ='50-year calcs'!BO243 -> 0 | AY70: ='50-year calcs'!BP243 -> 0 | AZ70: ='50-year calcs'!BQ243 -> 0 | BA70: ='50-year calcs'!BR243 -> 0 | BB70: ='50-year calcs'!BS243 -> 0
B71: =IF('3. Benefit parameters'!B71="","",'3. Benefit parameters'!B71) ->  | C71: ='50-year calcs'!C244 -> 0 | D71: ='50-year calcs'!U244 -> 0 | E71: ='50-year calcs'!V244 -> 0 | F71: ='50-year calcs'!W244 -> 0 | G71: ='50-year calcs'!X244 -> 0 | H71: ='50-year calcs'!Y244 -> 0 | I71: ='50-year calcs'!Z244 -> 0 | J71: ='50-year calcs'!AA244 -> 0 | K71: ='50-year calcs'!AB244 -> 0 | L71: ='50-year calcs'!AC244 -> 0 | M71: ='50-year calcs'!AD244 -> 0 | N71: ='50-year calcs'!AE244 -> 0 | O71: ='50-year calcs'!AF244 -> 0 | P71: ='50-year calcs'!AG244 -> 0 | Q71: ='50-year calcs'!AH244 -> 0 | R71: ='50-year calcs'!AI244 -> 0 | S71: ='50-year calcs'!AJ244 -> 0 | T71: ='50-year calcs'!AK244 -> 0 | U71: ='50-year calcs'!AL244 -> 0 | V71: ='50-year calcs'!AM244 -> 0 | W71: ='50-year calcs'!AN244 -> 0 | X71: ='50-year calcs'!AO244 -> 0 | Y71: ='50-year calcs'!AP244 -> 0 | Z71: ='50-year calcs'!AQ244 -> 0 | AA71: ='50-year calcs'!AR244 -> 0 | AB71: ='50-year calcs'!AS244 -> 0 | AC71: ='50-year calcs'!AT244 -> 0 | AD71: ='50-year calcs'!AU244 -> 0 | AE71: ='50-year calcs'!AV244 -> 0 | AF71: ='50-year calcs'!AW244 -> 0 | AG71: ='50-year calcs'!AX244 -> 0 | AH71: ='50-year calcs'!AY244 -> 0 | AI71: ='50-year calcs'!AZ244 -> 0 | AJ71: ='50-year calcs'!BA244 -> 0 | AK71: ='50-year calcs'!BB244 -> 0 | AL71: ='50-year calcs'!BC244 -> 0 | AM71: ='50-year calcs'!BD244 -> 0 | AN71: ='50-year calcs'!BE244 -> 0 | AO71: ='50-year calcs'!BF244 -> 0 | AP71: ='50-year calcs'!BG244 -> 0 | AQ71: ='50-year calcs'!BH244 -> 0 | AR71: ='50-year calcs'!BI244 -> 0 | AS71: ='50-year calcs'!BJ244 -> 0 | AT71: ='50-year calcs'!BK244 -> 0 | AU71: ='50-year calcs'!BL244 -> 0 | AV71: ='50-year calcs'!BM244 -> 0 | AW71: ='50-year calcs'!BN244 -> 0 | AX71: ='50-year calcs'!BO244 -> 0 | AY71: ='50-year calcs'!BP244 -> 0 | AZ71: ='50-year calcs'!BQ244 -> 0 | BA71: ='50-year calcs'!BR244 -> 0 | BB71: ='50-year calcs'!BS244 -> 0
B72: =IF('3. Benefit parameters'!B72="","",'3. Benefit parameters'!B72) ->  | C72: ='50-year calcs'!C245 -> 0 | D72: ='50-year calcs'!U245 -> 0 | E72: ='50-year calcs'!V245 -> 0 | F72: ='50-year calcs'!W245 -> 0 | G72: ='50-year calcs'!X245 -> 0 | H72: ='50-year calcs'!Y245 -> 0 | I72: ='50-year calcs'!Z245 -> 0 | J72: ='50-year calcs'!AA245 -> 0 | K72: ='50-year calcs'!AB245 -> 0 | L72: ='50-year calcs'!AC245 -> 0 | M72: ='50-year calcs'!AD245 -> 0 | N72: ='50-year calcs'!AE245 -> 0 | O72: ='50-year calcs'!AF245 -> 0 | P72: ='50-year calcs'!AG245 -> 0 | Q72: ='50-year calcs'!AH245 -> 0 | R72: ='50-year calcs'!AI245 -> 0 | S72: ='50-year calcs'!AJ245 -> 0 | T72: ='50-year calcs'!AK245 -> 0 | U72: ='50-year calcs'!AL245 -> 0 | V72: ='50-year calcs'!AM245 -> 0 | W72: ='50-year calcs'!AN245 -> 0 | X72: ='50-year calcs'!AO245 -> 0 | Y72: ='50-year calcs'!AP245 -> 0 | Z72: ='50-year calcs'!AQ245 -> 0 | AA72: ='50-year calcs'!AR245 -> 0 | AB72: ='50-year calcs'!AS245 -> 0 | AC72: ='50-year calcs'!AT245 -> 0 | AD72: ='50-year calcs'!AU245 -> 0 | AE72: ='50-year calcs'!AV245 -> 0 | AF72: ='50-year calcs'!AW245 -> 0 | AG72: ='50-year calcs'!AX245 -> 0 | AH72: ='50-year calcs'!AY245 -> 0 | AI72: ='50-year calcs'!AZ245 -> 0 | AJ72: ='50-year calcs'!BA245 -> 0 | AK72: ='50-year calcs'!BB245 -> 0 | AL72: ='50-year calcs'!BC245 -> 0 | AM72: ='50-year calcs'!BD245 -> 0 | AN72: ='50-year calcs'!BE245 -> 0 | AO72: ='50-year calcs'!BF245 -> 0 | AP72: ='50-year calcs'!BG245 -> 0 | AQ72: ='50-year calcs'!BH245 -> 0 | AR72: ='50-year calcs'!BI245 -> 0 | AS72: ='50-year calcs'!BJ245 -> 0 | AT72: ='50-year calcs'!BK245 -> 0 | AU72: ='50-year calcs'!BL245 -> 0 | AV72: ='50-year calcs'!BM245 -> 0 | AW72: ='50-year calcs'!BN245 -> 0 | AX72: ='50-year calcs'!BO245 -> 0 | AY72: ='50-year calcs'!BP245 -> 0 | AZ72: ='50-year calcs'!BQ245 -> 0 | BA72: ='50-year calcs'!BR245 -> 0 | BB72: ='50-year calcs'!BS245 -> 0
A74: 3.6 | B74: Category 6. Improve an environmental or community asset
B75: Benefit | C75: Present value | D75: =D$10 -> 2020 | E75: =E$10 -> 2021 | F75: 2022 | G75: 2023 | H75: 2024 | I75: 2025 | J75: 2026 | K75: 2027 | L75: 2028 | M75: 2029 | N75: 2030 | O75: 2031 | P75: 2032 | Q75: 2033 | R75: 2034 | S75: 2035 | T75: 2036 | U75: 2037 | V75: 2038 | W75: 2039 | X75: 2040 | Y75: 2041 | Z75: 2042 | AA75: 2043 | AB75: 2044 | AC75: 2045 | AD75: 2046 | AE75: 2047 | AF75: 2048 | AG75: 2049 | AH75: 2050 | AI75: 2051 | AJ75: 2052 | AK75: 2053 | AL75: 2054 | AM75: 2055 | AN75: 2056 | AO75: 2057 | AP75: 2058 | AQ75: 2059 | AR75: 2060 | AS75: 2061 | AT75: 2062 | AU75: 2063 | AV75: 2064 | AW75: 2065 | AX75: 2066 | AY75: 2067 | AZ75: 2068 | BA75: 2069 | BB75: 2070
B76: =IF('3. Benefit parameters'!B76="","",'3. Benefit parameters'!B76) ->  | C76: ='50-year calcs'!C249 -> 0 | D76: ='50-year calcs'!U249 -> 0 | E76: ='50-year calcs'!V249 -> 0 | F76: ='50-year calcs'!W249 -> 0 | G76: ='50-year calcs'!X249 -> 0 | H76: ='50-year calcs'!Y249 -> 0 | I76: ='50-year calcs'!Z249 -> 0 | J76: ='50-year calcs'!AA249 -> 0 | K76: ='50-year calcs'!AB249 -> 0 | L76: ='50-year calcs'!AC249 -> 0 | M76: ='50-year calcs'!AD249 -> 0 | N76: ='50-year calcs'!AE249 -> 0 | O76: ='50-year calcs'!AF249 -> 0 | P76: ='50-year calcs'!AG249 -> 0 | Q76: ='50-year calcs'!AH249 -> 0 | R76: ='50-year calcs'!AI249 -> 0 | S76: ='50-year calcs'!AJ249 -> 0 | T76: ='50-year calcs'!AK249 -> 0 | U76: ='50-year calcs'!AL249 -> 0 | V76: ='50-year calcs'!AM249 -> 0 | W76: ='50-year calcs'!AN249 -> 0 | X76: ='50-year calcs'!AO249 -> 0 | Y76: ='50-year calcs'!AP249 -> 0 | Z76: ='50-year calcs'!AQ249 -> 0 | AA76: ='50-year calcs'!AR249 -> 0 | AB76: ='50-year calcs'!AS249 -> 0 | AC76: ='50-year calcs'!AT249 -> 0 | AD76: ='50-year calcs'!AU249 -> 0 | AE76: ='50-year calcs'!AV249 -> 0 | AF76: ='50-year calcs'!AW249 -> 0 | AG76: ='50-year calcs'!AX249 -> 0 | AH76: ='50-year calcs'!AY249 -> 0 | AI76: ='50-year calcs'!AZ249 -> 0 | AJ76: ='50-year calcs'!BA249 -> 0 | AK76: ='50-year calcs'!BB249 -> 0 | AL76: ='50-year calcs'!BC249 -> 0 | AM76: ='50-year calcs'!BD249 -> 0 | AN76: ='50-year calcs'!BE249 -> 0 | AO76: ='50-year calcs'!BF249 -> 0 | AP76: ='50-year calcs'!BG249 -> 0 | AQ76: ='50-year calcs'!BH249 -> 0 | AR76: ='50-year calcs'!BI249 -> 0 | AS76: ='50-year calcs'!BJ249 -> 0 | AT76: ='50-year calcs'!BK249 -> 0 | AU76: ='50-year calcs'!BL249 -> 0 | AV76: ='50-year calcs'!BM249 -> 0 | AW76: ='50-year calcs'!BN249 -> 0 | AX76: ='50-year calcs'!BO249 -> 0 | AY76: ='50-year calcs'!BP249 -> 0 | AZ76: ='50-year calcs'!BQ249 -> 0 | BA76: ='50-year calcs'!BR249 -> 0 | BB76: ='50-year calcs'!BS249 -> 0
B77: =IF('3. Benefit parameters'!B77="","",'3. Benefit parameters'!B77) ->  | C77: ='50-year calcs'!C250 -> 0 | D77: ='50-year calcs'!U250 -> 0 | E77: ='50-year calcs'!V250 -> 0 | F77: ='50-year calcs'!W250 -> 0 | G77: ='50-year calcs'!X250 -> 0 | H77: ='50-year calcs'!Y250 -> 0 | I77: ='50-year calcs'!Z250 -> 0 | J77: ='50-year calcs'!AA250 -> 0 | K77: ='50-year calcs'!AB250 -> 0 | L77: ='50-year calcs'!AC250 -> 0 | M77: ='50-year calcs'!AD250 -> 0 | N77: ='50-year calcs'!AE250 -> 0 | O77: ='50-year calcs'!AF250 -> 0 | P77: ='50-year calcs'!AG250 -> 0 | Q77: ='50-year calcs'!AH250 -> 0 | R77: ='50-year calcs'!AI250 -> 0 | S77: ='50-year calcs'!AJ250 -> 0 | T77: ='50-year calcs'!AK250 -> 0 | U77: ='50-year calcs'!AL250 -> 0 | V77: ='50-year calcs'!AM250 -> 0 | W77: ='50-year calcs'!AN250 -> 0 | X77: ='50-year calcs'!AO250 -> 0 | Y77: ='50-year calcs'!AP250 -> 0 | Z77: ='50-year calcs'!AQ250 -> 0 | AA77: ='50-year calcs'!AR250 -> 0 | AB77: ='50-year calcs'!AS250 -> 0 | AC77: ='50-year calcs'!AT250 -> 0 | AD77: ='50-year calcs'!AU250 -> 0 | AE77: ='50-year calcs'!AV250 -> 0 | AF77: ='50-year calcs'!AW250 -> 0 | AG77: ='50-year calcs'!AX250 -> 0 | AH77: ='50-year calcs'!AY250 -> 0 | AI77: ='50-year calcs'!AZ250 -> 0 | AJ77: ='50-year calcs'!BA250 -> 0 | AK77: ='50-year calcs'!BB250 -> 0 | AL77: ='50-year calcs'!BC250 -> 0 | AM77: ='50-year calcs'!BD250 -> 0 | AN77: ='50-year calcs'!BE250 -> 0 | AO77: ='50-year calcs'!BF250 -> 0 | AP77: ='50-year calcs'!BG250 -> 0 | AQ77: ='50-year calcs'!BH250 -> 0 | AR77: ='50-year calcs'!BI250 -> 0 | AS77: ='50-year calcs'!BJ250 -> 0 | AT77: ='50-year calcs'!BK250 -> 0 | AU77: ='50-year calcs'!BL250 -> 0 | AV77: ='50-year calcs'!BM250 -> 0 | AW77: ='50-year calcs'!BN250 -> 0 | AX77: ='50-year calcs'!BO250 -> 0 | AY77: ='50-year calcs'!BP250 -> 0 | AZ77: ='50-year calcs'!BQ250 -> 0 | BA77: ='50-year calcs'!BR250 -> 0 | BB77: ='50-year calcs'!BS250 -> 0
B78: =IF('3. Benefit parameters'!B78="","",'3. Benefit parameters'!B78) ->  | C78: ='50-year calcs'!C251 -> 0 | D78: ='50-year calcs'!U251 -> 0 | E78: ='50-year calcs'!V251 -> 0 | F78: ='50-year calcs'!W251 -> 0 | G78: ='50-year calcs'!X251 -> 0 | H78: ='50-year calcs'!Y251 -> 0 | I78: ='50-year calcs'!Z251 -> 0 | J78: ='50-year calcs'!AA251 -> 0 | K78: ='50-year calcs'!AB251 -> 0 | L78: ='50-year calcs'!AC251 -> 0 | M78: ='50-year calcs'!AD251 -> 0 | N78: ='50-year calcs'!AE251 -> 0 | O78: ='50-year calcs'!AF251 -> 0 | P78: ='50-year calcs'!AG251 -> 0 | Q78: ='50-year calcs'!AH251 -> 0 | R78: ='50-year calcs'!AI251 -> 0 | S78: ='50-year calcs'!AJ251 -> 0 | T78: ='50-year calcs'!AK251 -> 0 | U78: ='50-year calcs'!AL251 -> 0 | V78: ='50-year calcs'!AM251 -> 0 | W78: ='50-year calcs'!AN251 -> 0 | X78: ='50-year calcs'!AO251 -> 0 | Y78: ='50-year calcs'!AP251 -> 0 | Z78: ='50-year calcs'!AQ251 -> 0 | AA78: ='50-year calcs'!AR251 -> 0 | AB78: ='50-year calcs'!AS251 -> 0 | AC78: ='50-year calcs'!AT251 -> 0 | AD78: ='50-year calcs'!AU251 -> 0 | AE78: ='50-year calcs'!AV251 -> 0 | AF78: ='50-year calcs'!AW251 -> 0 | AG78: ='50-year calcs'!AX251 -> 0 | AH78: ='50-year calcs'!AY251 -> 0 | AI78: ='50-year calcs'!AZ251 -> 0 | AJ78: ='50-year calcs'!BA251 -> 0 | AK78: ='50-year calcs'!BB251 -> 0 | AL78: ='50-year calcs'!BC251 -> 0 | AM78: ='50-year calcs'!BD251 -> 0 | AN78: ='50-year calcs'!BE251 -> 0 | AO78: ='50-year calcs'!BF251 -> 0 | AP78: ='50-year calcs'!BG251 -> 0 | AQ78: ='50-year calcs'!BH251 -> 0 | AR78: ='50-year calcs'!BI251 -> 0 | AS78: ='50-year calcs'!BJ251 -> 0 | AT78: ='50-year calcs'!BK251 -> 0 | AU78: ='50-year calcs'!BL251 -> 0 | AV78: ='50-year calcs'!BM251 -> 0 | AW78: ='50-year calcs'!BN251 -> 0 | AX78: ='50-year calcs'!BO251 -> 0 | AY78: ='50-year calcs'!BP251 -> 0 | AZ78: ='50-year calcs'!BQ251 -> 0 | BA78: ='50-year calcs'!BR251 -> 0 | BB78: ='50-year calcs'!BS251 -> 0
B79: =IF('3. Benefit parameters'!B79="","",'3. Benefit parameters'!B79) ->  | C79: ='50-year calcs'!C252 -> 0 | D79: ='50-year calcs'!U252 -> 0 | E79: ='50-year calcs'!V252 -> 0 | F79: ='50-year calcs'!W252 -> 0 | G79: ='50-year calcs'!X252 -> 0 | H79: ='50-year calcs'!Y252 -> 0 | I79: ='50-year calcs'!Z252 -> 0 | J79: ='50-year calcs'!AA252 -> 0 | K79: ='50-year calcs'!AB252 -> 0 | L79: ='50-year calcs'!AC252 -> 0 | M79: ='50-year calcs'!AD252 -> 0 | N79: ='50-year calcs'!AE252 -> 0 | O79: ='50-year calcs'!AF252 -> 0 | P79: ='50-year calcs'!AG252 -> 0 | Q79: ='50-year calcs'!AH252 -> 0 | R79: ='50-year calcs'!AI252 -> 0 | S79: ='50-year calcs'!AJ252 -> 0 | T79: ='50-year calcs'!AK252 -> 0 | U79: ='50-year calcs'!AL252 -> 0 | V79: ='50-year calcs'!AM252 -> 0 | W79: ='50-year calcs'!AN252 -> 0 | X79: ='50-year calcs'!AO252 -> 0 | Y79: ='50-year calcs'!AP252 -> 0 | Z79: ='50-year calcs'!AQ252 -> 0 | AA79: ='50-year calcs'!AR252 -> 0 | AB79: ='50-year calcs'!AS252 -> 0 | AC79: ='50-year calcs'!AT252 -> 0 | AD79: ='50-year calcs'!AU252 -> 0 | AE79: ='50-year calcs'!AV252 -> 0 | AF79: ='50-year calcs'!AW252 -> 0 | AG79: ='50-year calcs'!AX252 -> 0 | AH79: ='50-year calcs'!AY252 -> 0 | AI79: ='50-year calcs'!AZ252 -> 0 | AJ79: ='50-year calcs'!BA252 -> 0 | AK79: ='50-year calcs'!BB252 -> 0 | AL79: ='50-year calcs'!BC252 -> 0 | AM79: ='50-year calcs'!BD252 -> 0 | AN79: ='50-year calcs'!BE252 -> 0 | AO79: ='50-year calcs'!BF252 -> 0 | AP79: ='50-year calcs'!BG252 -> 0 | AQ79: ='50-year calcs'!BH252 -> 0 | AR79: ='50-year calcs'!BI252 -> 0 | AS79: ='50-year calcs'!BJ252 -> 0 | AT79: ='50-year calcs'!BK252 -> 0 | AU79: ='50-year calcs'!BL252 -> 0 | AV79: ='50-year calcs'!BM252 -> 0 | AW79: ='50-year calcs'!BN252 -> 0 | AX79: ='50-year calcs'!BO252 -> 0 | AY79: ='50-year calcs'!BP252 -> 0 | AZ79: ='50-year calcs'!BQ252 -> 0 | BA79: ='50-year calcs'!BR252 -> 0 | BB79: ='50-year calcs'!BS252 -> 0
B80: =IF('3. Benefit parameters'!B80="","",'3. Benefit parameters'!B80) ->  | C80: ='50-year calcs'!C253 -> 0 | D80: ='50-year calcs'!U253 -> 0 | E80: ='50-year calcs'!V253 -> 0 | F80: ='50-year calcs'!W253 -> 0 | G80: ='50-year calcs'!X253 -> 0 | H80: ='50-year calcs'!Y253 -> 0 | I80: ='50-year calcs'!Z253 -> 0 | J80: ='50-year calcs'!AA253 -> 0 | K80: ='50-year calcs'!AB253 -> 0 | L80: ='50-year calcs'!AC253 -> 0 | M80: ='50-year calcs'!AD253 -> 0 | N80: ='50-year calcs'!AE253 -> 0 | O80: ='50-year calcs'!AF253 -> 0 | P80: ='50-year calcs'!AG253 -> 0 | Q80: ='50-year calcs'!AH253 -> 0 | R80: ='50-year calcs'!AI253 -> 0 | S80: ='50-year calcs'!AJ253 -> 0 | T80: ='50-year calcs'!AK253 -> 0 | U80: ='50-year calcs'!AL253 -> 0 | V80: ='50-year calcs'!AM253 -> 0 | W80: ='50-year calcs'!AN253 -> 0 | X80: ='50-year calcs'!AO253 -> 0 | Y80: ='50-year calcs'!AP253 -> 0 | Z80: ='50-year calcs'!AQ253 -> 0 | AA80: ='50-year calcs'!AR253 -> 0 | AB80: ='50-year calcs'!AS253 -> 0 | AC80: ='50-year calcs'!AT253 -> 0 | AD80: ='50-year calcs'!AU253 -> 0 | AE80: ='50-year calcs'!AV253 -> 0 | AF80: ='50-year calcs'!AW253 -> 0 | AG80: ='50-year calcs'!AX253 -> 0 | AH80: ='50-year calcs'!AY253 -> 0 | AI80: ='50-year calcs'!AZ253 -> 0 | AJ80: ='50-year calcs'!BA253 -> 0 | AK80: ='50-year calcs'!BB253 -> 0 | AL80: ='50-year calcs'!BC253 -> 0 | AM80: ='50-year calcs'!BD253 -> 0 | AN80: ='50-year calcs'!BE253 -> 0 | AO80: ='50-year calcs'!BF253 -> 0 | AP80: ='50-year calcs'!BG253 -> 0 | AQ80: ='50-year calcs'!BH253 -> 0 | AR80: ='50-year calcs'!BI253 -> 0 | AS80: ='50-year calcs'!BJ253 -> 0 | AT80: ='50-year calcs'!BK253 -> 0 | AU80: ='50-year calcs'!BL253 -> 0 | AV80: ='50-year calcs'!BM253 -> 0 | AW80: ='50-year calcs'!BN253 -> 0 | AX80: ='50-year calcs'!BO253 -> 0 | AY80: ='50-year calcs'!BP253 -> 0 | AZ80: ='50-year calcs'!BQ253 -> 0 | BA80: ='50-year calcs'!BR253 -> 0 | BB80: ='50-year calcs'!BS253 -> 0
B81: =IF('3. Benefit parameters'!B81="","",'3. Benefit parameters'!B81) ->  | C81: ='50-year calcs'!C254 -> 0 | D81: ='50-year calcs'!U254 -> 0 | E81: ='50-year calcs'!V254 -> 0 | F81: ='50-year calcs'!W254 -> 0 | G81: ='50-year calcs'!X254 -> 0 | H81: ='50-year calcs'!Y254 -> 0 | I81: ='50-year calcs'!Z254 -> 0 | J81: ='50-year calcs'!AA254 -> 0 | K81: ='50-year calcs'!AB254 -> 0 | L81: ='50-year calcs'!AC254 -> 0 | M81: ='50-year calcs'!AD254 -> 0 | N81: ='50-year calcs'!AE254 -> 0 | O81: ='50-year calcs'!AF254 -> 0 | P81: ='50-year calcs'!AG254 -> 0 | Q81: ='50-year calcs'!AH254 -> 0 | R81: ='50-year calcs'!AI254 -> 0 | S81: ='50-year calcs'!AJ254 -> 0 | T81: ='50-year calcs'!AK254 -> 0 | U81: ='50-year calcs'!AL254 -> 0 | V81: ='50-year calcs'!AM254 -> 0 | W81: ='50-year calcs'!AN254 -> 0 | X81: ='50-year calcs'!AO254 -> 0 | Y81: ='50-year calcs'!AP254 -> 0 | Z81: ='50-year calcs'!AQ254 -> 0 | AA81: ='50-year calcs'!AR254 -> 0 | AB81: ='50-year calcs'!AS254 -> 0 | AC81: ='50-year calcs'!AT254 -> 0 | AD81: ='50-year calcs'!AU254 -> 0 | AE81: ='50-year calcs'!AV254 -> 0 | AF81: ='50-year calcs'!AW254 -> 0 | AG81: ='50-year calcs'!AX254 -> 0 | AH81: ='50-year calcs'!AY254 -> 0 | AI81: ='50-year calcs'!AZ254 -> 0 | AJ81: ='50-year calcs'!BA254 -> 0 | AK81: ='50-year calcs'!BB254 -> 0 | AL81: ='50-year calcs'!BC254 -> 0 | AM81: ='50-year calcs'!BD254 -> 0 | AN81: ='50-year calcs'!BE254 -> 0 | AO81: ='50-year calcs'!BF254 -> 0 | AP81: ='50-year calcs'!BG254 -> 0 | AQ81: ='50-year calcs'!BH254 -> 0 | AR81: ='50-year calcs'!BI254 -> 0 | AS81: ='50-year calcs'!BJ254 -> 0 | AT81: ='50-year calcs'!BK254 -> 0 | AU81: ='50-year calcs'!BL254 -> 0 | AV81: ='50-year calcs'!BM254 -> 0 | AW81: ='50-year calcs'!BN254 -> 0 | AX81: ='50-year calcs'!BO254 -> 0 | AY81: ='50-year calcs'!BP254 -> 0 | AZ81: ='50-year calcs'!BQ254 -> 0 | BA81: ='50-year calcs'!BR254 -> 0 | BB81: ='50-year calcs'!BS254 -> 0
B82: =IF('3. Benefit parameters'!B82="","",'3. Benefit parameters'!B82) ->  | C82: ='50-year calcs'!C255 -> 0 | D82: ='50-year calcs'!U255 -> 0 | E82: ='50-year calcs'!V255 -> 0 | F82: ='50-year calcs'!W255 -> 0 | G82: ='50-year calcs'!X255 -> 0 | H82: ='50-year calcs'!Y255 -> 0 | I82: ='50-year calcs'!Z255 -> 0 | J82: ='50-year calcs'!AA255 -> 0 | K82: ='50-year calcs'!AB255 -> 0 | L82: ='50-year calcs'!AC255 -> 0 | M82: ='50-year calcs'!AD255 -> 0 | N82: ='50-year calcs'!AE255 -> 0 | O82: ='50-year calcs'!AF255 -> 0 | P82: ='50-year calcs'!AG255 -> 0 | Q82: ='50-year calcs'!AH255 -> 0 | R82: ='50-year calcs'!AI255 -> 0 | S82: ='50-year calcs'!AJ255 -> 0 | T82: ='50-year calcs'!AK255 -> 0 | U82: ='50-year calcs'!AL255 -> 0 | V82: ='50-year calcs'!AM255 -> 0 | W82: ='50-year calcs'!AN255 -> 0 | X82: ='50-year calcs'!AO255 -> 0 | Y82: ='50-year calcs'!AP255 -> 0 | Z82: ='50-year calcs'!AQ255 -> 0 | AA82: ='50-year calcs'!AR255 -> 0 | AB82: ='50-year calcs'!AS255 -> 0 | AC82: ='50-year calcs'!AT255 -> 0 | AD82: ='50-year calcs'!AU255 -> 0 | AE82: ='50-year calcs'!AV255 -> 0 | AF82: ='50-year calcs'!AW255 -> 0 | AG82: ='50-year calcs'!AX255 -> 0 | AH82: ='50-year calcs'!AY255 -> 0 | AI82: ='50-year calcs'!AZ255 -> 0 | AJ82: ='50-year calcs'!BA255 -> 0 | AK82: ='50-year calcs'!BB255 -> 0 | AL82: ='50-year calcs'!BC255 -> 0 | AM82: ='50-year calcs'!BD255 -> 0 | AN82: ='50-year calcs'!BE255 -> 0 | AO82: ='50-year calcs'!BF255 -> 0 | AP82: ='50-year calcs'!BG255 -> 0 | AQ82: ='50-year calcs'!BH255 -> 0 | AR82: ='50-year calcs'!BI255 -> 0 | AS82: ='50-year calcs'!BJ255 -> 0 | AT82: ='50-year calcs'!BK255 -> 0 | AU82: ='50-year calcs'!BL255 -> 0 | AV82: ='50-year calcs'!BM255 -> 0 | AW82: ='50-year calcs'!BN255 -> 0 | AX82: ='50-year calcs'!BO255 -> 0 | AY82: ='50-year calcs'!BP255 -> 0 | AZ82: ='50-year calcs'!BQ255 -> 0 | BA82: ='50-year calcs'!BR255 -> 0 | BB82: ='50-year calcs'!BS255 -> 0
B83: =IF('3. Benefit parameters'!B83="","",'3. Benefit parameters'!B83) ->  | C83: ='50-year calcs'!C256 -> 0 | D83: ='50-year calcs'!U256 -> 0 | E83: ='50-year calcs'!V256 -> 0 | F83: ='50-year calcs'!W256 -> 0 | G83: ='50-year calcs'!X256 -> 0 | H83: ='50-year calcs'!Y256 -> 0 | I83: ='50-year calcs'!Z256 -> 0 | J83: ='50-year calcs'!AA256 -> 0 | K83: ='50-year calcs'!AB256 -> 0 | L83: ='50-year calcs'!AC256 -> 0 | M83: ='50-year calcs'!AD256 -> 0 | N83: ='50-year calcs'!AE256 -> 0 | O83: ='50-year calcs'!AF256 -> 0 | P83: ='50-year calcs'!AG256 -> 0 | Q83: ='50-year calcs'!AH256 -> 0 | R83: ='50-year calcs'!AI256 -> 0 | S83: ='50-year calcs'!AJ256 -> 0 | T83: ='50-year calcs'!AK256 -> 0 | U83: ='50-year calcs'!AL256 -> 0 | V83: ='50-year calcs'!AM256 -> 0 | W83: ='50-year calcs'!AN256 -> 0 | X83: ='50-year calcs'!AO256 -> 0 | Y83: ='50-year calcs'!AP256 -> 0 | Z83: ='50-year calcs'!AQ256 -> 0 | AA83: ='50-year calcs'!AR256 -> 0 | AB83: ='50-year calcs'!AS256 -> 0 | AC83: ='50-year calcs'!AT256 -> 0 | AD83: ='50-year calcs'!AU256 -> 0 | AE83: ='50-year calcs'!AV256 -> 0 | AF83: ='50-year calcs'!AW256 -> 0 | AG83: ='50-year calcs'!AX256 -> 0 | AH83: ='50-year calcs'!AY256 -> 0 | AI83: ='50-year calcs'!AZ256 -> 0 | AJ83: ='50-year calcs'!BA256 -> 0 | AK83: ='50-year calcs'!BB256 -> 0 | AL83: ='50-year calcs'!BC256 -> 0 | AM83: ='50-year calcs'!BD256 -> 0 | AN83: ='50-year calcs'!BE256 -> 0 | AO83: ='50-year calcs'!BF256 -> 0 | AP83: ='50-year calcs'!BG256 -> 0 | AQ83: ='50-year calcs'!BH256 -> 0 | AR83: ='50-year calcs'!BI256 -> 0 | AS83: ='50-year calcs'!BJ256 -> 0 | AT83: ='50-year calcs'!BK256 -> 0 | AU83: ='50-year calcs'!BL256 -> 0 | AV83: ='50-year calcs'!BM256 -> 0 | AW83: ='50-year calcs'!BN256 -> 0 | AX83: ='50-year calcs'!BO256 -> 0 | AY83: ='50-year calcs'!BP256 -> 0 | AZ83: ='50-year calcs'!BQ256 -> 0 | BA83: ='50-year calcs'!BR256 -> 0 | BB83: ='50-year calcs'!BS256 -> 0
B84: =IF('3. Benefit parameters'!B84="","",'3. Benefit parameters'!B84) ->  | C84: ='50-year calcs'!C257 -> 0 | D84: ='50-year calcs'!U257 -> 0 | E84: ='50-year calcs'!V257 -> 0 | F84: ='50-year calcs'!W257 -> 0 | G84: ='50-year calcs'!X257 -> 0 | H84: ='50-year calcs'!Y257 -> 0 | I84: ='50-year calcs'!Z257 -> 0 | J84: ='50-year calcs'!AA257 -> 0 | K84: ='50-year calcs'!AB257 -> 0 | L84: ='50-year calcs'!AC257 -> 0 | M84: ='50-year calcs'!AD257 -> 0 | N84: ='50-year calcs'!AE257 -> 0 | O84: ='50-year calcs'!AF257 -> 0 | P84: ='50-year calcs'!AG257 -> 0 | Q84: ='50-year calcs'!AH257 -> 0 | R84: ='50-year calcs'!AI257 -> 0 | S84: ='50-year calcs'!AJ257 -> 0 | T84: ='50-year calcs'!AK257 -> 0 | U84: ='50-year calcs'!AL257 -> 0 | V84: ='50-year calcs'!AM257 -> 0 | W84: ='50-year calcs'!AN257 -> 0 | X84: ='50-year calcs'!AO257 -> 0 | Y84: ='50-year calcs'!AP257 -> 0 | Z84: ='50-year calcs'!AQ257 -> 0 | AA84: ='50-year calcs'!AR257 -> 0 | AB84: ='50-year calcs'!AS257 -> 0 | AC84: ='50-year calcs'!AT257 -> 0 | AD84: ='50-year calcs'!AU257 -> 0 | AE84: ='50-year calcs'!AV257 -> 0 | AF84: ='50-year calcs'!AW257 -> 0 | AG84: ='50-year calcs'!AX257 -> 0 | AH84: ='50-year calcs'!AY257 -> 0 | AI84: ='50-year calcs'!AZ257 -> 0 | AJ84: ='50-year calcs'!BA257 -> 0 | AK84: ='50-year calcs'!BB257 -> 0 | AL84: ='50-year calcs'!BC257 -> 0 | AM84: ='50-year calcs'!BD257 -> 0 | AN84: ='50-year calcs'!BE257 -> 0 | AO84: ='50-year calcs'!BF257 -> 0 | AP84: ='50-year calcs'!BG257 -> 0 | AQ84: ='50-year calcs'!BH257 -> 0 | AR84: ='50-year calcs'!BI257 -> 0 | AS84: ='50-year calcs'!BJ257 -> 0 | AT84: ='50-year calcs'!BK257 -> 0 | AU84: ='50-year calcs'!BL257 -> 0 | AV84: ='50-year calcs'!BM257 -> 0 | AW84: ='50-year calcs'!BN257 -> 0 | AX84: ='50-year calcs'!BO257 -> 0 | AY84: ='50-year calcs'!BP257 -> 0 | AZ84: ='50-year calcs'!BQ257 -> 0 | BA84: ='50-year calcs'!BR257 -> 0 | BB84: ='50-year calcs'!BS257 -> 0
B85: =IF('3. Benefit parameters'!B85="","",'3. Benefit parameters'!B85) ->  | C85: ='50-year calcs'!C258 -> 0 | D85: ='50-year calcs'!U258 -> 0 | E85: ='50-year calcs'!V258 -> 0 | F85: ='50-year calcs'!W258 -> 0 | G85: ='50-year calcs'!X258 -> 0 | H85: ='50-year calcs'!Y258 -> 0 | I85: ='50-year calcs'!Z258 -> 0 | J85: ='50-year calcs'!AA258 -> 0 | K85: ='50-year calcs'!AB258 -> 0 | L85: ='50-year calcs'!AC258 -> 0 | M85: ='50-year calcs'!AD258 -> 0 | N85: ='50-year calcs'!AE258 -> 0 | O85: ='50-year calcs'!AF258 -> 0 | P85: ='50-year calcs'!AG258 -> 0 | Q85: ='50-year calcs'!AH258 -> 0 | R85: ='50-year calcs'!AI258 -> 0 | S85: ='50-year calcs'!AJ258 -> 0 | T85: ='50-year calcs'!AK258 -> 0 | U85: ='50-year calcs'!AL258 -> 0 | V85: ='50-year calcs'!AM258 -> 0 | W85: ='50-year calcs'!AN258 -> 0 | X85: ='50-year calcs'!AO258 -> 0 | Y85: ='50-year calcs'!AP258 -> 0 | Z85: ='50-year calcs'!AQ258 -> 0 | AA85: ='50-year calcs'!AR258 -> 0 | AB85: ='50-year calcs'!AS258 -> 0 | AC85: ='50-year calcs'!AT258 -> 0 | AD85: ='50-year calcs'!AU258 -> 0 | AE85: ='50-year calcs'!AV258 -> 0 | AF85: ='50-year calcs'!AW258 -> 0 | AG85: ='50-year calcs'!AX258 -> 0 | AH85: ='50-year calcs'!AY258 -> 0 | AI85: ='50-year calcs'!AZ258 -> 0 | AJ85: ='50-year calcs'!BA258 -> 0 | AK85: ='50-year calcs'!BB258 -> 0 | AL85: ='50-year calcs'!BC258 -> 0 | AM85: ='50-year calcs'!BD258 -> 0 | AN85: ='50-year calcs'!BE258 -> 0 | AO85: ='50-year calcs'!BF258 -> 0 | AP85: ='50-year calcs'!BG258 -> 0 | AQ85: ='50-year calcs'!BH258 -> 0 | AR85: ='50-year calcs'!BI258 -> 0 | AS85: ='50-year calcs'!BJ258 -> 0 | AT85: ='50-year calcs'!BK258 -> 0 | AU85: ='50-year calcs'!BL258 -> 0 | AV85: ='50-year calcs'!BM258 -> 0 | AW85: ='50-year calcs'!BN258 -> 0 | AX85: ='50-year calcs'!BO258 -> 0 | AY85: ='50-year calcs'!BP258 -> 0 | AZ85: ='50-year calcs'!BQ258 -> 0 | BA85: ='50-year calcs'!BR258 -> 0 | BB85: ='50-year calcs'!BS258 -> 0
A87: 3.7 | B87: Category 7. Reduced consequence of a risky event
B88: Benefit | C88: Present value | D88: =D$10 -> 2020 | E88: =E$10 -> 2021 | F88: 2022 | G88: 2023 | H88: 2024 | I88: 2025 | J88: 2026 | K88: 2027 | L88: 2028 | M88: 2029 | N88: 2030 | O88: 2031 | P88: 2032 | Q88: 2033 | R88: 2034 | S88: 2035 | T88: 2036 | U88: 2037 | V88: 2038 | W88: 2039 | X88: 2040 | Y88: 2041 | Z88: 2042 | AA88: 2043 | AB88: 2044 | AC88: 2045 | AD88: 2046 | AE88: 2047 | AF88: 2048 | AG88: 2049 | AH88: 2050 | AI88: 2051 | AJ88: 2052 | AK88: 2053 | AL88: 2054 | AM88: 2055 | AN88: 2056 | AO88: 2057 | AP88: 2058 | AQ88: 2059 | AR88: 2060 | AS88: 2061 | AT88: 2062 | AU88: 2063 | AV88: 2064 | AW88: 2065 | AX88: 2066 | AY88: 2067 | AZ88: 2068 | BA88: 2069 | BB88: 2070
B89: =IF('3. Benefit parameters'!B89="","",'3. Benefit parameters'!B89) ->  | C89: ='50-year calcs'!C262 -> 0 | D89: ='50-year calcs'!U262 -> 0 | E89: ='50-year calcs'!V262 -> 0 | F89: ='50-year calcs'!W262 -> 0 | G89: ='50-year calcs'!X262 -> 0 | H89: ='50-year calcs'!Y262 -> 0 | I89: ='50-year calcs'!Z262 -> 0 | J89: ='50-year calcs'!AA262 -> 0 | K89: ='50-year calcs'!AB262 -> 0 | L89: ='50-year calcs'!AC262 -> 0 | M89: ='50-year calcs'!AD262 -> 0 | N89: ='50-year calcs'!AE262 -> 0 | O89: ='50-year calcs'!AF262 -> 0 | P89: ='50-year calcs'!AG262 -> 0 | Q89: ='50-year calcs'!AH262 -> 0 | R89: ='50-year calcs'!AI262 -> 0 | S89: ='50-year calcs'!AJ262 -> 0 | T89: ='50-year calcs'!AK262 -> 0 | U89: ='50-year calcs'!AL262 -> 0 | V89: ='50-year calcs'!AM262 -> 0 | W89: ='50-year calcs'!AN262 -> 0 | X89: ='50-year calcs'!AO262 -> 0 | Y89: ='50-year calcs'!AP262 -> 0 | Z89: ='50-year calcs'!AQ262 -> 0 | AA89: ='50-year calcs'!AR262 -> 0 | AB89: ='50-year calcs'!AS262 -> 0 | AC89: ='50-year calcs'!AT262 -> 0 | AD89: ='50-year calcs'!AU262 -> 0 | AE89: ='50-year calcs'!AV262 -> 0 | AF89: ='50-year calcs'!AW262 -> 0 | AG89: ='50-year calcs'!AX262 -> 0 | AH89: ='50-year calcs'!AY262 -> 0 | AI89: ='50-year calcs'!AZ262 -> 0 | AJ89: ='50-year calcs'!BA262 -> 0 | AK89: ='50-year calcs'!BB262 -> 0 | AL89: ='50-year calcs'!BC262 -> 0 | AM89: ='50-year calcs'!BD262 -> 0 | AN89: ='50-year calcs'!BE262 -> 0 | AO89: ='50-year calcs'!BF262 -> 0 | AP89: ='50-year calcs'!BG262 -> 0 | AQ89: ='50-year calcs'!BH262 -> 0 | AR89: ='50-year calcs'!BI262 -> 0 | AS89: ='50-year calcs'!BJ262 -> 0 | AT89: ='50-year calcs'!BK262 -> 0 | AU89: ='50-year calcs'!BL262 -> 0 | AV89: ='50-year calcs'!BM262 -> 0 | AW89: ='50-year calcs'!BN262 -> 0 | AX89: ='50-year calcs'!BO262 -> 0 | AY89: ='50-year calcs'!BP262 -> 0 | AZ89: ='50-year calcs'!BQ262 -> 0 | BA89: ='50-year calcs'!BR262 -> 0 | BB89: ='50-year calcs'!BS262 -> 0
B90: =IF('3. Benefit parameters'!B90="","",'3. Benefit parameters'!B90) ->  | C90: ='50-year calcs'!C263 -> 0 | D90: ='50-year calcs'!U263 -> 0 | E90: ='50-year calcs'!V263 -> 0 | F90: ='50-year calcs'!W263 -> 0 | G90: ='50-year calcs'!X263 -> 0 | H90: ='50-year calcs'!Y263 -> 0 | I90: ='50-year calcs'!Z263 -> 0 | J90: ='50-year calcs'!AA263 -> 0 | K90: ='50-year calcs'!AB263 -> 0 | L90: ='50-year calcs'!AC263 -> 0 | M90: ='50-year calcs'!AD263 -> 0 | N90: ='50-year calcs'!AE263 -> 0 | O90: ='50-year calcs'!AF263 -> 0 | P90: ='50-year calcs'!AG263 -> 0 | Q90: ='50-year calcs'!AH263 -> 0 | R90: ='50-year calcs'!AI263 -> 0 | S90: ='50-year calcs'!AJ263 -> 0 | T90: ='50-year calcs'!AK263 -> 0 | U90: ='50-year calcs'!AL263 -> 0 | V90: ='50-year calcs'!AM263 -> 0 | W90: ='50-year calcs'!AN263 -> 0 | X90: ='50-year calcs'!AO263 -> 0 | Y90: ='50-year calcs'!AP263 -> 0 | Z90: ='50-year calcs'!AQ263 -> 0 | AA90: ='50-year calcs'!AR263 -> 0 | AB90: ='50-year calcs'!AS263 -> 0 | AC90: ='50-year calcs'!AT263 -> 0 | AD90: ='50-year calcs'!AU263 -> 0 | AE90: ='50-year calcs'!AV263 -> 0 | AF90: ='50-year calcs'!AW263 -> 0 | AG90: ='50-year calcs'!AX263 -> 0 | AH90: ='50-year calcs'!AY263 -> 0 | AI90: ='50-year calcs'!AZ263 -> 0 | AJ90: ='50-year calcs'!BA263 -> 0 | AK90: ='50-year calcs'!BB263 -> 0 | AL90: ='50-year calcs'!BC263 -> 0 | AM90: ='50-year calcs'!BD263 -> 0 | AN90: ='50-year calcs'!BE263 -> 0 | AO90: ='50-year calcs'!BF263 -> 0 | AP90: ='50-year calcs'!BG263 -> 0 | AQ90: ='50-year calcs'!BH263 -> 0 | AR90: ='50-year calcs'!BI263 -> 0 | AS90: ='50-year calcs'!BJ263 -> 0 | AT90: ='50-year calcs'!BK263 -> 0 | AU90: ='50-year calcs'!BL263 -> 0 | AV90: ='50-year calcs'!BM263 -> 0 | AW90: ='50-year calcs'!BN263 -> 0 | AX90: ='50-year calcs'!BO263 -> 0 | AY90: ='50-year calcs'!BP263 -> 0 | AZ90: ='50-year calcs'!BQ263 -> 0 | BA90: ='50-year calcs'!BR263 -> 0 | BB90: ='50-year calcs'!BS263 -> 0
B91: =IF('3. Benefit parameters'!B91="","",'3. Benefit parameters'!B91) ->  | C91: ='50-year calcs'!C264 -> 0 | D91: ='50-year calcs'!U264 -> 0 | E91: ='50-year calcs'!V264 -> 0 | F91: ='50-year calcs'!W264 -> 0 | G91: ='50-year calcs'!X264 -> 0 | H91: ='50-year calcs'!Y264 -> 0 | I91: ='50-year calcs'!Z264 -> 0 | J91: ='50-year calcs'!AA264 -> 0 | K91: ='50-year calcs'!AB264 -> 0 | L91: ='50-year calcs'!AC264 -> 0 | M91: ='50-year calcs'!AD264 -> 0 | N91: ='50-year calcs'!AE264 -> 0 | O91: ='50-year calcs'!AF264 -> 0 | P91: ='50-year calcs'!AG264 -> 0 | Q91: ='50-year calcs'!AH264 -> 0 | R91: ='50-year calcs'!AI264 -> 0 | S91: ='50-year calcs'!AJ264 -> 0 | T91: ='50-year calcs'!AK264 -> 0 | U91: ='50-year calcs'!AL264 -> 0 | V91: ='50-year calcs'!AM264 -> 0 | W91: ='50-year calcs'!AN264 -> 0 | X91: ='50-year calcs'!AO264 -> 0 | Y91: ='50-year calcs'!AP264 -> 0 | Z91: ='50-year calcs'!AQ264 -> 0 | AA91: ='50-year calcs'!AR264 -> 0 | AB91: ='50-year calcs'!AS264 -> 0 | AC91: ='50-year calcs'!AT264 -> 0 | AD91: ='50-year calcs'!AU264 -> 0 | AE91: ='50-year calcs'!AV264 -> 0 | AF91: ='50-year calcs'!AW264 -> 0 | AG91: ='50-year calcs'!AX264 -> 0 | AH91: ='50-year calcs'!AY264 -> 0 | AI91: ='50-year calcs'!AZ264 -> 0 | AJ91: ='50-year calcs'!BA264 -> 0 | AK91: ='50-year calcs'!BB264 -> 0 | AL91: ='50-year calcs'!BC264 -> 0 | AM91: ='50-year calcs'!BD264 -> 0 | AN91: ='50-year calcs'!BE264 -> 0 | AO91: ='50-year calcs'!BF264 -> 0 | AP91: ='50-year calcs'!BG264 -> 0 | AQ91: ='50-year calcs'!BH264 -> 0 | AR91: ='50-year calcs'!BI264 -> 0 | AS91: ='50-year calcs'!BJ264 -> 0 | AT91: ='50-year calcs'!BK264 -> 0 | AU91: ='50-year calcs'!BL264 -> 0 | AV91: ='50-year calcs'!BM264 -> 0 | AW91: ='50-year calcs'!BN264 -> 0 | AX91: ='50-year calcs'!BO264 -> 0 | AY91: ='50-year calcs'!BP264 -> 0 | AZ91: ='50-year calcs'!BQ264 -> 0 | BA91: ='50-year calcs'!BR264 -> 0 | BB91: ='50-year calcs'!BS264 -> 0
B92: =IF('3. Benefit parameters'!B92="","",'3. Benefit parameters'!B92) ->  | C92: ='50-year calcs'!C265 -> 0 | D92: ='50-year calcs'!U265 -> 0 | E92: ='50-year calcs'!V265 -> 0 | F92: ='50-year calcs'!W265 -> 0 | G92: ='50-year calcs'!X265 -> 0 | H92: ='50-year calcs'!Y265 -> 0 | I92: ='50-year calcs'!Z265 -> 0 | J92: ='50-year calcs'!AA265 -> 0 | K92: ='50-year calcs'!AB265 -> 0 | L92: ='50-year calcs'!AC265 -> 0 | M92: ='50-year calcs'!AD265 -> 0 | N92: ='50-year calcs'!AE265 -> 0 | O92: ='50-year calcs'!AF265 -> 0 | P92: ='50-year calcs'!AG265 -> 0 | Q92: ='50-year calcs'!AH265 -> 0 | R92: ='50-year calcs'!AI265 -> 0 | S92: ='50-year calcs'!AJ265 -> 0 | T92: ='50-year calcs'!AK265 -> 0 | U92: ='50-year calcs'!AL265 -> 0 | V92: ='50-year calcs'!AM265 -> 0 | W92: ='50-year calcs'!AN265 -> 0 | X92: ='50-year calcs'!AO265 -> 0 | Y92: ='50-year calcs'!AP265 -> 0 | Z92: ='50-year calcs'!AQ265 -> 0 | AA92: ='50-year calcs'!AR265 -> 0 | AB92: ='50-year calcs'!AS265 -> 0 | AC92: ='50-year calcs'!AT265 -> 0 | AD92: ='50-year calcs'!AU265 -> 0 | AE92: ='50-year calcs'!AV265 -> 0 | AF92: ='50-year calcs'!AW265 -> 0 | AG92: ='50-year calcs'!AX265 -> 0 | AH92: ='50-year calcs'!AY265 -> 0 | AI92: ='50-year calcs'!AZ265 -> 0 | AJ92: ='50-year calcs'!BA265 -> 0 | AK92: ='50-year calcs'!BB265 -> 0 | AL92: ='50-year calcs'!BC265 -> 0 | AM92: ='50-year calcs'!BD265 -> 0 | AN92: ='50-year calcs'!BE265 -> 0 | AO92: ='50-year calcs'!BF265 -> 0 | AP92: ='50-year calcs'!BG265 -> 0 | AQ92: ='50-year calcs'!BH265 -> 0 | AR92: ='50-year calcs'!BI265 -> 0 | AS92: ='50-year calcs'!BJ265 -> 0 | AT92: ='50-year calcs'!BK265 -> 0 | AU92: ='50-year calcs'!BL265 -> 0 | AV92: ='50-year calcs'!BM265 -> 0 | AW92: ='50-year calcs'!BN265 -> 0 | AX92: ='50-year calcs'!BO265 -> 0 | AY92: ='50-year calcs'!BP265 -> 0 | AZ92: ='50-year calcs'!BQ265 -> 0 | BA92: ='50-year calcs'!BR265 -> 0 | BB92: ='50-year calcs'!BS265 -> 0
B93: =IF('3. Benefit parameters'!B93="","",'3. Benefit parameters'!B93) ->  | C93: ='50-year calcs'!C266 -> 0 | D93: ='50-year calcs'!U266 -> 0 | E93: ='50-year calcs'!V266 -> 0 | F93: ='50-year calcs'!W266 -> 0 | G93: ='50-year calcs'!X266 -> 0 | H93: ='50-year calcs'!Y266 -> 0 | I93: ='50-year calcs'!Z266 -> 0 | J93: ='50-year calcs'!AA266 -> 0 | K93: ='50-year calcs'!AB266 -> 0 | L93: ='50-year calcs'!AC266 -> 0 | M93: ='50-year calcs'!AD266 -> 0 | N93: ='50-year calcs'!AE266 -> 0 | O93: ='50-year calcs'!AF266 -> 0 | P93: ='50-year calcs'!AG266 -> 0 | Q93: ='50-year calcs'!AH266 -> 0 | R93: ='50-year calcs'!AI266 -> 0 | S93: ='50-year calcs'!AJ266 -> 0 | T93: ='50-year calcs'!AK266 -> 0 | U93: ='50-year calcs'!AL266 -> 0 | V93: ='50-year calcs'!AM266 -> 0 | W93: ='50-year calcs'!AN266 -> 0 | X93: ='50-year calcs'!AO266 -> 0 | Y93: ='50-year calcs'!AP266 -> 0 | Z93: ='50-year calcs'!AQ266 -> 0 | AA93: ='50-year calcs'!AR266 -> 0 | AB93: ='50-year calcs'!AS266 -> 0 | AC93: ='50-year calcs'!AT266 -> 0 | AD93: ='50-year calcs'!AU266 -> 0 | AE93: ='50-year calcs'!AV266 -> 0 | AF93: ='50-year calcs'!AW266 -> 0 | AG93: ='50-year calcs'!AX266 -> 0 | AH93: ='50-year calcs'!AY266 -> 0 | AI93: ='50-year calcs'!AZ266 -> 0 | AJ93: ='50-year calcs'!BA266 -> 0 | AK93: ='50-year calcs'!BB266 -> 0 | AL93: ='50-year calcs'!BC266 -> 0 | AM93: ='50-year calcs'!BD266 -> 0 | AN93: ='50-year calcs'!BE266 -> 0 | AO93: ='50-year calcs'!BF266 -> 0 | AP93: ='50-year calcs'!BG266 -> 0 | AQ93: ='50-year calcs'!BH266 -> 0 | AR93: ='50-year calcs'!BI266 -> 0 | AS93: ='50-year calcs'!BJ266 -> 0 | AT93: ='50-year calcs'!BK266 -> 0 | AU93: ='50-year calcs'!BL266 -> 0 | AV93: ='50-year calcs'!BM266 -> 0 | AW93: ='50-year calcs'!BN266 -> 0 | AX93: ='50-year calcs'!BO266 -> 0 | AY93: ='50-year calcs'!BP266 -> 0 | AZ93: ='50-year calcs'!BQ266 -> 0 | BA93: ='50-year calcs'!BR266 -> 0 | BB93: ='50-year calcs'!BS266 -> 0
B94: =IF('3. Benefit parameters'!B94="","",'3. Benefit parameters'!B94) ->  | C94: ='50-year calcs'!C267 -> 0 | D94: ='50-year calcs'!U267 -> 0 | E94: ='50-year calcs'!V267 -> 0 | F94: ='50-year calcs'!W267 -> 0 | G94: ='50-year calcs'!X267 -> 0 | H94: ='50-year calcs'!Y267 -> 0 | I94: ='50-year calcs'!Z267 -> 0 | J94: ='50-year calcs'!AA267 -> 0 | K94: ='50-year calcs'!AB267 -> 0 | L94: ='50-year calcs'!AC267 -> 0 | M94: ='50-year calcs'!AD267 -> 0 | N94: ='50-year calcs'!AE267 -> 0 | O94: ='50-year calcs'!AF267 -> 0 | P94: ='50-year calcs'!AG267 -> 0 | Q94: ='50-year calcs'!AH267 -> 0 | R94: ='50-year calcs'!AI267 -> 0 | S94: ='50-year calcs'!AJ267 -> 0 | T94: ='50-year calcs'!AK267 -> 0 | U94: ='50-year calcs'!AL267 -> 0 | V94: ='50-year calcs'!AM267 -> 0 | W94: ='50-year calcs'!AN267 -> 0 | X94: ='50-year calcs'!AO267 -> 0 | Y94: ='50-year calcs'!AP267 -> 0 | Z94: ='50-year calcs'!AQ267 -> 0 | AA94: ='50-year calcs'!AR267 -> 0 | AB94: ='50-year calcs'!AS267 -> 0 | AC94: ='50-year calcs'!AT267 -> 0 | AD94: ='50-year calcs'!AU267 -> 0 | AE94: ='50-year calcs'!AV267 -> 0 | AF94: ='50-year calcs'!AW267 -> 0 | AG94: ='50-year calcs'!AX267 -> 0 | AH94: ='50-year calcs'!AY267 -> 0 | AI94: ='50-year calcs'!AZ267 -> 0 | AJ94: ='50-year calcs'!BA267 -> 0 | AK94: ='50-year calcs'!BB267 -> 0 | AL94: ='50-year calcs'!BC267 -> 0 | AM94: ='50-year calcs'!BD267 -> 0 | AN94: ='50-year calcs'!BE267 -> 0 | AO94: ='50-year calcs'!BF267 -> 0 | AP94: ='50-year calcs'!BG267 -> 0 | AQ94: ='50-year calcs'!BH267 -> 0 | AR94: ='50-year calcs'!BI267 -> 0 | AS94: ='50-year calcs'!BJ267 -> 0 | AT94: ='50-year calcs'!BK267 -> 0 | AU94: ='50-year calcs'!BL267 -> 0 | AV94: ='50-year calcs'!BM267 -> 0 | AW94: ='50-year calcs'!BN267 -> 0 | AX94: ='50-year calcs'!BO267 -> 0 | AY94: ='50-year calcs'!BP267 -> 0 | AZ94: ='50-year calcs'!BQ267 -> 0 | BA94: ='50-year calcs'!BR267 -> 0 | BB94: ='50-year calcs'!BS267 -> 0
B95: =IF('3. Benefit parameters'!B95="","",'3. Benefit parameters'!B95) ->  | C95: ='50-year calcs'!C268 -> 0 | D95: ='50-year calcs'!U268 -> 0 | E95: ='50-year calcs'!V268 -> 0 | F95: ='50-year calcs'!W268 -> 0 | G95: ='50-year calcs'!X268 -> 0 | H95: ='50-year calcs'!Y268 -> 0 | I95: ='50-year calcs'!Z268 -> 0 | J95: ='50-year calcs'!AA268 -> 0 | K95: ='50-year calcs'!AB268 -> 0 | L95: ='50-year calcs'!AC268 -> 0 | M95: ='50-year calcs'!AD268 -> 0 | N95: ='50-year calcs'!AE268 -> 0 | O95: ='50-year calcs'!AF268 -> 0 | P95: ='50-year calcs'!AG268 -> 0 | Q95: ='50-year calcs'!AH268 -> 0 | R95: ='50-year calcs'!AI268 -> 0 | S95: ='50-year calcs'!AJ268 -> 0 | T95: ='50-year calcs'!AK268 -> 0 | U95: ='50-year calcs'!AL268 -> 0 | V95: ='50-year calcs'!AM268 -> 0 | W95: ='50-year calcs'!AN268 -> 0 | X95: ='50-year calcs'!AO268 -> 0 | Y95: ='50-year calcs'!AP268 -> 0 | Z95: ='50-year calcs'!AQ268 -> 0 | AA95: ='50-year calcs'!AR268 -> 0 | AB95: ='50-year calcs'!AS268 -> 0 | AC95: ='50-year calcs'!AT268 -> 0 | AD95: ='50-year calcs'!AU268 -> 0 | AE95: ='50-year calcs'!AV268 -> 0 | AF95: ='50-year calcs'!AW268 -> 0 | AG95: ='50-year calcs'!AX268 -> 0 | AH95: ='50-year calcs'!AY268 -> 0 | AI95: ='50-year calcs'!AZ268 -> 0 | AJ95: ='50-year calcs'!BA268 -> 0 | AK95: ='50-year calcs'!BB268 -> 0 | AL95: ='50-year calcs'!BC268 -> 0 | AM95: ='50-year calcs'!BD268 -> 0 | AN95: ='50-year calcs'!BE268 -> 0 | AO95: ='50-year calcs'!BF268 -> 0 | AP95: ='50-year calcs'!BG268 -> 0 | AQ95: ='50-year calcs'!BH268 -> 0 | AR95: ='50-year calcs'!BI268 -> 0 | AS95: ='50-year calcs'!BJ268 -> 0 | AT95: ='50-year calcs'!BK268 -> 0 | AU95: ='50-year calcs'!BL268 -> 0 | AV95: ='50-year calcs'!BM268 -> 0 | AW95: ='50-year calcs'!BN268 -> 0 | AX95: ='50-year calcs'!BO268 -> 0 | AY95: ='50-year calcs'!BP268 -> 0 | AZ95: ='50-year calcs'!BQ268 -> 0 | BA95: ='50-year calcs'!BR268 -> 0 | BB95: ='50-year calcs'!BS268 -> 0
B96: =IF('3. Benefit parameters'!B96="","",'3. Benefit parameters'!B96) ->  | C96: ='50-year calcs'!C269 -> 0 | D96: ='50-year calcs'!U269 -> 0 | E96: ='50-year calcs'!V269 -> 0 | F96: ='50-year calcs'!W269 -> 0 | G96: ='50-year calcs'!X269 -> 0 | H96: ='50-year calcs'!Y269 -> 0 | I96: ='50-year calcs'!Z269 -> 0 | J96: ='50-year calcs'!AA269 -> 0 | K96: ='50-year calcs'!AB269 -> 0 | L96: ='50-year calcs'!AC269 -> 0 | M96: ='50-year calcs'!AD269 -> 0 | N96: ='50-year calcs'!AE269 -> 0 | O96: ='50-year calcs'!AF269 -> 0 | P96: ='50-year calcs'!AG269 -> 0 | Q96: ='50-year calcs'!AH269 -> 0 | R96: ='50-year calcs'!AI269 -> 0 | S96: ='50-year calcs'!AJ269 -> 0 | T96: ='50-year calcs'!AK269 -> 0 | U96: ='50-year calcs'!AL269 -> 0 | V96: ='50-year calcs'!AM269 -> 0 | W96: ='50-year calcs'!AN269 -> 0 | X96: ='50-year calcs'!AO269 -> 0 | Y96: ='50-year calcs'!AP269 -> 0 | Z96: ='50-year calcs'!AQ269 -> 0 | AA96: ='50-year calcs'!AR269 -> 0 | AB96: ='50-year calcs'!AS269 -> 0 | AC96: ='50-year calcs'!AT269 -> 0 | AD96: ='50-year calcs'!AU269 -> 0 | AE96: ='50-year calcs'!AV269 -> 0 | AF96: ='50-year calcs'!AW269 -> 0 | AG96: ='50-year calcs'!AX269 -> 0 | AH96: ='50-year calcs'!AY269 -> 0 | AI96: ='50-year calcs'!AZ269 -> 0 | AJ96: ='50-year calcs'!BA269 -> 0 | AK96: ='50-year calcs'!BB269 -> 0 | AL96: ='50-year calcs'!BC269 -> 0 | AM96: ='50-year calcs'!BD269 -> 0 | AN96: ='50-year calcs'!BE269 -> 0 | AO96: ='50-year calcs'!BF269 -> 0 | AP96: ='50-year calcs'!BG269 -> 0 | AQ96: ='50-year calcs'!BH269 -> 0 | AR96: ='50-year calcs'!BI269 -> 0 | AS96: ='50-year calcs'!BJ269 -> 0 | AT96: ='50-year calcs'!BK269 -> 0 | AU96: ='50-year calcs'!BL269 -> 0 | AV96: ='50-year calcs'!BM269 -> 0 | AW96: ='50-year calcs'!BN269 -> 0 | AX96: ='50-year calcs'!BO269 -> 0 | AY96: ='50-year calcs'!BP269 -> 0 | AZ96: ='50-year calcs'!BQ269 -> 0 | BA96: ='50-year calcs'!BR269 -> 0 | BB96: ='50-year calcs'!BS269 -> 0
B97: =IF('3. Benefit parameters'!B97="","",'3. Benefit parameters'!B97) ->  | C97: ='50-year calcs'!C270 -> 0 | D97: ='50-year calcs'!U270 -> 0 | E97: ='50-year calcs'!V270 -> 0 | F97: ='50-year calcs'!W270 -> 0 | G97: ='50-year calcs'!X270 -> 0 | H97: ='50-year calcs'!Y270 -> 0 | I97: ='50-year calcs'!Z270 -> 0 | J97: ='50-year calcs'!AA270 -> 0 | K97: ='50-year calcs'!AB270 -> 0 | L97: ='50-year calcs'!AC270 -> 0 | M97: ='50-year calcs'!AD270 -> 0 | N97: ='50-year calcs'!AE270 -> 0 | O97: ='50-year calcs'!AF270 -> 0 | P97: ='50-year calcs'!AG270 -> 0 | Q97: ='50-year calcs'!AH270 -> 0 | R97: ='50-year calcs'!AI270 -> 0 | S97: ='50-year calcs'!AJ270 -> 0 | T97: ='50-year calcs'!AK270 -> 0 | U97: ='50-year calcs'!AL270 -> 0 | V97: ='50-year calcs'!AM270 -> 0 | W97: ='50-year calcs'!AN270 -> 0 | X97: ='50-year calcs'!AO270 -> 0 | Y97: ='50-year calcs'!AP270 -> 0 | Z97: ='50-year calcs'!AQ270 -> 0 | AA97: ='50-year calcs'!AR270 -> 0 | AB97: ='50-year calcs'!AS270 -> 0 | AC97: ='50-year calcs'!AT270 -> 0 | AD97: ='50-year calcs'!AU270 -> 0 | AE97: ='50-year calcs'!AV270 -> 0 | AF97: ='50-year calcs'!AW270 -> 0 | AG97: ='50-year calcs'!AX270 -> 0 | AH97: ='50-year calcs'!AY270 -> 0 | AI97: ='50-year calcs'!AZ270 -> 0 | AJ97: ='50-year calcs'!BA270 -> 0 | AK97: ='50-year calcs'!BB270 -> 0 | AL97: ='50-year calcs'!BC270 -> 0 | AM97: ='50-year calcs'!BD270 -> 0 | AN97: ='50-year calcs'!BE270 -> 0 | AO97: ='50-year calcs'!BF270 -> 0 | AP97: ='50-year calcs'!BG270 -> 0 | AQ97: ='50-year calcs'!BH270 -> 0 | AR97: ='50-year calcs'!BI270 -> 0 | AS97: ='50-year calcs'!BJ270 -> 0 | AT97: ='50-year calcs'!BK270 -> 0 | AU97: ='50-year calcs'!BL270 -> 0 | AV97: ='50-year calcs'!BM270 -> 0 | AW97: ='50-year calcs'!BN270 -> 0 | AX97: ='50-year calcs'!BO270 -> 0 | AY97: ='50-year calcs'!BP270 -> 0 | AZ97: ='50-year calcs'!BQ270 -> 0 | BA97: ='50-year calcs'!BR270 -> 0 | BB97: ='50-year calcs'!BS270 -> 0
B98: =IF('3. Benefit parameters'!B98="","",'3. Benefit parameters'!B98) ->  | C98: ='50-year calcs'!C271 -> 0 | D98: ='50-year calcs'!U271 -> 0 | E98: ='50-year calcs'!V271 -> 0 | F98: ='50-year calcs'!W271 -> 0 | G98: ='50-year calcs'!X271 -> 0 | H98: ='50-year calcs'!Y271 -> 0 | I98: ='50-year calcs'!Z271 -> 0 | J98: ='50-year calcs'!AA271 -> 0 | K98: ='50-year calcs'!AB271 -> 0 | L98: ='50-year calcs'!AC271 -> 0 | M98: ='50-year calcs'!AD271 -> 0 | N98: ='50-year calcs'!AE271 -> 0 | O98: ='50-year calcs'!AF271 -> 0 | P98: ='50-year calcs'!AG271 -> 0 | Q98: ='50-year calcs'!AH271 -> 0 | R98: ='50-year calcs'!AI271 -> 0 | S98: ='50-year calcs'!AJ271 -> 0 | T98: ='50-year calcs'!AK271 -> 0 | U98: ='50-year calcs'!AL271 -> 0 | V98: ='50-year calcs'!AM271 -> 0 | W98: ='50-year calcs'!AN271 -> 0 | X98: ='50-year calcs'!AO271 -> 0 | Y98: ='50-year calcs'!AP271 -> 0 | Z98: ='50-year calcs'!AQ271 -> 0 | AA98: ='50-year calcs'!AR271 -> 0 | AB98: ='50-year calcs'!AS271 -> 0 | AC98: ='50-year calcs'!AT271 -> 0 | AD98: ='50-year calcs'!AU271 -> 0 | AE98: ='50-year calcs'!AV271 -> 0 | AF98: ='50-year calcs'!AW271 -> 0 | AG98: ='50-year calcs'!AX271 -> 0 | AH98: ='50-year calcs'!AY271 -> 0 | AI98: ='50-year calcs'!AZ271 -> 0 | AJ98: ='50-year calcs'!BA271 -> 0 | AK98: ='50-year calcs'!BB271 -> 0 | AL98: ='50-year calcs'!BC271 -> 0 | AM98: ='50-year calcs'!BD271 -> 0 | AN98: ='50-year calcs'!BE271 -> 0 | AO98: ='50-year calcs'!BF271 -> 0 | AP98: ='50-year calcs'!BG271 -> 0 | AQ98: ='50-year calcs'!BH271 -> 0 | AR98: ='50-year calcs'!BI271 -> 0 | AS98: ='50-year calcs'!BJ271 -> 0 | AT98: ='50-year calcs'!BK271 -> 0 | AU98: ='50-year calcs'!BL271 -> 0 | AV98: ='50-year calcs'!BM271 -> 0 | AW98: ='50-year calcs'!BN271 -> 0 | AX98: ='50-year calcs'!BO271 -> 0 | AY98: ='50-year calcs'!BP271 -> 0 | AZ98: ='50-year calcs'!BQ271 -> 0 | BA98: ='50-year calcs'!BR271 -> 0 | BB98: ='50-year calcs'!BS271 -> 0
A100: 3.8 | B100: Category 8. Custom benefits
B101: Benefit | C101: Present value | D101: =D$10 -> 2020 | E101: =E$10 -> 2021 | F101: 2022 | G101: 2023 | H101: 2024 | I101: 2025 | J101: 2026 | K101: 2027 | L101: 2028 | M101: 2029 | N101: 2030 | O101: 2031 | P101: 2032 | Q101: 2033 | R101: 2034 | S101: 2035 | T101: 2036 | U101: 2037 | V101: 2038 | W101: 2039 | X101: 2040 | Y101: 2041 | Z101: 2042 | AA101: 2043 | AB101: 2044 | AC101: 2045 | AD101: 2046 | AE101: 2047 | AF101: 2048 | AG101: 2049 | AH101: 2050 | AI101: 2051 | AJ101: 2052 | AK101: 2053 | AL101: 2054 | AM101: 2055 | AN101: 2056 | AO101: 2057 | AP101: 2058 | AQ101: 2059 | AR101: 2060 | AS101: 2061 | AT101: 2062 | AU101: 2063 | AV101: 2064 | AW101: 2065 | AX101: 2066 | AY101: 2067 | AZ101: 2068 | BA101: 2069 | BB101: 2070
B102: =IF('3.8 Custom benefits'!B10="","",'3.8 Custom benefits'!B10) ->  | C102: ='50-year calcs'!C275 -> 0 | D102: ='50-year calcs'!U275 -> 0 | E102: ='50-year calcs'!V275 -> 0 | F102: ='50-year calcs'!W275 -> 0 | G102: ='50-year calcs'!X275 -> 0 | H102: ='50-year calcs'!Y275 -> 0 | I102: ='50-year calcs'!Z275 -> 0 | J102: ='50-year calcs'!AA275 -> 0 | K102: ='50-year calcs'!AB275 -> 0 | L102: ='50-year calcs'!AC275 -> 0 | M102: ='50-year calcs'!AD275 -> 0 | N102: ='50-year calcs'!AE275 -> 0 | O102: ='50-year calcs'!AF275 -> 0 | P102: ='50-year calcs'!AG275 -> 0 | Q102: ='50-year calcs'!AH275 -> 0 | R102: ='50-year calcs'!AI275 -> 0 | S102: ='50-year calcs'!AJ275 -> 0 | T102: ='50-year calcs'!AK275 -> 0 | U102: ='50-year calcs'!AL275 -> 0 | V102: ='50-year calcs'!AM275 -> 0 | W102: ='50-year calcs'!AN275 -> 0 | X102: ='50-year calcs'!AO275 -> 0 | Y102: ='50-year calcs'!AP275 -> 0 | Z102: ='50-year calcs'!AQ275 -> 0 | AA102: ='50-year calcs'!AR275 -> 0 | AB102: ='50-year calcs'!AS275 -> 0 | AC102: ='50-year calcs'!AT275 -> 0 | AD102: ='50-year calcs'!AU275 -> 0 | AE102: ='50-year calcs'!AV275 -> 0 | AF102: ='50-year calcs'!AW275 -> 0 | AG102: ='50-year calcs'!AX275 -> 0 | AH102: ='50-year calcs'!AY275 -> 0 | AI102: ='50-year calcs'!AZ275 -> 0 | AJ102: ='50-year calcs'!BA275 -> 0 | AK102: ='50-year calcs'!BB275 -> 0 | AL102: ='50-year calcs'!BC275 -> 0 | AM102: ='50-year calcs'!BD275 -> 0 | AN102: ='50-year calcs'!BE275 -> 0 | AO102: ='50-year calcs'!BF275 -> 0 | AP102: ='50-year calcs'!BG275 -> 0 | AQ102: ='50-year calcs'!BH275 -> 0 | AR102: ='50-year calcs'!BI275 -> 0 | AS102: ='50-year calcs'!BJ275 -> 0 | AT102: ='50-year calcs'!BK275 -> 0 | AU102: ='50-year calcs'!BL275 -> 0 | AV102: ='50-year calcs'!BM275 -> 0 | AW102: ='50-year calcs'!BN275 -> 0 | AX102: ='50-year calcs'!BO275 -> 0 | AY102: ='50-year calcs'!BP275 -> 0 | AZ102: ='50-year calcs'!BQ275 -> 0 | BA102: ='50-year calcs'!BR275 -> 0 | BB102: ='50-year calcs'!BS275 -> 0
B103: =IF('3.8 Custom benefits'!B11="","",'3.8 Custom benefits'!B11) ->  | C103: ='50-year calcs'!C276 -> 0 | D103: ='50-year calcs'!U276 -> 0 | E103: ='50-year calcs'!V276 -> 0 | F103: ='50-year calcs'!W276 -> 0 | G103: ='50-year calcs'!X276 -> 0 | H103: ='50-year calcs'!Y276 -> 0 | I103: ='50-year calcs'!Z276 -> 0 | J103: ='50-year calcs'!AA276 -> 0 | K103: ='50-year calcs'!AB276 -> 0 | L103: ='50-year calcs'!AC276 -> 0 | M103: ='50-year calcs'!AD276 -> 0 | N103: ='50-year calcs'!AE276 -> 0 | O103: ='50-year calcs'!AF276 -> 0 | P103: ='50-year calcs'!AG276 -> 0 | Q103: ='50-year calcs'!AH276 -> 0 | R103: ='50-year calcs'!AI276 -> 0 | S103: ='50-year calcs'!AJ276 -> 0 | T103: ='50-year calcs'!AK276 -> 0 | U103: ='50-year calcs'!AL276 -> 0 | V103: ='50-year calcs'!AM276 -> 0 | W103: ='50-year calcs'!AN276 -> 0 | X103: ='50-year calcs'!AO276 -> 0 | Y103: ='50-year calcs'!AP276 -> 0 | Z103: ='50-year calcs'!AQ276 -> 0 | AA103: ='50-year calcs'!AR276 -> 0 | AB103: ='50-year calcs'!AS276 -> 0 | AC103: ='50-year calcs'!AT276 -> 0 | AD103: ='50-year calcs'!AU276 -> 0 | AE103: ='50-year calcs'!AV276 -> 0 | AF103: ='50-year calcs'!AW276 -> 0 | AG103: ='50-year calcs'!AX276 -> 0 | AH103: ='50-year calcs'!AY276 -> 0 | AI103: ='50-year calcs'!AZ276 -> 0 | AJ103: ='50-year calcs'!BA276 -> 0 | AK103: ='50-year calcs'!BB276 -> 0 | AL103: ='50-year calcs'!BC276 -> 0 | AM103: ='50-year calcs'!BD276 -> 0 | AN103: ='50-year calcs'!BE276 -> 0 | AO103: ='50-year calcs'!BF276 -> 0 | AP103: ='50-year calcs'!BG276 -> 0 | AQ103: ='50-year calcs'!BH276 -> 0 | AR103: ='50-year calcs'!BI276 -> 0 | AS103: ='50-year calcs'!BJ276 -> 0 | AT103: ='50-year calcs'!BK276 -> 0 | AU103: ='50-year calcs'!BL276 -> 0 | AV103: ='50-year calcs'!BM276 -> 0 | AW103: ='50-year calcs'!BN276 -> 0 | AX103: ='50-year calcs'!BO276 -> 0 | AY103: ='50-year calcs'!BP276 -> 0 | AZ103: ='50-year calcs'!BQ276 -> 0 | BA103: ='50-year calcs'!BR276 -> 0 | BB103: ='50-year calcs'!BS276 -> 0
B104: =IF('3.8 Custom benefits'!B12="","",'3.8 Custom benefits'!B12) ->  | C104: ='50-year calcs'!C277 -> 0 | D104: ='50-year calcs'!U277 -> 0 | E104: ='50-year calcs'!V277 -> 0 | F104: ='50-year calcs'!W277 -> 0 | G104: ='50-year calcs'!X277 -> 0 | H104: ='50-year calcs'!Y277 -> 0 | I104: ='50-year calcs'!Z277 -> 0 | J104: ='50-year calcs'!AA277 -> 0 | K104: ='50-year calcs'!AB277 -> 0 | L104: ='50-year calcs'!AC277 -> 0 | M104: ='50-year calcs'!AD277 -> 0 | N104: ='50-year calcs'!AE277 -> 0 | O104: ='50-year calcs'!AF277 -> 0 | P104: ='50-year calcs'!AG277 -> 0 | Q104: ='50-year calcs'!AH277 -> 0 | R104: ='50-year calcs'!AI277 -> 0 | S104: ='50-year calcs'!AJ277 -> 0 | T104: ='50-year calcs'!AK277 -> 0 | U104: ='50-year calcs'!AL277 -> 0 | V104: ='50-year calcs'!AM277 -> 0 | W104: ='50-year calcs'!AN277 -> 0 | X104: ='50-year calcs'!AO277 -> 0 | Y104: ='50-year calcs'!AP277 -> 0 | Z104: ='50-year calcs'!AQ277 -> 0 | AA104: ='50-year calcs'!AR277 -> 0 | AB104: ='50-year calcs'!AS277 -> 0 | AC104: ='50-year calcs'!AT277 -> 0 | AD104: ='50-year calcs'!AU277 -> 0 | AE104: ='50-year calcs'!AV277 -> 0 | AF104: ='50-year calcs'!AW277 -> 0 | AG104: ='50-year calcs'!AX277 -> 0 | AH104: ='50-year calcs'!AY277 -> 0 | AI104: ='50-year calcs'!AZ277 -> 0 | AJ104: ='50-year calcs'!BA277 -> 0 | AK104: ='50-year calcs'!BB277 -> 0 | AL104: ='50-year calcs'!BC277 -> 0 | AM104: ='50-year calcs'!BD277 -> 0 | AN104: ='50-year calcs'!BE277 -> 0 | AO104: ='50-year calcs'!BF277 -> 0 | AP104: ='50-year calcs'!BG277 -> 0 | AQ104: ='50-year calcs'!BH277 -> 0 | AR104: ='50-year calcs'!BI277 -> 0 | AS104: ='50-year calcs'!BJ277 -> 0 | AT104: ='50-year calcs'!BK277 -> 0 | AU104: ='50-year calcs'!BL277 -> 0 | AV104: ='50-year calcs'!BM277 -> 0 | AW104: ='50-year calcs'!BN277 -> 0 | AX104: ='50-year calcs'!BO277 -> 0 | AY104: ='50-year calcs'!BP277 -> 0 | AZ104: ='50-year calcs'!BQ277 -> 0 | BA104: ='50-year calcs'!BR277 -> 0 | BB104: ='50-year calcs'!BS277 -> 0
B105: =IF('3.8 Custom benefits'!B13="","",'3.8 Custom benefits'!B13) ->  | C105: ='50-year calcs'!C278 -> 0 | D105: ='50-year calcs'!U278 -> 0 | E105: ='50-year calcs'!V278 -> 0 | F105: ='50-year calcs'!W278 -> 0 | G105: ='50-year calcs'!X278 -> 0 | H105: ='50-year calcs'!Y278 -> 0 | I105: ='50-year calcs'!Z278 -> 0 | J105: ='50-year calcs'!AA278 -> 0 | K105: ='50-year calcs'!AB278 -> 0 | L105: ='50-year calcs'!AC278 -> 0 | M105: ='50-year calcs'!AD278 -> 0 | N105: ='50-year calcs'!AE278 -> 0 | O105: ='50-year calcs'!AF278 -> 0 | P105: ='50-year calcs'!AG278 -> 0 | Q105: ='50-year calcs'!AH278 -> 0 | R105: ='50-year calcs'!AI278 -> 0 | S105: ='50-year calcs'!AJ278 -> 0 | T105: ='50-year calcs'!AK278 -> 0 | U105: ='50-year calcs'!AL278 -> 0 | V105: ='50-year calcs'!AM278 -> 0 | W105: ='50-year calcs'!AN278 -> 0 | X105: ='50-year calcs'!AO278 -> 0 | Y105: ='50-year calcs'!AP278 -> 0 | Z105: ='50-year calcs'!AQ278 -> 0 | AA105: ='50-year calcs'!AR278 -> 0 | AB105: ='50-year calcs'!AS278 -> 0 | AC105: ='50-year calcs'!AT278 -> 0 | AD105: ='50-year calcs'!AU278 -> 0 | AE105: ='50-year calcs'!AV278 -> 0 | AF105: ='50-year calcs'!AW278 -> 0 | AG105: ='50-year calcs'!AX278 -> 0 | AH105: ='50-year calcs'!AY278 -> 0 | AI105: ='50-year calcs'!AZ278 -> 0 | AJ105: ='50-year calcs'!BA278 -> 0 | AK105: ='50-year calcs'!BB278 -> 0 | AL105: ='50-year calcs'!BC278 -> 0 | AM105: ='50-year calcs'!BD278 -> 0 | AN105: ='50-year calcs'!BE278 -> 0 | AO105: ='50-year calcs'!BF278 -> 0 | AP105: ='50-year calcs'!BG278 -> 0 | AQ105: ='50-year calcs'!BH278 -> 0 | AR105: ='50-year calcs'!BI278 -> 0 | AS105: ='50-year calcs'!BJ278 -> 0 | AT105: ='50-year calcs'!BK278 -> 0 | AU105: ='50-year calcs'!BL278 -> 0 | AV105: ='50-year calcs'!BM278 -> 0 | AW105: ='50-year calcs'!BN278 -> 0 | AX105: ='50-year calcs'!BO278 -> 0 | AY105: ='50-year calcs'!BP278 -> 0 | AZ105: ='50-year calcs'!BQ278 -> 0 | BA105: ='50-year calcs'!BR278 -> 0 | BB105: ='50-year calcs'!BS278 -> 0
B106: =IF('3.8 Custom benefits'!B14="","",'3.8 Custom benefits'!B14) ->  | C106: ='50-year calcs'!C279 -> 0 | D106: ='50-year calcs'!U279 -> 0 | E106: ='50-year calcs'!V279 -> 0 | F106: ='50-year calcs'!W279 -> 0 | G106: ='50-year calcs'!X279 -> 0 | H106: ='50-year calcs'!Y279 -> 0 | I106: ='50-year calcs'!Z279 -> 0 | J106: ='50-year calcs'!AA279 -> 0 | K106: ='50-year calcs'!AB279 -> 0 | L106: ='50-year calcs'!AC279 -> 0 | M106: ='50-year calcs'!AD279 -> 0 | N106: ='50-year calcs'!AE279 -> 0 | O106: ='50-year calcs'!AF279 -> 0 | P106: ='50-year calcs'!AG279 -> 0 | Q106: ='50-year calcs'!AH279 -> 0 | R106: ='50-year calcs'!AI279 -> 0 | S106: ='50-year calcs'!AJ279 -> 0 | T106: ='50-year calcs'!AK279 -> 0 | U106: ='50-year calcs'!AL279 -> 0 | V106: ='50-year calcs'!AM279 -> 0 | W106: ='50-year calcs'!AN279 -> 0 | X106: ='50-year calcs'!AO279 -> 0 | Y106: ='50-year calcs'!AP279 -> 0 | Z106: ='50-year calcs'!AQ279 -> 0 | AA106: ='50-year calcs'!AR279 -> 0 | AB106: ='50-year calcs'!AS279 -> 0 | AC106: ='50-year calcs'!AT279 -> 0 | AD106: ='50-year calcs'!AU279 -> 0 | AE106: ='50-year calcs'!AV279 -> 0 | AF106: ='50-year calcs'!AW279 -> 0 | AG106: ='50-year calcs'!AX279 -> 0 | AH106: ='50-year calcs'!AY279 -> 0 | AI106: ='50-year calcs'!AZ279 -> 0 | AJ106: ='50-year calcs'!BA279 -> 0 | AK106: ='50-year calcs'!BB279 -> 0 | AL106: ='50-year calcs'!BC279 -> 0 | AM106: ='50-year calcs'!BD279 -> 0 | AN106: ='50-year calcs'!BE279 -> 0 | AO106: ='50-year calcs'!BF279 -> 0 | AP106: ='50-year calcs'!BG279 -> 0 | AQ106: ='50-year calcs'!BH279 -> 0 | AR106: ='50-year calcs'!BI279 -> 0 | AS106: ='50-year calcs'!BJ279 -> 0 | AT106: ='50-year calcs'!BK279 -> 0 | AU106: ='50-year calcs'!BL279 -> 0 | AV106: ='50-year calcs'!BM279 -> 0 | AW106: ='50-year calcs'!BN279 -> 0 | AX106: ='50-year calcs'!BO279 -> 0 | AY106: ='50-year calcs'!BP279 -> 0 | AZ106: ='50-year calcs'!BQ279 -> 0 | BA106: ='50-year calcs'!BR279 -> 0 | BB106: ='50-year calcs'!BS279 -> 0
B107: =IF('3.8 Custom benefits'!B15="","",'3.8 Custom benefits'!B15) ->  | C107: ='50-year calcs'!C280 -> 0 | D107: ='50-year calcs'!U280 -> 0 | E107: ='50-year calcs'!V280 -> 0 | F107: ='50-year calcs'!W280 -> 0 | G107: ='50-year calcs'!X280 -> 0 | H107: ='50-year calcs'!Y280 -> 0 | I107: ='50-year calcs'!Z280 -> 0 | J107: ='50-year calcs'!AA280 -> 0 | K107: ='50-year calcs'!AB280 -> 0 | L107: ='50-year calcs'!AC280 -> 0 | M107: ='50-year calcs'!AD280 -> 0 | N107: ='50-year calcs'!AE280 -> 0 | O107: ='50-year calcs'!AF280 -> 0 | P107: ='50-year calcs'!AG280 -> 0 | Q107: ='50-year calcs'!AH280 -> 0 | R107: ='50-year calcs'!AI280 -> 0 | S107: ='50-year calcs'!AJ280 -> 0 | T107: ='50-year calcs'!AK280 -> 0 | U107: ='50-year calcs'!AL280 -> 0 | V107: ='50-year calcs'!AM280 -> 0 | W107: ='50-year calcs'!AN280 -> 0 | X107: ='50-year calcs'!AO280 -> 0 | Y107: ='50-year calcs'!AP280 -> 0 | Z107: ='50-year calcs'!AQ280 -> 0 | AA107: ='50-year calcs'!AR280 -> 0 | AB107: ='50-year calcs'!AS280 -> 0 | AC107: ='50-year calcs'!AT280 -> 0 | AD107: ='50-year calcs'!AU280 -> 0 | AE107: ='50-year calcs'!AV280 -> 0 | AF107: ='50-year calcs'!AW280 -> 0 | AG107: ='50-year calcs'!AX280 -> 0 | AH107: ='50-year calcs'!AY280 -> 0 | AI107: ='50-year calcs'!AZ280 -> 0 | AJ107: ='50-year calcs'!BA280 -> 0 | AK107: ='50-year calcs'!BB280 -> 0 | AL107: ='50-year calcs'!BC280 -> 0 | AM107: ='50-year calcs'!BD280 -> 0 | AN107: ='50-year calcs'!BE280 -> 0 | AO107: ='50-year calcs'!BF280 -> 0 | AP107: ='50-year calcs'!BG280 -> 0 | AQ107: ='50-year calcs'!BH280 -> 0 | AR107: ='50-year calcs'!BI280 -> 0 | AS107: ='50-year calcs'!BJ280 -> 0 | AT107: ='50-year calcs'!BK280 -> 0 | AU107: ='50-year calcs'!BL280 -> 0 | AV107: ='50-year calcs'!BM280 -> 0 | AW107: ='50-year calcs'!BN280 -> 0 | AX107: ='50-year calcs'!BO280 -> 0 | AY107: ='50-year calcs'!BP280 -> 0 | AZ107: ='50-year calcs'!BQ280 -> 0 | BA107: ='50-year calcs'!BR280 -> 0 | BB107: ='50-year calcs'!BS280 -> 0
B108: =IF('3.8 Custom benefits'!B16="","",'3.8 Custom benefits'!B16) ->  | C108: ='50-year calcs'!C281 -> 0 | D108: ='50-year calcs'!U281 -> 0 | E108: ='50-year calcs'!V281 -> 0 | F108: ='50-year calcs'!W281 -> 0 | G108: ='50-year calcs'!X281 -> 0 | H108: ='50-year calcs'!Y281 -> 0 | I108: ='50-year calcs'!Z281 -> 0 | J108: ='50-year calcs'!AA281 -> 0 | K108: ='50-year calcs'!AB281 -> 0 | L108: ='50-year calcs'!AC281 -> 0 | M108: ='50-year calcs'!AD281 -> 0 | N108: ='50-year calcs'!AE281 -> 0 | O108: ='50-year calcs'!AF281 -> 0 | P108: ='50-year calcs'!AG281 -> 0 | Q108: ='50-year calcs'!AH281 -> 0 | R108: ='50-year calcs'!AI281 -> 0 | S108: ='50-year calcs'!AJ281 -> 0 | T108: ='50-year calcs'!AK281 -> 0 | U108: ='50-year calcs'!AL281 -> 0 | V108: ='50-year calcs'!AM281 -> 0 | W108: ='50-year calcs'!AN281 -> 0 | X108: ='50-year calcs'!AO281 -> 0 | Y108: ='50-year calcs'!AP281 -> 0 | Z108: ='50-year calcs'!AQ281 -> 0 | AA108: ='50-year calcs'!AR281 -> 0 | AB108: ='50-year calcs'!AS281 -> 0 | AC108: ='50-year calcs'!AT281 -> 0 | AD108: ='50-year calcs'!AU281 -> 0 | AE108: ='50-year calcs'!AV281 -> 0 | AF108: ='50-year calcs'!AW281 -> 0 | AG108: ='50-year calcs'!AX281 -> 0 | AH108: ='50-year calcs'!AY281 -> 0 | AI108: ='50-year calcs'!AZ281 -> 0 | AJ108: ='50-year calcs'!BA281 -> 0 | AK108: ='50-year calcs'!BB281 -> 0 | AL108: ='50-year calcs'!BC281 -> 0 | AM108: ='50-year calcs'!BD281 -> 0 | AN108: ='50-year calcs'!BE281 -> 0 | AO108: ='50-year calcs'!BF281 -> 0 | AP108: ='50-year calcs'!BG281 -> 0 | AQ108: ='50-year calcs'!BH281 -> 0 | AR108: ='50-year calcs'!BI281 -> 0 | AS108: ='50-year calcs'!BJ281 -> 0 | AT108: ='50-year calcs'!BK281 -> 0 | AU108: ='50-year calcs'!BL281 -> 0 | AV108: ='50-year calcs'!BM281 -> 0 | AW108: ='50-year calcs'!BN281 -> 0 | AX108: ='50-year calcs'!BO281 -> 0 | AY108: ='50-year calcs'!BP281 -> 0 | AZ108: ='50-year calcs'!BQ281 -> 0 | BA108: ='50-year calcs'!BR281 -> 0 | BB108: ='50-year calcs'!BS281 -> 0
B109: =IF('3.8 Custom benefits'!B17="","",'3.8 Custom benefits'!B17) ->  | C109: ='50-year calcs'!C282 -> 0 | D109: ='50-year calcs'!U282 -> 0 | E109: ='50-year calcs'!V282 -> 0 | F109: ='50-year calcs'!W282 -> 0 | G109: ='50-year calcs'!X282 -> 0 | H109: ='50-year calcs'!Y282 -> 0 | I109: ='50-year calcs'!Z282 -> 0 | J109: ='50-year calcs'!AA282 -> 0 | K109: ='50-year calcs'!AB282 -> 0 | L109: ='50-year calcs'!AC282 -> 0 | M109: ='50-year calcs'!AD282 -> 0 | N109: ='50-year calcs'!AE282 -> 0 | O109: ='50-year calcs'!AF282 -> 0 | P109: ='50-year calcs'!AG282 -> 0 | Q109: ='50-year calcs'!AH282 -> 0 | R109: ='50-year calcs'!AI282 -> 0 | S109: ='50-year calcs'!AJ282 -> 0 | T109: ='50-year calcs'!AK282 -> 0 | U109: ='50-year calcs'!AL282 -> 0 | V109: ='50-year calcs'!AM282 -> 0 | W109: ='50-year calcs'!AN282 -> 0 | X109: ='50-year calcs'!AO282 -> 0 | Y109: ='50-year calcs'!AP282 -> 0 | Z109: ='50-year calcs'!AQ282 -> 0 | AA109: ='50-year calcs'!AR282 -> 0 | AB109: ='50-year calcs'!AS282 -> 0 | AC109: ='50-year calcs'!AT282 -> 0 | AD109: ='50-year calcs'!AU282 -> 0 | AE109: ='50-year calcs'!AV282 -> 0 | AF109: ='50-year calcs'!AW282 -> 0 | AG109: ='50-year calcs'!AX282 -> 0 | AH109: ='50-year calcs'!AY282 -> 0 | AI109: ='50-year calcs'!AZ282 -> 0 | AJ109: ='50-year calcs'!BA282 -> 0 | AK109: ='50-year calcs'!BB282 -> 0 | AL109: ='50-year calcs'!BC282 -> 0 | AM109: ='50-year calcs'!BD282 -> 0 | AN109: ='50-year calcs'!BE282 -> 0 | AO109: ='50-year calcs'!BF282 -> 0 | AP109: ='50-year calcs'!BG282 -> 0 | AQ109: ='50-year calcs'!BH282 -> 0 | AR109: ='50-year calcs'!BI282 -> 0 | AS109: ='50-year calcs'!BJ282 -> 0 | AT109: ='50-year calcs'!BK282 -> 0 | AU109: ='50-year calcs'!BL282 -> 0 | AV109: ='50-year calcs'!BM282 -> 0 | AW109: ='50-year calcs'!BN282 -> 0 | AX109: ='50-year calcs'!BO282 -> 0 | AY109: ='50-year calcs'!BP282 -> 0 | AZ109: ='50-year calcs'!BQ282 -> 0 | BA109: ='50-year calcs'!BR282 -> 0 | BB109: ='50-year calcs'!BS282 -> 0
B110: =IF('3.8 Custom benefits'!B18="","",'3.8 Custom benefits'!B18) ->  | C110: ='50-year calcs'!C283 -> 0 | D110: ='50-year calcs'!U283 -> 0 | E110: ='50-year calcs'!V283 -> 0 | F110: ='50-year calcs'!W283 -> 0 | G110: ='50-year calcs'!X283 -> 0 | H110: ='50-year calcs'!Y283 -> 0 | I110: ='50-year calcs'!Z283 -> 0 | J110: ='50-year calcs'!AA283 -> 0 | K110: ='50-year calcs'!AB283 -> 0 | L110: ='50-year calcs'!AC283 -> 0 | M110: ='50-year calcs'!AD283 -> 0 | N110: ='50-year calcs'!AE283 -> 0 | O110: ='50-year calcs'!AF283 -> 0 | P110: ='50-year calcs'!AG283 -> 0 | Q110: ='50-year calcs'!AH283 -> 0 | R110: ='50-year calcs'!AI283 -> 0 | S110: ='50-year calcs'!AJ283 -> 0 | T110: ='50-year calcs'!AK283 -> 0 | U110: ='50-year calcs'!AL283 -> 0 | V110: ='50-year calcs'!AM283 -> 0 | W110: ='50-year calcs'!AN283 -> 0 | X110: ='50-year calcs'!AO283 -> 0 | Y110: ='50-year calcs'!AP283 -> 0 | Z110: ='50-year calcs'!AQ283 -> 0 | AA110: ='50-year calcs'!AR283 -> 0 | AB110: ='50-year calcs'!AS283 -> 0 | AC110: ='50-year calcs'!AT283 -> 0 | AD110: ='50-year calcs'!AU283 -> 0 | AE110: ='50-year calcs'!AV283 -> 0 | AF110: ='50-year calcs'!AW283 -> 0 | AG110: ='50-year calcs'!AX283 -> 0 | AH110: ='50-year calcs'!AY283 -> 0 | AI110: ='50-year calcs'!AZ283 -> 0 | AJ110: ='50-year calcs'!BA283 -> 0 | AK110: ='50-year calcs'!BB283 -> 0 | AL110: ='50-year calcs'!BC283 -> 0 | AM110: ='50-year calcs'!BD283 -> 0 | AN110: ='50-year calcs'!BE283 -> 0 | AO110: ='50-year calcs'!BF283 -> 0 | AP110: ='50-year calcs'!BG283 -> 0 | AQ110: ='50-year calcs'!BH283 -> 0 | AR110: ='50-year calcs'!BI283 -> 0 | AS110: ='50-year calcs'!BJ283 -> 0 | AT110: ='50-year calcs'!BK283 -> 0 | AU110: ='50-year calcs'!BL283 -> 0 | AV110: ='50-year calcs'!BM283 -> 0 | AW110: ='50-year calcs'!BN283 -> 0 | AX110: ='50-year calcs'!BO283 -> 0 | AY110: ='50-year calcs'!BP283 -> 0 | AZ110: ='50-year calcs'!BQ283 -> 0 | BA110: ='50-year calcs'!BR283 -> 0 | BB110: ='50-year calcs'!BS283 -> 0
B111: =IF('3.8 Custom benefits'!B19="","",'3.8 Custom benefits'!B19) ->  | C111: ='50-year calcs'!C284 -> 0 | D111: ='50-year calcs'!U284 -> 0 | E111: ='50-year calcs'!V284 -> 0 | F111: ='50-year calcs'!W284 -> 0 | G111: ='50-year calcs'!X284 -> 0 | H111: ='50-year calcs'!Y284 -> 0 | I111: ='50-year calcs'!Z284 -> 0 | J111: ='50-year calcs'!AA284 -> 0 | K111: ='50-year calcs'!AB284 -> 0 | L111: ='50-year calcs'!AC284 -> 0 | M111: ='50-year calcs'!AD284 -> 0 | N111: ='50-year calcs'!AE284 -> 0 | O111: ='50-year calcs'!AF284 -> 0 | P111: ='50-year calcs'!AG284 -> 0 | Q111: ='50-year calcs'!AH284 -> 0 | R111: ='50-year calcs'!AI284 -> 0 | S111: ='50-year calcs'!AJ284 -> 0 | T111: ='50-year calcs'!AK284 -> 0 | U111: ='50-year calcs'!AL284 -> 0 | V111: ='50-year calcs'!AM284 -> 0 | W111: ='50-year calcs'!AN284 -> 0 | X111: ='50-year calcs'!AO284 -> 0 | Y111: ='50-year calcs'!AP284 -> 0 | Z111: ='50-year calcs'!AQ284 -> 0 | AA111: ='50-year calcs'!AR284 -> 0 | AB111: ='50-year calcs'!AS284 -> 0 | AC111: ='50-year calcs'!AT284 -> 0 | AD111: ='50-year calcs'!AU284 -> 0 | AE111: ='50-year calcs'!AV284 -> 0 | AF111: ='50-year calcs'!AW284 -> 0 | AG111: ='50-year calcs'!AX284 -> 0 | AH111: ='50-year calcs'!AY284 -> 0 | AI111: ='50-year calcs'!AZ284 -> 0 | AJ111: ='50-year calcs'!BA284 -> 0 | AK111: ='50-year calcs'!BB284 -> 0 | AL111: ='50-year calcs'!BC284 -> 0 | AM111: ='50-year calcs'!BD284 -> 0 | AN111: ='50-year calcs'!BE284 -> 0 | AO111: ='50-year calcs'!BF284 -> 0 | AP111: ='50-year calcs'!BG284 -> 0 | AQ111: ='50-year calcs'!BH284 -> 0 | AR111: ='50-year calcs'!BI284 -> 0 | AS111: ='50-year calcs'!BJ284 -> 0 | AT111: ='50-year calcs'!BK284 -> 0 | AU111: ='50-year calcs'!BL284 -> 0 | AV111: ='50-year calcs'!BM284 -> 0 | AW111: ='50-year calcs'!BN284 -> 0 | AX111: ='50-year calcs'!BO284 -> 0 | AY111: ='50-year calcs'!BP284 -> 0 | AZ111: ='50-year calcs'!BQ284 -> 0 | BA111: ='50-year calcs'!BR284 -> 0 | BB111: ='50-year calcs'!BS284 -> 0
B113: Costs
A115: 5.1 | B115: ='5. Costs'!B8 -> Stylised pattern of costs
C116: Present value | D116: =D$10 -> 2020 | E116: =E$10 -> 2021 | F116: 2022 | G116: 2023 | H116: 2024 | I116: 2025 | J116: 2026 | K116: 2027 | L116: 2028 | M116: 2029 | N116: 2030 | O116: 2031 | P116: 2032 | Q116: 2033 | R116: 2034 | S116: 2035 | T116: 2036 | U116: 2037 | V116: 2038 | W116: 2039 | X116: 2040 | Y116: 2041 | Z116: 2042 | AA116: 2043 | AB116: 2044 | AC116: 2045 | AD116: 2046 | AE116: 2047 | AF116: 2048 | AG116: 2049 | AH116: 2050 | AI116: 2051 | AJ116: 2052 | AK116: 2053 | AL116: 2054 | AM116: 2055 | AN116: 2056 | AO116: 2057 | AP116: 2058 | AQ116: 2059 | AR116: 2060 | AS116: 2061 | AT116: 2062 | AU116: 2063 | AV116: 2064 | AW116: 2065 | AX116: 2066 | AY116: 2067 | AZ116: 2068 | BA116: 2069 | BB116: 2070
B117: Costs of project, etc. | C117: ='50-year calcs'!C292+'50-year calcs'!C293 -> 8241402.931 | D117: ='50-year calcs'!U292+'50-year calcs'!U293 -> 7000000 | E117: ='50-year calcs'!V292+'50-year calcs'!V293 -> 68000 | F117: ='50-year calcs'!W292+'50-year calcs'!W293 -> 68000 | G117: ='50-year calcs'!X292+'50-year calcs'!X293 -> 68000 | H117: ='50-year calcs'!Y292+'50-year calcs'!Y293 -> 68000 | I117: ='50-year calcs'!Z292+'50-year calcs'!Z293 -> 68000 | J117: ='50-year calcs'!AA292+'50-year calcs'!AA293 -> 68000 | K117: ='50-year calcs'!AB292+'50-year calcs'!AB293 -> 68000 | L117: ='50-year calcs'!AC292+'50-year calcs'!AC293 -> 68000 | M117: ='50-year calcs'!AD292+'50-year calcs'!AD293 -> 68000 | N117: ='50-year calcs'!AE292+'50-year calcs'!AE293 -> 68000 | O117: ='50-year calcs'!AF292+'50-year calcs'!AF293 -> 68000 | P117: ='50-year calcs'!AG292+'50-year calcs'!AG293 -> 68000 | Q117: ='50-year calcs'!AH292+'50-year calcs'!AH293 -> 68000 | R117: ='50-year calcs'!AI292+'50-year calcs'!AI293 -> 68000 | S117: ='50-year calcs'!AJ292+'50-year calcs'!AJ293 -> 68000 | T117: ='50-year calcs'!AK292+'50-year calcs'!AK293 -> 68000 | U117: ='50-year calcs'!AL292+'50-year calcs'!AL293 -> 68000 | V117: ='50-year calcs'!AM292+'50-year calcs'!AM293 -> 68000 | W117: ='50-year calcs'!AN292+'50-year calcs'!AN293 -> 68000 | X117: ='50-year calcs'!AO292+'50-year calcs'!AO293 -> 68000 | Y117: ='50-year calcs'!AP292+'50-year calcs'!AP293 -> 68000 | Z117: ='50-year calcs'!AQ292+'50-year calcs'!AQ293 -> 68000 | AA117: ='50-year calcs'!AR292+'50-year calcs'!AR293 -> 68000 | AB117: ='50-year calcs'!AS292+'50-year calcs'!AS293 -> 68000 | AC117: ='50-year calcs'!AT292+'50-year calcs'!AT293 -> 68000 | AD117: ='50-year calcs'!AU292+'50-year calcs'!AU293 -> 68000 | AE117: ='50-year calcs'!AV292+'50-year calcs'!AV293 -> 68000 | AF117: ='50-year calcs'!AW292+'50-year calcs'!AW293 -> 68000 | AG117: ='50-year calcs'!AX292+'50-year calcs'!AX293 -> 68000 | AH117: ='50-year calcs'!AY292+'50-year calcs'!AY293 -> 68000 | AI117: ='50-year calcs'!AZ292+'50-year calcs'!AZ293 -> 68000 | AJ117: ='50-year calcs'!BA292+'50-year calcs'!BA293 -> 68000 | AK117: ='50-year calcs'!BB292+'50-year calcs'!BB293 -> 68000 | AL117: ='50-year calcs'!BC292+'50-year calcs'!BC293 -> 68000 | AM117: ='50-year calcs'!BD292+'50-year calcs'!BD293 -> 68000 | AN117: ='50-year calcs'!BE292+'50-year calcs'!BE293 -> 68000 | AO117: ='50-year calcs'!BF292+'50-year calcs'!BF293 -> 68000 | AP117: ='50-year calcs'!BG292+'50-year calcs'!BG293 -> 68000 | AQ117: ='50-year calcs'!BH292+'50-year calcs'!BH293 -> 68000 | AR117: ='50-year calcs'!BI292+'50-year calcs'!BI293 -> 68000 | AS117: ='50-year calcs'!BJ292+'50-year calcs'!BJ293 -> 68000 | AT117: ='50-year calcs'!BK292+'50-year calcs'!BK293 -> 68000 | AU117: ='50-year calcs'!BL292+'50-year calcs'!BL293 -> 68000 | AV117: ='50-year calcs'!BM292+'50-year calcs'!BM293 -> 68000 | AW117: ='50-year calcs'!BN292+'50-year calcs'!BN293 -> 68000 | AX117: ='50-year calcs'!BO292+'50-year calcs'!BO293 -> 68000 | AY117: ='50-year calcs'!BP292+'50-year calcs'!BP293 -> 68000 | AZ117: ='50-year calcs'!BQ292+'50-year calcs'!BQ293 -> 68000 | BA117: ='50-year calcs'!BR292+'50-year calcs'!BR293 -> 68000 | BB117: ='50-year calcs'!BS292+'50-year calcs'!BS293 -> 68000
B118: Costs of compliance | C118: ='50-year calcs'!C294+'50-year calcs'!C295 -> 0 | D118: ='50-year calcs'!U294+'50-year calcs'!U295 -> 0 | E118: ='50-year calcs'!V294+'50-year calcs'!V295 -> 0 | F118: ='50-year calcs'!W294+'50-year calcs'!W295 -> 0 | G118: ='50-year calcs'!X294+'50-year calcs'!X295 -> 0 | H118: ='50-year calcs'!Y294+'50-year calcs'!Y295 -> 0 | I118: ='50-year calcs'!Z294+'50-year calcs'!Z295 -> 0 | J118: ='50-year calcs'!AA294+'50-year calcs'!AA295 -> 0 | K118: ='50-year calcs'!AB294+'50-year calcs'!AB295 -> 0 | L118: ='50-year calcs'!AC294+'50-year calcs'!AC295 -> 0 | M118: ='50-year calcs'!AD294+'50-year calcs'!AD295 -> 0 | N118: ='50-year calcs'!AE294+'50-year calcs'!AE295 -> 0 | O118: ='50-year calcs'!AF294+'50-year calcs'!AF295 -> 0 | P118: ='50-year calcs'!AG294+'50-year calcs'!AG295 -> 0 | Q118: ='50-year calcs'!AH294+'50-year calcs'!AH295 -> 0 | R118: ='50-year calcs'!AI294+'50-year calcs'!AI295 -> 0 | S118: ='50-year calcs'!AJ294+'50-year calcs'!AJ295 -> 0 | T118: ='50-year calcs'!AK294+'50-year calcs'!AK295 -> 0 | U118: ='50-year calcs'!AL294+'50-year calcs'!AL295 -> 0 | V118: ='50-year calcs'!AM294+'50-year calcs'!AM295 -> 0 | W118: ='50-year calcs'!AN294+'50-year calcs'!AN295 -> 0 | X118: ='50-year calcs'!AO294+'50-year calcs'!AO295 -> 0 | Y118: ='50-year calcs'!AP294+'50-year calcs'!AP295 -> 0 | Z118: ='50-year calcs'!AQ294+'50-year calcs'!AQ295 -> 0 | AA118: ='50-year calcs'!AR294+'50-year calcs'!AR295 -> 0 | AB118: ='50-year calcs'!AS294+'50-year calcs'!AS295 -> 0 | AC118: ='50-year calcs'!AT294+'50-year calcs'!AT295 -> 0 | AD118: ='50-year calcs'!AU294+'50-year calcs'!AU295 -> 0 | AE118: ='50-year calcs'!AV294+'50-year calcs'!AV295 -> 0 | AF118: ='50-year calcs'!AW294+'50-year calcs'!AW295 -> 0 | AG118: ='50-year calcs'!AX294+'50-year calcs'!AX295 -> 0 | AH118: ='50-year calcs'!AY294+'50-year calcs'!AY295 -> 0 | AI118: ='50-year calcs'!AZ294+'50-year calcs'!AZ295 -> 0 | AJ118: ='50-year calcs'!BA294+'50-year calcs'!BA295 -> 0 | AK118: ='50-year calcs'!BB294+'50-year calcs'!BB295 -> 0 | AL118: ='50-year calcs'!BC294+'50-year calcs'!BC295 -> 0 | AM118: ='50-year calcs'!BD294+'50-year calcs'!BD295 -> 0 | AN118: ='50-year calcs'!BE294+'50-year calcs'!BE295 -> 0 | AO118: ='50-year calcs'!BF294+'50-year calcs'!BF295 -> 0 | AP118: ='50-year calcs'!BG294+'50-year calcs'!BG295 -> 0 | AQ118: ='50-year calcs'!BH294+'50-year calcs'!BH295 -> 0 | AR118: ='50-year calcs'!BI294+'50-year calcs'!BI295 -> 0 | AS118: ='50-year calcs'!BJ294+'50-year calcs'!BJ295 -> 0 | AT118: ='50-year calcs'!BK294+'50-year calcs'!BK295 -> 0 | AU118: ='50-year calcs'!BL294+'50-year calcs'!BL295 -> 0 | AV118: ='50-year calcs'!BM294+'50-year calcs'!BM295 -> 0 | AW118: ='50-year calcs'!BN294+'50-year calcs'!BN295 -> 0 | AX118: ='50-year calcs'!BO294+'50-year calcs'!BO295 -> 0 | AY118: ='50-year calcs'!BP294+'50-year calcs'!BP295 -> 0 | AZ118: ='50-year calcs'!BQ294+'50-year calcs'!BQ295 -> 0 | BA118: ='50-year calcs'!BR294+'50-year calcs'!BR295 -> 0 | BB118: ='50-year calcs'!BS294+'50-year calcs'!BS295 -> 0
A120: 5.2 | B120: ='5. Costs'!B29 -> Capital costs, including planning, design and construction of capital works
C121: Present value | D121: =D$10 -> 2020 | E121: =E$10 -> 2021 | F121: 2022 | G121: 2023 | H121: 2024 | I121: 2025 | J121: 2026 | K121: 2027 | L121: 2028 | M121: 2029 | N121: 2030 | O121: 2031 | P121: 2032 | Q121: 2033 | R121: 2034 | S121: 2035 | T121: 2036 | U121: 2037 | V121: 2038 | W121: 2039 | X121: 2040 | Y121: 2041 | Z121: 2042 | AA121: 2043 | AB121: 2044 | AC121: 2045 | AD121: 2046 | AE121: 2047 | AF121: 2048 | AG121: 2049 | AH121: 2050 | AI121: 2051 | AJ121: 2052 | AK121: 2053 | AL121: 2054 | AM121: 2055 | AN121: 2056 | AO121: 2057 | AP121: 2058 | AQ121: 2059 | AR121: 2060 | AS121: 2061 | AT121: 2062 | AU121: 2063 | AV121: 2064 | AW121: 2065 | AX121: 2066 | AY121: 2067 | AZ121: 2068 | BA121: 2069 | BB121: 2070
B122: =IF('5. Costs'!B31="","",'5. Costs'!B31) ->  | C122: ='50-year calcs'!C301+'50-year calcs'!C315 -> 0 | D122: ='50-year calcs'!U301+'50-year calcs'!U315 -> 0 | E122: ='50-year calcs'!V301+'50-year calcs'!V315 -> 0 | F122: ='50-year calcs'!W301+'50-year calcs'!W315 -> 0 | G122: ='50-year calcs'!X301+'50-year calcs'!X315 -> 0 | H122: ='50-year calcs'!Y301+'50-year calcs'!Y315 -> 0 | I122: ='50-year calcs'!Z301+'50-year calcs'!Z315 -> 0 | J122: ='50-year calcs'!AA301+'50-year calcs'!AA315 -> 0 | K122: ='50-year calcs'!AB301+'50-year calcs'!AB315 -> 0 | L122: ='50-year calcs'!AC301+'50-year calcs'!AC315 -> 0 | M122: ='50-year calcs'!AD301+'50-year calcs'!AD315 -> 0 | N122: ='50-year calcs'!AE301+'50-year calcs'!AE315 -> 0 | O122: ='50-year calcs'!AF301+'50-year calcs'!AF315 -> 0 | P122: ='50-year calcs'!AG301+'50-year calcs'!AG315 -> 0 | Q122: ='50-year calcs'!AH301+'50-year calcs'!AH315 -> 0 | R122: ='50-year calcs'!AI301+'50-year calcs'!AI315 -> 0 | S122: ='50-year calcs'!AJ301+'50-year calcs'!AJ315 -> 0 | T122: ='50-year calcs'!AK301+'50-year calcs'!AK315 -> 0 | U122: ='50-year calcs'!AL301+'50-year calcs'!AL315 -> 0 | V122: ='50-year calcs'!AM301+'50-year calcs'!AM315 -> 0 | W122: ='50-year calcs'!AN301+'50-year calcs'!AN315 -> 0 | X122: ='50-year calcs'!AO301+'50-year calcs'!AO315 -> 0 | Y122: ='50-year calcs'!AP301+'50-year calcs'!AP315 -> 0 | Z122: ='50-year calcs'!AQ301+'50-year calcs'!AQ315 -> 0 | AA122: ='50-year calcs'!AR301+'50-year calcs'!AR315 -> 0 | AB122: ='50-year calcs'!AS301+'50-year calcs'!AS315 -> 0 | AC122: ='50-year calcs'!AT301+'50-year calcs'!AT315 -> 0 | AD122: ='50-year calcs'!AU301+'50-year calcs'!AU315 -> 0 | AE122: ='50-year calcs'!AV301+'50-year calcs'!AV315 -> 0 | AF122: ='50-year calcs'!AW301+'50-year calcs'!AW315 -> 0 | AG122: ='50-year calcs'!AX301+'50-year calcs'!AX315 -> 0 | AH122: ='50-year calcs'!AY301+'50-year calcs'!AY315 -> 0 | AI122: ='50-year calcs'!AZ301+'50-year calcs'!AZ315 -> 0 | AJ122: ='50-year calcs'!BA301+'50-year calcs'!BA315 -> 0 | AK122: ='50-year calcs'!BB301+'50-year calcs'!BB315 -> 0 | AL122: ='50-year calcs'!BC301+'50-year calcs'!BC315 -> 0 | AM122: ='50-year calcs'!BD301+'50-year calcs'!BD315 -> 0 | AN122: ='50-year calcs'!BE301+'50-year calcs'!BE315 -> 0 | AO122: ='50-year calcs'!BF301+'50-year calcs'!BF315 -> 0 | AP122: ='50-year calcs'!BG301+'50-year calcs'!BG315 -> 0 | AQ122: ='50-year calcs'!BH301+'50-year calcs'!BH315 -> 0 | AR122: ='50-year calcs'!BI301+'50-year calcs'!BI315 -> 0 | AS122: ='50-year calcs'!BJ301+'50-year calcs'!BJ315 -> 0 | AT122: ='50-year calcs'!BK301+'50-year calcs'!BK315 -> 0 | AU122: ='50-year calcs'!BL301+'50-year calcs'!BL315 -> 0 | AV122: ='50-year calcs'!BM301+'50-year calcs'!BM315 -> 0 | AW122: ='50-year calcs'!BN301+'50-year calcs'!BN315 -> 0 | AX122: ='50-year calcs'!BO301+'50-year calcs'!BO315 -> 0 | AY122: ='50-year calcs'!BP301+'50-year calcs'!BP315 -> 0 | AZ122: ='50-year calcs'!BQ301+'50-year calcs'!BQ315 -> 0 | BA122: ='50-year calcs'!BR301+'50-year calcs'!BR315 -> 0 | BB122: ='50-year calcs'!BS301+'50-year calcs'!BS315 -> 0
B123: =IF('5. Costs'!B32="","",'5. Costs'!B32) ->  | C123: ='50-year calcs'!C302+'50-year calcs'!C316 -> 0 | D123: ='50-year calcs'!U302+'50-year calcs'!U316 -> 0 | E123: ='50-year calcs'!V302+'50-year calcs'!V316 -> 0 | F123: ='50-year calcs'!W302+'50-year calcs'!W316 -> 0 | G123: ='50-year calcs'!X302+'50-year calcs'!X316 -> 0 | H123: ='50-year calcs'!Y302+'50-year calcs'!Y316 -> 0 | I123: ='50-year calcs'!Z302+'50-year calcs'!Z316 -> 0 | J123: ='50-year calcs'!AA302+'50-year calcs'!AA316 -> 0 | K123: ='50-year calcs'!AB302+'50-year calcs'!AB316 -> 0 | L123: ='50-year calcs'!AC302+'50-year calcs'!AC316 -> 0 | M123: ='50-year calcs'!AD302+'50-year calcs'!AD316 -> 0 | N123: ='50-year calcs'!AE302+'50-year calcs'!AE316 -> 0 | O123: ='50-year calcs'!AF302+'50-year calcs'!AF316 -> 0 | P123: ='50-year calcs'!AG302+'50-year calcs'!AG316 -> 0 | Q123: ='50-year calcs'!AH302+'50-year calcs'!AH316 -> 0 | R123: ='50-year calcs'!AI302+'50-year calcs'!AI316 -> 0 | S123: ='50-year calcs'!AJ302+'50-year calcs'!AJ316 -> 0 | T123: ='50-year calcs'!AK302+'50-year calcs'!AK316 -> 0 | U123: ='50-year calcs'!AL302+'50-year calcs'!AL316 -> 0 | V123: ='50-year calcs'!AM302+'50-year calcs'!AM316 -> 0 | W123: ='50-year calcs'!AN302+'50-year calcs'!AN316 -> 0 | X123: ='50-year calcs'!AO302+'50-year calcs'!AO316 -> 0 | Y123: ='50-year calcs'!AP302+'50-year calcs'!AP316 -> 0 | Z123: ='50-year calcs'!AQ302+'50-year calcs'!AQ316 -> 0 | AA123: ='50-year calcs'!AR302+'50-year calcs'!AR316 -> 0 | AB123: ='50-year calcs'!AS302+'50-year calcs'!AS316 -> 0 | AC123: ='50-year calcs'!AT302+'50-year calcs'!AT316 -> 0 | AD123: ='50-year calcs'!AU302+'50-year calcs'!AU316 -> 0 | AE123: ='50-year calcs'!AV302+'50-year calcs'!AV316 -> 0 | AF123: ='50-year calcs'!AW302+'50-year calcs'!AW316 -> 0 | AG123: ='50-year calcs'!AX302+'50-year calcs'!AX316 -> 0 | AH123: ='50-year calcs'!AY302+'50-year calcs'!AY316 -> 0 | AI123: ='50-year calcs'!AZ302+'50-year calcs'!AZ316 -> 0 | AJ123: ='50-year calcs'!BA302+'50-year calcs'!BA316 -> 0 | AK123: ='50-year calcs'!BB302+'50-year calcs'!BB316 -> 0 | AL123: ='50-year calcs'!BC302+'50-year calcs'!BC316 -> 0 | AM123: ='50-year calcs'!BD302+'50-year calcs'!BD316 -> 0 | AN123: ='50-year calcs'!BE302+'50-year calcs'!BE316 -> 0 | AO123: ='50-year calcs'!BF302+'50-year calcs'!BF316 -> 0 | AP123: ='50-year calcs'!BG302+'50-year calcs'!BG316 -> 0 | AQ123: ='50-year calcs'!BH302+'50-year calcs'!BH316 -> 0 | AR123: ='50-year calcs'!BI302+'50-year calcs'!BI316 -> 0 | AS123: ='50-year calcs'!BJ302+'50-year calcs'!BJ316 -> 0 | AT123: ='50-year calcs'!BK302+'50-year calcs'!BK316 -> 0 | AU123: ='50-year calcs'!BL302+'50-year calcs'!BL316 -> 0 | AV123: ='50-year calcs'!BM302+'50-year calcs'!BM316 -> 0 | AW123: ='50-year calcs'!BN302+'50-year calcs'!BN316 -> 0 | AX123: ='50-year calcs'!BO302+'50-year calcs'!BO316 -> 0 | AY123: ='50-year calcs'!BP302+'50-year calcs'!BP316 -> 0 | AZ123: ='50-year calcs'!BQ302+'50-year calcs'!BQ316 -> 0 | BA123: ='50-year calcs'!BR302+'50-year calcs'!BR316 -> 0 | BB123: ='50-year calcs'!BS302+'50-year calcs'!BS316 -> 0
B124: =IF('5. Costs'!B33="","",'5. Costs'!B33) ->  | C124: ='50-year calcs'!C303+'50-year calcs'!C317 -> 0 | D124: ='50-year calcs'!U303+'50-year calcs'!U317 -> 0 | E124: ='50-year calcs'!V303+'50-year calcs'!V317 -> 0 | F124: ='50-year calcs'!W303+'50-year calcs'!W317 -> 0 | G124: ='50-year calcs'!X303+'50-year calcs'!X317 -> 0 | H124: ='50-year calcs'!Y303+'50-year calcs'!Y317 -> 0 | I124: ='50-year calcs'!Z303+'50-year calcs'!Z317 -> 0 | J124: ='50-year calcs'!AA303+'50-year calcs'!AA317 -> 0 | K124: ='50-year calcs'!AB303+'50-year calcs'!AB317 -> 0 | L124: ='50-year calcs'!AC303+'50-year calcs'!AC317 -> 0 | M124: ='50-year calcs'!AD303+'50-year calcs'!AD317 -> 0 | N124: ='50-year calcs'!AE303+'50-year calcs'!AE317 -> 0 | O124: ='50-year calcs'!AF303+'50-year calcs'!AF317 -> 0 | P124: ='50-year calcs'!AG303+'50-year calcs'!AG317 -> 0 | Q124: ='50-year calcs'!AH303+'50-year calcs'!AH317 -> 0 | R124: ='50-year calcs'!AI303+'50-year calcs'!AI317 -> 0 | S124: ='50-year calcs'!AJ303+'50-year calcs'!AJ317 -> 0 | T124: ='50-year calcs'!AK303+'50-year calcs'!AK317 -> 0 | U124: ='50-year calcs'!AL303+'50-year calcs'!AL317 -> 0 | V124: ='50-year calcs'!AM303+'50-year calcs'!AM317 -> 0 | W124: ='50-year calcs'!AN303+'50-year calcs'!AN317 -> 0 | X124: ='50-year calcs'!AO303+'50-year calcs'!AO317 -> 0 | Y124: ='50-year calcs'!AP303+'50-year calcs'!AP317 -> 0 | Z124: ='50-year calcs'!AQ303+'50-year calcs'!AQ317 -> 0 | AA124: ='50-year calcs'!AR303+'50-year calcs'!AR317 -> 0 | AB124: ='50-year calcs'!AS303+'50-year calcs'!AS317 -> 0 | AC124: ='50-year calcs'!AT303+'50-year calcs'!AT317 -> 0 | AD124: ='50-year calcs'!AU303+'50-year calcs'!AU317 -> 0 | AE124: ='50-year calcs'!AV303+'50-year calcs'!AV317 -> 0 | AF124: ='50-year calcs'!AW303+'50-year calcs'!AW317 -> 0 | AG124: ='50-year calcs'!AX303+'50-year calcs'!AX317 -> 0 | AH124: ='50-year calcs'!AY303+'50-year calcs'!AY317 -> 0 | AI124: ='50-year calcs'!AZ303+'50-year calcs'!AZ317 -> 0 | AJ124: ='50-year calcs'!BA303+'50-year calcs'!BA317 -> 0 | AK124: ='50-year calcs'!BB303+'50-year calcs'!BB317 -> 0 | AL124: ='50-year calcs'!BC303+'50-year calcs'!BC317 -> 0 | AM124: ='50-year calcs'!BD303+'50-year calcs'!BD317 -> 0 | AN124: ='50-year calcs'!BE303+'50-year calcs'!BE317 -> 0 | AO124: ='50-year calcs'!BF303+'50-year calcs'!BF317 -> 0 | AP124: ='50-year calcs'!BG303+'50-year calcs'!BG317 -> 0 | AQ124: ='50-year calcs'!BH303+'50-year calcs'!BH317 -> 0 | AR124: ='50-year calcs'!BI303+'50-year calcs'!BI317 -> 0 | AS124: ='50-year calcs'!BJ303+'50-year calcs'!BJ317 -> 0 | AT124: ='50-year calcs'!BK303+'50-year calcs'!BK317 -> 0 | AU124: ='50-year calcs'!BL303+'50-year calcs'!BL317 -> 0 | AV124: ='50-year calcs'!BM303+'50-year calcs'!BM317 -> 0 | AW124: ='50-year calcs'!BN303+'50-year calcs'!BN317 -> 0 | AX124: ='50-year calcs'!BO303+'50-year calcs'!BO317 -> 0 | AY124: ='50-year calcs'!BP303+'50-year calcs'!BP317 -> 0 | AZ124: ='50-year calcs'!BQ303+'50-year calcs'!BQ317 -> 0 | BA124: ='50-year calcs'!BR303+'50-year calcs'!BR317 -> 0 | BB124: ='50-year calcs'!BS303+'50-year calcs'!BS317 -> 0
B125: =IF('5. Costs'!B34="","",'5. Costs'!B34) ->  | C125: ='50-year calcs'!C304+'50-year calcs'!C318 -> 0 | D125: ='50-year calcs'!U304+'50-year calcs'!U318 -> 0 | E125: ='50-year calcs'!V304+'50-year calcs'!V318 -> 0 | F125: ='50-year calcs'!W304+'50-year calcs'!W318 -> 0 | G125: ='50-year calcs'!X304+'50-year calcs'!X318 -> 0 | H125: ='50-year calcs'!Y304+'50-year calcs'!Y318 -> 0 | I125: ='50-year calcs'!Z304+'50-year calcs'!Z318 -> 0 | J125: ='50-year calcs'!AA304+'50-year calcs'!AA318 -> 0 | K125: ='50-year calcs'!AB304+'50-year calcs'!AB318 -> 0 | L125: ='50-year calcs'!AC304+'50-year calcs'!AC318 -> 0 | M125: ='50-year calcs'!AD304+'50-year calcs'!AD318 -> 0 | N125: ='50-year calcs'!AE304+'50-year calcs'!AE318 -> 0 | O125: ='50-year calcs'!AF304+'50-year calcs'!AF318 -> 0 | P125: ='50-year calcs'!AG304+'50-year calcs'!AG318 -> 0 | Q125: ='50-year calcs'!AH304+'50-year calcs'!AH318 -> 0 | R125: ='50-year calcs'!AI304+'50-year calcs'!AI318 -> 0 | S125: ='50-year calcs'!AJ304+'50-year calcs'!AJ318 -> 0 | T125: ='50-year calcs'!AK304+'50-year calcs'!AK318 -> 0 | U125: ='50-year calcs'!AL304+'50-year calcs'!AL318 -> 0 | V125: ='50-year calcs'!AM304+'50-year calcs'!AM318 -> 0 | W125: ='50-year calcs'!AN304+'50-year calcs'!AN318 -> 0 | X125: ='50-year calcs'!AO304+'50-year calcs'!AO318 -> 0 | Y125: ='50-year calcs'!AP304+'50-year calcs'!AP318 -> 0 | Z125: ='50-year calcs'!AQ304+'50-year calcs'!AQ318 -> 0 | AA125: ='50-year calcs'!AR304+'50-year calcs'!AR318 -> 0 | AB125: ='50-year calcs'!AS304+'50-year calcs'!AS318 -> 0 | AC125: ='50-year calcs'!AT304+'50-year calcs'!AT318 -> 0 | AD125: ='50-year calcs'!AU304+'50-year calcs'!AU318 -> 0 | AE125: ='50-year calcs'!AV304+'50-year calcs'!AV318 -> 0 | AF125: ='50-year calcs'!AW304+'50-year calcs'!AW318 -> 0 | AG125: ='50-year calcs'!AX304+'50-year calcs'!AX318 -> 0 | AH125: ='50-year calcs'!AY304+'50-year calcs'!AY318 -> 0 | AI125: ='50-year calcs'!AZ304+'50-year calcs'!AZ318 -> 0 | AJ125: ='50-year calcs'!BA304+'50-year calcs'!BA318 -> 0 | AK125: ='50-year calcs'!BB304+'50-year calcs'!BB318 -> 0 | AL125: ='50-year calcs'!BC304+'50-year calcs'!BC318 -> 0 | AM125: ='50-year calcs'!BD304+'50-year calcs'!BD318 -> 0 | AN125: ='50-year calcs'!BE304+'50-year calcs'!BE318 -> 0 | AO125: ='50-year calcs'!BF304+'50-year calcs'!BF318 -> 0 | AP125: ='50-year calcs'!BG304+'50-year calcs'!BG318 -> 0 | AQ125: ='50-year calcs'!BH304+'50-year calcs'!BH318 -> 0 | AR125: ='50-year calcs'!BI304+'50-year calcs'!BI318 -> 0 | AS125: ='50-year calcs'!BJ304+'50-year calcs'!BJ318 -> 0 | AT125: ='50-year calcs'!BK304+'50-year calcs'!BK318 -> 0 | AU125: ='50-year calcs'!BL304+'50-year calcs'!BL318 -> 0 | AV125: ='50-year calcs'!BM304+'50-year calcs'!BM318 -> 0 | AW125: ='50-year calcs'!BN304+'50-year calcs'!BN318 -> 0 | AX125: ='50-year calcs'!BO304+'50-year calcs'!BO318 -> 0 | AY125: ='50-year calcs'!BP304+'50-year calcs'!BP318 -> 0 | AZ125: ='50-year calcs'!BQ304+'50-year calcs'!BQ318 -> 0 | BA125: ='50-year calcs'!BR304+'50-year calcs'!BR318 -> 0 | BB125: ='50-year calcs'!BS304+'50-year calcs'!BS318 -> 0
B126: =IF('5. Costs'!B35="","",'5. Costs'!B35) ->  | C126: ='50-year calcs'!C305+'50-year calcs'!C319 -> 0 | D126: ='50-year calcs'!U305+'50-year calcs'!U319 -> 0 | E126: ='50-year calcs'!V305+'50-year calcs'!V319 -> 0 | F126: ='50-year calcs'!W305+'50-year calcs'!W319 -> 0 | G126: ='50-year calcs'!X305+'50-year calcs'!X319 -> 0 | H126: ='50-year calcs'!Y305+'50-year calcs'!Y319 -> 0 | I126: ='50-year calcs'!Z305+'50-year calcs'!Z319 -> 0 | J126: ='50-year calcs'!AA305+'50-year calcs'!AA319 -> 0 | K126: ='50-year calcs'!AB305+'50-year calcs'!AB319 -> 0 | L126: ='50-year calcs'!AC305+'50-year calcs'!AC319 -> 0 | M126: ='50-year calcs'!AD305+'50-year calcs'!AD319 -> 0 | N126: ='50-year calcs'!AE305+'50-year calcs'!AE319 -> 0 | O126: ='50-year calcs'!AF305+'50-year calcs'!AF319 -> 0 | P126: ='50-year calcs'!AG305+'50-year calcs'!AG319 -> 0 | Q126: ='50-year calcs'!AH305+'50-year calcs'!AH319 -> 0 | R126: ='50-year calcs'!AI305+'50-year calcs'!AI319 -> 0 | S126: ='50-year calcs'!AJ305+'50-year calcs'!AJ319 -> 0 | T126: ='50-year calcs'!AK305+'50-year calcs'!AK319 -> 0 | U126: ='50-year calcs'!AL305+'50-year calcs'!AL319 -> 0 | V126: ='50-year calcs'!AM305+'50-year calcs'!AM319 -> 0 | W126: ='50-year calcs'!AN305+'50-year calcs'!AN319 -> 0 | X126: ='50-year calcs'!AO305+'50-year calcs'!AO319 -> 0 | Y126: ='50-year calcs'!AP305+'50-year calcs'!AP319 -> 0 | Z126: ='50-year calcs'!AQ305+'50-year calcs'!AQ319 -> 0 | AA126: ='50-year calcs'!AR305+'50-year calcs'!AR319 -> 0 | AB126: ='50-year calcs'!AS305+'50-year calcs'!AS319 -> 0 | AC126: ='50-year calcs'!AT305+'50-year calcs'!AT319 -> 0 | AD126: ='50-year calcs'!AU305+'50-year calcs'!AU319 -> 0 | AE126: ='50-year calcs'!AV305+'50-year calcs'!AV319 -> 0 | AF126: ='50-year calcs'!AW305+'50-year calcs'!AW319 -> 0 | AG126: ='50-year calcs'!AX305+'50-year calcs'!AX319 -> 0 | AH126: ='50-year calcs'!AY305+'50-year calcs'!AY319 -> 0 | AI126: ='50-year calcs'!AZ305+'50-year calcs'!AZ319 -> 0 | AJ126: ='50-year calcs'!BA305+'50-year calcs'!BA319 -> 0 | AK126: ='50-year calcs'!BB305+'50-year calcs'!BB319 -> 0 | AL126: ='50-year calcs'!BC305+'50-year calcs'!BC319 -> 0 | AM126: ='50-year calcs'!BD305+'50-year calcs'!BD319 -> 0 | AN126: ='50-year calcs'!BE305+'50-year calcs'!BE319 -> 0 | AO126: ='50-year calcs'!BF305+'50-year calcs'!BF319 -> 0 | AP126: ='50-year calcs'!BG305+'50-year calcs'!BG319 -> 0 | AQ126: ='50-year calcs'!BH305+'50-year calcs'!BH319 -> 0 | AR126: ='50-year calcs'!BI305+'50-year calcs'!BI319 -> 0 | AS126: ='50-year calcs'!BJ305+'50-year calcs'!BJ319 -> 0 | AT126: ='50-year calcs'!BK305+'50-year calcs'!BK319 -> 0 | AU126: ='50-year calcs'!BL305+'50-year calcs'!BL319 -> 0 | AV126: ='50-year calcs'!BM305+'50-year calcs'!BM319 -> 0 | AW126: ='50-year calcs'!BN305+'50-year calcs'!BN319 -> 0 | AX126: ='50-year calcs'!BO305+'50-year calcs'!BO319 -> 0 | AY126: ='50-year calcs'!BP305+'50-year calcs'!BP319 -> 0 | AZ126: ='50-year calcs'!BQ305+'50-year calcs'!BQ319 -> 0 | BA126: ='50-year calcs'!BR305+'50-year calcs'!BR319 -> 0 | BB126: ='50-year calcs'!BS305+'50-year calcs'!BS319 -> 0
B127: =IF('5. Costs'!B36="","",'5. Costs'!B36) ->  | C127: ='50-year calcs'!C306+'50-year calcs'!C320 -> 0 | D127: ='50-year calcs'!U306+'50-year calcs'!U320 -> 0 | E127: ='50-year calcs'!V306+'50-year calcs'!V320 -> 0 | F127: ='50-year calcs'!W306+'50-year calcs'!W320 -> 0 | G127: ='50-year calcs'!X306+'50-year calcs'!X320 -> 0 | H127: ='50-year calcs'!Y306+'50-year calcs'!Y320 -> 0 | I127: ='50-year calcs'!Z306+'50-year calcs'!Z320 -> 0 | J127: ='50-year calcs'!AA306+'50-year calcs'!AA320 -> 0 | K127: ='50-year calcs'!AB306+'50-year calcs'!AB320 -> 0 | L127: ='50-year calcs'!AC306+'50-year calcs'!AC320 -> 0 | M127: ='50-year calcs'!AD306+'50-year calcs'!AD320 -> 0 | N127: ='50-year calcs'!AE306+'50-year calcs'!AE320 -> 0 | O127: ='50-year calcs'!AF306+'50-year calcs'!AF320 -> 0 | P127: ='50-year calcs'!AG306+'50-year calcs'!AG320 -> 0 | Q127: ='50-year calcs'!AH306+'50-year calcs'!AH320 -> 0 | R127: ='50-year calcs'!AI306+'50-year calcs'!AI320 -> 0 | S127: ='50-year calcs'!AJ306+'50-year calcs'!AJ320 -> 0 | T127: ='50-year calcs'!AK306+'50-year calcs'!AK320 -> 0 | U127: ='50-year calcs'!AL306+'50-year calcs'!AL320 -> 0 | V127: ='50-year calcs'!AM306+'50-year calcs'!AM320 -> 0 | W127: ='50-year calcs'!AN306+'50-year calcs'!AN320 -> 0 | X127: ='50-year calcs'!AO306+'50-year calcs'!AO320 -> 0 | Y127: ='50-year calcs'!AP306+'50-year calcs'!AP320 -> 0 | Z127: ='50-year calcs'!AQ306+'50-year calcs'!AQ320 -> 0 | AA127: ='50-year calcs'!AR306+'50-year calcs'!AR320 -> 0 | AB127: ='50-year calcs'!AS306+'50-year calcs'!AS320 -> 0 | AC127: ='50-year calcs'!AT306+'50-year calcs'!AT320 -> 0 | AD127: ='50-year calcs'!AU306+'50-year calcs'!AU320 -> 0 | AE127: ='50-year calcs'!AV306+'50-year calcs'!AV320 -> 0 | AF127: ='50-year calcs'!AW306+'50-year calcs'!AW320 -> 0 | AG127: ='50-year calcs'!AX306+'50-year calcs'!AX320 -> 0 | AH127: ='50-year calcs'!AY306+'50-year calcs'!AY320 -> 0 | AI127: ='50-year calcs'!AZ306+'50-year calcs'!AZ320 -> 0 | AJ127: ='50-year calcs'!BA306+'50-year calcs'!BA320 -> 0 | AK127: ='50-year calcs'!BB306+'50-year calcs'!BB320 -> 0 | AL127: ='50-year calcs'!BC306+'50-year calcs'!BC320 -> 0 | AM127: ='50-year calcs'!BD306+'50-year calcs'!BD320 -> 0 | AN127: ='50-year calcs'!BE306+'50-year calcs'!BE320 -> 0 | AO127: ='50-year calcs'!BF306+'50-year calcs'!BF320 -> 0 | AP127: ='50-year calcs'!BG306+'50-year calcs'!BG320 -> 0 | AQ127: ='50-year calcs'!BH306+'50-year calcs'!BH320 -> 0 | AR127: ='50-year calcs'!BI306+'50-year calcs'!BI320 -> 0 | AS127: ='50-year calcs'!BJ306+'50-year calcs'!BJ320 -> 0 | AT127: ='50-year calcs'!BK306+'50-year calcs'!BK320 -> 0 | AU127: ='50-year calcs'!BL306+'50-year calcs'!BL320 -> 0 | AV127: ='50-year calcs'!BM306+'50-year calcs'!BM320 -> 0 | AW127: ='50-year calcs'!BN306+'50-year calcs'!BN320 -> 0 | AX127: ='50-year calcs'!BO306+'50-year calcs'!BO320 -> 0 | AY127: ='50-year calcs'!BP306+'50-year calcs'!BP320 -> 0 | AZ127: ='50-year calcs'!BQ306+'50-year calcs'!BQ320 -> 0 | BA127: ='50-year calcs'!BR306+'50-year calcs'!BR320 -> 0 | BB127: ='50-year calcs'!BS306+'50-year calcs'!BS320 -> 0
